Workbook

Sheet Notes
B1: Scottish Burden of Disease study - Local area Burden of Disease profiles
B2: Note: Click on the link below to be taken to the relevant Microsoft Excel worksheet
B4: Guide to using SBOD local estimates
B6: DALYs, YLD, YLL, deaths and prevalence by cause of disease/injury and age-group, 2016
B8: DALYs, YLD, YLL, deaths and prevalence by area geography and age-group, 2016
B43: .

Sheet Guide for using estimates
B1: Scottish Burden of Disease study - Local area Burden of Disease profiles
B43: .

Sheet by area
D1: Scottish Burden of Disease study - Local area Burden of Disease profiles | AB1: DALYs
D2: Local area burden of disease profile by cause of disease/injury and age-group (years) | AB2: Both sexes | AC2: =VLOOKUP(AB2,Lookups!Q2:R4,2,FALSE) -> 3
AB3: Age-standardised rate per 100,000 population | AC3: =IF(AB3="Number",VLOOKUP(AB1,Lookups!N3:O7,2,FALSE),IF(AB3="Age-standardised rate per 100,000 population",VLOOKUP(AB1,Lookups!N8:O12,2,FALSE),"-")) -> 9
D5: Measure: | F5: Local area (reference area):
A7: Scotland | B7: =VLOOKUP(A7,Lookups!B2:C51,2,FALSE) -> Scot | D7: Gender:
A9: No comparator area chosen | B9: =VLOOKUP(A9,Lookups!B1:C51,2,FALSE) -> 0 | D9: Unit: | F9: Local area (comparator area):
I10: 1 - Under15 | J10: 2 - 15-24 | K10: 3 - 25-44 | L10: 4 - 45-64 | M10: 5 - 65 and over | P10: 1 - Under15 | Q10: 2 - 15-24 | R10: 3 - 25-44 | S10: 4 - 45-64 | T10: 5 - 65 and over
H11: ALL | I11: 1 - Under15 | J11: 2 - 15-24 | K11: 3 - 25-44 | L11: 4 - 45-64 | M11: 5 - 65 and over
D12: Cause of disease/injury | F12: RAG status | H12: =A7 -> Scotland | O12: =A9 -> No comparator area chosen
H13: =AB1&" | " &AB3&" "&"by age-group (years)" -> DALYs | Age-standardised rate per 100,000 population by age-group (years) | O13: =AB1&" | " &AB3&" "&"by age-group (years)" -> DALYs | Age-standardised rate per 100,000 population by age-group (years)
H14: All ages | I14: < 15 | J14: 15-24 | K14: 25-44 | L14: 45-64 | M14: 65 + | O14: All ages | P14: < 15 | Q14: 15-24 | R14: 25-44 | S14: 45-64 | T14: 65 +
D15: All causes of disease and injury | H15: =IF(ISNA(VLOOKUP($B$7&$D15&$AC$2&H$11,data!$F:$P,'by area'!$AC$3,FALSE)),"-",VLOOKUP($B$7&$D15&$AC$2&H$11,data!$F:$P,'by area'!$AC$3,FALSE)) -> 24753.39917 | I15: =IF(ISNA(VLOOKUP($B$7&$D15&$AC$2&I$11,data!$F:$P,'by area'!$AC$3,FALSE)),"-",VLOOKUP($B$7&$D15&$AC$2&I$11,data!$F:$P,'by area'!$AC$3,FALSE)) -> 4903.990675 | J15: =IF(ISNA(VLOOKUP($B$7&$D15&$AC$2&J$11,data!$F:$P,'by area'!$AC$3,FALSE)),"-",VLOOKUP($B$7&$D15&$AC$2&J$11,data!$F:$P,'by area'!$AC$3,FALSE)) -> 9210.534047 | K15: =IF(ISNA(VLOOKUP($B$7&$D15&$AC$2&K$11,data!$F:$P,'by area'!$AC$3,FALSE)),"-",VLOOKUP($B$7&$D15&$AC$2&K$11,data!$F:$P,'by area'!$AC$3,FALSE)) -> 16733.5595 | L15: =IF(ISNA(VLOOKUP($B$7&$D15&$AC$2&L$11,data!$F:$P,'by area'!$AC$3,FALSE)),"-",VLOOKUP($B$7&$D15&$AC$2&L$11,data!$F:$P,'by area'!$AC$3,FALSE)) -> 27247.59302 | M15: =IF(ISNA(VLOOKUP($B$7&$D15&$AC$2&M$11,data!$F:$P,'by area'!$AC$3,FALSE)),"-",VLOOKUP($B$7&$D15&$AC$2&M$11,data!$F:$P,'by area'!$AC$3,FALSE)) -> 57715.6094 | O15: =IF(ISNA(VLOOKUP($B$9&$D15&$AC$2&H$11,data!$F:$P,'by area'!$AC$3,FALSE)),"-",VLOOKUP($B$9&$D15&$AC$2&H$11,data!$F:$P,'by area'!$AC$3,FALSE)) -> - | P15: =IF(ISNA(VLOOKUP($B$9&$D15&$AC$2&I$11,data!$F:$P,'by area'!$AC$3,FALSE)),"-",VLOOKUP($B$9&$D15&$AC$2&I$11,data!$F:$P,'by area'!$AC$3,FALSE)) -> - | Q15: =IF(ISNA(VLOOKUP($B$9&$D15&$AC$2&J$11,data!$F:$P,'by area'!$AC$3,FALSE)),"-",VLOOKUP($B$9&$D15&$AC$2&J$11,data!$F:$P,'by area'!$AC$3,FALSE)) -> - | R15: =IF(ISNA(VLOOKUP($B$9&$D15&$AC$2&K$11,data!$F:$P,'by area'!$AC$3,FALSE)),"-",VLOOKUP($B$9&$D15&$AC$2&K$11,data!$F:$P,'by area'!$AC$3,FALSE)) -> - | S15: =IF(ISNA(VLOOKUP($B$9&$D15&$AC$2&L$11,data!$F:$P,'by area'!$AC$3,FALSE)),"-",VLOOKUP($B$9&$D15&$AC$2&L$11,data!$F:$P,'by area'!$AC$3,FALSE)) -> - | T15: =IF(ISNA(VLOOKUP($B$9&$D15&$AC$2&M$11,data!$F:$P,'by area'!$AC$3,FALSE)),"-",VLOOKUP($B$9&$D15&$AC$2&M$11,data!$F:$P,'by area'!$AC$3,FALSE)) -> -
H16: =IF(ISNA(VLOOKUP($B$7&$D16&$AC$2&H$11,data!$F:$P,'by area'!$AC$3,FALSE)),"-",VLOOKUP($B$7&$D16&$AC$2&H$11,data!$F:$P,'by area'!$AC$3,FALSE)) -> - | I16: =IF(ISNA(VLOOKUP($B$7&$D16&$AC$2&I$11,data!$F:$P,'by area'!$AC$3,FALSE)),"-",VLOOKUP($B$7&$D16&$AC$2&I$11,data!$F:$P,'by area'!$AC$3,FALSE)) -> - | J16: =IF(ISNA(VLOOKUP($B$7&$D16&$AC$2&J$11,data!$F:$P,'by area'!$AC$3,FALSE)),"-",VLOOKUP($B$7&$D16&$AC$2&J$11,data!$F:$P,'by area'!$AC$3,FALSE)) -> - | K16: =IF(ISNA(VLOOKUP($B$7&$D16&$AC$2&K$11,data!$F:$P,'by area'!$AC$3,FALSE)),"-",VLOOKUP($B$7&$D16&$AC$2&K$11,data!$F:$P,'by area'!$AC$3,FALSE)) -> - | L16: =IF(ISNA(VLOOKUP($B$7&$D16&$AC$2&L$11,data!$F:$P,'by area'!$AC$3,FALSE)),"-",VLOOKUP($B$7&$D16&$AC$2&L$11,data!$F:$P,'by area'!$AC$3,FALSE)) -> - | M16: =IF(ISNA(VLOOKUP($B$7&$D16&$AC$2&M$11,data!$F:$P,'by area'!$AC$3,FALSE)),"-",VLOOKUP($B$7&$D16&$AC$2&M$11,data!$F:$P,'by area'!$AC$3,FALSE)) -> - | O16: =IF(ISNA(VLOOKUP($B$9&$D16&$AC$2&H$11,data!$F:$P,'by area'!$AC$3,FALSE)),"-",VLOOKUP($B$9&$D16&$AC$2&H$11,data!$F:$P,'by area'!$AC$3,FALSE)) -> - | P16: =IF(ISNA(VLOOKUP($B$9&$D16&$AC$2&I$11,data!$F:$P,'by area'!$AC$3,FALSE)),"-",VLOOKUP($B$9&$D16&$AC$2&I$11,data!$F:$P,'by area'!$AC$3,FALSE)) -> - | Q16: =IF(ISNA(VLOOKUP($B$9&$D16&$AC$2&J$11,data!$F:$P,'by area'!$AC$3,FALSE)),"-",VLOOKUP($B$9&$D16&$AC$2&J$11,data!$F:$P,'by area'!$AC$3,FALSE)) -> - | R16: =IF(ISNA(VLOOKUP($B$9&$D16&$AC$2&K$11,data!$F:$P,'by area'!$AC$3,FALSE)),"-",VLOOKUP($B$9&$D16&$AC$2&K$11,data!$F:$P,'by area'!$AC$3,FALSE)) -> - | S16: =IF(ISNA(VLOOKUP($B$9&$D16&$AC$2&L$11,data!$F:$P,'by area'!$AC$3,FALSE)),"-",VLOOKUP($B$9&$D16&$AC$2&L$11,data!$F:$P,'by area'!$AC$3,FALSE)) -> - | T16: =IF(ISNA(VLOOKUP($B$9&$D16&$AC$2&M$11,data!$F:$P,'by area'!$AC$3,FALSE)),"-",VLOOKUP($B$9&$D16&$AC$2&M$11,data!$F:$P,'by area'!$AC$3,FALSE)) -> -
H17: =IF(ISNA(VLOOKUP($B$7&$D17&$AC$2&H$11,data!$F:$P,'by area'!$AC$3,FALSE)),"-",VLOOKUP($B$7&$D17&$AC$2&H$11,data!$F:$P,'by area'!$AC$3,FALSE)) -> - | I17: =IF(ISNA(VLOOKUP($B$7&$D17&$AC$2&I$11,data!$F:$P,'by area'!$AC$3,FALSE)),"-",VLOOKUP($B$7&$D17&$AC$2&I$11,data!$F:$P,'by area'!$AC$3,FALSE)) -> - | J17: =IF(ISNA(VLOOKUP($B$7&$D17&$AC$2&J$11,data!$F:$P,'by area'!$AC$3,FALSE)),"-",VLOOKUP($B$7&$D17&$AC$2&J$11,data!$F:$P,'by area'!$AC$3,FALSE)) -> - | K17: =IF(ISNA(VLOOKUP($B$7&$D17&$AC$2&K$11,data!$F:$P,'by area'!$AC$3,FALSE)),"-",VLOOKUP($B$7&$D17&$AC$2&K$11,data!$F:$P,'by area'!$AC$3,FALSE)) -> - | L17: =IF(ISNA(VLOOKUP($B$7&$D17&$AC$2&L$11,data!$F:$P,'by area'!$AC$3,FALSE)),"-",VLOOKUP($B$7&$D17&$AC$2&L$11,data!$F:$P,'by area'!$AC$3,FALSE)) -> - | M17: =IF(ISNA(VLOOKUP($B$7&$D17&$AC$2&M$11,data!$F:$P,'by area'!$AC$3,FALSE)),"-",VLOOKUP($B$7&$D17&$AC$2&M$11,data!$F:$P,'by area'!$AC$3,FALSE)) -> - | O17: =IF(ISNA(VLOOKUP($B$9&$D17&$AC$2&H$11,data!$F:$P,'by area'!$AC$3,FALSE)),"-",VLOOKUP($B$9&$D17&$AC$2&H$11,data!$F:$P,'by area'!$AC$3,FALSE)) -> - | P17: =IF(ISNA(VLOOKUP($B$9&$D17&$AC$2&I$11,data!$F:$P,'by area'!$AC$3,FALSE)),"-",VLOOKUP($B$9&$D17&$AC$2&I$11,data!$F:$P,'by area'!$AC$3,FALSE)) -> - | Q17: =IF(ISNA(VLOOKUP($B$9&$D17&$AC$2&J$11,data!$F:$P,'by area'!$AC$3,FALSE)),"-",VLOOKUP($B$9&$D17&$AC$2&J$11,data!$F:$P,'by area'!$AC$3,FALSE)) -> - | R17: =IF(ISNA(VLOOKUP($B$9&$D17&$AC$2&K$11,data!$F:$P,'by area'!$AC$3,FALSE)),"-",VLOOKUP($B$9&$D17&$AC$2&K$11,data!$F:$P,'by area'!$AC$3,FALSE)) -> - | S17: =IF(ISNA(VLOOKUP($B$9&$D17&$AC$2&L$11,data!$F:$P,'by area'!$AC$3,FALSE)),"-",VLOOKUP($B$9&$D17&$AC$2&L$11,data!$F:$P,'by area'!$AC$3,FALSE)) -> - | T17: =IF(ISNA(VLOOKUP($B$9&$D17&$AC$2&M$11,data!$F:$P,'by area'!$AC$3,FALSE)),"-",VLOOKUP($B$9&$D17&$AC$2&M$11,data!$F:$P,'by area'!$AC$3,FALSE)) -> -
D18: Communicable, maternal, neonatal, and nutritional diseases
D19: HIV/AIDS and tuberculosis | F19: =IF(ISNA(VLOOKUP($D19,RAG!$A$72:$K$139,'by area'!$AC$3,FALSE)),"-",VLOOKUP($D19,RAG!$A$72:$K$139,'by area'!$AC$3,FALSE)) -> 4.199090367 | H19: =IF(ISNA(VLOOKUP($B$7&$D19&$AC$2&H$11,data!$F:$P,'by area'!$AC$3,FALSE)),"-",VLOOKUP($B$7&$D19&$AC$2&H$11,data!$F:$P,'by area'!$AC$3,FALSE)) -> 27.48557783 | I19: =IF(ISNA(VLOOKUP($B$7&$D19&$AC$2&I$11,data!$F:$P,'by area'!$AC$3,FALSE)),"-",VLOOKUP($B$7&$D19&$AC$2&I$11,data!$F:$P,'by area'!$AC$3,FALSE)) -> 4.053518595 | J19: =IF(ISNA(VLOOKUP($B$7&$D19&$AC$2&J$11,data!$F:$P,'by area'!$AC$3,FALSE)),"-",VLOOKUP($B$7&$D19&$AC$2&J$11,data!$F:$P,'by area'!$AC$3,FALSE)) -> 3.335640987 | K19: =IF(ISNA(VLOOKUP($B$7&$D19&$AC$2&K$11,data!$F:$P,'by area'!$AC$3,FALSE)),"-",VLOOKUP($B$7&$D19&$AC$2&K$11,data!$F:$P,'by area'!$AC$3,FALSE)) -> 38.65672433 | L19: =IF(ISNA(VLOOKUP($B$7&$D19&$AC$2&L$11,data!$F:$P,'by area'!$AC$3,FALSE)),"-",VLOOKUP($B$7&$D19&$AC$2&L$11,data!$F:$P,'by area'!$AC$3,FALSE)) -> 41.46965829 | M19: =IF(ISNA(VLOOKUP($B$7&$D19&$AC$2&M$11,data!$F:$P,'by area'!$AC$3,FALSE)),"-",VLOOKUP($B$7&$D19&$AC$2&M$11,data!$F:$P,'by area'!$AC$3,FALSE)) -> 26.76884483 | O19: =IF(ISNA(VLOOKUP($B$9&$D19&$AC$2&H$11,data!$F:$P,'by area'!$AC$3,FALSE)),"-",VLOOKUP($B$9&$D19&$AC$2&H$11,data!$F:$P,'by area'!$AC$3,FALSE)) -> - | P19: =IF(ISNA(VLOOKUP($B$9&$D19&$AC$2&I$11,data!$F:$P,'by area'!$AC$3,FALSE)),"-",VLOOKUP($B$9&$D19&$AC$2&I$11,data!$F:$P,'by area'!$AC$3,FALSE)) -> - | Q19: =IF(ISNA(VLOOKUP($B$9&$D19&$AC$2&J$11,data!$F:$P,'by area'!$AC$3,FALSE)),"-",VLOOKUP($B$9&$D19&$AC$2&J$11,data!$F:$P,'by area'!$AC$3,FALSE)) -> - | R19: =IF(ISNA(VLOOKUP($B$9&$D19&$AC$2&K$11,data!$F:$P,'by area'!$AC$3,FALSE)),"-",VLOOKUP($B$9&$D19&$AC$2&K$11,data!$F:$P,'by area'!$AC$3,FALSE)) -> - | S19: =IF(ISNA(VLOOKUP($B$9&$D19&$AC$2&L$11,data!$F:$P,'by area'!$AC$3,FALSE)),"-",VLOOKUP($B$9&$D19&$AC$2&L$11,data!$F:$P,'by area'!$AC$3,FALSE)) -> - | T19: =IF(ISNA(VLOOKUP($B$9&$D19&$AC$2&M$11,data!$F:$P,'by area'!$AC$3,FALSE)),"-",VLOOKUP($B$9&$D19&$AC$2&M$11,data!$F:$P,'by area'!$AC$3,FALSE)) -> -
D20: Lower respiratory infections | F20: =IF(ISNA(VLOOKUP($D20,RAG!$A$72:$K$139,'by area'!$AC$3,FALSE)),"-",VLOOKUP($D20,RAG!$A$72:$K$139,'by area'!$AC$3,FALSE)) -> 4.192837783 | H20: =IF(ISNA(VLOOKUP($B$7&$D20&$AC$2&H$11,data!$F:$P,'by area'!$AC$3,FALSE)),"-",VLOOKUP($B$7&$D20&$AC$2&H$11,data!$F:$P,'by area'!$AC$3,FALSE)) -> 436.3531808 | I20: =IF(ISNA(VLOOKUP($B$7&$D20&$AC$2&I$11,data!$F:$P,'by area'!$AC$3,FALSE)),"-",VLOOKUP($B$7&$D20&$AC$2&I$11,data!$F:$P,'by area'!$AC$3,FALSE)) -> 75.9276489 | J20: =IF(ISNA(VLOOKUP($B$7&$D20&$AC$2&J$11,data!$F:$P,'by area'!$AC$3,FALSE)),"-",VLOOKUP($B$7&$D20&$AC$2&J$11,data!$F:$P,'by area'!$AC$3,FALSE)) -> 48.55424431 | K20: =IF(ISNA(VLOOKUP($B$7&$D20&$AC$2&K$11,data!$F:$P,'by area'!$AC$3,FALSE)),"-",VLOOKUP($B$7&$D20&$AC$2&K$11,data!$F:$P,'by area'!$AC$3,FALSE)) -> 116.1752575 | L20: =IF(ISNA(VLOOKUP($B$7&$D20&$AC$2&L$11,data!$F:$P,'by area'!$AC$3,FALSE)),"-",VLOOKUP($B$7&$D20&$AC$2&L$11,data!$F:$P,'by area'!$AC$3,FALSE)) -> 318.2793986 | M20: =IF(ISNA(VLOOKUP($B$7&$D20&$AC$2&M$11,data!$F:$P,'by area'!$AC$3,FALSE)),"-",VLOOKUP($B$7&$D20&$AC$2&M$11,data!$F:$P,'by area'!$AC$3,FALSE)) -> 1556.361718 | O20: =IF(ISNA(VLOOKUP($B$9&$D20&$AC$2&H$11,data!$F:$P,'by area'!$AC$3,FALSE)),"-",VLOOKUP($B$9&$D20&$AC$2&H$11,data!$F:$P,'by area'!$AC$3,FALSE)) -> - | P20: =IF(ISNA(VLOOKUP($B$9&$D20&$AC$2&I$11,data!$F:$P,'by area'!$AC$3,FALSE)),"-",VLOOKUP($B$9&$D20&$AC$2&I$11,data!$F:$P,'by area'!$AC$3,FALSE)) -> - | Q20: =IF(ISNA(VLOOKUP($B$9&$D20&$AC$2&J$11,data!$F:$P,'by area'!$AC$3,FALSE)),"-",VLOOKUP($B$9&$D20&$AC$2&J$11,data!$F:$P,'by area'!$AC$3,FALSE)) -> - | R20: =IF(ISNA(VLOOKUP($B$9&$D20&$AC$2&K$11,data!$F:$P,'by area'!$AC$3,FALSE)),"-",VLOOKUP($B$9&$D20&$AC$2&K$11,data!$F:$P,'by area'!$AC$3,FALSE)) -> - | S20: =IF(ISNA(VLOOKUP($B$9&$D20&$AC$2&L$11,data!$F:$P,'by area'!$AC$3,FALSE)),"-",VLOOKUP($B$9&$D20&$AC$2&L$11,data!$F:$P,'by area'!$AC$3,FALSE)) -> - | T20: =IF(ISNA(VLOOKUP($B$9&$D20&$AC$2&M$11,data!$F:$P,'by area'!$AC$3,FALSE)),"-",VLOOKUP($B$9&$D20&$AC$2&M$11,data!$F:$P,'by area'!$AC$3,FALSE)) -> -
D21: Diarrhoea and other common infections | F21: =IF(ISNA(VLOOKUP($D21,RAG!$A$72:$K$139,'by area'!$AC$3,FALSE)),"-",VLOOKUP($D21,RAG!$A$72:$K$139,'by area'!$AC$3,FALSE)) -> 3.602777356 | H21: =IF(ISNA(VLOOKUP($B$7&$D21&$AC$2&H$11,data!$F:$P,'by area'!$AC$3,FALSE)),"-",VLOOKUP($B$7&$D21&$AC$2&H$11,data!$F:$P,'by area'!$AC$3,FALSE)) -> 125.8614553 | I21: =IF(ISNA(VLOOKUP($B$7&$D21&$AC$2&I$11,data!$F:$P,'by area'!$AC$3,FALSE)),"-",VLOOKUP($B$7&$D21&$AC$2&I$11,data!$F:$P,'by area'!$AC$3,FALSE)) -> 189.4340982 | J21: =IF(ISNA(VLOOKUP($B$7&$D21&$AC$2&J$11,data!$F:$P,'by area'!$AC$3,FALSE)),"-",VLOOKUP($B$7&$D21&$AC$2&J$11,data!$F:$P,'by area'!$AC$3,FALSE)) -> 95.91724489 | K21: =IF(ISNA(VLOOKUP($B$7&$D21&$AC$2&K$11,data!$F:$P,'by area'!$AC$3,FALSE)),"-",VLOOKUP($B$7&$D21&$AC$2&K$11,data!$F:$P,'by area'!$AC$3,FALSE)) -> 92.00731219 | L21: =IF(ISNA(VLOOKUP($B$7&$D21&$AC$2&L$11,data!$F:$P,'by area'!$AC$3,FALSE)),"-",VLOOKUP($B$7&$D21&$AC$2&L$11,data!$F:$P,'by area'!$AC$3,FALSE)) -> 88.27143937 | M21: =IF(ISNA(VLOOKUP($B$7&$D21&$AC$2&M$11,data!$F:$P,'by area'!$AC$3,FALSE)),"-",VLOOKUP($B$7&$D21&$AC$2&M$11,data!$F:$P,'by area'!$AC$3,FALSE)) -> 188.449473 | O21: =IF(ISNA(VLOOKUP($B$9&$D21&$AC$2&H$11,data!$F:$P,'by area'!$AC$3,FALSE)),"-",VLOOKUP($B$9&$D21&$AC$2&H$11,data!$F:$P,'by area'!$AC$3,FALSE)) -> - | P21: =IF(ISNA(VLOOKUP($B$9&$D21&$AC$2&I$11,data!$F:$P,'by area'!$AC$3,FALSE)),"-",VLOOKUP($B$9&$D21&$AC$2&I$11,data!$F:$P,'by area'!$AC$3,FALSE)) -> - | Q21: =IF(ISNA(VLOOKUP($B$9&$D21&$AC$2&J$11,data!$F:$P,'by area'!$AC$3,FALSE)),"-",VLOOKUP($B$9&$D21&$AC$2&J$11,data!$F:$P,'by area'!$AC$3,FALSE)) -> - | R21: =IF(ISNA(VLOOKUP($B$9&$D21&$AC$2&K$11,data!$F:$P,'by area'!$AC$3,FALSE)),"-",VLOOKUP($B$9&$D21&$AC$2&K$11,data!$F:$P,'by area'!$AC$3,FALSE)) -> - | S21: =IF(ISNA(VLOOKUP($B$9&$D21&$AC$2&L$11,data!$F:$P,'by area'!$AC$3,FALSE)),"-",VLOOKUP($B$9&$D21&$AC$2&L$11,data!$F:$P,'by area'!$AC$3,FALSE)) -> - | T21: =IF(ISNA(VLOOKUP($B$9&$D21&$AC$2&M$11,data!$F:$P,'by area'!$AC$3,FALSE)),"-",VLOOKUP($B$9&$D21&$AC$2&M$11,data!$F:$P,'by area'!$AC$3,FALSE)) -> -
D22: Maternal disorders | F22: =IF(ISNA(VLOOKUP($D22,RAG!$A$72:$K$139,'by area'!$AC$3,FALSE)),"-",VLOOKUP($D22,RAG!$A$72:$K$139,'by area'!$AC$3,FALSE)) -> 3.591339146 | H22: =IF(ISNA(VLOOKUP($B$7&$D22&$AC$2&H$11,data!$F:$P,'by area'!$AC$3,FALSE)),"-",VLOOKUP($B$7&$D22&$AC$2&H$11,data!$F:$P,'by area'!$AC$3,FALSE)) -> 16.62553767 | I22: =IF(ISNA(VLOOKUP($B$7&$D22&$AC$2&I$11,data!$F:$P,'by area'!$AC$3,FALSE)),"-",VLOOKUP($B$7&$D22&$AC$2&I$11,data!$F:$P,'by area'!$AC$3,FALSE)) -> 0.01067409269 | J22: =IF(ISNA(VLOOKUP($B$7&$D22&$AC$2&J$11,data!$F:$P,'by area'!$AC$3,FALSE)),"-",VLOOKUP($B$7&$D22&$AC$2&J$11,data!$F:$P,'by area'!$AC$3,FALSE)) -> 48.83049344 | K22: =IF(ISNA(VLOOKUP($B$7&$D22&$AC$2&K$11,data!$F:$P,'by area'!$AC$3,FALSE)),"-",VLOOKUP($B$7&$D22&$AC$2&K$11,data!$F:$P,'by area'!$AC$3,FALSE)) -> 41.3928323 | L22: =IF(ISNA(VLOOKUP($B$7&$D22&$AC$2&L$11,data!$F:$P,'by area'!$AC$3,FALSE)),"-",VLOOKUP($B$7&$D22&$AC$2&L$11,data!$F:$P,'by area'!$AC$3,FALSE)) -> 0.1480094706 | M22: =IF(ISNA(VLOOKUP($B$7&$D22&$AC$2&M$11,data!$F:$P,'by area'!$AC$3,FALSE)),"-",VLOOKUP($B$7&$D22&$AC$2&M$11,data!$F:$P,'by area'!$AC$3,FALSE)) -> 0 | O22: =IF(ISNA(VLOOKUP($B$9&$D22&$AC$2&H$11,data!$F:$P,'by area'!$AC$3,FALSE)),"-",VLOOKUP($B$9&$D22&$AC$2&H$11,data!$F:$P,'by area'!$AC$3,FALSE)) -> - | P22: =IF(ISNA(VLOOKUP($B$9&$D22&$AC$2&I$11,data!$F:$P,'by area'!$AC$3,FALSE)),"-",VLOOKUP($B$9&$D22&$AC$2&I$11,data!$F:$P,'by area'!$AC$3,FALSE)) -> - | Q22: =IF(ISNA(VLOOKUP($B$9&$D22&$AC$2&J$11,data!$F:$P,'by area'!$AC$3,FALSE)),"-",VLOOKUP($B$9&$D22&$AC$2&J$11,data!$F:$P,'by area'!$AC$3,FALSE)) -> - | R22: =IF(ISNA(VLOOKUP($B$9&$D22&$AC$2&K$11,data!$F:$P,'by area'!$AC$3,FALSE)),"-",VLOOKUP($B$9&$D22&$AC$2&K$11,data!$F:$P,'by area'!$AC$3,FALSE)) -> - | S22: =IF(ISNA(VLOOKUP($B$9&$D22&$AC$2&L$11,data!$F:$P,'by area'!$AC$3,FALSE)),"-",VLOOKUP($B$9&$D22&$AC$2&L$11,data!$F:$P,'by area'!$AC$3,FALSE)) -> - | T22: =IF(ISNA(VLOOKUP($B$9&$D22&$AC$2&M$11,data!$F:$P,'by area'!$AC$3,FALSE)),"-",VLOOKUP($B$9&$D22&$AC$2&M$11,data!$F:$P,'by area'!$AC$3,FALSE)) -> -
D23: Neonatal disorders | F23: =IF(ISNA(VLOOKUP($D23,RAG!$A$72:$K$139,'by area'!$AC$3,FALSE)),"-",VLOOKUP($D23,RAG!$A$72:$K$139,'by area'!$AC$3,FALSE)) -> 4.273181734 | H23: =IF(ISNA(VLOOKUP($B$7&$D23&$AC$2&H$11,data!$F:$P,'by area'!$AC$3,FALSE)),"-",VLOOKUP($B$7&$D23&$AC$2&H$11,data!$F:$P,'by area'!$AC$3,FALSE)) -> 119.8698131 | I23: =IF(ISNA(VLOOKUP($B$7&$D23&$AC$2&I$11,data!$F:$P,'by area'!$AC$3,FALSE)),"-",VLOOKUP($B$7&$D23&$AC$2&I$11,data!$F:$P,'by area'!$AC$3,FALSE)) -> 736.8340964 | J23: =IF(ISNA(VLOOKUP($B$7&$D23&$AC$2&J$11,data!$F:$P,'by area'!$AC$3,FALSE)),"-",VLOOKUP($B$7&$D23&$AC$2&J$11,data!$F:$P,'by area'!$AC$3,FALSE)) -> 15.35143803 | K23: =IF(ISNA(VLOOKUP($B$7&$D23&$AC$2&K$11,data!$F:$P,'by area'!$AC$3,FALSE)),"-",VLOOKUP($B$7&$D23&$AC$2&K$11,data!$F:$P,'by area'!$AC$3,FALSE)) -> 0.0678583639 | L23: =IF(ISNA(VLOOKUP($B$7&$D23&$AC$2&L$11,data!$F:$P,'by area'!$AC$3,FALSE)),"-",VLOOKUP($B$7&$D23&$AC$2&L$11,data!$F:$P,'by area'!$AC$3,FALSE)) -> 0.676530169 | M23: =IF(ISNA(VLOOKUP($B$7&$D23&$AC$2&M$11,data!$F:$P,'by area'!$AC$3,FALSE)),"-",VLOOKUP($B$7&$D23&$AC$2&M$11,data!$F:$P,'by area'!$AC$3,FALSE)) -> 0.07015034321 | O23: =IF(ISNA(VLOOKUP($B$9&$D23&$AC$2&H$11,data!$F:$P,'by area'!$AC$3,FALSE)),"-",VLOOKUP($B$9&$D23&$AC$2&H$11,data!$F:$P,'by area'!$AC$3,FALSE)) -> - | P23: =IF(ISNA(VLOOKUP($B$9&$D23&$AC$2&I$11,data!$F:$P,'by area'!$AC$3,FALSE)),"-",VLOOKUP($B$9&$D23&$AC$2&I$11,data!$F:$P,'by area'!$AC$3,FALSE)) -> - | Q23: =IF(ISNA(VLOOKUP($B$9&$D23&$AC$2&J$11,data!$F:$P,'by area'!$AC$3,FALSE)),"-",VLOOKUP($B$9&$D23&$AC$2&J$11,data!$F:$P,'by area'!$AC$3,FALSE)) -> - | R23: =IF(ISNA(VLOOKUP($B$9&$D23&$AC$2&K$11,data!$F:$P,'by area'!$AC$3,FALSE)),"-",VLOOKUP($B$9&$D23&$AC$2&K$11,data!$F:$P,'by area'!$AC$3,FALSE)) -> - | S23: =IF(ISNA(VLOOKUP($B$9&$D23&$AC$2&L$11,data!$F:$P,'by area'!$AC$3,FALSE)),"-",VLOOKUP($B$9&$D23&$AC$2&L$11,data!$F:$P,'by area'!$AC$3,FALSE)) -> - | T23: =IF(ISNA(VLOOKUP($B$9&$D23&$AC$2&M$11,data!$F:$P,'by area'!$AC$3,FALSE)),"-",VLOOKUP($B$9&$D23&$AC$2&M$11,data!$F:$P,'by area'!$AC$3,FALSE)) -> -
D24: Nutritional deficiencies | F24: =IF(ISNA(VLOOKUP($D24,RAG!$A$72:$K$139,'by area'!$AC$3,FALSE)),"-",VLOOKUP($D24,RAG!$A$72:$K$139,'by area'!$AC$3,FALSE)) -> 2.872750872 | H24: =IF(ISNA(VLOOKUP($B$7&$D24&$AC$2&H$11,data!$F:$P,'by area'!$AC$3,FALSE)),"-",VLOOKUP($B$7&$D24&$AC$2&H$11,data!$F:$P,'by area'!$AC$3,FALSE)) -> 80.41290931 | I24: =IF(ISNA(VLOOKUP($B$7&$D24&$AC$2&I$11,data!$F:$P,'by area'!$AC$3,FALSE)),"-",VLOOKUP($B$7&$D24&$AC$2&I$11,data!$F:$P,'by area'!$AC$3,FALSE)) -> 27.64066699 | J24: =IF(ISNA(VLOOKUP($B$7&$D24&$AC$2&J$11,data!$F:$P,'by area'!$AC$3,FALSE)),"-",VLOOKUP($B$7&$D24&$AC$2&J$11,data!$F:$P,'by area'!$AC$3,FALSE)) -> 52.60067137 | K24: =IF(ISNA(VLOOKUP($B$7&$D24&$AC$2&K$11,data!$F:$P,'by area'!$AC$3,FALSE)),"-",VLOOKUP($B$7&$D24&$AC$2&K$11,data!$F:$P,'by area'!$AC$3,FALSE)) -> 56.28042076 | L24: =IF(ISNA(VLOOKUP($B$7&$D24&$AC$2&L$11,data!$F:$P,'by area'!$AC$3,FALSE)),"-",VLOOKUP($B$7&$D24&$AC$2&L$11,data!$F:$P,'by area'!$AC$3,FALSE)) -> 67.02191337 | M24: =IF(ISNA(VLOOKUP($B$7&$D24&$AC$2&M$11,data!$F:$P,'by area'!$AC$3,FALSE)),"-",VLOOKUP($B$7&$D24&$AC$2&M$11,data!$F:$P,'by area'!$AC$3,FALSE)) -> 191.108753 | O24: =IF(ISNA(VLOOKUP($B$9&$D24&$AC$2&H$11,data!$F:$P,'by area'!$AC$3,FALSE)),"-",VLOOKUP($B$9&$D24&$AC$2&H$11,data!$F:$P,'by area'!$AC$3,FALSE)) -> - | P24: =IF(ISNA(VLOOKUP($B$9&$D24&$AC$2&I$11,data!$F:$P,'by area'!$AC$3,FALSE)),"-",VLOOKUP($B$9&$D24&$AC$2&I$11,data!$F:$P,'by area'!$AC$3,FALSE)) -> - | Q24: =IF(ISNA(VLOOKUP($B$9&$D24&$AC$2&J$11,data!$F:$P,'by area'!$AC$3,FALSE)),"-",VLOOKUP($B$9&$D24&$AC$2&J$11,data!$F:$P,'by area'!$AC$3,FALSE)) -> - | R24: =IF(ISNA(VLOOKUP($B$9&$D24&$AC$2&K$11,data!$F:$P,'by area'!$AC$3,FALSE)),"-",VLOOKUP($B$9&$D24&$AC$2&K$11,data!$F:$P,'by area'!$AC$3,FALSE)) -> - | S24: =IF(ISNA(VLOOKUP($B$9&$D24&$AC$2&L$11,data!$F:$P,'by area'!$AC$3,FALSE)),"-",VLOOKUP($B$9&$D24&$AC$2&L$11,data!$F:$P,'by area'!$AC$3,FALSE)) -> - | T24: =IF(ISNA(VLOOKUP($B$9&$D24&$AC$2&M$11,data!$F:$P,'by area'!$AC$3,FALSE)),"-",VLOOKUP($B$9&$D24&$AC$2&M$11,data!$F:$P,'by area'!$AC$3,FALSE)) -> -
D25: Other communicable, maternal, neonatal, and nutritional diseases | F25: =IF(ISNA(VLOOKUP($D25,RAG!$A$72:$K$139,'by area'!$AC$3,FALSE)),"-",VLOOKUP($D25,RAG!$A$72:$K$139,'by area'!$AC$3,FALSE)) -> 4.271454006 | H25: =IF(ISNA(VLOOKUP($B$7&$D25&$AC$2&H$11,data!$F:$P,'by area'!$AC$3,FALSE)),"-",VLOOKUP($B$7&$D25&$AC$2&H$11,data!$F:$P,'by area'!$AC$3,FALSE)) -> 23.18753119 | I25: =IF(ISNA(VLOOKUP($B$7&$D25&$AC$2&I$11,data!$F:$P,'by area'!$AC$3,FALSE)),"-",VLOOKUP($B$7&$D25&$AC$2&I$11,data!$F:$P,'by area'!$AC$3,FALSE)) -> 12.45465584 | J25: =IF(ISNA(VLOOKUP($B$7&$D25&$AC$2&J$11,data!$F:$P,'by area'!$AC$3,FALSE)),"-",VLOOKUP($B$7&$D25&$AC$2&J$11,data!$F:$P,'by area'!$AC$3,FALSE)) -> 2.546236222 | K25: =IF(ISNA(VLOOKUP($B$7&$D25&$AC$2&K$11,data!$F:$P,'by area'!$AC$3,FALSE)),"-",VLOOKUP($B$7&$D25&$AC$2&K$11,data!$F:$P,'by area'!$AC$3,FALSE)) -> 10.18162132 | L25: =IF(ISNA(VLOOKUP($B$7&$D25&$AC$2&L$11,data!$F:$P,'by area'!$AC$3,FALSE)),"-",VLOOKUP($B$7&$D25&$AC$2&L$11,data!$F:$P,'by area'!$AC$3,FALSE)) -> 28.98729224 | M25: =IF(ISNA(VLOOKUP($B$7&$D25&$AC$2&M$11,data!$F:$P,'by area'!$AC$3,FALSE)),"-",VLOOKUP($B$7&$D25&$AC$2&M$11,data!$F:$P,'by area'!$AC$3,FALSE)) -> 53.96003586 | O25: =IF(ISNA(VLOOKUP($B$9&$D25&$AC$2&H$11,data!$F:$P,'by area'!$AC$3,FALSE)),"-",VLOOKUP($B$9&$D25&$AC$2&H$11,data!$F:$P,'by area'!$AC$3,FALSE)) -> - | P25: =IF(ISNA(VLOOKUP($B$9&$D25&$AC$2&I$11,data!$F:$P,'by area'!$AC$3,FALSE)),"-",VLOOKUP($B$9&$D25&$AC$2&I$11,data!$F:$P,'by area'!$AC$3,FALSE)) -> - | Q25: =IF(ISNA(VLOOKUP($B$9&$D25&$AC$2&J$11,data!$F:$P,'by area'!$AC$3,FALSE)),"-",VLOOKUP($B$9&$D25&$AC$2&J$11,data!$F:$P,'by area'!$AC$3,FALSE)) -> - | R25: =IF(ISNA(VLOOKUP($B$9&$D25&$AC$2&K$11,data!$F:$P,'by area'!$AC$3,FALSE)),"-",VLOOKUP($B$9&$D25&$AC$2&K$11,data!$F:$P,'by area'!$AC$3,FALSE)) -> - | S25: =IF(ISNA(VLOOKUP($B$9&$D25&$AC$2&L$11,data!$F:$P,'by area'!$AC$3,FALSE)),"-",VLOOKUP($B$9&$D25&$AC$2&L$11,data!$F:$P,'by area'!$AC$3,FALSE)) -> - | T25: =IF(ISNA(VLOOKUP($B$9&$D25&$AC$2&M$11,data!$F:$P,'by area'!$AC$3,FALSE)),"-",VLOOKUP($B$9&$D25&$AC$2&M$11,data!$F:$P,'by area'!$AC$3,FALSE)) -> -
H26: =IF(ISNA(VLOOKUP($B$7&$D26&$AC$2&H$11,data!$F:$P,'by area'!$AC$3,FALSE)),"-",VLOOKUP($B$7&$D26&$AC$2&H$11,data!$F:$P,'by area'!$AC$3,FALSE)) -> - | I26: =IF(ISNA(VLOOKUP($B$7&$D26&$AC$2&I$11,data!$F:$P,'by area'!$AC$3,FALSE)),"-",VLOOKUP($B$7&$D26&$AC$2&I$11,data!$F:$P,'by area'!$AC$3,FALSE)) -> - | J26: =IF(ISNA(VLOOKUP($B$7&$D26&$AC$2&J$11,data!$F:$P,'by area'!$AC$3,FALSE)),"-",VLOOKUP($B$7&$D26&$AC$2&J$11,data!$F:$P,'by area'!$AC$3,FALSE)) -> - | K26: =IF(ISNA(VLOOKUP($B$7&$D26&$AC$2&K$11,data!$F:$P,'by area'!$AC$3,FALSE)),"-",VLOOKUP($B$7&$D26&$AC$2&K$11,data!$F:$P,'by area'!$AC$3,FALSE)) -> - | L26: =IF(ISNA(VLOOKUP($B$7&$D26&$AC$2&L$11,data!$F:$P,'by area'!$AC$3,FALSE)),"-",VLOOKUP($B$7&$D26&$AC$2&L$11,data!$F:$P,'by area'!$AC$3,FALSE)) -> - | M26: =IF(ISNA(VLOOKUP($B$7&$D26&$AC$2&M$11,data!$F:$P,'by area'!$AC$3,FALSE)),"-",VLOOKUP($B$7&$D26&$AC$2&M$11,data!$F:$P,'by area'!$AC$3,FALSE)) -> - | O26: =IF(ISNA(VLOOKUP($B$9&$D26&$AC$2&H$11,data!$F:$P,'by area'!$AC$3,FALSE)),"-",VLOOKUP($B$9&$D26&$AC$2&H$11,data!$F:$P,'by area'!$AC$3,FALSE)) -> - | P26: =IF(ISNA(VLOOKUP($B$9&$D26&$AC$2&I$11,data!$F:$P,'by area'!$AC$3,FALSE)),"-",VLOOKUP($B$9&$D26&$AC$2&I$11,data!$F:$P,'by area'!$AC$3,FALSE)) -> - | Q26: =IF(ISNA(VLOOKUP($B$9&$D26&$AC$2&J$11,data!$F:$P,'by area'!$AC$3,FALSE)),"-",VLOOKUP($B$9&$D26&$AC$2&J$11,data!$F:$P,'by area'!$AC$3,FALSE)) -> - | R26: =IF(ISNA(VLOOKUP($B$9&$D26&$AC$2&K$11,data!$F:$P,'by area'!$AC$3,FALSE)),"-",VLOOKUP($B$9&$D26&$AC$2&K$11,data!$F:$P,'by area'!$AC$3,FALSE)) -> - | S26: =IF(ISNA(VLOOKUP($B$9&$D26&$AC$2&L$11,data!$F:$P,'by area'!$AC$3,FALSE)),"-",VLOOKUP($B$9&$D26&$AC$2&L$11,data!$F:$P,'by area'!$AC$3,FALSE)) -> - | T26: =IF(ISNA(VLOOKUP($B$9&$D26&$AC$2&M$11,data!$F:$P,'by area'!$AC$3,FALSE)),"-",VLOOKUP($B$9&$D26&$AC$2&M$11,data!$F:$P,'by area'!$AC$3,FALSE)) -> -
D27: Non-communicable diseases
D28: Cancers
D29: Oesophageal cancer | F29: =IF(ISNA(VLOOKUP($D29,RAG!$A$72:$K$139,'by area'!$AC$3,FALSE)),"-",VLOOKUP($D29,RAG!$A$72:$K$139,'by area'!$AC$3,FALSE)) -> 4.752564637 | H29: =IF(ISNA(VLOOKUP($B$7&$D29&$AC$2&H$11,data!$F:$P,'by area'!$AC$3,FALSE)),"-",VLOOKUP($B$7&$D29&$AC$2&H$11,data!$F:$P,'by area'!$AC$3,FALSE)) -> 226.0142462 | I29: =IF(ISNA(VLOOKUP($B$7&$D29&$AC$2&I$11,data!$F:$P,'by area'!$AC$3,FALSE)),"-",VLOOKUP($B$7&$D29&$AC$2&I$11,data!$F:$P,'by area'!$AC$3,FALSE)) -> 0 | J29: =IF(ISNA(VLOOKUP($B$7&$D29&$AC$2&J$11,data!$F:$P,'by area'!$AC$3,FALSE)),"-",VLOOKUP($B$7&$D29&$AC$2&J$11,data!$F:$P,'by area'!$AC$3,FALSE)) -> 0 | K29: =IF(ISNA(VLOOKUP($B$7&$D29&$AC$2&K$11,data!$F:$P,'by area'!$AC$3,FALSE)),"-",VLOOKUP($B$7&$D29&$AC$2&K$11,data!$F:$P,'by area'!$AC$3,FALSE)) -> 23.5337072 | L29: =IF(ISNA(VLOOKUP($B$7&$D29&$AC$2&L$11,data!$F:$P,'by area'!$AC$3,FALSE)),"-",VLOOKUP($B$7&$D29&$AC$2&L$11,data!$F:$P,'by area'!$AC$3,FALSE)) -> 326.7226062 | M29: =IF(ISNA(VLOOKUP($B$7&$D29&$AC$2&M$11,data!$F:$P,'by area'!$AC$3,FALSE)),"-",VLOOKUP($B$7&$D29&$AC$2&M$11,data!$F:$P,'by area'!$AC$3,FALSE)) -> 683.0580675 | O29: =IF(ISNA(VLOOKUP($B$9&$D29&$AC$2&H$11,data!$F:$P,'by area'!$AC$3,FALSE)),"-",VLOOKUP($B$9&$D29&$AC$2&H$11,data!$F:$P,'by area'!$AC$3,FALSE)) -> - | P29: =IF(ISNA(VLOOKUP($B$9&$D29&$AC$2&I$11,data!$F:$P,'by area'!$AC$3,FALSE)),"-",VLOOKUP($B$9&$D29&$AC$2&I$11,data!$F:$P,'by area'!$AC$3,FALSE)) -> - | Q29: =IF(ISNA(VLOOKUP($B$9&$D29&$AC$2&J$11,data!$F:$P,'by area'!$AC$3,FALSE)),"-",VLOOKUP($B$9&$D29&$AC$2&J$11,data!$F:$P,'by area'!$AC$3,FALSE)) -> - | R29: =IF(ISNA(VLOOKUP($B$9&$D29&$AC$2&K$11,data!$F:$P,'by area'!$AC$3,FALSE)),"-",VLOOKUP($B$9&$D29&$AC$2&K$11,data!$F:$P,'by area'!$AC$3,FALSE)) -> - | S29: =IF(ISNA(VLOOKUP($B$9&$D29&$AC$2&L$11,data!$F:$P,'by area'!$AC$3,FALSE)),"-",VLOOKUP($B$9&$D29&$AC$2&L$11,data!$F:$P,'by area'!$AC$3,FALSE)) -> - | T29: =IF(ISNA(VLOOKUP($B$9&$D29&$AC$2&M$11,data!$F:$P,'by area'!$AC$3,FALSE)),"-",VLOOKUP($B$9&$D29&$AC$2&M$11,data!$F:$P,'by area'!$AC$3,FALSE)) -> -
D30: Stomach cancer | F30: =IF(ISNA(VLOOKUP($D30,RAG!$A$72:$K$139,'by area'!$AC$3,FALSE)),"-",VLOOKUP($D30,RAG!$A$72:$K$139,'by area'!$AC$3,FALSE)) -> 4.704532762 | H30: =IF(ISNA(VLOOKUP($B$7&$D30&$AC$2&H$11,data!$F:$P,'by area'!$AC$3,FALSE)),"-",VLOOKUP($B$7&$D30&$AC$2&H$11,data!$F:$P,'by area'!$AC$3,FALSE)) -> 117.8371658 | I30: =IF(ISNA(VLOOKUP($B$7&$D30&$AC$2&I$11,data!$F:$P,'by area'!$AC$3,FALSE)),"-",VLOOKUP($B$7&$D30&$AC$2&I$11,data!$F:$P,'by area'!$AC$3,FALSE)) -> 0.003829767849 | J30: =IF(ISNA(VLOOKUP($B$7&$D30&$AC$2&J$11,data!$F:$P,'by area'!$AC$3,FALSE)),"-",VLOOKUP($B$7&$D30&$AC$2&J$11,data!$F:$P,'by area'!$AC$3,FALSE)) -> 5.344007522 | K30: =IF(ISNA(VLOOKUP($B$7&$D30&$AC$2&K$11,data!$F:$P,'by area'!$AC$3,FALSE)),"-",VLOOKUP($B$7&$D30&$AC$2&K$11,data!$F:$P,'by area'!$AC$3,FALSE)) -> 34.03994728 | L30: =IF(ISNA(VLOOKUP($B$7&$D30&$AC$2&L$11,data!$F:$P,'by area'!$AC$3,FALSE)),"-",VLOOKUP($B$7&$D30&$AC$2&L$11,data!$F:$P,'by area'!$AC$3,FALSE)) -> 145.6220276 | M30: =IF(ISNA(VLOOKUP($B$7&$D30&$AC$2&M$11,data!$F:$P,'by area'!$AC$3,FALSE)),"-",VLOOKUP($B$7&$D30&$AC$2&M$11,data!$F:$P,'by area'!$AC$3,FALSE)) -> 356.9824045 | O30: =IF(ISNA(VLOOKUP($B$9&$D30&$AC$2&H$11,data!$F:$P,'by area'!$AC$3,FALSE)),"-",VLOOKUP($B$9&$D30&$AC$2&H$11,data!$F:$P,'by area'!$AC$3,FALSE)) -> - | P30: =IF(ISNA(VLOOKUP($B$9&$D30&$AC$2&I$11,data!$F:$P,'by area'!$AC$3,FALSE)),"-",VLOOKUP($B$9&$D30&$AC$2&I$11,data!$F:$P,'by area'!$AC$3,FALSE)) -> - | Q30: =IF(ISNA(VLOOKUP($B$9&$D30&$AC$2&J$11,data!$F:$P,'by area'!$AC$3,FALSE)),"-",VLOOKUP($B$9&$D30&$AC$2&J$11,data!$F:$P,'by area'!$AC$3,FALSE)) -> - | R30: =IF(ISNA(VLOOKUP($B$9&$D30&$AC$2&K$11,data!$F:$P,'by area'!$AC$3,FALSE)),"-",VLOOKUP($B$9&$D30&$AC$2&K$11,data!$F:$P,'by area'!$AC$3,FALSE)) -> - | S30: =IF(ISNA(VLOOKUP($B$9&$D30&$AC$2&L$11,data!$F:$P,'by area'!$AC$3,FALSE)),"-",VLOOKUP($B$9&$D30&$AC$2&L$11,data!$F:$P,'by area'!$AC$3,FALSE)) -> - | T30: =IF(ISNA(VLOOKUP($B$9&$D30&$AC$2&M$11,data!$F:$P,'by area'!$AC$3,FALSE)),"-",VLOOKUP($B$9&$D30&$AC$2&M$11,data!$F:$P,'by area'!$AC$3,FALSE)) -> -
D31: Colon and rectum cancer | F31: =IF(ISNA(VLOOKUP($D31,RAG!$A$72:$K$139,'by area'!$AC$3,FALSE)),"-",VLOOKUP($D31,RAG!$A$72:$K$139,'by area'!$AC$3,FALSE)) -> 4.695438026 | H31: =IF(ISNA(VLOOKUP($B$7&$D31&$AC$2&H$11,data!$F:$P,'by area'!$AC$3,FALSE)),"-",VLOOKUP($B$7&$D31&$AC$2&H$11,data!$F:$P,'by area'!$AC$3,FALSE)) -> 479.7488706 | I31: =IF(ISNA(VLOOKUP($B$7&$D31&$AC$2&I$11,data!$F:$P,'by area'!$AC$3,FALSE)),"-",VLOOKUP($B$7&$D31&$AC$2&I$11,data!$F:$P,'by area'!$AC$3,FALSE)) -> 6.374152202 | J31: =IF(ISNA(VLOOKUP($B$7&$D31&$AC$2&J$11,data!$F:$P,'by area'!$AC$3,FALSE)),"-",VLOOKUP($B$7&$D31&$AC$2&J$11,data!$F:$P,'by area'!$AC$3,FALSE)) -> 21.43037718 | K31: =IF(ISNA(VLOOKUP($B$7&$D31&$AC$2&K$11,data!$F:$P,'by area'!$AC$3,FALSE)),"-",VLOOKUP($B$7&$D31&$AC$2&K$11,data!$F:$P,'by area'!$AC$3,FALSE)) -> 113.4291529 | L31: =IF(ISNA(VLOOKUP($B$7&$D31&$AC$2&L$11,data!$F:$P,'by area'!$AC$3,FALSE)),"-",VLOOKUP($B$7&$D31&$AC$2&L$11,data!$F:$P,'by area'!$AC$3,FALSE)) -> 589.5128676 | M31: =IF(ISNA(VLOOKUP($B$7&$D31&$AC$2&M$11,data!$F:$P,'by area'!$AC$3,FALSE)),"-",VLOOKUP($B$7&$D31&$AC$2&M$11,data!$F:$P,'by area'!$AC$3,FALSE)) -> 1487.101936 | O31: =IF(ISNA(VLOOKUP($B$9&$D31&$AC$2&H$11,data!$F:$P,'by area'!$AC$3,FALSE)),"-",VLOOKUP($B$9&$D31&$AC$2&H$11,data!$F:$P,'by area'!$AC$3,FALSE)) -> - | P31: =IF(ISNA(VLOOKUP($B$9&$D31&$AC$2&I$11,data!$F:$P,'by area'!$AC$3,FALSE)),"-",VLOOKUP($B$9&$D31&$AC$2&I$11,data!$F:$P,'by area'!$AC$3,FALSE)) -> - | Q31: =IF(ISNA(VLOOKUP($B$9&$D31&$AC$2&J$11,data!$F:$P,'by area'!$AC$3,FALSE)),"-",VLOOKUP($B$9&$D31&$AC$2&J$11,data!$F:$P,'by area'!$AC$3,FALSE)) -> - | R31: =IF(ISNA(VLOOKUP($B$9&$D31&$AC$2&K$11,data!$F:$P,'by area'!$AC$3,FALSE)),"-",VLOOKUP($B$9&$D31&$AC$2&K$11,data!$F:$P,'by area'!$AC$3,FALSE)) -> - | S31: =IF(ISNA(VLOOKUP($B$9&$D31&$AC$2&L$11,data!$F:$P,'by area'!$AC$3,FALSE)),"-",VLOOKUP($B$9&$D31&$AC$2&L$11,data!$F:$P,'by area'!$AC$3,FALSE)) -> - | T31: =IF(ISNA(VLOOKUP($B$9&$D31&$AC$2&M$11,data!$F:$P,'by area'!$AC$3,FALSE)),"-",VLOOKUP($B$9&$D31&$AC$2&M$11,data!$F:$P,'by area'!$AC$3,FALSE)) -> -
D32: Liver cancer | F32: =IF(ISNA(VLOOKUP($D32,RAG!$A$72:$K$139,'by area'!$AC$3,FALSE)),"-",VLOOKUP($D32,RAG!$A$72:$K$139,'by area'!$AC$3,FALSE)) -> 4.801527265 | H32: =IF(ISNA(VLOOKUP($B$7&$D32&$AC$2&H$11,data!$F:$P,'by area'!$AC$3,FALSE)),"-",VLOOKUP($B$7&$D32&$AC$2&H$11,data!$F:$P,'by area'!$AC$3,FALSE)) -> 149.5778984 | I32: =IF(ISNA(VLOOKUP($B$7&$D32&$AC$2&I$11,data!$F:$P,'by area'!$AC$3,FALSE)),"-",VLOOKUP($B$7&$D32&$AC$2&I$11,data!$F:$P,'by area'!$AC$3,FALSE)) -> 0.2758787757 | J32: =IF(ISNA(VLOOKUP($B$7&$D32&$AC$2&J$11,data!$F:$P,'by area'!$AC$3,FALSE)),"-",VLOOKUP($B$7&$D32&$AC$2&J$11,data!$F:$P,'by area'!$AC$3,FALSE)) -> 0.07187573506 | K32: =IF(ISNA(VLOOKUP($B$7&$D32&$AC$2&K$11,data!$F:$P,'by area'!$AC$3,FALSE)),"-",VLOOKUP($B$7&$D32&$AC$2&K$11,data!$F:$P,'by area'!$AC$3,FALSE)) -> 19.20589033 | L32: =IF(ISNA(VLOOKUP($B$7&$D32&$AC$2&L$11,data!$F:$P,'by area'!$AC$3,FALSE)),"-",VLOOKUP($B$7&$D32&$AC$2&L$11,data!$F:$P,'by area'!$AC$3,FALSE)) -> 194.7218079 | M32: =IF(ISNA(VLOOKUP($B$7&$D32&$AC$2&M$11,data!$F:$P,'by area'!$AC$3,FALSE)),"-",VLOOKUP($B$7&$D32&$AC$2&M$11,data!$F:$P,'by area'!$AC$3,FALSE)) -> 476.0751387 | O32: =IF(ISNA(VLOOKUP($B$9&$D32&$AC$2&H$11,data!$F:$P,'by area'!$AC$3,FALSE)),"-",VLOOKUP($B$9&$D32&$AC$2&H$11,data!$F:$P,'by area'!$AC$3,FALSE)) -> - | P32: =IF(ISNA(VLOOKUP($B$9&$D32&$AC$2&I$11,data!$F:$P,'by area'!$AC$3,FALSE)),"-",VLOOKUP($B$9&$D32&$AC$2&I$11,data!$F:$P,'by area'!$AC$3,FALSE)) -> - | Q32: =IF(ISNA(VLOOKUP($B$9&$D32&$AC$2&J$11,data!$F:$P,'by area'!$AC$3,FALSE)),"-",VLOOKUP($B$9&$D32&$AC$2&J$11,data!$F:$P,'by area'!$AC$3,FALSE)) -> - | R32: =IF(ISNA(VLOOKUP($B$9&$D32&$AC$2&K$11,data!$F:$P,'by area'!$AC$3,FALSE)),"-",VLOOKUP($B$9&$D32&$AC$2&K$11,data!$F:$P,'by area'!$AC$3,FALSE)) -> - | S32: =IF(ISNA(VLOOKUP($B$9&$D32&$AC$2&L$11,data!$F:$P,'by area'!$AC$3,FALSE)),"-",VLOOKUP($B$9&$D32&$AC$2&L$11,data!$F:$P,'by area'!$AC$3,FALSE)) -> - | T32: =IF(ISNA(VLOOKUP($B$9&$D32&$AC$2&M$11,data!$F:$P,'by area'!$AC$3,FALSE)),"-",VLOOKUP($B$9&$D32&$AC$2&M$11,data!$F:$P,'by area'!$AC$3,FALSE)) -> -
D33: Pancreatic cancer | F33: =IF(ISNA(VLOOKUP($D33,RAG!$A$72:$K$139,'by area'!$AC$3,FALSE)),"-",VLOOKUP($D33,RAG!$A$72:$K$139,'by area'!$AC$3,FALSE)) -> 4.751137808 | H33: =IF(ISNA(VLOOKUP($B$7&$D33&$AC$2&H$11,data!$F:$P,'by area'!$AC$3,FALSE)),"-",VLOOKUP($B$7&$D33&$AC$2&H$11,data!$F:$P,'by area'!$AC$3,FALSE)) -> 195.4718063 | I33: =IF(ISNA(VLOOKUP($B$7&$D33&$AC$2&I$11,data!$F:$P,'by area'!$AC$3,FALSE)),"-",VLOOKUP($B$7&$D33&$AC$2&I$11,data!$F:$P,'by area'!$AC$3,FALSE)) -> 0.002657924862 | J33: =IF(ISNA(VLOOKUP($B$7&$D33&$AC$2&J$11,data!$F:$P,'by area'!$AC$3,FALSE)),"-",VLOOKUP($B$7&$D33&$AC$2&J$11,data!$F:$P,'by area'!$AC$3,FALSE)) -> 6.567276354 | K33: =IF(ISNA(VLOOKUP($B$7&$D33&$AC$2&K$11,data!$F:$P,'by area'!$AC$3,FALSE)),"-",VLOOKUP($B$7&$D33&$AC$2&K$11,data!$F:$P,'by area'!$AC$3,FALSE)) -> 19.18826965 | L33: =IF(ISNA(VLOOKUP($B$7&$D33&$AC$2&L$11,data!$F:$P,'by area'!$AC$3,FALSE)),"-",VLOOKUP($B$7&$D33&$AC$2&L$11,data!$F:$P,'by area'!$AC$3,FALSE)) -> 249.8109915 | M33: =IF(ISNA(VLOOKUP($B$7&$D33&$AC$2&M$11,data!$F:$P,'by area'!$AC$3,FALSE)),"-",VLOOKUP($B$7&$D33&$AC$2&M$11,data!$F:$P,'by area'!$AC$3,FALSE)) -> 632.9812312 | O33: =IF(ISNA(VLOOKUP($B$9&$D33&$AC$2&H$11,data!$F:$P,'by area'!$AC$3,FALSE)),"-",VLOOKUP($B$9&$D33&$AC$2&H$11,data!$F:$P,'by area'!$AC$3,FALSE)) -> - | P33: =IF(ISNA(VLOOKUP($B$9&$D33&$AC$2&I$11,data!$F:$P,'by area'!$AC$3,FALSE)),"-",VLOOKUP($B$9&$D33&$AC$2&I$11,data!$F:$P,'by area'!$AC$3,FALSE)) -> - | Q33: =IF(ISNA(VLOOKUP($B$9&$D33&$AC$2&J$11,data!$F:$P,'by area'!$AC$3,FALSE)),"-",VLOOKUP($B$9&$D33&$AC$2&J$11,data!$F:$P,'by area'!$AC$3,FALSE)) -> - | R33: =IF(ISNA(VLOOKUP($B$9&$D33&$AC$2&K$11,data!$F:$P,'by area'!$AC$3,FALSE)),"-",VLOOKUP($B$9&$D33&$AC$2&K$11,data!$F:$P,'by area'!$AC$3,FALSE)) -> - | S33: =IF(ISNA(VLOOKUP($B$9&$D33&$AC$2&L$11,data!$F:$P,'by area'!$AC$3,FALSE)),"-",VLOOKUP($B$9&$D33&$AC$2&L$11,data!$F:$P,'by area'!$AC$3,FALSE)) -> - | T33: =IF(ISNA(VLOOKUP($B$9&$D33&$AC$2&M$11,data!$F:$P,'by area'!$AC$3,FALSE)),"-",VLOOKUP($B$9&$D33&$AC$2&M$11,data!$F:$P,'by area'!$AC$3,FALSE)) -> -
D34: Tracheal, bronchus, and lung cancer | F34: =IF(ISNA(VLOOKUP($D34,RAG!$A$72:$K$139,'by area'!$AC$3,FALSE)),"-",VLOOKUP($D34,RAG!$A$72:$K$139,'by area'!$AC$3,FALSE)) -> 4.801777416 | H34: =IF(ISNA(VLOOKUP($B$7&$D34&$AC$2&H$11,data!$F:$P,'by area'!$AC$3,FALSE)),"-",VLOOKUP($B$7&$D34&$AC$2&H$11,data!$F:$P,'by area'!$AC$3,FALSE)) -> 1093.439562 | I34: =IF(ISNA(VLOOKUP($B$7&$D34&$AC$2&I$11,data!$F:$P,'by area'!$AC$3,FALSE)),"-",VLOOKUP($B$7&$D34&$AC$2&I$11,data!$F:$P,'by area'!$AC$3,FALSE)) -> 0.01178218885 | J34: =IF(ISNA(VLOOKUP($B$7&$D34&$AC$2&J$11,data!$F:$P,'by area'!$AC$3,FALSE)),"-",VLOOKUP($B$7&$D34&$AC$2&J$11,data!$F:$P,'by area'!$AC$3,FALSE)) -> 0.1874192719 | K34: =IF(ISNA(VLOOKUP($B$7&$D34&$AC$2&K$11,data!$F:$P,'by area'!$AC$3,FALSE)),"-",VLOOKUP($B$7&$D34&$AC$2&K$11,data!$F:$P,'by area'!$AC$3,FALSE)) -> 87.53240861 | L34: =IF(ISNA(VLOOKUP($B$7&$D34&$AC$2&L$11,data!$F:$P,'by area'!$AC$3,FALSE)),"-",VLOOKUP($B$7&$D34&$AC$2&L$11,data!$F:$P,'by area'!$AC$3,FALSE)) -> 1323.890508 | M34: =IF(ISNA(VLOOKUP($B$7&$D34&$AC$2&M$11,data!$F:$P,'by area'!$AC$3,FALSE)),"-",VLOOKUP($B$7&$D34&$AC$2&M$11,data!$F:$P,'by area'!$AC$3,FALSE)) -> 3689.174618 | O34: =IF(ISNA(VLOOKUP($B$9&$D34&$AC$2&H$11,data!$F:$P,'by area'!$AC$3,FALSE)),"-",VLOOKUP($B$9&$D34&$AC$2&H$11,data!$F:$P,'by area'!$AC$3,FALSE)) -> - | P34: =IF(ISNA(VLOOKUP($B$9&$D34&$AC$2&I$11,data!$F:$P,'by area'!$AC$3,FALSE)),"-",VLOOKUP($B$9&$D34&$AC$2&I$11,data!$F:$P,'by area'!$AC$3,FALSE)) -> - | Q34: =IF(ISNA(VLOOKUP($B$9&$D34&$AC$2&J$11,data!$F:$P,'by area'!$AC$3,FALSE)),"-",VLOOKUP($B$9&$D34&$AC$2&J$11,data!$F:$P,'by area'!$AC$3,FALSE)) -> - | R34: =IF(ISNA(VLOOKUP($B$9&$D34&$AC$2&K$11,data!$F:$P,'by area'!$AC$3,FALSE)),"-",VLOOKUP($B$9&$D34&$AC$2&K$11,data!$F:$P,'by area'!$AC$3,FALSE)) -> - | S34: =IF(ISNA(VLOOKUP($B$9&$D34&$AC$2&L$11,data!$F:$P,'by area'!$AC$3,FALSE)),"-",VLOOKUP($B$9&$D34&$AC$2&L$11,data!$F:$P,'by area'!$AC$3,FALSE)) -> - | T34: =IF(ISNA(VLOOKUP($B$9&$D34&$AC$2&M$11,data!$F:$P,'by area'!$AC$3,FALSE)),"-",VLOOKUP($B$9&$D34&$AC$2&M$11,data!$F:$P,'by area'!$AC$3,FALSE)) -> -
D35: Breast cancer | F35: =IF(ISNA(VLOOKUP($D35,RAG!$A$72:$K$139,'by area'!$AC$3,FALSE)),"-",VLOOKUP($D35,RAG!$A$72:$K$139,'by area'!$AC$3,FALSE)) -> 4.654134105 | H35: =IF(ISNA(VLOOKUP($B$7&$D35&$AC$2&H$11,data!$F:$P,'by area'!$AC$3,FALSE)),"-",VLOOKUP($B$7&$D35&$AC$2&H$11,data!$F:$P,'by area'!$AC$3,FALSE)) -> 439.7388656 | I35: =IF(ISNA(VLOOKUP($B$7&$D35&$AC$2&I$11,data!$F:$P,'by area'!$AC$3,FALSE)),"-",VLOOKUP($B$7&$D35&$AC$2&I$11,data!$F:$P,'by area'!$AC$3,FALSE)) -> 0.1653814245 | J35: =IF(ISNA(VLOOKUP($B$7&$D35&$AC$2&J$11,data!$F:$P,'by area'!$AC$3,FALSE)),"-",VLOOKUP($B$7&$D35&$AC$2&J$11,data!$F:$P,'by area'!$AC$3,FALSE)) -> 11.70774882 | K35: =IF(ISNA(VLOOKUP($B$7&$D35&$AC$2&K$11,data!$F:$P,'by area'!$AC$3,FALSE)),"-",VLOOKUP($B$7&$D35&$AC$2&K$11,data!$F:$P,'by area'!$AC$3,FALSE)) -> 235.8343436 | L35: =IF(ISNA(VLOOKUP($B$7&$D35&$AC$2&L$11,data!$F:$P,'by area'!$AC$3,FALSE)),"-",VLOOKUP($B$7&$D35&$AC$2&L$11,data!$F:$P,'by area'!$AC$3,FALSE)) -> 702.3456828 | M35: =IF(ISNA(VLOOKUP($B$7&$D35&$AC$2&M$11,data!$F:$P,'by area'!$AC$3,FALSE)),"-",VLOOKUP($B$7&$D35&$AC$2&M$11,data!$F:$P,'by area'!$AC$3,FALSE)) -> 973.068238 | O35: =IF(ISNA(VLOOKUP($B$9&$D35&$AC$2&H$11,data!$F:$P,'by area'!$AC$3,FALSE)),"-",VLOOKUP($B$9&$D35&$AC$2&H$11,data!$F:$P,'by area'!$AC$3,FALSE)) -> - | P35: =IF(ISNA(VLOOKUP($B$9&$D35&$AC$2&I$11,data!$F:$P,'by area'!$AC$3,FALSE)),"-",VLOOKUP($B$9&$D35&$AC$2&I$11,data!$F:$P,'by area'!$AC$3,FALSE)) -> - | Q35: =IF(ISNA(VLOOKUP($B$9&$D35&$AC$2&J$11,data!$F:$P,'by area'!$AC$3,FALSE)),"-",VLOOKUP($B$9&$D35&$AC$2&J$11,data!$F:$P,'by area'!$AC$3,FALSE)) -> - | R35: =IF(ISNA(VLOOKUP($B$9&$D35&$AC$2&K$11,data!$F:$P,'by area'!$AC$3,FALSE)),"-",VLOOKUP($B$9&$D35&$AC$2&K$11,data!$F:$P,'by area'!$AC$3,FALSE)) -> - | S35: =IF(ISNA(VLOOKUP($B$9&$D35&$AC$2&L$11,data!$F:$P,'by area'!$AC$3,FALSE)),"-",VLOOKUP($B$9&$D35&$AC$2&L$11,data!$F:$P,'by area'!$AC$3,FALSE)) -> - | T35: =IF(ISNA(VLOOKUP($B$9&$D35&$AC$2&M$11,data!$F:$P,'by area'!$AC$3,FALSE)),"-",VLOOKUP($B$9&$D35&$AC$2&M$11,data!$F:$P,'by area'!$AC$3,FALSE)) -> -
D36: Ovarian cancer | F36: =IF(ISNA(VLOOKUP($D36,RAG!$A$72:$K$139,'by area'!$AC$3,FALSE)),"-",VLOOKUP($D36,RAG!$A$72:$K$139,'by area'!$AC$3,FALSE)) -> 4.710982594 | H36: =IF(ISNA(VLOOKUP($B$7&$D36&$AC$2&H$11,data!$F:$P,'by area'!$AC$3,FALSE)),"-",VLOOKUP($B$7&$D36&$AC$2&H$11,data!$F:$P,'by area'!$AC$3,FALSE)) -> 116.0782207 | I36: =IF(ISNA(VLOOKUP($B$7&$D36&$AC$2&I$11,data!$F:$P,'by area'!$AC$3,FALSE)),"-",VLOOKUP($B$7&$D36&$AC$2&I$11,data!$F:$P,'by area'!$AC$3,FALSE)) -> 0.1567118457 | J36: =IF(ISNA(VLOOKUP($B$7&$D36&$AC$2&J$11,data!$F:$P,'by area'!$AC$3,FALSE)),"-",VLOOKUP($B$7&$D36&$AC$2&J$11,data!$F:$P,'by area'!$AC$3,FALSE)) -> 3.264179526 | K36: =IF(ISNA(VLOOKUP($B$7&$D36&$AC$2&K$11,data!$F:$P,'by area'!$AC$3,FALSE)),"-",VLOOKUP($B$7&$D36&$AC$2&K$11,data!$F:$P,'by area'!$AC$3,FALSE)) -> 24.74799107 | L36: =IF(ISNA(VLOOKUP($B$7&$D36&$AC$2&L$11,data!$F:$P,'by area'!$AC$3,FALSE)),"-",VLOOKUP($B$7&$D36&$AC$2&L$11,data!$F:$P,'by area'!$AC$3,FALSE)) -> 169.8730245 | M36: =IF(ISNA(VLOOKUP($B$7&$D36&$AC$2&M$11,data!$F:$P,'by area'!$AC$3,FALSE)),"-",VLOOKUP($B$7&$D36&$AC$2&M$11,data!$F:$P,'by area'!$AC$3,FALSE)) -> 328.7343438 | O36: =IF(ISNA(VLOOKUP($B$9&$D36&$AC$2&H$11,data!$F:$P,'by area'!$AC$3,FALSE)),"-",VLOOKUP($B$9&$D36&$AC$2&H$11,data!$F:$P,'by area'!$AC$3,FALSE)) -> - | P36: =IF(ISNA(VLOOKUP($B$9&$D36&$AC$2&I$11,data!$F:$P,'by area'!$AC$3,FALSE)),"-",VLOOKUP($B$9&$D36&$AC$2&I$11,data!$F:$P,'by area'!$AC$3,FALSE)) -> - | Q36: =IF(ISNA(VLOOKUP($B$9&$D36&$AC$2&J$11,data!$F:$P,'by area'!$AC$3,FALSE)),"-",VLOOKUP($B$9&$D36&$AC$2&J$11,data!$F:$P,'by area'!$AC$3,FALSE)) -> - | R36: =IF(ISNA(VLOOKUP($B$9&$D36&$AC$2&K$11,data!$F:$P,'by area'!$AC$3,FALSE)),"-",VLOOKUP($B$9&$D36&$AC$2&K$11,data!$F:$P,'by area'!$AC$3,FALSE)) -> - | S36: =IF(ISNA(VLOOKUP($B$9&$D36&$AC$2&L$11,data!$F:$P,'by area'!$AC$3,FALSE)),"-",VLOOKUP($B$9&$D36&$AC$2&L$11,data!$F:$P,'by area'!$AC$3,FALSE)) -> - | T36: =IF(ISNA(VLOOKUP($B$9&$D36&$AC$2&M$11,data!$F:$P,'by area'!$AC$3,FALSE)),"-",VLOOKUP($B$9&$D36&$AC$2&M$11,data!$F:$P,'by area'!$AC$3,FALSE)) -> -
D37: Prostate cancer | F37: =IF(ISNA(VLOOKUP($D37,RAG!$A$72:$K$139,'by area'!$AC$3,FALSE)),"-",VLOOKUP($D37,RAG!$A$72:$K$139,'by area'!$AC$3,FALSE)) -> 4.65279128 | H37: =IF(ISNA(VLOOKUP($B$7&$D37&$AC$2&H$11,data!$F:$P,'by area'!$AC$3,FALSE)),"-",VLOOKUP($B$7&$D37&$AC$2&H$11,data!$F:$P,'by area'!$AC$3,FALSE)) -> 215.9516739 | I37: =IF(ISNA(VLOOKUP($B$7&$D37&$AC$2&I$11,data!$F:$P,'by area'!$AC$3,FALSE)),"-",VLOOKUP($B$7&$D37&$AC$2&I$11,data!$F:$P,'by area'!$AC$3,FALSE)) -> 0.03896501904 | J37: =IF(ISNA(VLOOKUP($B$7&$D37&$AC$2&J$11,data!$F:$P,'by area'!$AC$3,FALSE)),"-",VLOOKUP($B$7&$D37&$AC$2&J$11,data!$F:$P,'by area'!$AC$3,FALSE)) -> 0 | K37: =IF(ISNA(VLOOKUP($B$7&$D37&$AC$2&K$11,data!$F:$P,'by area'!$AC$3,FALSE)),"-",VLOOKUP($B$7&$D37&$AC$2&K$11,data!$F:$P,'by area'!$AC$3,FALSE)) -> 1.101615202 | L37: =IF(ISNA(VLOOKUP($B$7&$D37&$AC$2&L$11,data!$F:$P,'by area'!$AC$3,FALSE)),"-",VLOOKUP($B$7&$D37&$AC$2&L$11,data!$F:$P,'by area'!$AC$3,FALSE)) -> 130.6136853 | M37: =IF(ISNA(VLOOKUP($B$7&$D37&$AC$2&M$11,data!$F:$P,'by area'!$AC$3,FALSE)),"-",VLOOKUP($B$7&$D37&$AC$2&M$11,data!$F:$P,'by area'!$AC$3,FALSE)) -> 928.4147939 | O37: =IF(ISNA(VLOOKUP($B$9&$D37&$AC$2&H$11,data!$F:$P,'by area'!$AC$3,FALSE)),"-",VLOOKUP($B$9&$D37&$AC$2&H$11,data!$F:$P,'by area'!$AC$3,FALSE)) -> - | P37: =IF(ISNA(VLOOKUP($B$9&$D37&$AC$2&I$11,data!$F:$P,'by area'!$AC$3,FALSE)),"-",VLOOKUP($B$9&$D37&$AC$2&I$11,data!$F:$P,'by area'!$AC$3,FALSE)) -> - | Q37: =IF(ISNA(VLOOKUP($B$9&$D37&$AC$2&J$11,data!$F:$P,'by area'!$AC$3,FALSE)),"-",VLOOKUP($B$9&$D37&$AC$2&J$11,data!$F:$P,'by area'!$AC$3,FALSE)) -> - | R37: =IF(ISNA(VLOOKUP($B$9&$D37&$AC$2&K$11,data!$F:$P,'by area'!$AC$3,FALSE)),"-",VLOOKUP($B$9&$D37&$AC$2&K$11,data!$F:$P,'by area'!$AC$3,FALSE)) -> - | S37: =IF(ISNA(VLOOKUP($B$9&$D37&$AC$2&L$11,data!$F:$P,'by area'!$AC$3,FALSE)),"-",VLOOKUP($B$9&$D37&$AC$2&L$11,data!$F:$P,'by area'!$AC$3,FALSE)) -> - | T37: =IF(ISNA(VLOOKUP($B$9&$D37&$AC$2&M$11,data!$F:$P,'by area'!$AC$3,FALSE)),"-",VLOOKUP($B$9&$D37&$AC$2&M$11,data!$F:$P,'by area'!$AC$3,FALSE)) -> -
D38: Kidney cancer | F38: =IF(ISNA(VLOOKUP($D38,RAG!$A$72:$K$139,'by area'!$AC$3,FALSE)),"-",VLOOKUP($D38,RAG!$A$72:$K$139,'by area'!$AC$3,FALSE)) -> 4.618408653 | H38: =IF(ISNA(VLOOKUP($B$7&$D38&$AC$2&H$11,data!$F:$P,'by area'!$AC$3,FALSE)),"-",VLOOKUP($B$7&$D38&$AC$2&H$11,data!$F:$P,'by area'!$AC$3,FALSE)) -> 120.0544746 | I38: =IF(ISNA(VLOOKUP($B$7&$D38&$AC$2&I$11,data!$F:$P,'by area'!$AC$3,FALSE)),"-",VLOOKUP($B$7&$D38&$AC$2&I$11,data!$F:$P,'by area'!$AC$3,FALSE)) -> 9.384144411 | J38: =IF(ISNA(VLOOKUP($B$7&$D38&$AC$2&J$11,data!$F:$P,'by area'!$AC$3,FALSE)),"-",VLOOKUP($B$7&$D38&$AC$2&J$11,data!$F:$P,'by area'!$AC$3,FALSE)) -> 6.264162418 | K38: =IF(ISNA(VLOOKUP($B$7&$D38&$AC$2&K$11,data!$F:$P,'by area'!$AC$3,FALSE)),"-",VLOOKUP($B$7&$D38&$AC$2&K$11,data!$F:$P,'by area'!$AC$3,FALSE)) -> 29.58324023 | L38: =IF(ISNA(VLOOKUP($B$7&$D38&$AC$2&L$11,data!$F:$P,'by area'!$AC$3,FALSE)),"-",VLOOKUP($B$7&$D38&$AC$2&L$11,data!$F:$P,'by area'!$AC$3,FALSE)) -> 172.6872514 | M38: =IF(ISNA(VLOOKUP($B$7&$D38&$AC$2&M$11,data!$F:$P,'by area'!$AC$3,FALSE)),"-",VLOOKUP($B$7&$D38&$AC$2&M$11,data!$F:$P,'by area'!$AC$3,FALSE)) -> 329.3895004 | O38: =IF(ISNA(VLOOKUP($B$9&$D38&$AC$2&H$11,data!$F:$P,'by area'!$AC$3,FALSE)),"-",VLOOKUP($B$9&$D38&$AC$2&H$11,data!$F:$P,'by area'!$AC$3,FALSE)) -> - | P38: =IF(ISNA(VLOOKUP($B$9&$D38&$AC$2&I$11,data!$F:$P,'by area'!$AC$3,FALSE)),"-",VLOOKUP($B$9&$D38&$AC$2&I$11,data!$F:$P,'by area'!$AC$3,FALSE)) -> - | Q38: =IF(ISNA(VLOOKUP($B$9&$D38&$AC$2&J$11,data!$F:$P,'by area'!$AC$3,FALSE)),"-",VLOOKUP($B$9&$D38&$AC$2&J$11,data!$F:$P,'by area'!$AC$3,FALSE)) -> - | R38: =IF(ISNA(VLOOKUP($B$9&$D38&$AC$2&K$11,data!$F:$P,'by area'!$AC$3,FALSE)),"-",VLOOKUP($B$9&$D38&$AC$2&K$11,data!$F:$P,'by area'!$AC$3,FALSE)) -> - | S38: =IF(ISNA(VLOOKUP($B$9&$D38&$AC$2&L$11,data!$F:$P,'by area'!$AC$3,FALSE)),"-",VLOOKUP($B$9&$D38&$AC$2&L$11,data!$F:$P,'by area'!$AC$3,FALSE)) -> - | T38: =IF(ISNA(VLOOKUP($B$9&$D38&$AC$2&M$11,data!$F:$P,'by area'!$AC$3,FALSE)),"-",VLOOKUP($B$9&$D38&$AC$2&M$11,data!$F:$P,'by area'!$AC$3,FALSE)) -> -
D39: Bladder cancer | F39: =IF(ISNA(VLOOKUP($D39,RAG!$A$72:$K$139,'by area'!$AC$3,FALSE)),"-",VLOOKUP($D39,RAG!$A$72:$K$139,'by area'!$AC$3,FALSE)) -> 4.558356264 | H39: =IF(ISNA(VLOOKUP($B$7&$D39&$AC$2&H$11,data!$F:$P,'by area'!$AC$3,FALSE)),"-",VLOOKUP($B$7&$D39&$AC$2&H$11,data!$F:$P,'by area'!$AC$3,FALSE)) -> 121.231489 | I39: =IF(ISNA(VLOOKUP($B$7&$D39&$AC$2&I$11,data!$F:$P,'by area'!$AC$3,FALSE)),"-",VLOOKUP($B$7&$D39&$AC$2&I$11,data!$F:$P,'by area'!$AC$3,FALSE)) -> 0.7227964163 | J39: =IF(ISNA(VLOOKUP($B$7&$D39&$AC$2&J$11,data!$F:$P,'by area'!$AC$3,FALSE)),"-",VLOOKUP($B$7&$D39&$AC$2&J$11,data!$F:$P,'by area'!$AC$3,FALSE)) -> 1.003053821 | K39: =IF(ISNA(VLOOKUP($B$7&$D39&$AC$2&K$11,data!$F:$P,'by area'!$AC$3,FALSE)),"-",VLOOKUP($B$7&$D39&$AC$2&K$11,data!$F:$P,'by area'!$AC$3,FALSE)) -> 16.93738325 | L39: =IF(ISNA(VLOOKUP($B$7&$D39&$AC$2&L$11,data!$F:$P,'by area'!$AC$3,FALSE)),"-",VLOOKUP($B$7&$D39&$AC$2&L$11,data!$F:$P,'by area'!$AC$3,FALSE)) -> 100.3927641 | M39: =IF(ISNA(VLOOKUP($B$7&$D39&$AC$2&M$11,data!$F:$P,'by area'!$AC$3,FALSE)),"-",VLOOKUP($B$7&$D39&$AC$2&M$11,data!$F:$P,'by area'!$AC$3,FALSE)) -> 461.0666734 | O39: =IF(ISNA(VLOOKUP($B$9&$D39&$AC$2&H$11,data!$F:$P,'by area'!$AC$3,FALSE)),"-",VLOOKUP($B$9&$D39&$AC$2&H$11,data!$F:$P,'by area'!$AC$3,FALSE)) -> - | P39: =IF(ISNA(VLOOKUP($B$9&$D39&$AC$2&I$11,data!$F:$P,'by area'!$AC$3,FALSE)),"-",VLOOKUP($B$9&$D39&$AC$2&I$11,data!$F:$P,'by area'!$AC$3,FALSE)) -> - | Q39: =IF(ISNA(VLOOKUP($B$9&$D39&$AC$2&J$11,data!$F:$P,'by area'!$AC$3,FALSE)),"-",VLOOKUP($B$9&$D39&$AC$2&J$11,data!$F:$P,'by area'!$AC$3,FALSE)) -> - | R39: =IF(ISNA(VLOOKUP($B$9&$D39&$AC$2&K$11,data!$F:$P,'by area'!$AC$3,FALSE)),"-",VLOOKUP($B$9&$D39&$AC$2&K$11,data!$F:$P,'by area'!$AC$3,FALSE)) -> - | S39: =IF(ISNA(VLOOKUP($B$9&$D39&$AC$2&L$11,data!$F:$P,'by area'!$AC$3,FALSE)),"-",VLOOKUP($B$9&$D39&$AC$2&L$11,data!$F:$P,'by area'!$AC$3,FALSE)) -> - | T39: =IF(ISNA(VLOOKUP($B$9&$D39&$AC$2&M$11,data!$F:$P,'by area'!$AC$3,FALSE)),"-",VLOOKUP($B$9&$D39&$AC$2&M$11,data!$F:$P,'by area'!$AC$3,FALSE)) -> -
D40: Non-Hodgkin's lymphoma | F40: =IF(ISNA(VLOOKUP($D40,RAG!$A$72:$K$139,'by area'!$AC$3,FALSE)),"-",VLOOKUP($D40,RAG!$A$72:$K$139,'by area'!$AC$3,FALSE)) -> 4.761521651 | H40: =IF(ISNA(VLOOKUP($B$7&$D40&$AC$2&H$11,data!$F:$P,'by area'!$AC$3,FALSE)),"-",VLOOKUP($B$7&$D40&$AC$2&H$11,data!$F:$P,'by area'!$AC$3,FALSE)) -> 143.1057273 | I40: =IF(ISNA(VLOOKUP($B$7&$D40&$AC$2&I$11,data!$F:$P,'by area'!$AC$3,FALSE)),"-",VLOOKUP($B$7&$D40&$AC$2&I$11,data!$F:$P,'by area'!$AC$3,FALSE)) -> 0.3623180197 | J40: =IF(ISNA(VLOOKUP($B$7&$D40&$AC$2&J$11,data!$F:$P,'by area'!$AC$3,FALSE)),"-",VLOOKUP($B$7&$D40&$AC$2&J$11,data!$F:$P,'by area'!$AC$3,FALSE)) -> 17.89416978 | K40: =IF(ISNA(VLOOKUP($B$7&$D40&$AC$2&K$11,data!$F:$P,'by area'!$AC$3,FALSE)),"-",VLOOKUP($B$7&$D40&$AC$2&K$11,data!$F:$P,'by area'!$AC$3,FALSE)) -> 39.58010007 | L40: =IF(ISNA(VLOOKUP($B$7&$D40&$AC$2&L$11,data!$F:$P,'by area'!$AC$3,FALSE)),"-",VLOOKUP($B$7&$D40&$AC$2&L$11,data!$F:$P,'by area'!$AC$3,FALSE)) -> 150.8515242 | M40: =IF(ISNA(VLOOKUP($B$7&$D40&$AC$2&M$11,data!$F:$P,'by area'!$AC$3,FALSE)),"-",VLOOKUP($B$7&$D40&$AC$2&M$11,data!$F:$P,'by area'!$AC$3,FALSE)) -> 464.2335717 | O40: =IF(ISNA(VLOOKUP($B$9&$D40&$AC$2&H$11,data!$F:$P,'by area'!$AC$3,FALSE)),"-",VLOOKUP($B$9&$D40&$AC$2&H$11,data!$F:$P,'by area'!$AC$3,FALSE)) -> - | P40: =IF(ISNA(VLOOKUP($B$9&$D40&$AC$2&I$11,data!$F:$P,'by area'!$AC$3,FALSE)),"-",VLOOKUP($B$9&$D40&$AC$2&I$11,data!$F:$P,'by area'!$AC$3,FALSE)) -> - | Q40: =IF(ISNA(VLOOKUP($B$9&$D40&$AC$2&J$11,data!$F:$P,'by area'!$AC$3,FALSE)),"-",VLOOKUP($B$9&$D40&$AC$2&J$11,data!$F:$P,'by area'!$AC$3,FALSE)) -> - | R40: =IF(ISNA(VLOOKUP($B$9&$D40&$AC$2&K$11,data!$F:$P,'by area'!$AC$3,FALSE)),"-",VLOOKUP($B$9&$D40&$AC$2&K$11,data!$F:$P,'by area'!$AC$3,FALSE)) -> - | S40: =IF(ISNA(VLOOKUP($B$9&$D40&$AC$2&L$11,data!$F:$P,'by area'!$AC$3,FALSE)),"-",VLOOKUP($B$9&$D40&$AC$2&L$11,data!$F:$P,'by area'!$AC$3,FALSE)) -> - | T40: =IF(ISNA(VLOOKUP($B$9&$D40&$AC$2&M$11,data!$F:$P,'by area'!$AC$3,FALSE)),"-",VLOOKUP($B$9&$D40&$AC$2&M$11,data!$F:$P,'by area'!$AC$3,FALSE)) -> -
D41: Multiple myeloma | F41: =IF(ISNA(VLOOKUP($D41,RAG!$A$72:$K$139,'by area'!$AC$3,FALSE)),"-",VLOOKUP($D41,RAG!$A$72:$K$139,'by area'!$AC$3,FALSE)) -> 4.674013101 | H41: =IF(ISNA(VLOOKUP($B$7&$D41&$AC$2&H$11,data!$F:$P,'by area'!$AC$3,FALSE)),"-",VLOOKUP($B$7&$D41&$AC$2&H$11,data!$F:$P,'by area'!$AC$3,FALSE)) -> 66.41971802 | I41: =IF(ISNA(VLOOKUP($B$7&$D41&$AC$2&I$11,data!$F:$P,'by area'!$AC$3,FALSE)),"-",VLOOKUP($B$7&$D41&$AC$2&I$11,data!$F:$P,'by area'!$AC$3,FALSE)) -> 0 | J41: =IF(ISNA(VLOOKUP($B$7&$D41&$AC$2&J$11,data!$F:$P,'by area'!$AC$3,FALSE)),"-",VLOOKUP($B$7&$D41&$AC$2&J$11,data!$F:$P,'by area'!$AC$3,FALSE)) -> 0.01187145708 | K41: =IF(ISNA(VLOOKUP($B$7&$D41&$AC$2&K$11,data!$F:$P,'by area'!$AC$3,FALSE)),"-",VLOOKUP($B$7&$D41&$AC$2&K$11,data!$F:$P,'by area'!$AC$3,FALSE)) -> 3.432112876 | L41: =IF(ISNA(VLOOKUP($B$7&$D41&$AC$2&L$11,data!$F:$P,'by area'!$AC$3,FALSE)),"-",VLOOKUP($B$7&$D41&$AC$2&L$11,data!$F:$P,'by area'!$AC$3,FALSE)) -> 74.42120065 | M41: =IF(ISNA(VLOOKUP($B$7&$D41&$AC$2&M$11,data!$F:$P,'by area'!$AC$3,FALSE)),"-",VLOOKUP($B$7&$D41&$AC$2&M$11,data!$F:$P,'by area'!$AC$3,FALSE)) -> 234.8062806 | O41: =IF(ISNA(VLOOKUP($B$9&$D41&$AC$2&H$11,data!$F:$P,'by area'!$AC$3,FALSE)),"-",VLOOKUP($B$9&$D41&$AC$2&H$11,data!$F:$P,'by area'!$AC$3,FALSE)) -> - | P41: =IF(ISNA(VLOOKUP($B$9&$D41&$AC$2&I$11,data!$F:$P,'by area'!$AC$3,FALSE)),"-",VLOOKUP($B$9&$D41&$AC$2&I$11,data!$F:$P,'by area'!$AC$3,FALSE)) -> - | Q41: =IF(ISNA(VLOOKUP($B$9&$D41&$AC$2&J$11,data!$F:$P,'by area'!$AC$3,FALSE)),"-",VLOOKUP($B$9&$D41&$AC$2&J$11,data!$F:$P,'by area'!$AC$3,FALSE)) -> - | R41: =IF(ISNA(VLOOKUP($B$9&$D41&$AC$2&K$11,data!$F:$P,'by area'!$AC$3,FALSE)),"-",VLOOKUP($B$9&$D41&$AC$2&K$11,data!$F:$P,'by area'!$AC$3,FALSE)) -> - | S41: =IF(ISNA(VLOOKUP($B$9&$D41&$AC$2&L$11,data!$F:$P,'by area'!$AC$3,FALSE)),"-",VLOOKUP($B$9&$D41&$AC$2&L$11,data!$F:$P,'by area'!$AC$3,FALSE)) -> - | T41: =IF(ISNA(VLOOKUP($B$9&$D41&$AC$2&M$11,data!$F:$P,'by area'!$AC$3,FALSE)),"-",VLOOKUP($B$9&$D41&$AC$2&M$11,data!$F:$P,'by area'!$AC$3,FALSE)) -> -
D42: Leukaemia | F42: =IF(ISNA(VLOOKUP($D42,RAG!$A$72:$K$139,'by area'!$AC$3,FALSE)),"-",VLOOKUP($D42,RAG!$A$72:$K$139,'by area'!$AC$3,FALSE)) -> 4.76301016 | H42: =IF(ISNA(VLOOKUP($B$7&$D42&$AC$2&H$11,data!$F:$P,'by area'!$AC$3,FALSE)),"-",VLOOKUP($B$7&$D42&$AC$2&H$11,data!$F:$P,'by area'!$AC$3,FALSE)) -> 107.3258788 | I42: =IF(ISNA(VLOOKUP($B$7&$D42&$AC$2&I$11,data!$F:$P,'by area'!$AC$3,FALSE)),"-",VLOOKUP($B$7&$D42&$AC$2&I$11,data!$F:$P,'by area'!$AC$3,FALSE)) -> 20.77459597 | J42: =IF(ISNA(VLOOKUP($B$7&$D42&$AC$2&J$11,data!$F:$P,'by area'!$AC$3,FALSE)),"-",VLOOKUP($B$7&$D42&$AC$2&J$11,data!$F:$P,'by area'!$AC$3,FALSE)) -> 27.32704414 | K42: =IF(ISNA(VLOOKUP($B$7&$D42&$AC$2&K$11,data!$F:$P,'by area'!$AC$3,FALSE)),"-",VLOOKUP($B$7&$D42&$AC$2&K$11,data!$F:$P,'by area'!$AC$3,FALSE)) -> 34.02937245 | L42: =IF(ISNA(VLOOKUP($B$7&$D42&$AC$2&L$11,data!$F:$P,'by area'!$AC$3,FALSE)),"-",VLOOKUP($B$7&$D42&$AC$2&L$11,data!$F:$P,'by area'!$AC$3,FALSE)) -> 93.80742377 | M42: =IF(ISNA(VLOOKUP($B$7&$D42&$AC$2&M$11,data!$F:$P,'by area'!$AC$3,FALSE)),"-",VLOOKUP($B$7&$D42&$AC$2&M$11,data!$F:$P,'by area'!$AC$3,FALSE)) -> 343.5004225 | O42: =IF(ISNA(VLOOKUP($B$9&$D42&$AC$2&H$11,data!$F:$P,'by area'!$AC$3,FALSE)),"-",VLOOKUP($B$9&$D42&$AC$2&H$11,data!$F:$P,'by area'!$AC$3,FALSE)) -> - | P42: =IF(ISNA(VLOOKUP($B$9&$D42&$AC$2&I$11,data!$F:$P,'by area'!$AC$3,FALSE)),"-",VLOOKUP($B$9&$D42&$AC$2&I$11,data!$F:$P,'by area'!$AC$3,FALSE)) -> - | Q42: =IF(ISNA(VLOOKUP($B$9&$D42&$AC$2&J$11,data!$F:$P,'by area'!$AC$3,FALSE)),"-",VLOOKUP($B$9&$D42&$AC$2&J$11,data!$F:$P,'by area'!$AC$3,FALSE)) -> - | R42: =IF(ISNA(VLOOKUP($B$9&$D42&$AC$2&K$11,data!$F:$P,'by area'!$AC$3,FALSE)),"-",VLOOKUP($B$9&$D42&$AC$2&K$11,data!$F:$P,'by area'!$AC$3,FALSE)) -> - | S42: =IF(ISNA(VLOOKUP($B$9&$D42&$AC$2&L$11,data!$F:$P,'by area'!$AC$3,FALSE)),"-",VLOOKUP($B$9&$D42&$AC$2&L$11,data!$F:$P,'by area'!$AC$3,FALSE)) -> - | T42: =IF(ISNA(VLOOKUP($B$9&$D42&$AC$2&M$11,data!$F:$P,'by area'!$AC$3,FALSE)),"-",VLOOKUP($B$9&$D42&$AC$2&M$11,data!$F:$P,'by area'!$AC$3,FALSE)) -> -
D43: Other cancers | F43: =IF(ISNA(VLOOKUP($D43,RAG!$A$72:$K$139,'by area'!$AC$3,FALSE)),"-",VLOOKUP($D43,RAG!$A$72:$K$139,'by area'!$AC$3,FALSE)) -> 4.557021851 | H43: =IF(ISNA(VLOOKUP($B$7&$D43&$AC$2&H$11,data!$F:$P,'by area'!$AC$3,FALSE)),"-",VLOOKUP($B$7&$D43&$AC$2&H$11,data!$F:$P,'by area'!$AC$3,FALSE)) -> 798.7827325 | I43: =IF(ISNA(VLOOKUP($B$7&$D43&$AC$2&I$11,data!$F:$P,'by area'!$AC$3,FALSE)),"-",VLOOKUP($B$7&$D43&$AC$2&I$11,data!$F:$P,'by area'!$AC$3,FALSE)) -> 136.8131482 | J43: =IF(ISNA(VLOOKUP($B$7&$D43&$AC$2&J$11,data!$F:$P,'by area'!$AC$3,FALSE)),"-",VLOOKUP($B$7&$D43&$AC$2&J$11,data!$F:$P,'by area'!$AC$3,FALSE)) -> 115.7929133 | K43: =IF(ISNA(VLOOKUP($B$7&$D43&$AC$2&K$11,data!$F:$P,'by area'!$AC$3,FALSE)),"-",VLOOKUP($B$7&$D43&$AC$2&K$11,data!$F:$P,'by area'!$AC$3,FALSE)) -> 348.4081977 | L43: =IF(ISNA(VLOOKUP($B$7&$D43&$AC$2&L$11,data!$F:$P,'by area'!$AC$3,FALSE)),"-",VLOOKUP($B$7&$D43&$AC$2&L$11,data!$F:$P,'by area'!$AC$3,FALSE)) -> 1047.924996 | M43: =IF(ISNA(VLOOKUP($B$7&$D43&$AC$2&M$11,data!$F:$P,'by area'!$AC$3,FALSE)),"-",VLOOKUP($B$7&$D43&$AC$2&M$11,data!$F:$P,'by area'!$AC$3,FALSE)) -> 2018.195628 | O43: =IF(ISNA(VLOOKUP($B$9&$D43&$AC$2&H$11,data!$F:$P,'by area'!$AC$3,FALSE)),"-",VLOOKUP($B$9&$D43&$AC$2&H$11,data!$F:$P,'by area'!$AC$3,FALSE)) -> - | P43: =IF(ISNA(VLOOKUP($B$9&$D43&$AC$2&I$11,data!$F:$P,'by area'!$AC$3,FALSE)),"-",VLOOKUP($B$9&$D43&$AC$2&I$11,data!$F:$P,'by area'!$AC$3,FALSE)) -> - | Q43: =IF(ISNA(VLOOKUP($B$9&$D43&$AC$2&J$11,data!$F:$P,'by area'!$AC$3,FALSE)),"-",VLOOKUP($B$9&$D43&$AC$2&J$11,data!$F:$P,'by area'!$AC$3,FALSE)) -> - | R43: =IF(ISNA(VLOOKUP($B$9&$D43&$AC$2&K$11,data!$F:$P,'by area'!$AC$3,FALSE)),"-",VLOOKUP($B$9&$D43&$AC$2&K$11,data!$F:$P,'by area'!$AC$3,FALSE)) -> - | S43: =IF(ISNA(VLOOKUP($B$9&$D43&$AC$2&L$11,data!$F:$P,'by area'!$AC$3,FALSE)),"-",VLOOKUP($B$9&$D43&$AC$2&L$11,data!$F:$P,'by area'!$AC$3,FALSE)) -> - | T43: =IF(ISNA(VLOOKUP($B$9&$D43&$AC$2&M$11,data!$F:$P,'by area'!$AC$3,FALSE)),"-",VLOOKUP($B$9&$D43&$AC$2&M$11,data!$F:$P,'by area'!$AC$3,FALSE)) -> -
H44: =IF(ISNA(VLOOKUP($B$7&$D44&$AC$2&H$11,data!$F:$P,'by area'!$AC$3,FALSE)),"-",VLOOKUP($B$7&$D44&$AC$2&H$11,data!$F:$P,'by area'!$AC$3,FALSE)) -> - | I44: =IF(ISNA(VLOOKUP($B$7&$D44&$AC$2&I$11,data!$F:$P,'by area'!$AC$3,FALSE)),"-",VLOOKUP($B$7&$D44&$AC$2&I$11,data!$F:$P,'by area'!$AC$3,FALSE)) -> - | J44: =IF(ISNA(VLOOKUP($B$7&$D44&$AC$2&J$11,data!$F:$P,'by area'!$AC$3,FALSE)),"-",VLOOKUP($B$7&$D44&$AC$2&J$11,data!$F:$P,'by area'!$AC$3,FALSE)) -> - | K44: =IF(ISNA(VLOOKUP($B$7&$D44&$AC$2&K$11,data!$F:$P,'by area'!$AC$3,FALSE)),"-",VLOOKUP($B$7&$D44&$AC$2&K$11,data!$F:$P,'by area'!$AC$3,FALSE)) -> - | L44: =IF(ISNA(VLOOKUP($B$7&$D44&$AC$2&L$11,data!$F:$P,'by area'!$AC$3,FALSE)),"-",VLOOKUP($B$7&$D44&$AC$2&L$11,data!$F:$P,'by area'!$AC$3,FALSE)) -> - | M44: =IF(ISNA(VLOOKUP($B$7&$D44&$AC$2&M$11,data!$F:$P,'by area'!$AC$3,FALSE)),"-",VLOOKUP($B$7&$D44&$AC$2&M$11,data!$F:$P,'by area'!$AC$3,FALSE)) -> - | O44: =IF(ISNA(VLOOKUP($B$9&$D44&$AC$2&H$11,data!$F:$P,'by area'!$AC$3,FALSE)),"-",VLOOKUP($B$9&$D44&$AC$2&H$11,data!$F:$P,'by area'!$AC$3,FALSE)) -> - | P44: =IF(ISNA(VLOOKUP($B$9&$D44&$AC$2&I$11,data!$F:$P,'by area'!$AC$3,FALSE)),"-",VLOOKUP($B$9&$D44&$AC$2&I$11,data!$F:$P,'by area'!$AC$3,FALSE)) -> - | Q44: =IF(ISNA(VLOOKUP($B$9&$D44&$AC$2&J$11,data!$F:$P,'by area'!$AC$3,FALSE)),"-",VLOOKUP($B$9&$D44&$AC$2&J$11,data!$F:$P,'by area'!$AC$3,FALSE)) -> - | R44: =IF(ISNA(VLOOKUP($B$9&$D44&$AC$2&K$11,data!$F:$P,'by area'!$AC$3,FALSE)),"-",VLOOKUP($B$9&$D44&$AC$2&K$11,data!$F:$P,'by area'!$AC$3,FALSE)) -> - | S44: =IF(ISNA(VLOOKUP($B$9&$D44&$AC$2&L$11,data!$F:$P,'by area'!$AC$3,FALSE)),"-",VLOOKUP($B$9&$D44&$AC$2&L$11,data!$F:$P,'by area'!$AC$3,FALSE)) -> - | T44: =IF(ISNA(VLOOKUP($B$9&$D44&$AC$2&M$11,data!$F:$P,'by area'!$AC$3,FALSE)),"-",VLOOKUP($B$9&$D44&$AC$2&M$11,data!$F:$P,'by area'!$AC$3,FALSE)) -> -
D45: Cardiovascular diseases
D46: Ischaemic heart disease | F46: =IF(ISNA(VLOOKUP($D46,RAG!$A$72:$K$139,'by area'!$AC$3,FALSE)),"-",VLOOKUP($D46,RAG!$A$72:$K$139,'by area'!$AC$3,FALSE)) -> 4.73869535 | H46: =IF(ISNA(VLOOKUP($B$7&$D46&$AC$2&H$11,data!$F:$P,'by area'!$AC$3,FALSE)),"-",VLOOKUP($B$7&$D46&$AC$2&H$11,data!$F:$P,'by area'!$AC$3,FALSE)) -> 1805.291449 | I46: =IF(ISNA(VLOOKUP($B$7&$D46&$AC$2&I$11,data!$F:$P,'by area'!$AC$3,FALSE)),"-",VLOOKUP($B$7&$D46&$AC$2&I$11,data!$F:$P,'by area'!$AC$3,FALSE)) -> 0.7036050075 | J46: =IF(ISNA(VLOOKUP($B$7&$D46&$AC$2&J$11,data!$F:$P,'by area'!$AC$3,FALSE)),"-",VLOOKUP($B$7&$D46&$AC$2&J$11,data!$F:$P,'by area'!$AC$3,FALSE)) -> 7.497417528 | K46: =IF(ISNA(VLOOKUP($B$7&$D46&$AC$2&K$11,data!$F:$P,'by area'!$AC$3,FALSE)),"-",VLOOKUP($B$7&$D46&$AC$2&K$11,data!$F:$P,'by area'!$AC$3,FALSE)) -> 341.6106644 | L46: =IF(ISNA(VLOOKUP($B$7&$D46&$AC$2&L$11,data!$F:$P,'by area'!$AC$3,FALSE)),"-",VLOOKUP($B$7&$D46&$AC$2&L$11,data!$F:$P,'by area'!$AC$3,FALSE)) -> 1970.89448 | M46: =IF(ISNA(VLOOKUP($B$7&$D46&$AC$2&M$11,data!$F:$P,'by area'!$AC$3,FALSE)),"-",VLOOKUP($B$7&$D46&$AC$2&M$11,data!$F:$P,'by area'!$AC$3,FALSE)) -> 6110.2708 | O46: =IF(ISNA(VLOOKUP($B$9&$D46&$AC$2&H$11,data!$F:$P,'by area'!$AC$3,FALSE)),"-",VLOOKUP($B$9&$D46&$AC$2&H$11,data!$F:$P,'by area'!$AC$3,FALSE)) -> - | P46: =IF(ISNA(VLOOKUP($B$9&$D46&$AC$2&I$11,data!$F:$P,'by area'!$AC$3,FALSE)),"-",VLOOKUP($B$9&$D46&$AC$2&I$11,data!$F:$P,'by area'!$AC$3,FALSE)) -> - | Q46: =IF(ISNA(VLOOKUP($B$9&$D46&$AC$2&J$11,data!$F:$P,'by area'!$AC$3,FALSE)),"-",VLOOKUP($B$9&$D46&$AC$2&J$11,data!$F:$P,'by area'!$AC$3,FALSE)) -> - | R46: =IF(ISNA(VLOOKUP($B$9&$D46&$AC$2&K$11,data!$F:$P,'by area'!$AC$3,FALSE)),"-",VLOOKUP($B$9&$D46&$AC$2&K$11,data!$F:$P,'by area'!$AC$3,FALSE)) -> - | S46: =IF(ISNA(VLOOKUP($B$9&$D46&$AC$2&L$11,data!$F:$P,'by area'!$AC$3,FALSE)),"-",VLOOKUP($B$9&$D46&$AC$2&L$11,data!$F:$P,'by area'!$AC$3,FALSE)) -> - | T46: =IF(ISNA(VLOOKUP($B$9&$D46&$AC$2&M$11,data!$F:$P,'by area'!$AC$3,FALSE)),"-",VLOOKUP($B$9&$D46&$AC$2&M$11,data!$F:$P,'by area'!$AC$3,FALSE)) -> -
D47: Cerebrovascular disease | F47: =IF(ISNA(VLOOKUP($D47,RAG!$A$72:$K$139,'by area'!$AC$3,FALSE)),"-",VLOOKUP($D47,RAG!$A$72:$K$139,'by area'!$AC$3,FALSE)) -> 4.759278666 | H47: =IF(ISNA(VLOOKUP($B$7&$D47&$AC$2&H$11,data!$F:$P,'by area'!$AC$3,FALSE)),"-",VLOOKUP($B$7&$D47&$AC$2&H$11,data!$F:$P,'by area'!$AC$3,FALSE)) -> 1102.589369 | I47: =IF(ISNA(VLOOKUP($B$7&$D47&$AC$2&I$11,data!$F:$P,'by area'!$AC$3,FALSE)),"-",VLOOKUP($B$7&$D47&$AC$2&I$11,data!$F:$P,'by area'!$AC$3,FALSE)) -> 18.08189516 | J47: =IF(ISNA(VLOOKUP($B$7&$D47&$AC$2&J$11,data!$F:$P,'by area'!$AC$3,FALSE)),"-",VLOOKUP($B$7&$D47&$AC$2&J$11,data!$F:$P,'by area'!$AC$3,FALSE)) -> 37.11775713 | K47: =IF(ISNA(VLOOKUP($B$7&$D47&$AC$2&K$11,data!$F:$P,'by area'!$AC$3,FALSE)),"-",VLOOKUP($B$7&$D47&$AC$2&K$11,data!$F:$P,'by area'!$AC$3,FALSE)) -> 175.1809484 | L47: =IF(ISNA(VLOOKUP($B$7&$D47&$AC$2&L$11,data!$F:$P,'by area'!$AC$3,FALSE)),"-",VLOOKUP($B$7&$D47&$AC$2&L$11,data!$F:$P,'by area'!$AC$3,FALSE)) -> 814.3903936 | M47: =IF(ISNA(VLOOKUP($B$7&$D47&$AC$2&M$11,data!$F:$P,'by area'!$AC$3,FALSE)),"-",VLOOKUP($B$7&$D47&$AC$2&M$11,data!$F:$P,'by area'!$AC$3,FALSE)) -> 4272.775991 | O47: =IF(ISNA(VLOOKUP($B$9&$D47&$AC$2&H$11,data!$F:$P,'by area'!$AC$3,FALSE)),"-",VLOOKUP($B$9&$D47&$AC$2&H$11,data!$F:$P,'by area'!$AC$3,FALSE)) -> - | P47: =IF(ISNA(VLOOKUP($B$9&$D47&$AC$2&I$11,data!$F:$P,'by area'!$AC$3,FALSE)),"-",VLOOKUP($B$9&$D47&$AC$2&I$11,data!$F:$P,'by area'!$AC$3,FALSE)) -> - | Q47: =IF(ISNA(VLOOKUP($B$9&$D47&$AC$2&J$11,data!$F:$P,'by area'!$AC$3,FALSE)),"-",VLOOKUP($B$9&$D47&$AC$2&J$11,data!$F:$P,'by area'!$AC$3,FALSE)) -> - | R47: =IF(ISNA(VLOOKUP($B$9&$D47&$AC$2&K$11,data!$F:$P,'by area'!$AC$3,FALSE)),"-",VLOOKUP($B$9&$D47&$AC$2&K$11,data!$F:$P,'by area'!$AC$3,FALSE)) -> - | S47: =IF(ISNA(VLOOKUP($B$9&$D47&$AC$2&L$11,data!$F:$P,'by area'!$AC$3,FALSE)),"-",VLOOKUP($B$9&$D47&$AC$2&L$11,data!$F:$P,'by area'!$AC$3,FALSE)) -> - | T47: =IF(ISNA(VLOOKUP($B$9&$D47&$AC$2&M$11,data!$F:$P,'by area'!$AC$3,FALSE)),"-",VLOOKUP($B$9&$D47&$AC$2&M$11,data!$F:$P,'by area'!$AC$3,FALSE)) -> -
D48: Atrial fibrillation and flutter | F48: =IF(ISNA(VLOOKUP($D48,RAG!$A$72:$K$139,'by area'!$AC$3,FALSE)),"-",VLOOKUP($D48,RAG!$A$72:$K$139,'by area'!$AC$3,FALSE)) -> 4.278963426 | H48: =IF(ISNA(VLOOKUP($B$7&$D48&$AC$2&H$11,data!$F:$P,'by area'!$AC$3,FALSE)),"-",VLOOKUP($B$7&$D48&$AC$2&H$11,data!$F:$P,'by area'!$AC$3,FALSE)) -> 278.6248217 | I48: =IF(ISNA(VLOOKUP($B$7&$D48&$AC$2&I$11,data!$F:$P,'by area'!$AC$3,FALSE)),"-",VLOOKUP($B$7&$D48&$AC$2&I$11,data!$F:$P,'by area'!$AC$3,FALSE)) -> 0.2247683412 | J48: =IF(ISNA(VLOOKUP($B$7&$D48&$AC$2&J$11,data!$F:$P,'by area'!$AC$3,FALSE)),"-",VLOOKUP($B$7&$D48&$AC$2&J$11,data!$F:$P,'by area'!$AC$3,FALSE)) -> 1.857954006 | K48: =IF(ISNA(VLOOKUP($B$7&$D48&$AC$2&K$11,data!$F:$P,'by area'!$AC$3,FALSE)),"-",VLOOKUP($B$7&$D48&$AC$2&K$11,data!$F:$P,'by area'!$AC$3,FALSE)) -> 17.63344135 | L48: =IF(ISNA(VLOOKUP($B$7&$D48&$AC$2&L$11,data!$F:$P,'by area'!$AC$3,FALSE)),"-",VLOOKUP($B$7&$D48&$AC$2&L$11,data!$F:$P,'by area'!$AC$3,FALSE)) -> 119.1931448 | M48: =IF(ISNA(VLOOKUP($B$7&$D48&$AC$2&M$11,data!$F:$P,'by area'!$AC$3,FALSE)),"-",VLOOKUP($B$7&$D48&$AC$2&M$11,data!$F:$P,'by area'!$AC$3,FALSE)) -> 1241.621276 | O48: =IF(ISNA(VLOOKUP($B$9&$D48&$AC$2&H$11,data!$F:$P,'by area'!$AC$3,FALSE)),"-",VLOOKUP($B$9&$D48&$AC$2&H$11,data!$F:$P,'by area'!$AC$3,FALSE)) -> - | P48: =IF(ISNA(VLOOKUP($B$9&$D48&$AC$2&I$11,data!$F:$P,'by area'!$AC$3,FALSE)),"-",VLOOKUP($B$9&$D48&$AC$2&I$11,data!$F:$P,'by area'!$AC$3,FALSE)) -> - | Q48: =IF(ISNA(VLOOKUP($B$9&$D48&$AC$2&J$11,data!$F:$P,'by area'!$AC$3,FALSE)),"-",VLOOKUP($B$9&$D48&$AC$2&J$11,data!$F:$P,'by area'!$AC$3,FALSE)) -> - | R48: =IF(ISNA(VLOOKUP($B$9&$D48&$AC$2&K$11,data!$F:$P,'by area'!$AC$3,FALSE)),"-",VLOOKUP($B$9&$D48&$AC$2&K$11,data!$F:$P,'by area'!$AC$3,FALSE)) -> - | S48: =IF(ISNA(VLOOKUP($B$9&$D48&$AC$2&L$11,data!$F:$P,'by area'!$AC$3,FALSE)),"-",VLOOKUP($B$9&$D48&$AC$2&L$11,data!$F:$P,'by area'!$AC$3,FALSE)) -> - | T48: =IF(ISNA(VLOOKUP($B$9&$D48&$AC$2&M$11,data!$F:$P,'by area'!$AC$3,FALSE)),"-",VLOOKUP($B$9&$D48&$AC$2&M$11,data!$F:$P,'by area'!$AC$3,FALSE)) -> -
D49: Peripheral vascular disease | F49: =IF(ISNA(VLOOKUP($D49,RAG!$A$72:$K$139,'by area'!$AC$3,FALSE)),"-",VLOOKUP($D49,RAG!$A$72:$K$139,'by area'!$AC$3,FALSE)) -> 4.224743492 | H49: =IF(ISNA(VLOOKUP($B$7&$D49&$AC$2&H$11,data!$F:$P,'by area'!$AC$3,FALSE)),"-",VLOOKUP($B$7&$D49&$AC$2&H$11,data!$F:$P,'by area'!$AC$3,FALSE)) -> 66.91402072 | I49: =IF(ISNA(VLOOKUP($B$7&$D49&$AC$2&I$11,data!$F:$P,'by area'!$AC$3,FALSE)),"-",VLOOKUP($B$7&$D49&$AC$2&I$11,data!$F:$P,'by area'!$AC$3,FALSE)) -> 0 | J49: =IF(ISNA(VLOOKUP($B$7&$D49&$AC$2&J$11,data!$F:$P,'by area'!$AC$3,FALSE)),"-",VLOOKUP($B$7&$D49&$AC$2&J$11,data!$F:$P,'by area'!$AC$3,FALSE)) -> 0.01490820631 | K49: =IF(ISNA(VLOOKUP($B$7&$D49&$AC$2&K$11,data!$F:$P,'by area'!$AC$3,FALSE)),"-",VLOOKUP($B$7&$D49&$AC$2&K$11,data!$F:$P,'by area'!$AC$3,FALSE)) -> 4.567329484 | L49: =IF(ISNA(VLOOKUP($B$7&$D49&$AC$2&L$11,data!$F:$P,'by area'!$AC$3,FALSE)),"-",VLOOKUP($B$7&$D49&$AC$2&L$11,data!$F:$P,'by area'!$AC$3,FALSE)) -> 42.38246918 | M49: =IF(ISNA(VLOOKUP($B$7&$D49&$AC$2&M$11,data!$F:$P,'by area'!$AC$3,FALSE)),"-",VLOOKUP($B$7&$D49&$AC$2&M$11,data!$F:$P,'by area'!$AC$3,FALSE)) -> 279.3364596 | O49: =IF(ISNA(VLOOKUP($B$9&$D49&$AC$2&H$11,data!$F:$P,'by area'!$AC$3,FALSE)),"-",VLOOKUP($B$9&$D49&$AC$2&H$11,data!$F:$P,'by area'!$AC$3,FALSE)) -> - | P49: =IF(ISNA(VLOOKUP($B$9&$D49&$AC$2&I$11,data!$F:$P,'by area'!$AC$3,FALSE)),"-",VLOOKUP($B$9&$D49&$AC$2&I$11,data!$F:$P,'by area'!$AC$3,FALSE)) -> - | Q49: =IF(ISNA(VLOOKUP($B$9&$D49&$AC$2&J$11,data!$F:$P,'by area'!$AC$3,FALSE)),"-",VLOOKUP($B$9&$D49&$AC$2&J$11,data!$F:$P,'by area'!$AC$3,FALSE)) -> - | R49: =IF(ISNA(VLOOKUP($B$9&$D49&$AC$2&K$11,data!$F:$P,'by area'!$AC$3,FALSE)),"-",VLOOKUP($B$9&$D49&$AC$2&K$11,data!$F:$P,'by area'!$AC$3,FALSE)) -> - | S49: =IF(ISNA(VLOOKUP($B$9&$D49&$AC$2&L$11,data!$F:$P,'by area'!$AC$3,FALSE)),"-",VLOOKUP($B$9&$D49&$AC$2&L$11,data!$F:$P,'by area'!$AC$3,FALSE)) -> - | T49: =IF(ISNA(VLOOKUP($B$9&$D49&$AC$2&M$11,data!$F:$P,'by area'!$AC$3,FALSE)),"-",VLOOKUP($B$9&$D49&$AC$2&M$11,data!$F:$P,'by area'!$AC$3,FALSE)) -> -
D50: Other cardiovascular and circulatory diseases | F50: =IF(ISNA(VLOOKUP($D50,RAG!$A$72:$K$139,'by area'!$AC$3,FALSE)),"-",VLOOKUP($D50,RAG!$A$72:$K$139,'by area'!$AC$3,FALSE)) -> 4.271325588 | H50: =IF(ISNA(VLOOKUP($B$7&$D50&$AC$2&H$11,data!$F:$P,'by area'!$AC$3,FALSE)),"-",VLOOKUP($B$7&$D50&$AC$2&H$11,data!$F:$P,'by area'!$AC$3,FALSE)) -> 655.6755206 | I50: =IF(ISNA(VLOOKUP($B$7&$D50&$AC$2&I$11,data!$F:$P,'by area'!$AC$3,FALSE)),"-",VLOOKUP($B$7&$D50&$AC$2&I$11,data!$F:$P,'by area'!$AC$3,FALSE)) -> 46.09993478 | J50: =IF(ISNA(VLOOKUP($B$7&$D50&$AC$2&J$11,data!$F:$P,'by area'!$AC$3,FALSE)),"-",VLOOKUP($B$7&$D50&$AC$2&J$11,data!$F:$P,'by area'!$AC$3,FALSE)) -> 87.86235449 | K50: =IF(ISNA(VLOOKUP($B$7&$D50&$AC$2&K$11,data!$F:$P,'by area'!$AC$3,FALSE)),"-",VLOOKUP($B$7&$D50&$AC$2&K$11,data!$F:$P,'by area'!$AC$3,FALSE)) -> 261.6836971 | L50: =IF(ISNA(VLOOKUP($B$7&$D50&$AC$2&L$11,data!$F:$P,'by area'!$AC$3,FALSE)),"-",VLOOKUP($B$7&$D50&$AC$2&L$11,data!$F:$P,'by area'!$AC$3,FALSE)) -> 635.2441096 | M50: =IF(ISNA(VLOOKUP($B$7&$D50&$AC$2&M$11,data!$F:$P,'by area'!$AC$3,FALSE)),"-",VLOOKUP($B$7&$D50&$AC$2&M$11,data!$F:$P,'by area'!$AC$3,FALSE)) -> 2053.894828 | O50: =IF(ISNA(VLOOKUP($B$9&$D50&$AC$2&H$11,data!$F:$P,'by area'!$AC$3,FALSE)),"-",VLOOKUP($B$9&$D50&$AC$2&H$11,data!$F:$P,'by area'!$AC$3,FALSE)) -> - | P50: =IF(ISNA(VLOOKUP($B$9&$D50&$AC$2&I$11,data!$F:$P,'by area'!$AC$3,FALSE)),"-",VLOOKUP($B$9&$D50&$AC$2&I$11,data!$F:$P,'by area'!$AC$3,FALSE)) -> - | Q50: =IF(ISNA(VLOOKUP($B$9&$D50&$AC$2&J$11,data!$F:$P,'by area'!$AC$3,FALSE)),"-",VLOOKUP($B$9&$D50&$AC$2&J$11,data!$F:$P,'by area'!$AC$3,FALSE)) -> - | R50: =IF(ISNA(VLOOKUP($B$9&$D50&$AC$2&K$11,data!$F:$P,'by area'!$AC$3,FALSE)),"-",VLOOKUP($B$9&$D50&$AC$2&K$11,data!$F:$P,'by area'!$AC$3,FALSE)) -> - | S50: =IF(ISNA(VLOOKUP($B$9&$D50&$AC$2&L$11,data!$F:$P,'by area'!$AC$3,FALSE)),"-",VLOOKUP($B$9&$D50&$AC$2&L$11,data!$F:$P,'by area'!$AC$3,FALSE)) -> - | T50: =IF(ISNA(VLOOKUP($B$9&$D50&$AC$2&M$11,data!$F:$P,'by area'!$AC$3,FALSE)),"-",VLOOKUP($B$9&$D50&$AC$2&M$11,data!$F:$P,'by area'!$AC$3,FALSE)) -> -
H51: =IF(ISNA(VLOOKUP($B$7&$D51&$AC$2&H$11,data!$F:$P,'by area'!$AC$3,FALSE)),"-",VLOOKUP($B$7&$D51&$AC$2&H$11,data!$F:$P,'by area'!$AC$3,FALSE)) -> - | I51: =IF(ISNA(VLOOKUP($B$7&$D51&$AC$2&I$11,data!$F:$P,'by area'!$AC$3,FALSE)),"-",VLOOKUP($B$7&$D51&$AC$2&I$11,data!$F:$P,'by area'!$AC$3,FALSE)) -> - | J51: =IF(ISNA(VLOOKUP($B$7&$D51&$AC$2&J$11,data!$F:$P,'by area'!$AC$3,FALSE)),"-",VLOOKUP($B$7&$D51&$AC$2&J$11,data!$F:$P,'by area'!$AC$3,FALSE)) -> - | K51: =IF(ISNA(VLOOKUP($B$7&$D51&$AC$2&K$11,data!$F:$P,'by area'!$AC$3,FALSE)),"-",VLOOKUP($B$7&$D51&$AC$2&K$11,data!$F:$P,'by area'!$AC$3,FALSE)) -> - | L51: =IF(ISNA(VLOOKUP($B$7&$D51&$AC$2&L$11,data!$F:$P,'by area'!$AC$3,FALSE)),"-",VLOOKUP($B$7&$D51&$AC$2&L$11,data!$F:$P,'by area'!$AC$3,FALSE)) -> - | M51: =IF(ISNA(VLOOKUP($B$7&$D51&$AC$2&M$11,data!$F:$P,'by area'!$AC$3,FALSE)),"-",VLOOKUP($B$7&$D51&$AC$2&M$11,data!$F:$P,'by area'!$AC$3,FALSE)) -> - | O51: =IF(ISNA(VLOOKUP($B$9&$D51&$AC$2&H$11,data!$F:$P,'by area'!$AC$3,FALSE)),"-",VLOOKUP($B$9&$D51&$AC$2&H$11,data!$F:$P,'by area'!$AC$3,FALSE)) -> - | P51: =IF(ISNA(VLOOKUP($B$9&$D51&$AC$2&I$11,data!$F:$P,'by area'!$AC$3,FALSE)),"-",VLOOKUP($B$9&$D51&$AC$2&I$11,data!$F:$P,'by area'!$AC$3,FALSE)) -> - | Q51: =IF(ISNA(VLOOKUP($B$9&$D51&$AC$2&J$11,data!$F:$P,'by area'!$AC$3,FALSE)),"-",VLOOKUP($B$9&$D51&$AC$2&J$11,data!$F:$P,'by area'!$AC$3,FALSE)) -> - | R51: =IF(ISNA(VLOOKUP($B$9&$D51&$AC$2&K$11,data!$F:$P,'by area'!$AC$3,FALSE)),"-",VLOOKUP($B$9&$D51&$AC$2&K$11,data!$F:$P,'by area'!$AC$3,FALSE)) -> - | S51: =IF(ISNA(VLOOKUP($B$9&$D51&$AC$2&L$11,data!$F:$P,'by area'!$AC$3,FALSE)),"-",VLOOKUP($B$9&$D51&$AC$2&L$11,data!$F:$P,'by area'!$AC$3,FALSE)) -> - | T51: =IF(ISNA(VLOOKUP($B$9&$D51&$AC$2&M$11,data!$F:$P,'by area'!$AC$3,FALSE)),"-",VLOOKUP($B$9&$D51&$AC$2&M$11,data!$F:$P,'by area'!$AC$3,FALSE)) -> -
D52: Chronic respiratory diseases
D53: Asthma | F53: =IF(ISNA(VLOOKUP($D53,RAG!$A$72:$K$139,'by area'!$AC$3,FALSE)),"-",VLOOKUP($D53,RAG!$A$72:$K$139,'by area'!$AC$3,FALSE)) -> 4 | H53: =IF(ISNA(VLOOKUP($B$7&$D53&$AC$2&H$11,data!$F:$P,'by area'!$AC$3,FALSE)),"-",VLOOKUP($B$7&$D53&$AC$2&H$11,data!$F:$P,'by area'!$AC$3,FALSE)) -> 293.9766371 | I53: =IF(ISNA(VLOOKUP($B$7&$D53&$AC$2&I$11,data!$F:$P,'by area'!$AC$3,FALSE)),"-",VLOOKUP($B$7&$D53&$AC$2&I$11,data!$F:$P,'by area'!$AC$3,FALSE)) -> 376.22395 | J53: =IF(ISNA(VLOOKUP($B$7&$D53&$AC$2&J$11,data!$F:$P,'by area'!$AC$3,FALSE)),"-",VLOOKUP($B$7&$D53&$AC$2&J$11,data!$F:$P,'by area'!$AC$3,FALSE)) -> 347.1804183 | K53: =IF(ISNA(VLOOKUP($B$7&$D53&$AC$2&K$11,data!$F:$P,'by area'!$AC$3,FALSE)),"-",VLOOKUP($B$7&$D53&$AC$2&K$11,data!$F:$P,'by area'!$AC$3,FALSE)) -> 310.9808297 | L53: =IF(ISNA(VLOOKUP($B$7&$D53&$AC$2&L$11,data!$F:$P,'by area'!$AC$3,FALSE)),"-",VLOOKUP($B$7&$D53&$AC$2&L$11,data!$F:$P,'by area'!$AC$3,FALSE)) -> 248.7615537 | M53: =IF(ISNA(VLOOKUP($B$7&$D53&$AC$2&M$11,data!$F:$P,'by area'!$AC$3,FALSE)),"-",VLOOKUP($B$7&$D53&$AC$2&M$11,data!$F:$P,'by area'!$AC$3,FALSE)) -> 233.4529508 | O53: =IF(ISNA(VLOOKUP($B$9&$D53&$AC$2&H$11,data!$F:$P,'by area'!$AC$3,FALSE)),"-",VLOOKUP($B$9&$D53&$AC$2&H$11,data!$F:$P,'by area'!$AC$3,FALSE)) -> - | P53: =IF(ISNA(VLOOKUP($B$9&$D53&$AC$2&I$11,data!$F:$P,'by area'!$AC$3,FALSE)),"-",VLOOKUP($B$9&$D53&$AC$2&I$11,data!$F:$P,'by area'!$AC$3,FALSE)) -> - | Q53: =IF(ISNA(VLOOKUP($B$9&$D53&$AC$2&J$11,data!$F:$P,'by area'!$AC$3,FALSE)),"-",VLOOKUP($B$9&$D53&$AC$2&J$11,data!$F:$P,'by area'!$AC$3,FALSE)) -> - | R53: =IF(ISNA(VLOOKUP($B$9&$D53&$AC$2&K$11,data!$F:$P,'by area'!$AC$3,FALSE)),"-",VLOOKUP($B$9&$D53&$AC$2&K$11,data!$F:$P,'by area'!$AC$3,FALSE)) -> - | S53: =IF(ISNA(VLOOKUP($B$9&$D53&$AC$2&L$11,data!$F:$P,'by area'!$AC$3,FALSE)),"-",VLOOKUP($B$9&$D53&$AC$2&L$11,data!$F:$P,'by area'!$AC$3,FALSE)) -> - | T53: =IF(ISNA(VLOOKUP($B$9&$D53&$AC$2&M$11,data!$F:$P,'by area'!$AC$3,FALSE)),"-",VLOOKUP($B$9&$D53&$AC$2&M$11,data!$F:$P,'by area'!$AC$3,FALSE)) -> -
D54: Chronic obstructive pulmonary disease | F54: =IF(ISNA(VLOOKUP($D54,RAG!$A$72:$K$139,'by area'!$AC$3,FALSE)),"-",VLOOKUP($D54,RAG!$A$72:$K$139,'by area'!$AC$3,FALSE)) -> 4.413659576 | H54: =IF(ISNA(VLOOKUP($B$7&$D54&$AC$2&H$11,data!$F:$P,'by area'!$AC$3,FALSE)),"-",VLOOKUP($B$7&$D54&$AC$2&H$11,data!$F:$P,'by area'!$AC$3,FALSE)) -> 919.0597469 | I54: =IF(ISNA(VLOOKUP($B$7&$D54&$AC$2&I$11,data!$F:$P,'by area'!$AC$3,FALSE)),"-",VLOOKUP($B$7&$D54&$AC$2&I$11,data!$F:$P,'by area'!$AC$3,FALSE)) -> 0.3040054198 | J54: =IF(ISNA(VLOOKUP($B$7&$D54&$AC$2&J$11,data!$F:$P,'by area'!$AC$3,FALSE)),"-",VLOOKUP($B$7&$D54&$AC$2&J$11,data!$F:$P,'by area'!$AC$3,FALSE)) -> 12.1499622 | K54: =IF(ISNA(VLOOKUP($B$7&$D54&$AC$2&K$11,data!$F:$P,'by area'!$AC$3,FALSE)),"-",VLOOKUP($B$7&$D54&$AC$2&K$11,data!$F:$P,'by area'!$AC$3,FALSE)) -> 95.37304849 | L54: =IF(ISNA(VLOOKUP($B$7&$D54&$AC$2&L$11,data!$F:$P,'by area'!$AC$3,FALSE)),"-",VLOOKUP($B$7&$D54&$AC$2&L$11,data!$F:$P,'by area'!$AC$3,FALSE)) -> 828.8982554 | M54: =IF(ISNA(VLOOKUP($B$7&$D54&$AC$2&M$11,data!$F:$P,'by area'!$AC$3,FALSE)),"-",VLOOKUP($B$7&$D54&$AC$2&M$11,data!$F:$P,'by area'!$AC$3,FALSE)) -> 3449.651102 | O54: =IF(ISNA(VLOOKUP($B$9&$D54&$AC$2&H$11,data!$F:$P,'by area'!$AC$3,FALSE)),"-",VLOOKUP($B$9&$D54&$AC$2&H$11,data!$F:$P,'by area'!$AC$3,FALSE)) -> - | P54: =IF(ISNA(VLOOKUP($B$9&$D54&$AC$2&I$11,data!$F:$P,'by area'!$AC$3,FALSE)),"-",VLOOKUP($B$9&$D54&$AC$2&I$11,data!$F:$P,'by area'!$AC$3,FALSE)) -> - | Q54: =IF(ISNA(VLOOKUP($B$9&$D54&$AC$2&J$11,data!$F:$P,'by area'!$AC$3,FALSE)),"-",VLOOKUP($B$9&$D54&$AC$2&J$11,data!$F:$P,'by area'!$AC$3,FALSE)) -> - | R54: =IF(ISNA(VLOOKUP($B$9&$D54&$AC$2&K$11,data!$F:$P,'by area'!$AC$3,FALSE)),"-",VLOOKUP($B$9&$D54&$AC$2&K$11,data!$F:$P,'by area'!$AC$3,FALSE)) -> - | S54: =IF(ISNA(VLOOKUP($B$9&$D54&$AC$2&L$11,data!$F:$P,'by area'!$AC$3,FALSE)),"-",VLOOKUP($B$9&$D54&$AC$2&L$11,data!$F:$P,'by area'!$AC$3,FALSE)) -> - | T54: =IF(ISNA(VLOOKUP($B$9&$D54&$AC$2&M$11,data!$F:$P,'by area'!$AC$3,FALSE)),"-",VLOOKUP($B$9&$D54&$AC$2&M$11,data!$F:$P,'by area'!$AC$3,FALSE)) -> -
D55: Other chronic respiratory diseases | F55: =IF(ISNA(VLOOKUP($D55,RAG!$A$72:$K$139,'by area'!$AC$3,FALSE)),"-",VLOOKUP($D55,RAG!$A$72:$K$139,'by area'!$AC$3,FALSE)) -> 4.23415024 | H55: =IF(ISNA(VLOOKUP($B$7&$D55&$AC$2&H$11,data!$F:$P,'by area'!$AC$3,FALSE)),"-",VLOOKUP($B$7&$D55&$AC$2&H$11,data!$F:$P,'by area'!$AC$3,FALSE)) -> 168.2392519 | I55: =IF(ISNA(VLOOKUP($B$7&$D55&$AC$2&I$11,data!$F:$P,'by area'!$AC$3,FALSE)),"-",VLOOKUP($B$7&$D55&$AC$2&I$11,data!$F:$P,'by area'!$AC$3,FALSE)) -> 0.8481703161 | J55: =IF(ISNA(VLOOKUP($B$7&$D55&$AC$2&J$11,data!$F:$P,'by area'!$AC$3,FALSE)),"-",VLOOKUP($B$7&$D55&$AC$2&J$11,data!$F:$P,'by area'!$AC$3,FALSE)) -> 2.869037622 | K55: =IF(ISNA(VLOOKUP($B$7&$D55&$AC$2&K$11,data!$F:$P,'by area'!$AC$3,FALSE)),"-",VLOOKUP($B$7&$D55&$AC$2&K$11,data!$F:$P,'by area'!$AC$3,FALSE)) -> 15.7292407 | L55: =IF(ISNA(VLOOKUP($B$7&$D55&$AC$2&L$11,data!$F:$P,'by area'!$AC$3,FALSE)),"-",VLOOKUP($B$7&$D55&$AC$2&L$11,data!$F:$P,'by area'!$AC$3,FALSE)) -> 137.6861607 | M55: =IF(ISNA(VLOOKUP($B$7&$D55&$AC$2&M$11,data!$F:$P,'by area'!$AC$3,FALSE)),"-",VLOOKUP($B$7&$D55&$AC$2&M$11,data!$F:$P,'by area'!$AC$3,FALSE)) -> 651.8898664 | O55: =IF(ISNA(VLOOKUP($B$9&$D55&$AC$2&H$11,data!$F:$P,'by area'!$AC$3,FALSE)),"-",VLOOKUP($B$9&$D55&$AC$2&H$11,data!$F:$P,'by area'!$AC$3,FALSE)) -> - | P55: =IF(ISNA(VLOOKUP($B$9&$D55&$AC$2&I$11,data!$F:$P,'by area'!$AC$3,FALSE)),"-",VLOOKUP($B$9&$D55&$AC$2&I$11,data!$F:$P,'by area'!$AC$3,FALSE)) -> - | Q55: =IF(ISNA(VLOOKUP($B$9&$D55&$AC$2&J$11,data!$F:$P,'by area'!$AC$3,FALSE)),"-",VLOOKUP($B$9&$D55&$AC$2&J$11,data!$F:$P,'by area'!$AC$3,FALSE)) -> - | R55: =IF(ISNA(VLOOKUP($B$9&$D55&$AC$2&K$11,data!$F:$P,'by area'!$AC$3,FALSE)),"-",VLOOKUP($B$9&$D55&$AC$2&K$11,data!$F:$P,'by area'!$AC$3,FALSE)) -> - | S55: =IF(ISNA(VLOOKUP($B$9&$D55&$AC$2&L$11,data!$F:$P,'by area'!$AC$3,FALSE)),"-",VLOOKUP($B$9&$D55&$AC$2&L$11,data!$F:$P,'by area'!$AC$3,FALSE)) -> - | T55: =IF(ISNA(VLOOKUP($B$9&$D55&$AC$2&M$11,data!$F:$P,'by area'!$AC$3,FALSE)),"-",VLOOKUP($B$9&$D55&$AC$2&M$11,data!$F:$P,'by area'!$AC$3,FALSE)) -> -
F56: =IF(ISNA(VLOOKUP($D56,RAG!$A$72:$K$139,'by area'!$AC$3,FALSE)),"-",VLOOKUP($D56,RAG!$A$72:$K$139,'by area'!$AC$3,FALSE)) -> - | H56: =IF(ISNA(VLOOKUP($B$7&$D56&$AC$2&H$11,data!$F:$P,'by area'!$AC$3,FALSE)),"-",VLOOKUP($B$7&$D56&$AC$2&H$11,data!$F:$P,'by area'!$AC$3,FALSE)) -> - | I56: =IF(ISNA(VLOOKUP($B$7&$D56&$AC$2&I$11,data!$F:$P,'by area'!$AC$3,FALSE)),"-",VLOOKUP($B$7&$D56&$AC$2&I$11,data!$F:$P,'by area'!$AC$3,FALSE)) -> - | J56: =IF(ISNA(VLOOKUP($B$7&$D56&$AC$2&J$11,data!$F:$P,'by area'!$AC$3,FALSE)),"-",VLOOKUP($B$7&$D56&$AC$2&J$11,data!$F:$P,'by area'!$AC$3,FALSE)) -> - | K56: =IF(ISNA(VLOOKUP($B$7&$D56&$AC$2&K$11,data!$F:$P,'by area'!$AC$3,FALSE)),"-",VLOOKUP($B$7&$D56&$AC$2&K$11,data!$F:$P,'by area'!$AC$3,FALSE)) -> - | L56: =IF(ISNA(VLOOKUP($B$7&$D56&$AC$2&L$11,data!$F:$P,'by area'!$AC$3,FALSE)),"-",VLOOKUP($B$7&$D56&$AC$2&L$11,data!$F:$P,'by area'!$AC$3,FALSE)) -> - | M56: =IF(ISNA(VLOOKUP($B$7&$D56&$AC$2&M$11,data!$F:$P,'by area'!$AC$3,FALSE)),"-",VLOOKUP($B$7&$D56&$AC$2&M$11,data!$F:$P,'by area'!$AC$3,FALSE)) -> - | O56: =IF(ISNA(VLOOKUP($B$9&$D56&$AC$2&H$11,data!$F:$P,'by area'!$AC$3,FALSE)),"-",VLOOKUP($B$9&$D56&$AC$2&H$11,data!$F:$P,'by area'!$AC$3,FALSE)) -> - | P56: =IF(ISNA(VLOOKUP($B$9&$D56&$AC$2&I$11,data!$F:$P,'by area'!$AC$3,FALSE)),"-",VLOOKUP($B$9&$D56&$AC$2&I$11,data!$F:$P,'by area'!$AC$3,FALSE)) -> - | Q56: =IF(ISNA(VLOOKUP($B$9&$D56&$AC$2&J$11,data!$F:$P,'by area'!$AC$3,FALSE)),"-",VLOOKUP($B$9&$D56&$AC$2&J$11,data!$F:$P,'by area'!$AC$3,FALSE)) -> - | R56: =IF(ISNA(VLOOKUP($B$9&$D56&$AC$2&K$11,data!$F:$P,'by area'!$AC$3,FALSE)),"-",VLOOKUP($B$9&$D56&$AC$2&K$11,data!$F:$P,'by area'!$AC$3,FALSE)) -> - | S56: =IF(ISNA(VLOOKUP($B$9&$D56&$AC$2&L$11,data!$F:$P,'by area'!$AC$3,FALSE)),"-",VLOOKUP($B$9&$D56&$AC$2&L$11,data!$F:$P,'by area'!$AC$3,FALSE)) -> - | T56: =IF(ISNA(VLOOKUP($B$9&$D56&$AC$2&M$11,data!$F:$P,'by area'!$AC$3,FALSE)),"-",VLOOKUP($B$9&$D56&$AC$2&M$11,data!$F:$P,'by area'!$AC$3,FALSE)) -> -
D57: Cirrhosis and other chronic liver diseases | F57: =IF(ISNA(VLOOKUP($D57,RAG!$A$72:$K$139,'by area'!$AC$3,FALSE)),"-",VLOOKUP($D57,RAG!$A$72:$K$139,'by area'!$AC$3,FALSE)) -> 4.487771402 | H57: =IF(ISNA(VLOOKUP($B$7&$D57&$AC$2&H$11,data!$F:$P,'by area'!$AC$3,FALSE)),"-",VLOOKUP($B$7&$D57&$AC$2&H$11,data!$F:$P,'by area'!$AC$3,FALSE)) -> 509.8677002 | I57: =IF(ISNA(VLOOKUP($B$7&$D57&$AC$2&I$11,data!$F:$P,'by area'!$AC$3,FALSE)),"-",VLOOKUP($B$7&$D57&$AC$2&I$11,data!$F:$P,'by area'!$AC$3,FALSE)) -> 1.575499175 | J57: =IF(ISNA(VLOOKUP($B$7&$D57&$AC$2&J$11,data!$F:$P,'by area'!$AC$3,FALSE)),"-",VLOOKUP($B$7&$D57&$AC$2&J$11,data!$F:$P,'by area'!$AC$3,FALSE)) -> 7.768158522 | K57: =IF(ISNA(VLOOKUP($B$7&$D57&$AC$2&K$11,data!$F:$P,'by area'!$AC$3,FALSE)),"-",VLOOKUP($B$7&$D57&$AC$2&K$11,data!$F:$P,'by area'!$AC$3,FALSE)) -> 411.0269978 | L57: =IF(ISNA(VLOOKUP($B$7&$D57&$AC$2&L$11,data!$F:$P,'by area'!$AC$3,FALSE)),"-",VLOOKUP($B$7&$D57&$AC$2&L$11,data!$F:$P,'by area'!$AC$3,FALSE)) -> 1076.67059 | M57: =IF(ISNA(VLOOKUP($B$7&$D57&$AC$2&M$11,data!$F:$P,'by area'!$AC$3,FALSE)),"-",VLOOKUP($B$7&$D57&$AC$2&M$11,data!$F:$P,'by area'!$AC$3,FALSE)) -> 587.0893401 | O57: =IF(ISNA(VLOOKUP($B$9&$D57&$AC$2&H$11,data!$F:$P,'by area'!$AC$3,FALSE)),"-",VLOOKUP($B$9&$D57&$AC$2&H$11,data!$F:$P,'by area'!$AC$3,FALSE)) -> - | P57: =IF(ISNA(VLOOKUP($B$9&$D57&$AC$2&I$11,data!$F:$P,'by area'!$AC$3,FALSE)),"-",VLOOKUP($B$9&$D57&$AC$2&I$11,data!$F:$P,'by area'!$AC$3,FALSE)) -> - | Q57: =IF(ISNA(VLOOKUP($B$9&$D57&$AC$2&J$11,data!$F:$P,'by area'!$AC$3,FALSE)),"-",VLOOKUP($B$9&$D57&$AC$2&J$11,data!$F:$P,'by area'!$AC$3,FALSE)) -> - | R57: =IF(ISNA(VLOOKUP($B$9&$D57&$AC$2&K$11,data!$F:$P,'by area'!$AC$3,FALSE)),"-",VLOOKUP($B$9&$D57&$AC$2&K$11,data!$F:$P,'by area'!$AC$3,FALSE)) -> - | S57: =IF(ISNA(VLOOKUP($B$9&$D57&$AC$2&L$11,data!$F:$P,'by area'!$AC$3,FALSE)),"-",VLOOKUP($B$9&$D57&$AC$2&L$11,data!$F:$P,'by area'!$AC$3,FALSE)) -> - | T57: =IF(ISNA(VLOOKUP($B$9&$D57&$AC$2&M$11,data!$F:$P,'by area'!$AC$3,FALSE)),"-",VLOOKUP($B$9&$D57&$AC$2&M$11,data!$F:$P,'by area'!$AC$3,FALSE)) -> -
H58: =IF(ISNA(VLOOKUP($B$7&$D58&$AC$2&H$11,data!$F:$P,'by area'!$AC$3,FALSE)),"-",VLOOKUP($B$7&$D58&$AC$2&H$11,data!$F:$P,'by area'!$AC$3,FALSE)) -> - | I58: =IF(ISNA(VLOOKUP($B$7&$D58&$AC$2&I$11,data!$F:$P,'by area'!$AC$3,FALSE)),"-",VLOOKUP($B$7&$D58&$AC$2&I$11,data!$F:$P,'by area'!$AC$3,FALSE)) -> - | J58: =IF(ISNA(VLOOKUP($B$7&$D58&$AC$2&J$11,data!$F:$P,'by area'!$AC$3,FALSE)),"-",VLOOKUP($B$7&$D58&$AC$2&J$11,data!$F:$P,'by area'!$AC$3,FALSE)) -> - | K58: =IF(ISNA(VLOOKUP($B$7&$D58&$AC$2&K$11,data!$F:$P,'by area'!$AC$3,FALSE)),"-",VLOOKUP($B$7&$D58&$AC$2&K$11,data!$F:$P,'by area'!$AC$3,FALSE)) -> - | L58: =IF(ISNA(VLOOKUP($B$7&$D58&$AC$2&L$11,data!$F:$P,'by area'!$AC$3,FALSE)),"-",VLOOKUP($B$7&$D58&$AC$2&L$11,data!$F:$P,'by area'!$AC$3,FALSE)) -> - | M58: =IF(ISNA(VLOOKUP($B$7&$D58&$AC$2&M$11,data!$F:$P,'by area'!$AC$3,FALSE)),"-",VLOOKUP($B$7&$D58&$AC$2&M$11,data!$F:$P,'by area'!$AC$3,FALSE)) -> - | O58: =IF(ISNA(VLOOKUP($B$9&$D58&$AC$2&H$11,data!$F:$P,'by area'!$AC$3,FALSE)),"-",VLOOKUP($B$9&$D58&$AC$2&H$11,data!$F:$P,'by area'!$AC$3,FALSE)) -> - | P58: =IF(ISNA(VLOOKUP($B$9&$D58&$AC$2&I$11,data!$F:$P,'by area'!$AC$3,FALSE)),"-",VLOOKUP($B$9&$D58&$AC$2&I$11,data!$F:$P,'by area'!$AC$3,FALSE)) -> - | Q58: =IF(ISNA(VLOOKUP($B$9&$D58&$AC$2&J$11,data!$F:$P,'by area'!$AC$3,FALSE)),"-",VLOOKUP($B$9&$D58&$AC$2&J$11,data!$F:$P,'by area'!$AC$3,FALSE)) -> - | R58: =IF(ISNA(VLOOKUP($B$9&$D58&$AC$2&K$11,data!$F:$P,'by area'!$AC$3,FALSE)),"-",VLOOKUP($B$9&$D58&$AC$2&K$11,data!$F:$P,'by area'!$AC$3,FALSE)) -> - | S58: =IF(ISNA(VLOOKUP($B$9&$D58&$AC$2&L$11,data!$F:$P,'by area'!$AC$3,FALSE)),"-",VLOOKUP($B$9&$D58&$AC$2&L$11,data!$F:$P,'by area'!$AC$3,FALSE)) -> - | T58: =IF(ISNA(VLOOKUP($B$9&$D58&$AC$2&M$11,data!$F:$P,'by area'!$AC$3,FALSE)),"-",VLOOKUP($B$9&$D58&$AC$2&M$11,data!$F:$P,'by area'!$AC$3,FALSE)) -> -
D59: Digestive diseases
D60: Peptic ulcer disease | F60: =IF(ISNA(VLOOKUP($D60,RAG!$A$72:$K$139,'by area'!$AC$3,FALSE)),"-",VLOOKUP($D60,RAG!$A$72:$K$139,'by area'!$AC$3,FALSE)) -> 4.305856694 | H60: =IF(ISNA(VLOOKUP($B$7&$D60&$AC$2&H$11,data!$F:$P,'by area'!$AC$3,FALSE)),"-",VLOOKUP($B$7&$D60&$AC$2&H$11,data!$F:$P,'by area'!$AC$3,FALSE)) -> 65.22519653 | I60: =IF(ISNA(VLOOKUP($B$7&$D60&$AC$2&I$11,data!$F:$P,'by area'!$AC$3,FALSE)),"-",VLOOKUP($B$7&$D60&$AC$2&I$11,data!$F:$P,'by area'!$AC$3,FALSE)) -> 2.755113751 | J60: =IF(ISNA(VLOOKUP($B$7&$D60&$AC$2&J$11,data!$F:$P,'by area'!$AC$3,FALSE)),"-",VLOOKUP($B$7&$D60&$AC$2&J$11,data!$F:$P,'by area'!$AC$3,FALSE)) -> 3.696997546 | K60: =IF(ISNA(VLOOKUP($B$7&$D60&$AC$2&K$11,data!$F:$P,'by area'!$AC$3,FALSE)),"-",VLOOKUP($B$7&$D60&$AC$2&K$11,data!$F:$P,'by area'!$AC$3,FALSE)) -> 14.48704974 | L60: =IF(ISNA(VLOOKUP($B$7&$D60&$AC$2&L$11,data!$F:$P,'by area'!$AC$3,FALSE)),"-",VLOOKUP($B$7&$D60&$AC$2&L$11,data!$F:$P,'by area'!$AC$3,FALSE)) -> 68.36024953 | M60: =IF(ISNA(VLOOKUP($B$7&$D60&$AC$2&M$11,data!$F:$P,'by area'!$AC$3,FALSE)),"-",VLOOKUP($B$7&$D60&$AC$2&M$11,data!$F:$P,'by area'!$AC$3,FALSE)) -> 217.4599451 | O60: =IF(ISNA(VLOOKUP($B$9&$D60&$AC$2&H$11,data!$F:$P,'by area'!$AC$3,FALSE)),"-",VLOOKUP($B$9&$D60&$AC$2&H$11,data!$F:$P,'by area'!$AC$3,FALSE)) -> - | P60: =IF(ISNA(VLOOKUP($B$9&$D60&$AC$2&I$11,data!$F:$P,'by area'!$AC$3,FALSE)),"-",VLOOKUP($B$9&$D60&$AC$2&I$11,data!$F:$P,'by area'!$AC$3,FALSE)) -> - | Q60: =IF(ISNA(VLOOKUP($B$9&$D60&$AC$2&J$11,data!$F:$P,'by area'!$AC$3,FALSE)),"-",VLOOKUP($B$9&$D60&$AC$2&J$11,data!$F:$P,'by area'!$AC$3,FALSE)) -> - | R60: =IF(ISNA(VLOOKUP($B$9&$D60&$AC$2&K$11,data!$F:$P,'by area'!$AC$3,FALSE)),"-",VLOOKUP($B$9&$D60&$AC$2&K$11,data!$F:$P,'by area'!$AC$3,FALSE)) -> - | S60: =IF(ISNA(VLOOKUP($B$9&$D60&$AC$2&L$11,data!$F:$P,'by area'!$AC$3,FALSE)),"-",VLOOKUP($B$9&$D60&$AC$2&L$11,data!$F:$P,'by area'!$AC$3,FALSE)) -> - | T60: =IF(ISNA(VLOOKUP($B$9&$D60&$AC$2&M$11,data!$F:$P,'by area'!$AC$3,FALSE)),"-",VLOOKUP($B$9&$D60&$AC$2&M$11,data!$F:$P,'by area'!$AC$3,FALSE)) -> -
D61: Inflammatory bowel disease | F61: =IF(ISNA(VLOOKUP($D61,RAG!$A$72:$K$139,'by area'!$AC$3,FALSE)),"-",VLOOKUP($D61,RAG!$A$72:$K$139,'by area'!$AC$3,FALSE)) -> 3.120118328 | H61: =IF(ISNA(VLOOKUP($B$7&$D61&$AC$2&H$11,data!$F:$P,'by area'!$AC$3,FALSE)),"-",VLOOKUP($B$7&$D61&$AC$2&H$11,data!$F:$P,'by area'!$AC$3,FALSE)) -> 113.3715639 | I61: =IF(ISNA(VLOOKUP($B$7&$D61&$AC$2&I$11,data!$F:$P,'by area'!$AC$3,FALSE)),"-",VLOOKUP($B$7&$D61&$AC$2&I$11,data!$F:$P,'by area'!$AC$3,FALSE)) -> 9.467108463 | J61: =IF(ISNA(VLOOKUP($B$7&$D61&$AC$2&J$11,data!$F:$P,'by area'!$AC$3,FALSE)),"-",VLOOKUP($B$7&$D61&$AC$2&J$11,data!$F:$P,'by area'!$AC$3,FALSE)) -> 51.73164601 | K61: =IF(ISNA(VLOOKUP($B$7&$D61&$AC$2&K$11,data!$F:$P,'by area'!$AC$3,FALSE)),"-",VLOOKUP($B$7&$D61&$AC$2&K$11,data!$F:$P,'by area'!$AC$3,FALSE)) -> 109.134436 | L61: =IF(ISNA(VLOOKUP($B$7&$D61&$AC$2&L$11,data!$F:$P,'by area'!$AC$3,FALSE)),"-",VLOOKUP($B$7&$D61&$AC$2&L$11,data!$F:$P,'by area'!$AC$3,FALSE)) -> 150.254873 | M61: =IF(ISNA(VLOOKUP($B$7&$D61&$AC$2&M$11,data!$F:$P,'by area'!$AC$3,FALSE)),"-",VLOOKUP($B$7&$D61&$AC$2&M$11,data!$F:$P,'by area'!$AC$3,FALSE)) -> 190.6129253 | O61: =IF(ISNA(VLOOKUP($B$9&$D61&$AC$2&H$11,data!$F:$P,'by area'!$AC$3,FALSE)),"-",VLOOKUP($B$9&$D61&$AC$2&H$11,data!$F:$P,'by area'!$AC$3,FALSE)) -> - | P61: =IF(ISNA(VLOOKUP($B$9&$D61&$AC$2&I$11,data!$F:$P,'by area'!$AC$3,FALSE)),"-",VLOOKUP($B$9&$D61&$AC$2&I$11,data!$F:$P,'by area'!$AC$3,FALSE)) -> - | Q61: =IF(ISNA(VLOOKUP($B$9&$D61&$AC$2&J$11,data!$F:$P,'by area'!$AC$3,FALSE)),"-",VLOOKUP($B$9&$D61&$AC$2&J$11,data!$F:$P,'by area'!$AC$3,FALSE)) -> - | R61: =IF(ISNA(VLOOKUP($B$9&$D61&$AC$2&K$11,data!$F:$P,'by area'!$AC$3,FALSE)),"-",VLOOKUP($B$9&$D61&$AC$2&K$11,data!$F:$P,'by area'!$AC$3,FALSE)) -> - | S61: =IF(ISNA(VLOOKUP($B$9&$D61&$AC$2&L$11,data!$F:$P,'by area'!$AC$3,FALSE)),"-",VLOOKUP($B$9&$D61&$AC$2&L$11,data!$F:$P,'by area'!$AC$3,FALSE)) -> - | T61: =IF(ISNA(VLOOKUP($B$9&$D61&$AC$2&M$11,data!$F:$P,'by area'!$AC$3,FALSE)),"-",VLOOKUP($B$9&$D61&$AC$2&M$11,data!$F:$P,'by area'!$AC$3,FALSE)) -> -
D62: Gallbladder and biliary diseases | F62: =IF(ISNA(VLOOKUP($D62,RAG!$A$72:$K$139,'by area'!$AC$3,FALSE)),"-",VLOOKUP($D62,RAG!$A$72:$K$139,'by area'!$AC$3,FALSE)) -> 3.880707732 | H62: =IF(ISNA(VLOOKUP($B$7&$D62&$AC$2&H$11,data!$F:$P,'by area'!$AC$3,FALSE)),"-",VLOOKUP($B$7&$D62&$AC$2&H$11,data!$F:$P,'by area'!$AC$3,FALSE)) -> 108.9522523 | I62: =IF(ISNA(VLOOKUP($B$7&$D62&$AC$2&I$11,data!$F:$P,'by area'!$AC$3,FALSE)),"-",VLOOKUP($B$7&$D62&$AC$2&I$11,data!$F:$P,'by area'!$AC$3,FALSE)) -> 0.7085813797 | J62: =IF(ISNA(VLOOKUP($B$7&$D62&$AC$2&J$11,data!$F:$P,'by area'!$AC$3,FALSE)),"-",VLOOKUP($B$7&$D62&$AC$2&J$11,data!$F:$P,'by area'!$AC$3,FALSE)) -> 15.21130672 | K62: =IF(ISNA(VLOOKUP($B$7&$D62&$AC$2&K$11,data!$F:$P,'by area'!$AC$3,FALSE)),"-",VLOOKUP($B$7&$D62&$AC$2&K$11,data!$F:$P,'by area'!$AC$3,FALSE)) -> 58.87803259 | L62: =IF(ISNA(VLOOKUP($B$7&$D62&$AC$2&L$11,data!$F:$P,'by area'!$AC$3,FALSE)),"-",VLOOKUP($B$7&$D62&$AC$2&L$11,data!$F:$P,'by area'!$AC$3,FALSE)) -> 113.1491889 | M62: =IF(ISNA(VLOOKUP($B$7&$D62&$AC$2&M$11,data!$F:$P,'by area'!$AC$3,FALSE)),"-",VLOOKUP($B$7&$D62&$AC$2&M$11,data!$F:$P,'by area'!$AC$3,FALSE)) -> 315.3967454 | O62: =IF(ISNA(VLOOKUP($B$9&$D62&$AC$2&H$11,data!$F:$P,'by area'!$AC$3,FALSE)),"-",VLOOKUP($B$9&$D62&$AC$2&H$11,data!$F:$P,'by area'!$AC$3,FALSE)) -> - | P62: =IF(ISNA(VLOOKUP($B$9&$D62&$AC$2&I$11,data!$F:$P,'by area'!$AC$3,FALSE)),"-",VLOOKUP($B$9&$D62&$AC$2&I$11,data!$F:$P,'by area'!$AC$3,FALSE)) -> - | Q62: =IF(ISNA(VLOOKUP($B$9&$D62&$AC$2&J$11,data!$F:$P,'by area'!$AC$3,FALSE)),"-",VLOOKUP($B$9&$D62&$AC$2&J$11,data!$F:$P,'by area'!$AC$3,FALSE)) -> - | R62: =IF(ISNA(VLOOKUP($B$9&$D62&$AC$2&K$11,data!$F:$P,'by area'!$AC$3,FALSE)),"-",VLOOKUP($B$9&$D62&$AC$2&K$11,data!$F:$P,'by area'!$AC$3,FALSE)) -> - | S62: =IF(ISNA(VLOOKUP($B$9&$D62&$AC$2&L$11,data!$F:$P,'by area'!$AC$3,FALSE)),"-",VLOOKUP($B$9&$D62&$AC$2&L$11,data!$F:$P,'by area'!$AC$3,FALSE)) -> - | T62: =IF(ISNA(VLOOKUP($B$9&$D62&$AC$2&M$11,data!$F:$P,'by area'!$AC$3,FALSE)),"-",VLOOKUP($B$9&$D62&$AC$2&M$11,data!$F:$P,'by area'!$AC$3,FALSE)) -> -
D63: Pancreatitis | F63: =IF(ISNA(VLOOKUP($D63,RAG!$A$72:$K$139,'by area'!$AC$3,FALSE)),"-",VLOOKUP($D63,RAG!$A$72:$K$139,'by area'!$AC$3,FALSE)) -> 4.372545226 | H63: =IF(ISNA(VLOOKUP($B$7&$D63&$AC$2&H$11,data!$F:$P,'by area'!$AC$3,FALSE)),"-",VLOOKUP($B$7&$D63&$AC$2&H$11,data!$F:$P,'by area'!$AC$3,FALSE)) -> 74.09326096 | I63: =IF(ISNA(VLOOKUP($B$7&$D63&$AC$2&I$11,data!$F:$P,'by area'!$AC$3,FALSE)),"-",VLOOKUP($B$7&$D63&$AC$2&I$11,data!$F:$P,'by area'!$AC$3,FALSE)) -> 1.174830716 | J63: =IF(ISNA(VLOOKUP($B$7&$D63&$AC$2&J$11,data!$F:$P,'by area'!$AC$3,FALSE)),"-",VLOOKUP($B$7&$D63&$AC$2&J$11,data!$F:$P,'by area'!$AC$3,FALSE)) -> 7.169319874 | K63: =IF(ISNA(VLOOKUP($B$7&$D63&$AC$2&K$11,data!$F:$P,'by area'!$AC$3,FALSE)),"-",VLOOKUP($B$7&$D63&$AC$2&K$11,data!$F:$P,'by area'!$AC$3,FALSE)) -> 59.84571085 | L63: =IF(ISNA(VLOOKUP($B$7&$D63&$AC$2&L$11,data!$F:$P,'by area'!$AC$3,FALSE)),"-",VLOOKUP($B$7&$D63&$AC$2&L$11,data!$F:$P,'by area'!$AC$3,FALSE)) -> 112.1225131 | M63: =IF(ISNA(VLOOKUP($B$7&$D63&$AC$2&M$11,data!$F:$P,'by area'!$AC$3,FALSE)),"-",VLOOKUP($B$7&$D63&$AC$2&M$11,data!$F:$P,'by area'!$AC$3,FALSE)) -> 141.0730097 | O63: =IF(ISNA(VLOOKUP($B$9&$D63&$AC$2&H$11,data!$F:$P,'by area'!$AC$3,FALSE)),"-",VLOOKUP($B$9&$D63&$AC$2&H$11,data!$F:$P,'by area'!$AC$3,FALSE)) -> - | P63: =IF(ISNA(VLOOKUP($B$9&$D63&$AC$2&I$11,data!$F:$P,'by area'!$AC$3,FALSE)),"-",VLOOKUP($B$9&$D63&$AC$2&I$11,data!$F:$P,'by area'!$AC$3,FALSE)) -> - | Q63: =IF(ISNA(VLOOKUP($B$9&$D63&$AC$2&J$11,data!$F:$P,'by area'!$AC$3,FALSE)),"-",VLOOKUP($B$9&$D63&$AC$2&J$11,data!$F:$P,'by area'!$AC$3,FALSE)) -> - | R63: =IF(ISNA(VLOOKUP($B$9&$D63&$AC$2&K$11,data!$F:$P,'by area'!$AC$3,FALSE)),"-",VLOOKUP($B$9&$D63&$AC$2&K$11,data!$F:$P,'by area'!$AC$3,FALSE)) -> - | S63: =IF(ISNA(VLOOKUP($B$9&$D63&$AC$2&L$11,data!$F:$P,'by area'!$AC$3,FALSE)),"-",VLOOKUP($B$9&$D63&$AC$2&L$11,data!$F:$P,'by area'!$AC$3,FALSE)) -> - | T63: =IF(ISNA(VLOOKUP($B$9&$D63&$AC$2&M$11,data!$F:$P,'by area'!$AC$3,FALSE)),"-",VLOOKUP($B$9&$D63&$AC$2&M$11,data!$F:$P,'by area'!$AC$3,FALSE)) -> -
D64: Other digestive diseases | F64: =IF(ISNA(VLOOKUP($D64,RAG!$A$72:$K$139,'by area'!$AC$3,FALSE)),"-",VLOOKUP($D64,RAG!$A$72:$K$139,'by area'!$AC$3,FALSE)) -> 3.55714777 | H64: =IF(ISNA(VLOOKUP($B$7&$D64&$AC$2&H$11,data!$F:$P,'by area'!$AC$3,FALSE)),"-",VLOOKUP($B$7&$D64&$AC$2&H$11,data!$F:$P,'by area'!$AC$3,FALSE)) -> 299.9586031 | I64: =IF(ISNA(VLOOKUP($B$7&$D64&$AC$2&I$11,data!$F:$P,'by area'!$AC$3,FALSE)),"-",VLOOKUP($B$7&$D64&$AC$2&I$11,data!$F:$P,'by area'!$AC$3,FALSE)) -> 29.66904327 | J64: =IF(ISNA(VLOOKUP($B$7&$D64&$AC$2&J$11,data!$F:$P,'by area'!$AC$3,FALSE)),"-",VLOOKUP($B$7&$D64&$AC$2&J$11,data!$F:$P,'by area'!$AC$3,FALSE)) -> 17.47785255 | K64: =IF(ISNA(VLOOKUP($B$7&$D64&$AC$2&K$11,data!$F:$P,'by area'!$AC$3,FALSE)),"-",VLOOKUP($B$7&$D64&$AC$2&K$11,data!$F:$P,'by area'!$AC$3,FALSE)) -> 62.17885106 | L64: =IF(ISNA(VLOOKUP($B$7&$D64&$AC$2&L$11,data!$F:$P,'by area'!$AC$3,FALSE)),"-",VLOOKUP($B$7&$D64&$AC$2&L$11,data!$F:$P,'by area'!$AC$3,FALSE)) -> 266.1353272 | M64: =IF(ISNA(VLOOKUP($B$7&$D64&$AC$2&M$11,data!$F:$P,'by area'!$AC$3,FALSE)),"-",VLOOKUP($B$7&$D64&$AC$2&M$11,data!$F:$P,'by area'!$AC$3,FALSE)) -> 1057.427415 | O64: =IF(ISNA(VLOOKUP($B$9&$D64&$AC$2&H$11,data!$F:$P,'by area'!$AC$3,FALSE)),"-",VLOOKUP($B$9&$D64&$AC$2&H$11,data!$F:$P,'by area'!$AC$3,FALSE)) -> - | P64: =IF(ISNA(VLOOKUP($B$9&$D64&$AC$2&I$11,data!$F:$P,'by area'!$AC$3,FALSE)),"-",VLOOKUP($B$9&$D64&$AC$2&I$11,data!$F:$P,'by area'!$AC$3,FALSE)) -> - | Q64: =IF(ISNA(VLOOKUP($B$9&$D64&$AC$2&J$11,data!$F:$P,'by area'!$AC$3,FALSE)),"-",VLOOKUP($B$9&$D64&$AC$2&J$11,data!$F:$P,'by area'!$AC$3,FALSE)) -> - | R64: =IF(ISNA(VLOOKUP($B$9&$D64&$AC$2&K$11,data!$F:$P,'by area'!$AC$3,FALSE)),"-",VLOOKUP($B$9&$D64&$AC$2&K$11,data!$F:$P,'by area'!$AC$3,FALSE)) -> - | S64: =IF(ISNA(VLOOKUP($B$9&$D64&$AC$2&L$11,data!$F:$P,'by area'!$AC$3,FALSE)),"-",VLOOKUP($B$9&$D64&$AC$2&L$11,data!$F:$P,'by area'!$AC$3,FALSE)) -> - | T64: =IF(ISNA(VLOOKUP($B$9&$D64&$AC$2&M$11,data!$F:$P,'by area'!$AC$3,FALSE)),"-",VLOOKUP($B$9&$D64&$AC$2&M$11,data!$F:$P,'by area'!$AC$3,FALSE)) -> -
H65: =IF(ISNA(VLOOKUP($B$7&$D65&$AC$2&H$11,data!$F:$P,'by area'!$AC$3,FALSE)),"-",VLOOKUP($B$7&$D65&$AC$2&H$11,data!$F:$P,'by area'!$AC$3,FALSE)) -> - | I65: =IF(ISNA(VLOOKUP($B$7&$D65&$AC$2&I$11,data!$F:$P,'by area'!$AC$3,FALSE)),"-",VLOOKUP($B$7&$D65&$AC$2&I$11,data!$F:$P,'by area'!$AC$3,FALSE)) -> - | J65: =IF(ISNA(VLOOKUP($B$7&$D65&$AC$2&J$11,data!$F:$P,'by area'!$AC$3,FALSE)),"-",VLOOKUP($B$7&$D65&$AC$2&J$11,data!$F:$P,'by area'!$AC$3,FALSE)) -> - | K65: =IF(ISNA(VLOOKUP($B$7&$D65&$AC$2&K$11,data!$F:$P,'by area'!$AC$3,FALSE)),"-",VLOOKUP($B$7&$D65&$AC$2&K$11,data!$F:$P,'by area'!$AC$3,FALSE)) -> - | L65: =IF(ISNA(VLOOKUP($B$7&$D65&$AC$2&L$11,data!$F:$P,'by area'!$AC$3,FALSE)),"-",VLOOKUP($B$7&$D65&$AC$2&L$11,data!$F:$P,'by area'!$AC$3,FALSE)) -> - | M65: =IF(ISNA(VLOOKUP($B$7&$D65&$AC$2&M$11,data!$F:$P,'by area'!$AC$3,FALSE)),"-",VLOOKUP($B$7&$D65&$AC$2&M$11,data!$F:$P,'by area'!$AC$3,FALSE)) -> - | O65: =IF(ISNA(VLOOKUP($B$9&$D65&$AC$2&H$11,data!$F:$P,'by area'!$AC$3,FALSE)),"-",VLOOKUP($B$9&$D65&$AC$2&H$11,data!$F:$P,'by area'!$AC$3,FALSE)) -> - | P65: =IF(ISNA(VLOOKUP($B$9&$D65&$AC$2&I$11,data!$F:$P,'by area'!$AC$3,FALSE)),"-",VLOOKUP($B$9&$D65&$AC$2&I$11,data!$F:$P,'by area'!$AC$3,FALSE)) -> - | Q65: =IF(ISNA(VLOOKUP($B$9&$D65&$AC$2&J$11,data!$F:$P,'by area'!$AC$3,FALSE)),"-",VLOOKUP($B$9&$D65&$AC$2&J$11,data!$F:$P,'by area'!$AC$3,FALSE)) -> - | R65: =IF(ISNA(VLOOKUP($B$9&$D65&$AC$2&K$11,data!$F:$P,'by area'!$AC$3,FALSE)),"-",VLOOKUP($B$9&$D65&$AC$2&K$11,data!$F:$P,'by area'!$AC$3,FALSE)) -> - | S65: =IF(ISNA(VLOOKUP($B$9&$D65&$AC$2&L$11,data!$F:$P,'by area'!$AC$3,FALSE)),"-",VLOOKUP($B$9&$D65&$AC$2&L$11,data!$F:$P,'by area'!$AC$3,FALSE)) -> - | T65: =IF(ISNA(VLOOKUP($B$9&$D65&$AC$2&M$11,data!$F:$P,'by area'!$AC$3,FALSE)),"-",VLOOKUP($B$9&$D65&$AC$2&M$11,data!$F:$P,'by area'!$AC$3,FALSE)) -> -
D66: Neurological disorders
D67: Alzheimer's disease and other dementias | F67: =IF(ISNA(VLOOKUP($D67,RAG!$A$72:$K$139,'by area'!$AC$3,FALSE)),"-",VLOOKUP($D67,RAG!$A$72:$K$139,'by area'!$AC$3,FALSE)) -> 4.388972374 | H67: =IF(ISNA(VLOOKUP($B$7&$D67&$AC$2&H$11,data!$F:$P,'by area'!$AC$3,FALSE)),"-",VLOOKUP($B$7&$D67&$AC$2&H$11,data!$F:$P,'by area'!$AC$3,FALSE)) -> 994.8907014 | I67: =IF(ISNA(VLOOKUP($B$7&$D67&$AC$2&I$11,data!$F:$P,'by area'!$AC$3,FALSE)),"-",VLOOKUP($B$7&$D67&$AC$2&I$11,data!$F:$P,'by area'!$AC$3,FALSE)) -> 8.501507234 | J67: =IF(ISNA(VLOOKUP($B$7&$D67&$AC$2&J$11,data!$F:$P,'by area'!$AC$3,FALSE)),"-",VLOOKUP($B$7&$D67&$AC$2&J$11,data!$F:$P,'by area'!$AC$3,FALSE)) -> 0.02111903916 | K67: =IF(ISNA(VLOOKUP($B$7&$D67&$AC$2&K$11,data!$F:$P,'by area'!$AC$3,FALSE)),"-",VLOOKUP($B$7&$D67&$AC$2&K$11,data!$F:$P,'by area'!$AC$3,FALSE)) -> 2.834301101 | L67: =IF(ISNA(VLOOKUP($B$7&$D67&$AC$2&L$11,data!$F:$P,'by area'!$AC$3,FALSE)),"-",VLOOKUP($B$7&$D67&$AC$2&L$11,data!$F:$P,'by area'!$AC$3,FALSE)) -> 131.9446435 | M67: =IF(ISNA(VLOOKUP($B$7&$D67&$AC$2&M$11,data!$F:$P,'by area'!$AC$3,FALSE)),"-",VLOOKUP($B$7&$D67&$AC$2&M$11,data!$F:$P,'by area'!$AC$3,FALSE)) -> 4911.854416 | O67: =IF(ISNA(VLOOKUP($B$9&$D67&$AC$2&H$11,data!$F:$P,'by area'!$AC$3,FALSE)),"-",VLOOKUP($B$9&$D67&$AC$2&H$11,data!$F:$P,'by area'!$AC$3,FALSE)) -> - | P67: =IF(ISNA(VLOOKUP($B$9&$D67&$AC$2&I$11,data!$F:$P,'by area'!$AC$3,FALSE)),"-",VLOOKUP($B$9&$D67&$AC$2&I$11,data!$F:$P,'by area'!$AC$3,FALSE)) -> - | Q67: =IF(ISNA(VLOOKUP($B$9&$D67&$AC$2&J$11,data!$F:$P,'by area'!$AC$3,FALSE)),"-",VLOOKUP($B$9&$D67&$AC$2&J$11,data!$F:$P,'by area'!$AC$3,FALSE)) -> - | R67: =IF(ISNA(VLOOKUP($B$9&$D67&$AC$2&K$11,data!$F:$P,'by area'!$AC$3,FALSE)),"-",VLOOKUP($B$9&$D67&$AC$2&K$11,data!$F:$P,'by area'!$AC$3,FALSE)) -> - | S67: =IF(ISNA(VLOOKUP($B$9&$D67&$AC$2&L$11,data!$F:$P,'by area'!$AC$3,FALSE)),"-",VLOOKUP($B$9&$D67&$AC$2&L$11,data!$F:$P,'by area'!$AC$3,FALSE)) -> - | T67: =IF(ISNA(VLOOKUP($B$9&$D67&$AC$2&M$11,data!$F:$P,'by area'!$AC$3,FALSE)),"-",VLOOKUP($B$9&$D67&$AC$2&M$11,data!$F:$P,'by area'!$AC$3,FALSE)) -> -
D68: Parkinson's disease | F68: =IF(ISNA(VLOOKUP($D68,RAG!$A$72:$K$139,'by area'!$AC$3,FALSE)),"-",VLOOKUP($D68,RAG!$A$72:$K$139,'by area'!$AC$3,FALSE)) -> 4.321637451 | H68: =IF(ISNA(VLOOKUP($B$7&$D68&$AC$2&H$11,data!$F:$P,'by area'!$AC$3,FALSE)),"-",VLOOKUP($B$7&$D68&$AC$2&H$11,data!$F:$P,'by area'!$AC$3,FALSE)) -> 105.1041627 | I68: =IF(ISNA(VLOOKUP($B$7&$D68&$AC$2&I$11,data!$F:$P,'by area'!$AC$3,FALSE)),"-",VLOOKUP($B$7&$D68&$AC$2&I$11,data!$F:$P,'by area'!$AC$3,FALSE)) -> 0.3150942573 | J68: =IF(ISNA(VLOOKUP($B$7&$D68&$AC$2&J$11,data!$F:$P,'by area'!$AC$3,FALSE)),"-",VLOOKUP($B$7&$D68&$AC$2&J$11,data!$F:$P,'by area'!$AC$3,FALSE)) -> 0 | K68: =IF(ISNA(VLOOKUP($B$7&$D68&$AC$2&K$11,data!$F:$P,'by area'!$AC$3,FALSE)),"-",VLOOKUP($B$7&$D68&$AC$2&K$11,data!$F:$P,'by area'!$AC$3,FALSE)) -> 0.7147984245 | L68: =IF(ISNA(VLOOKUP($B$7&$D68&$AC$2&L$11,data!$F:$P,'by area'!$AC$3,FALSE)),"-",VLOOKUP($B$7&$D68&$AC$2&L$11,data!$F:$P,'by area'!$AC$3,FALSE)) -> 44.33852505 | M68: =IF(ISNA(VLOOKUP($B$7&$D68&$AC$2&M$11,data!$F:$P,'by area'!$AC$3,FALSE)),"-",VLOOKUP($B$7&$D68&$AC$2&M$11,data!$F:$P,'by area'!$AC$3,FALSE)) -> 477.5108557 | O68: =IF(ISNA(VLOOKUP($B$9&$D68&$AC$2&H$11,data!$F:$P,'by area'!$AC$3,FALSE)),"-",VLOOKUP($B$9&$D68&$AC$2&H$11,data!$F:$P,'by area'!$AC$3,FALSE)) -> - | P68: =IF(ISNA(VLOOKUP($B$9&$D68&$AC$2&I$11,data!$F:$P,'by area'!$AC$3,FALSE)),"-",VLOOKUP($B$9&$D68&$AC$2&I$11,data!$F:$P,'by area'!$AC$3,FALSE)) -> - | Q68: =IF(ISNA(VLOOKUP($B$9&$D68&$AC$2&J$11,data!$F:$P,'by area'!$AC$3,FALSE)),"-",VLOOKUP($B$9&$D68&$AC$2&J$11,data!$F:$P,'by area'!$AC$3,FALSE)) -> - | R68: =IF(ISNA(VLOOKUP($B$9&$D68&$AC$2&K$11,data!$F:$P,'by area'!$AC$3,FALSE)),"-",VLOOKUP($B$9&$D68&$AC$2&K$11,data!$F:$P,'by area'!$AC$3,FALSE)) -> - | S68: =IF(ISNA(VLOOKUP($B$9&$D68&$AC$2&L$11,data!$F:$P,'by area'!$AC$3,FALSE)),"-",VLOOKUP($B$9&$D68&$AC$2&L$11,data!$F:$P,'by area'!$AC$3,FALSE)) -> - | T68: =IF(ISNA(VLOOKUP($B$9&$D68&$AC$2&M$11,data!$F:$P,'by area'!$AC$3,FALSE)),"-",VLOOKUP($B$9&$D68&$AC$2&M$11,data!$F:$P,'by area'!$AC$3,FALSE)) -> -
D69: Epilepsy | F69: =IF(ISNA(VLOOKUP($D69,RAG!$A$72:$K$139,'by area'!$AC$3,FALSE)),"-",VLOOKUP($D69,RAG!$A$72:$K$139,'by area'!$AC$3,FALSE)) -> 3.954322298 | H69: =IF(ISNA(VLOOKUP($B$7&$D69&$AC$2&H$11,data!$F:$P,'by area'!$AC$3,FALSE)),"-",VLOOKUP($B$7&$D69&$AC$2&H$11,data!$F:$P,'by area'!$AC$3,FALSE)) -> 244.1616637 | I69: =IF(ISNA(VLOOKUP($B$7&$D69&$AC$2&I$11,data!$F:$P,'by area'!$AC$3,FALSE)),"-",VLOOKUP($B$7&$D69&$AC$2&I$11,data!$F:$P,'by area'!$AC$3,FALSE)) -> 92.10875117 | J69: =IF(ISNA(VLOOKUP($B$7&$D69&$AC$2&J$11,data!$F:$P,'by area'!$AC$3,FALSE)),"-",VLOOKUP($B$7&$D69&$AC$2&J$11,data!$F:$P,'by area'!$AC$3,FALSE)) -> 203.4696005 | K69: =IF(ISNA(VLOOKUP($B$7&$D69&$AC$2&K$11,data!$F:$P,'by area'!$AC$3,FALSE)),"-",VLOOKUP($B$7&$D69&$AC$2&K$11,data!$F:$P,'by area'!$AC$3,FALSE)) -> 278.5231527 | L69: =IF(ISNA(VLOOKUP($B$7&$D69&$AC$2&L$11,data!$F:$P,'by area'!$AC$3,FALSE)),"-",VLOOKUP($B$7&$D69&$AC$2&L$11,data!$F:$P,'by area'!$AC$3,FALSE)) -> 306.5668117 | M69: =IF(ISNA(VLOOKUP($B$7&$D69&$AC$2&M$11,data!$F:$P,'by area'!$AC$3,FALSE)),"-",VLOOKUP($B$7&$D69&$AC$2&M$11,data!$F:$P,'by area'!$AC$3,FALSE)) -> 261.4175326 | O69: =IF(ISNA(VLOOKUP($B$9&$D69&$AC$2&H$11,data!$F:$P,'by area'!$AC$3,FALSE)),"-",VLOOKUP($B$9&$D69&$AC$2&H$11,data!$F:$P,'by area'!$AC$3,FALSE)) -> - | P69: =IF(ISNA(VLOOKUP($B$9&$D69&$AC$2&I$11,data!$F:$P,'by area'!$AC$3,FALSE)),"-",VLOOKUP($B$9&$D69&$AC$2&I$11,data!$F:$P,'by area'!$AC$3,FALSE)) -> - | Q69: =IF(ISNA(VLOOKUP($B$9&$D69&$AC$2&J$11,data!$F:$P,'by area'!$AC$3,FALSE)),"-",VLOOKUP($B$9&$D69&$AC$2&J$11,data!$F:$P,'by area'!$AC$3,FALSE)) -> - | R69: =IF(ISNA(VLOOKUP($B$9&$D69&$AC$2&K$11,data!$F:$P,'by area'!$AC$3,FALSE)),"-",VLOOKUP($B$9&$D69&$AC$2&K$11,data!$F:$P,'by area'!$AC$3,FALSE)) -> - | S69: =IF(ISNA(VLOOKUP($B$9&$D69&$AC$2&L$11,data!$F:$P,'by area'!$AC$3,FALSE)),"-",VLOOKUP($B$9&$D69&$AC$2&L$11,data!$F:$P,'by area'!$AC$3,FALSE)) -> - | T69: =IF(ISNA(VLOOKUP($B$9&$D69&$AC$2&M$11,data!$F:$P,'by area'!$AC$3,FALSE)),"-",VLOOKUP($B$9&$D69&$AC$2&M$11,data!$F:$P,'by area'!$AC$3,FALSE)) -> -
D70: Multiple sclerosis | F70: =IF(ISNA(VLOOKUP($D70,RAG!$A$72:$K$139,'by area'!$AC$3,FALSE)),"-",VLOOKUP($D70,RAG!$A$72:$K$139,'by area'!$AC$3,FALSE)) -> 4.668429998 | H70: =IF(ISNA(VLOOKUP($B$7&$D70&$AC$2&H$11,data!$F:$P,'by area'!$AC$3,FALSE)),"-",VLOOKUP($B$7&$D70&$AC$2&H$11,data!$F:$P,'by area'!$AC$3,FALSE)) -> 119.523978 | I70: =IF(ISNA(VLOOKUP($B$7&$D70&$AC$2&I$11,data!$F:$P,'by area'!$AC$3,FALSE)),"-",VLOOKUP($B$7&$D70&$AC$2&I$11,data!$F:$P,'by area'!$AC$3,FALSE)) -> 0.08335975342 | J70: =IF(ISNA(VLOOKUP($B$7&$D70&$AC$2&J$11,data!$F:$P,'by area'!$AC$3,FALSE)),"-",VLOOKUP($B$7&$D70&$AC$2&J$11,data!$F:$P,'by area'!$AC$3,FALSE)) -> 4.061002221 | K70: =IF(ISNA(VLOOKUP($B$7&$D70&$AC$2&K$11,data!$F:$P,'by area'!$AC$3,FALSE)),"-",VLOOKUP($B$7&$D70&$AC$2&K$11,data!$F:$P,'by area'!$AC$3,FALSE)) -> 74.39752004 | L70: =IF(ISNA(VLOOKUP($B$7&$D70&$AC$2&L$11,data!$F:$P,'by area'!$AC$3,FALSE)),"-",VLOOKUP($B$7&$D70&$AC$2&L$11,data!$F:$P,'by area'!$AC$3,FALSE)) -> 245.1924092 | M70: =IF(ISNA(VLOOKUP($B$7&$D70&$AC$2&M$11,data!$F:$P,'by area'!$AC$3,FALSE)),"-",VLOOKUP($B$7&$D70&$AC$2&M$11,data!$F:$P,'by area'!$AC$3,FALSE)) -> 176.1656097 | O70: =IF(ISNA(VLOOKUP($B$9&$D70&$AC$2&H$11,data!$F:$P,'by area'!$AC$3,FALSE)),"-",VLOOKUP($B$9&$D70&$AC$2&H$11,data!$F:$P,'by area'!$AC$3,FALSE)) -> - | P70: =IF(ISNA(VLOOKUP($B$9&$D70&$AC$2&I$11,data!$F:$P,'by area'!$AC$3,FALSE)),"-",VLOOKUP($B$9&$D70&$AC$2&I$11,data!$F:$P,'by area'!$AC$3,FALSE)) -> - | Q70: =IF(ISNA(VLOOKUP($B$9&$D70&$AC$2&J$11,data!$F:$P,'by area'!$AC$3,FALSE)),"-",VLOOKUP($B$9&$D70&$AC$2&J$11,data!$F:$P,'by area'!$AC$3,FALSE)) -> - | R70: =IF(ISNA(VLOOKUP($B$9&$D70&$AC$2&K$11,data!$F:$P,'by area'!$AC$3,FALSE)),"-",VLOOKUP($B$9&$D70&$AC$2&K$11,data!$F:$P,'by area'!$AC$3,FALSE)) -> - | S70: =IF(ISNA(VLOOKUP($B$9&$D70&$AC$2&L$11,data!$F:$P,'by area'!$AC$3,FALSE)),"-",VLOOKUP($B$9&$D70&$AC$2&L$11,data!$F:$P,'by area'!$AC$3,FALSE)) -> - | T70: =IF(ISNA(VLOOKUP($B$9&$D70&$AC$2&M$11,data!$F:$P,'by area'!$AC$3,FALSE)),"-",VLOOKUP($B$9&$D70&$AC$2&M$11,data!$F:$P,'by area'!$AC$3,FALSE)) -> -
D71: Migraine | F71: =IF(ISNA(VLOOKUP($D71,RAG!$A$72:$K$139,'by area'!$AC$3,FALSE)),"-",VLOOKUP($D71,RAG!$A$72:$K$139,'by area'!$AC$3,FALSE)) -> 2.666666667 | H71: =IF(ISNA(VLOOKUP($B$7&$D71&$AC$2&H$11,data!$F:$P,'by area'!$AC$3,FALSE)),"-",VLOOKUP($B$7&$D71&$AC$2&H$11,data!$F:$P,'by area'!$AC$3,FALSE)) -> 884.6904413 | I71: =IF(ISNA(VLOOKUP($B$7&$D71&$AC$2&I$11,data!$F:$P,'by area'!$AC$3,FALSE)),"-",VLOOKUP($B$7&$D71&$AC$2&I$11,data!$F:$P,'by area'!$AC$3,FALSE)) -> 261.601146 | J71: =IF(ISNA(VLOOKUP($B$7&$D71&$AC$2&J$11,data!$F:$P,'by area'!$AC$3,FALSE)),"-",VLOOKUP($B$7&$D71&$AC$2&J$11,data!$F:$P,'by area'!$AC$3,FALSE)) -> 1021.898385 | K71: =IF(ISNA(VLOOKUP($B$7&$D71&$AC$2&K$11,data!$F:$P,'by area'!$AC$3,FALSE)),"-",VLOOKUP($B$7&$D71&$AC$2&K$11,data!$F:$P,'by area'!$AC$3,FALSE)) -> 1350.709067 | L71: =IF(ISNA(VLOOKUP($B$7&$D71&$AC$2&L$11,data!$F:$P,'by area'!$AC$3,FALSE)),"-",VLOOKUP($B$7&$D71&$AC$2&L$11,data!$F:$P,'by area'!$AC$3,FALSE)) -> 1066.43629 | M71: =IF(ISNA(VLOOKUP($B$7&$D71&$AC$2&M$11,data!$F:$P,'by area'!$AC$3,FALSE)),"-",VLOOKUP($B$7&$D71&$AC$2&M$11,data!$F:$P,'by area'!$AC$3,FALSE)) -> 434.730379 | O71: =IF(ISNA(VLOOKUP($B$9&$D71&$AC$2&H$11,data!$F:$P,'by area'!$AC$3,FALSE)),"-",VLOOKUP($B$9&$D71&$AC$2&H$11,data!$F:$P,'by area'!$AC$3,FALSE)) -> - | P71: =IF(ISNA(VLOOKUP($B$9&$D71&$AC$2&I$11,data!$F:$P,'by area'!$AC$3,FALSE)),"-",VLOOKUP($B$9&$D71&$AC$2&I$11,data!$F:$P,'by area'!$AC$3,FALSE)) -> - | Q71: =IF(ISNA(VLOOKUP($B$9&$D71&$AC$2&J$11,data!$F:$P,'by area'!$AC$3,FALSE)),"-",VLOOKUP($B$9&$D71&$AC$2&J$11,data!$F:$P,'by area'!$AC$3,FALSE)) -> - | R71: =IF(ISNA(VLOOKUP($B$9&$D71&$AC$2&K$11,data!$F:$P,'by area'!$AC$3,FALSE)),"-",VLOOKUP($B$9&$D71&$AC$2&K$11,data!$F:$P,'by area'!$AC$3,FALSE)) -> - | S71: =IF(ISNA(VLOOKUP($B$9&$D71&$AC$2&L$11,data!$F:$P,'by area'!$AC$3,FALSE)),"-",VLOOKUP($B$9&$D71&$AC$2&L$11,data!$F:$P,'by area'!$AC$3,FALSE)) -> - | T71: =IF(ISNA(VLOOKUP($B$9&$D71&$AC$2&M$11,data!$F:$P,'by area'!$AC$3,FALSE)),"-",VLOOKUP($B$9&$D71&$AC$2&M$11,data!$F:$P,'by area'!$AC$3,FALSE)) -> -
D72: Tension-type headache | F72: =IF(ISNA(VLOOKUP($D72,RAG!$A$72:$K$139,'by area'!$AC$3,FALSE)),"-",VLOOKUP($D72,RAG!$A$72:$K$139,'by area'!$AC$3,FALSE)) -> 2.666666667 | H72: =IF(ISNA(VLOOKUP($B$7&$D72&$AC$2&H$11,data!$F:$P,'by area'!$AC$3,FALSE)),"-",VLOOKUP($B$7&$D72&$AC$2&H$11,data!$F:$P,'by area'!$AC$3,FALSE)) -> 97.81241347 | I72: =IF(ISNA(VLOOKUP($B$7&$D72&$AC$2&I$11,data!$F:$P,'by area'!$AC$3,FALSE)),"-",VLOOKUP($B$7&$D72&$AC$2&I$11,data!$F:$P,'by area'!$AC$3,FALSE)) -> 37.83688573 | J72: =IF(ISNA(VLOOKUP($B$7&$D72&$AC$2&J$11,data!$F:$P,'by area'!$AC$3,FALSE)),"-",VLOOKUP($B$7&$D72&$AC$2&J$11,data!$F:$P,'by area'!$AC$3,FALSE)) -> 126.1818742 | K72: =IF(ISNA(VLOOKUP($B$7&$D72&$AC$2&K$11,data!$F:$P,'by area'!$AC$3,FALSE)),"-",VLOOKUP($B$7&$D72&$AC$2&K$11,data!$F:$P,'by area'!$AC$3,FALSE)) -> 139.0996975 | L72: =IF(ISNA(VLOOKUP($B$7&$D72&$AC$2&L$11,data!$F:$P,'by area'!$AC$3,FALSE)),"-",VLOOKUP($B$7&$D72&$AC$2&L$11,data!$F:$P,'by area'!$AC$3,FALSE)) -> 105.0436188 | M72: =IF(ISNA(VLOOKUP($B$7&$D72&$AC$2&M$11,data!$F:$P,'by area'!$AC$3,FALSE)),"-",VLOOKUP($B$7&$D72&$AC$2&M$11,data!$F:$P,'by area'!$AC$3,FALSE)) -> 64.35701227 | O72: =IF(ISNA(VLOOKUP($B$9&$D72&$AC$2&H$11,data!$F:$P,'by area'!$AC$3,FALSE)),"-",VLOOKUP($B$9&$D72&$AC$2&H$11,data!$F:$P,'by area'!$AC$3,FALSE)) -> - | P72: =IF(ISNA(VLOOKUP($B$9&$D72&$AC$2&I$11,data!$F:$P,'by area'!$AC$3,FALSE)),"-",VLOOKUP($B$9&$D72&$AC$2&I$11,data!$F:$P,'by area'!$AC$3,FALSE)) -> - | Q72: =IF(ISNA(VLOOKUP($B$9&$D72&$AC$2&J$11,data!$F:$P,'by area'!$AC$3,FALSE)),"-",VLOOKUP($B$9&$D72&$AC$2&J$11,data!$F:$P,'by area'!$AC$3,FALSE)) -> - | R72: =IF(ISNA(VLOOKUP($B$9&$D72&$AC$2&K$11,data!$F:$P,'by area'!$AC$3,FALSE)),"-",VLOOKUP($B$9&$D72&$AC$2&K$11,data!$F:$P,'by area'!$AC$3,FALSE)) -> - | S72: =IF(ISNA(VLOOKUP($B$9&$D72&$AC$2&L$11,data!$F:$P,'by area'!$AC$3,FALSE)),"-",VLOOKUP($B$9&$D72&$AC$2&L$11,data!$F:$P,'by area'!$AC$3,FALSE)) -> - | T72: =IF(ISNA(VLOOKUP($B$9&$D72&$AC$2&M$11,data!$F:$P,'by area'!$AC$3,FALSE)),"-",VLOOKUP($B$9&$D72&$AC$2&M$11,data!$F:$P,'by area'!$AC$3,FALSE)) -> -
D73: Other neurological disorders | F73: =IF(ISNA(VLOOKUP($D73,RAG!$A$72:$K$139,'by area'!$AC$3,FALSE)),"-",VLOOKUP($D73,RAG!$A$72:$K$139,'by area'!$AC$3,FALSE)) -> 4.380902404 | H73: =IF(ISNA(VLOOKUP($B$7&$D73&$AC$2&H$11,data!$F:$P,'by area'!$AC$3,FALSE)),"-",VLOOKUP($B$7&$D73&$AC$2&H$11,data!$F:$P,'by area'!$AC$3,FALSE)) -> 145.7118742 | I73: =IF(ISNA(VLOOKUP($B$7&$D73&$AC$2&I$11,data!$F:$P,'by area'!$AC$3,FALSE)),"-",VLOOKUP($B$7&$D73&$AC$2&I$11,data!$F:$P,'by area'!$AC$3,FALSE)) -> 38.88310297 | J73: =IF(ISNA(VLOOKUP($B$7&$D73&$AC$2&J$11,data!$F:$P,'by area'!$AC$3,FALSE)),"-",VLOOKUP($B$7&$D73&$AC$2&J$11,data!$F:$P,'by area'!$AC$3,FALSE)) -> 45.21325157 | K73: =IF(ISNA(VLOOKUP($B$7&$D73&$AC$2&K$11,data!$F:$P,'by area'!$AC$3,FALSE)),"-",VLOOKUP($B$7&$D73&$AC$2&K$11,data!$F:$P,'by area'!$AC$3,FALSE)) -> 65.61620734 | L73: =IF(ISNA(VLOOKUP($B$7&$D73&$AC$2&L$11,data!$F:$P,'by area'!$AC$3,FALSE)),"-",VLOOKUP($B$7&$D73&$AC$2&L$11,data!$F:$P,'by area'!$AC$3,FALSE)) -> 201.251843 | M73: =IF(ISNA(VLOOKUP($B$7&$D73&$AC$2&M$11,data!$F:$P,'by area'!$AC$3,FALSE)),"-",VLOOKUP($B$7&$D73&$AC$2&M$11,data!$F:$P,'by area'!$AC$3,FALSE)) -> 326.0052333 | O73: =IF(ISNA(VLOOKUP($B$9&$D73&$AC$2&H$11,data!$F:$P,'by area'!$AC$3,FALSE)),"-",VLOOKUP($B$9&$D73&$AC$2&H$11,data!$F:$P,'by area'!$AC$3,FALSE)) -> - | P73: =IF(ISNA(VLOOKUP($B$9&$D73&$AC$2&I$11,data!$F:$P,'by area'!$AC$3,FALSE)),"-",VLOOKUP($B$9&$D73&$AC$2&I$11,data!$F:$P,'by area'!$AC$3,FALSE)) -> - | Q73: =IF(ISNA(VLOOKUP($B$9&$D73&$AC$2&J$11,data!$F:$P,'by area'!$AC$3,FALSE)),"-",VLOOKUP($B$9&$D73&$AC$2&J$11,data!$F:$P,'by area'!$AC$3,FALSE)) -> - | R73: =IF(ISNA(VLOOKUP($B$9&$D73&$AC$2&K$11,data!$F:$P,'by area'!$AC$3,FALSE)),"-",VLOOKUP($B$9&$D73&$AC$2&K$11,data!$F:$P,'by area'!$AC$3,FALSE)) -> - | S73: =IF(ISNA(VLOOKUP($B$9&$D73&$AC$2&L$11,data!$F:$P,'by area'!$AC$3,FALSE)),"-",VLOOKUP($B$9&$D73&$AC$2&L$11,data!$F:$P,'by area'!$AC$3,FALSE)) -> - | T73: =IF(ISNA(VLOOKUP($B$9&$D73&$AC$2&M$11,data!$F:$P,'by area'!$AC$3,FALSE)),"-",VLOOKUP($B$9&$D73&$AC$2&M$11,data!$F:$P,'by area'!$AC$3,FALSE)) -> -
H74: =IF(ISNA(VLOOKUP($B$7&$D74&$AC$2&H$11,data!$F:$P,'by area'!$AC$3,FALSE)),"-",VLOOKUP($B$7&$D74&$AC$2&H$11,data!$F:$P,'by area'!$AC$3,FALSE)) -> - | I74: =IF(ISNA(VLOOKUP($B$7&$D74&$AC$2&I$11,data!$F:$P,'by area'!$AC$3,FALSE)),"-",VLOOKUP($B$7&$D74&$AC$2&I$11,data!$F:$P,'by area'!$AC$3,FALSE)) -> - | J74: =IF(ISNA(VLOOKUP($B$7&$D74&$AC$2&J$11,data!$F:$P,'by area'!$AC$3,FALSE)),"-",VLOOKUP($B$7&$D74&$AC$2&J$11,data!$F:$P,'by area'!$AC$3,FALSE)) -> - | K74: =IF(ISNA(VLOOKUP($B$7&$D74&$AC$2&K$11,data!$F:$P,'by area'!$AC$3,FALSE)),"-",VLOOKUP($B$7&$D74&$AC$2&K$11,data!$F:$P,'by area'!$AC$3,FALSE)) -> - | L74: =IF(ISNA(VLOOKUP($B$7&$D74&$AC$2&L$11,data!$F:$P,'by area'!$AC$3,FALSE)),"-",VLOOKUP($B$7&$D74&$AC$2&L$11,data!$F:$P,'by area'!$AC$3,FALSE)) -> - | M74: =IF(ISNA(VLOOKUP($B$7&$D74&$AC$2&M$11,data!$F:$P,'by area'!$AC$3,FALSE)),"-",VLOOKUP($B$7&$D74&$AC$2&M$11,data!$F:$P,'by area'!$AC$3,FALSE)) -> - | O74: =IF(ISNA(VLOOKUP($B$9&$D74&$AC$2&H$11,data!$F:$P,'by area'!$AC$3,FALSE)),"-",VLOOKUP($B$9&$D74&$AC$2&H$11,data!$F:$P,'by area'!$AC$3,FALSE)) -> - | P74: =IF(ISNA(VLOOKUP($B$9&$D74&$AC$2&I$11,data!$F:$P,'by area'!$AC$3,FALSE)),"-",VLOOKUP($B$9&$D74&$AC$2&I$11,data!$F:$P,'by area'!$AC$3,FALSE)) -> - | Q74: =IF(ISNA(VLOOKUP($B$9&$D74&$AC$2&J$11,data!$F:$P,'by area'!$AC$3,FALSE)),"-",VLOOKUP($B$9&$D74&$AC$2&J$11,data!$F:$P,'by area'!$AC$3,FALSE)) -> - | R74: =IF(ISNA(VLOOKUP($B$9&$D74&$AC$2&K$11,data!$F:$P,'by area'!$AC$3,FALSE)),"-",VLOOKUP($B$9&$D74&$AC$2&K$11,data!$F:$P,'by area'!$AC$3,FALSE)) -> - | S74: =IF(ISNA(VLOOKUP($B$9&$D74&$AC$2&L$11,data!$F:$P,'by area'!$AC$3,FALSE)),"-",VLOOKUP($B$9&$D74&$AC$2&L$11,data!$F:$P,'by area'!$AC$3,FALSE)) -> - | T74: =IF(ISNA(VLOOKUP($B$9&$D74&$AC$2&M$11,data!$F:$P,'by area'!$AC$3,FALSE)),"-",VLOOKUP($B$9&$D74&$AC$2&M$11,data!$F:$P,'by area'!$AC$3,FALSE)) -> -
D75: Mental health and substance use disorders
D76: Schizophrenia | F76: =IF(ISNA(VLOOKUP($D76,RAG!$A$72:$K$139,'by area'!$AC$3,FALSE)),"-",VLOOKUP($D76,RAG!$A$72:$K$139,'by area'!$AC$3,FALSE)) -> 4.544621371 | H76: =IF(ISNA(VLOOKUP($B$7&$D76&$AC$2&H$11,data!$F:$P,'by area'!$AC$3,FALSE)),"-",VLOOKUP($B$7&$D76&$AC$2&H$11,data!$F:$P,'by area'!$AC$3,FALSE)) -> 224.0924934 | I76: =IF(ISNA(VLOOKUP($B$7&$D76&$AC$2&I$11,data!$F:$P,'by area'!$AC$3,FALSE)),"-",VLOOKUP($B$7&$D76&$AC$2&I$11,data!$F:$P,'by area'!$AC$3,FALSE)) -> 0.05912406654 | J76: =IF(ISNA(VLOOKUP($B$7&$D76&$AC$2&J$11,data!$F:$P,'by area'!$AC$3,FALSE)),"-",VLOOKUP($B$7&$D76&$AC$2&J$11,data!$F:$P,'by area'!$AC$3,FALSE)) -> 38.78793503 | K76: =IF(ISNA(VLOOKUP($B$7&$D76&$AC$2&K$11,data!$F:$P,'by area'!$AC$3,FALSE)),"-",VLOOKUP($B$7&$D76&$AC$2&K$11,data!$F:$P,'by area'!$AC$3,FALSE)) -> 323.1220398 | L76: =IF(ISNA(VLOOKUP($B$7&$D76&$AC$2&L$11,data!$F:$P,'by area'!$AC$3,FALSE)),"-",VLOOKUP($B$7&$D76&$AC$2&L$11,data!$F:$P,'by area'!$AC$3,FALSE)) -> 369.2867463 | M76: =IF(ISNA(VLOOKUP($B$7&$D76&$AC$2&M$11,data!$F:$P,'by area'!$AC$3,FALSE)),"-",VLOOKUP($B$7&$D76&$AC$2&M$11,data!$F:$P,'by area'!$AC$3,FALSE)) -> 185.3030399 | O76: =IF(ISNA(VLOOKUP($B$9&$D76&$AC$2&H$11,data!$F:$P,'by area'!$AC$3,FALSE)),"-",VLOOKUP($B$9&$D76&$AC$2&H$11,data!$F:$P,'by area'!$AC$3,FALSE)) -> - | P76: =IF(ISNA(VLOOKUP($B$9&$D76&$AC$2&I$11,data!$F:$P,'by area'!$AC$3,FALSE)),"-",VLOOKUP($B$9&$D76&$AC$2&I$11,data!$F:$P,'by area'!$AC$3,FALSE)) -> - | Q76: =IF(ISNA(VLOOKUP($B$9&$D76&$AC$2&J$11,data!$F:$P,'by area'!$AC$3,FALSE)),"-",VLOOKUP($B$9&$D76&$AC$2&J$11,data!$F:$P,'by area'!$AC$3,FALSE)) -> - | R76: =IF(ISNA(VLOOKUP($B$9&$D76&$AC$2&K$11,data!$F:$P,'by area'!$AC$3,FALSE)),"-",VLOOKUP($B$9&$D76&$AC$2&K$11,data!$F:$P,'by area'!$AC$3,FALSE)) -> - | S76: =IF(ISNA(VLOOKUP($B$9&$D76&$AC$2&L$11,data!$F:$P,'by area'!$AC$3,FALSE)),"-",VLOOKUP($B$9&$D76&$AC$2&L$11,data!$F:$P,'by area'!$AC$3,FALSE)) -> - | T76: =IF(ISNA(VLOOKUP($B$9&$D76&$AC$2&M$11,data!$F:$P,'by area'!$AC$3,FALSE)),"-",VLOOKUP($B$9&$D76&$AC$2&M$11,data!$F:$P,'by area'!$AC$3,FALSE)) -> -
D77: Alcohol dependence | F77: =IF(ISNA(VLOOKUP($D77,RAG!$A$72:$K$139,'by area'!$AC$3,FALSE)),"-",VLOOKUP($D77,RAG!$A$72:$K$139,'by area'!$AC$3,FALSE)) -> 3.981413505 | H77: =IF(ISNA(VLOOKUP($B$7&$D77&$AC$2&H$11,data!$F:$P,'by area'!$AC$3,FALSE)),"-",VLOOKUP($B$7&$D77&$AC$2&H$11,data!$F:$P,'by area'!$AC$3,FALSE)) -> 536.2266419 | I77: =IF(ISNA(VLOOKUP($B$7&$D77&$AC$2&I$11,data!$F:$P,'by area'!$AC$3,FALSE)),"-",VLOOKUP($B$7&$D77&$AC$2&I$11,data!$F:$P,'by area'!$AC$3,FALSE)) -> 0 | J77: =IF(ISNA(VLOOKUP($B$7&$D77&$AC$2&J$11,data!$F:$P,'by area'!$AC$3,FALSE)),"-",VLOOKUP($B$7&$D77&$AC$2&J$11,data!$F:$P,'by area'!$AC$3,FALSE)) -> 158.4509745 | K77: =IF(ISNA(VLOOKUP($B$7&$D77&$AC$2&K$11,data!$F:$P,'by area'!$AC$3,FALSE)),"-",VLOOKUP($B$7&$D77&$AC$2&K$11,data!$F:$P,'by area'!$AC$3,FALSE)) -> 600.5569219 | L77: =IF(ISNA(VLOOKUP($B$7&$D77&$AC$2&L$11,data!$F:$P,'by area'!$AC$3,FALSE)),"-",VLOOKUP($B$7&$D77&$AC$2&L$11,data!$F:$P,'by area'!$AC$3,FALSE)) -> 968.4290039 | M77: =IF(ISNA(VLOOKUP($B$7&$D77&$AC$2&M$11,data!$F:$P,'by area'!$AC$3,FALSE)),"-",VLOOKUP($B$7&$D77&$AC$2&M$11,data!$F:$P,'by area'!$AC$3,FALSE)) -> 524.2231256 | O77: =IF(ISNA(VLOOKUP($B$9&$D77&$AC$2&H$11,data!$F:$P,'by area'!$AC$3,FALSE)),"-",VLOOKUP($B$9&$D77&$AC$2&H$11,data!$F:$P,'by area'!$AC$3,FALSE)) -> - | P77: =IF(ISNA(VLOOKUP($B$9&$D77&$AC$2&I$11,data!$F:$P,'by area'!$AC$3,FALSE)),"-",VLOOKUP($B$9&$D77&$AC$2&I$11,data!$F:$P,'by area'!$AC$3,FALSE)) -> - | Q77: =IF(ISNA(VLOOKUP($B$9&$D77&$AC$2&J$11,data!$F:$P,'by area'!$AC$3,FALSE)),"-",VLOOKUP($B$9&$D77&$AC$2&J$11,data!$F:$P,'by area'!$AC$3,FALSE)) -> - | R77: =IF(ISNA(VLOOKUP($B$9&$D77&$AC$2&K$11,data!$F:$P,'by area'!$AC$3,FALSE)),"-",VLOOKUP($B$9&$D77&$AC$2&K$11,data!$F:$P,'by area'!$AC$3,FALSE)) -> - | S77: =IF(ISNA(VLOOKUP($B$9&$D77&$AC$2&L$11,data!$F:$P,'by area'!$AC$3,FALSE)),"-",VLOOKUP($B$9&$D77&$AC$2&L$11,data!$F:$P,'by area'!$AC$3,FALSE)) -> - | T77: =IF(ISNA(VLOOKUP($B$9&$D77&$AC$2&M$11,data!$F:$P,'by area'!$AC$3,FALSE)),"-",VLOOKUP($B$9&$D77&$AC$2&M$11,data!$F:$P,'by area'!$AC$3,FALSE)) -> -
D78: Drug use disorders | F78: =IF(ISNA(VLOOKUP($D78,RAG!$A$72:$K$139,'by area'!$AC$3,FALSE)),"-",VLOOKUP($D78,RAG!$A$72:$K$139,'by area'!$AC$3,FALSE)) -> 3.945020924 | H78: =IF(ISNA(VLOOKUP($B$7&$D78&$AC$2&H$11,data!$F:$P,'by area'!$AC$3,FALSE)),"-",VLOOKUP($B$7&$D78&$AC$2&H$11,data!$F:$P,'by area'!$AC$3,FALSE)) -> 897.7830131 | I78: =IF(ISNA(VLOOKUP($B$7&$D78&$AC$2&I$11,data!$F:$P,'by area'!$AC$3,FALSE)),"-",VLOOKUP($B$7&$D78&$AC$2&I$11,data!$F:$P,'by area'!$AC$3,FALSE)) -> 1.063185334 | J78: =IF(ISNA(VLOOKUP($B$7&$D78&$AC$2&J$11,data!$F:$P,'by area'!$AC$3,FALSE)),"-",VLOOKUP($B$7&$D78&$AC$2&J$11,data!$F:$P,'by area'!$AC$3,FALSE)) -> 937.4648288 | K78: =IF(ISNA(VLOOKUP($B$7&$D78&$AC$2&K$11,data!$F:$P,'by area'!$AC$3,FALSE)),"-",VLOOKUP($B$7&$D78&$AC$2&K$11,data!$F:$P,'by area'!$AC$3,FALSE)) -> 2228.461695 | L78: =IF(ISNA(VLOOKUP($B$7&$D78&$AC$2&L$11,data!$F:$P,'by area'!$AC$3,FALSE)),"-",VLOOKUP($B$7&$D78&$AC$2&L$11,data!$F:$P,'by area'!$AC$3,FALSE)) -> 723.5139726 | M78: =IF(ISNA(VLOOKUP($B$7&$D78&$AC$2&M$11,data!$F:$P,'by area'!$AC$3,FALSE)),"-",VLOOKUP($B$7&$D78&$AC$2&M$11,data!$F:$P,'by area'!$AC$3,FALSE)) -> 38.61998029 | O78: =IF(ISNA(VLOOKUP($B$9&$D78&$AC$2&H$11,data!$F:$P,'by area'!$AC$3,FALSE)),"-",VLOOKUP($B$9&$D78&$AC$2&H$11,data!$F:$P,'by area'!$AC$3,FALSE)) -> - | P78: =IF(ISNA(VLOOKUP($B$9&$D78&$AC$2&I$11,data!$F:$P,'by area'!$AC$3,FALSE)),"-",VLOOKUP($B$9&$D78&$AC$2&I$11,data!$F:$P,'by area'!$AC$3,FALSE)) -> - | Q78: =IF(ISNA(VLOOKUP($B$9&$D78&$AC$2&J$11,data!$F:$P,'by area'!$AC$3,FALSE)),"-",VLOOKUP($B$9&$D78&$AC$2&J$11,data!$F:$P,'by area'!$AC$3,FALSE)) -> - | R78: =IF(ISNA(VLOOKUP($B$9&$D78&$AC$2&K$11,data!$F:$P,'by area'!$AC$3,FALSE)),"-",VLOOKUP($B$9&$D78&$AC$2&K$11,data!$F:$P,'by area'!$AC$3,FALSE)) -> - | S78: =IF(ISNA(VLOOKUP($B$9&$D78&$AC$2&L$11,data!$F:$P,'by area'!$AC$3,FALSE)),"-",VLOOKUP($B$9&$D78&$AC$2&L$11,data!$F:$P,'by area'!$AC$3,FALSE)) -> - | T78: =IF(ISNA(VLOOKUP($B$9&$D78&$AC$2&M$11,data!$F:$P,'by area'!$AC$3,FALSE)),"-",VLOOKUP($B$9&$D78&$AC$2&M$11,data!$F:$P,'by area'!$AC$3,FALSE)) -> -
D79: Anxiety disorders | F79: =IF(ISNA(VLOOKUP($D79,RAG!$A$72:$K$139,'by area'!$AC$3,FALSE)),"-",VLOOKUP($D79,RAG!$A$72:$K$139,'by area'!$AC$3,FALSE)) -> 4.333333333 | H79: =IF(ISNA(VLOOKUP($B$7&$D79&$AC$2&H$11,data!$F:$P,'by area'!$AC$3,FALSE)),"-",VLOOKUP($B$7&$D79&$AC$2&H$11,data!$F:$P,'by area'!$AC$3,FALSE)) -> 852.9675294 | I79: =IF(ISNA(VLOOKUP($B$7&$D79&$AC$2&I$11,data!$F:$P,'by area'!$AC$3,FALSE)),"-",VLOOKUP($B$7&$D79&$AC$2&I$11,data!$F:$P,'by area'!$AC$3,FALSE)) -> 0 | J79: =IF(ISNA(VLOOKUP($B$7&$D79&$AC$2&J$11,data!$F:$P,'by area'!$AC$3,FALSE)),"-",VLOOKUP($B$7&$D79&$AC$2&J$11,data!$F:$P,'by area'!$AC$3,FALSE)) -> 510.005284 | K79: =IF(ISNA(VLOOKUP($B$7&$D79&$AC$2&K$11,data!$F:$P,'by area'!$AC$3,FALSE)),"-",VLOOKUP($B$7&$D79&$AC$2&K$11,data!$F:$P,'by area'!$AC$3,FALSE)) -> 1081.330207 | L79: =IF(ISNA(VLOOKUP($B$7&$D79&$AC$2&L$11,data!$F:$P,'by area'!$AC$3,FALSE)),"-",VLOOKUP($B$7&$D79&$AC$2&L$11,data!$F:$P,'by area'!$AC$3,FALSE)) -> 1242.057422 | M79: =IF(ISNA(VLOOKUP($B$7&$D79&$AC$2&M$11,data!$F:$P,'by area'!$AC$3,FALSE)),"-",VLOOKUP($B$7&$D79&$AC$2&M$11,data!$F:$P,'by area'!$AC$3,FALSE)) -> 915.9958973 | O79: =IF(ISNA(VLOOKUP($B$9&$D79&$AC$2&H$11,data!$F:$P,'by area'!$AC$3,FALSE)),"-",VLOOKUP($B$9&$D79&$AC$2&H$11,data!$F:$P,'by area'!$AC$3,FALSE)) -> - | P79: =IF(ISNA(VLOOKUP($B$9&$D79&$AC$2&I$11,data!$F:$P,'by area'!$AC$3,FALSE)),"-",VLOOKUP($B$9&$D79&$AC$2&I$11,data!$F:$P,'by area'!$AC$3,FALSE)) -> - | Q79: =IF(ISNA(VLOOKUP($B$9&$D79&$AC$2&J$11,data!$F:$P,'by area'!$AC$3,FALSE)),"-",VLOOKUP($B$9&$D79&$AC$2&J$11,data!$F:$P,'by area'!$AC$3,FALSE)) -> - | R79: =IF(ISNA(VLOOKUP($B$9&$D79&$AC$2&K$11,data!$F:$P,'by area'!$AC$3,FALSE)),"-",VLOOKUP($B$9&$D79&$AC$2&K$11,data!$F:$P,'by area'!$AC$3,FALSE)) -> - | S79: =IF(ISNA(VLOOKUP($B$9&$D79&$AC$2&L$11,data!$F:$P,'by area'!$AC$3,FALSE)),"-",VLOOKUP($B$9&$D79&$AC$2&L$11,data!$F:$P,'by area'!$AC$3,FALSE)) -> - | T79: =IF(ISNA(VLOOKUP($B$9&$D79&$AC$2&M$11,data!$F:$P,'by area'!$AC$3,FALSE)),"-",VLOOKUP($B$9&$D79&$AC$2&M$11,data!$F:$P,'by area'!$AC$3,FALSE)) -> -
D80: Depression | F80: =IF(ISNA(VLOOKUP($D80,RAG!$A$72:$K$139,'by area'!$AC$3,FALSE)),"-",VLOOKUP($D80,RAG!$A$72:$K$139,'by area'!$AC$3,FALSE)) -> 4.333333333 | H80: =IF(ISNA(VLOOKUP($B$7&$D80&$AC$2&H$11,data!$F:$P,'by area'!$AC$3,FALSE)),"-",VLOOKUP($B$7&$D80&$AC$2&H$11,data!$F:$P,'by area'!$AC$3,FALSE)) -> 1243.390268 | I80: =IF(ISNA(VLOOKUP($B$7&$D80&$AC$2&I$11,data!$F:$P,'by area'!$AC$3,FALSE)),"-",VLOOKUP($B$7&$D80&$AC$2&I$11,data!$F:$P,'by area'!$AC$3,FALSE)) -> 0 | J80: =IF(ISNA(VLOOKUP($B$7&$D80&$AC$2&J$11,data!$F:$P,'by area'!$AC$3,FALSE)),"-",VLOOKUP($B$7&$D80&$AC$2&J$11,data!$F:$P,'by area'!$AC$3,FALSE)) -> 777.173184 | K80: =IF(ISNA(VLOOKUP($B$7&$D80&$AC$2&K$11,data!$F:$P,'by area'!$AC$3,FALSE)),"-",VLOOKUP($B$7&$D80&$AC$2&K$11,data!$F:$P,'by area'!$AC$3,FALSE)) -> 1661.208459 | L80: =IF(ISNA(VLOOKUP($B$7&$D80&$AC$2&L$11,data!$F:$P,'by area'!$AC$3,FALSE)),"-",VLOOKUP($B$7&$D80&$AC$2&L$11,data!$F:$P,'by area'!$AC$3,FALSE)) -> 1779.957036 | M80: =IF(ISNA(VLOOKUP($B$7&$D80&$AC$2&M$11,data!$F:$P,'by area'!$AC$3,FALSE)),"-",VLOOKUP($B$7&$D80&$AC$2&M$11,data!$F:$P,'by area'!$AC$3,FALSE)) -> 1241.571776 | O80: =IF(ISNA(VLOOKUP($B$9&$D80&$AC$2&H$11,data!$F:$P,'by area'!$AC$3,FALSE)),"-",VLOOKUP($B$9&$D80&$AC$2&H$11,data!$F:$P,'by area'!$AC$3,FALSE)) -> - | P80: =IF(ISNA(VLOOKUP($B$9&$D80&$AC$2&I$11,data!$F:$P,'by area'!$AC$3,FALSE)),"-",VLOOKUP($B$9&$D80&$AC$2&I$11,data!$F:$P,'by area'!$AC$3,FALSE)) -> - | Q80: =IF(ISNA(VLOOKUP($B$9&$D80&$AC$2&J$11,data!$F:$P,'by area'!$AC$3,FALSE)),"-",VLOOKUP($B$9&$D80&$AC$2&J$11,data!$F:$P,'by area'!$AC$3,FALSE)) -> - | R80: =IF(ISNA(VLOOKUP($B$9&$D80&$AC$2&K$11,data!$F:$P,'by area'!$AC$3,FALSE)),"-",VLOOKUP($B$9&$D80&$AC$2&K$11,data!$F:$P,'by area'!$AC$3,FALSE)) -> - | S80: =IF(ISNA(VLOOKUP($B$9&$D80&$AC$2&L$11,data!$F:$P,'by area'!$AC$3,FALSE)),"-",VLOOKUP($B$9&$D80&$AC$2&L$11,data!$F:$P,'by area'!$AC$3,FALSE)) -> - | T80: =IF(ISNA(VLOOKUP($B$9&$D80&$AC$2&M$11,data!$F:$P,'by area'!$AC$3,FALSE)),"-",VLOOKUP($B$9&$D80&$AC$2&M$11,data!$F:$P,'by area'!$AC$3,FALSE)) -> -
D81: Other mental and substance use disorders | F81: =IF(ISNA(VLOOKUP($D81,RAG!$A$72:$K$139,'by area'!$AC$3,FALSE)),"-",VLOOKUP($D81,RAG!$A$72:$K$139,'by area'!$AC$3,FALSE)) -> 2.033176343 | H81: =IF(ISNA(VLOOKUP($B$7&$D81&$AC$2&H$11,data!$F:$P,'by area'!$AC$3,FALSE)),"-",VLOOKUP($B$7&$D81&$AC$2&H$11,data!$F:$P,'by area'!$AC$3,FALSE)) -> 174.6357272 | I81: =IF(ISNA(VLOOKUP($B$7&$D81&$AC$2&I$11,data!$F:$P,'by area'!$AC$3,FALSE)),"-",VLOOKUP($B$7&$D81&$AC$2&I$11,data!$F:$P,'by area'!$AC$3,FALSE)) -> 172.0952723 | J81: =IF(ISNA(VLOOKUP($B$7&$D81&$AC$2&J$11,data!$F:$P,'by area'!$AC$3,FALSE)),"-",VLOOKUP($B$7&$D81&$AC$2&J$11,data!$F:$P,'by area'!$AC$3,FALSE)) -> 192.463405 | K81: =IF(ISNA(VLOOKUP($B$7&$D81&$AC$2&K$11,data!$F:$P,'by area'!$AC$3,FALSE)),"-",VLOOKUP($B$7&$D81&$AC$2&K$11,data!$F:$P,'by area'!$AC$3,FALSE)) -> 196.3514428 | L81: =IF(ISNA(VLOOKUP($B$7&$D81&$AC$2&L$11,data!$F:$P,'by area'!$AC$3,FALSE)),"-",VLOOKUP($B$7&$D81&$AC$2&L$11,data!$F:$P,'by area'!$AC$3,FALSE)) -> 157.2718289 | M81: =IF(ISNA(VLOOKUP($B$7&$D81&$AC$2&M$11,data!$F:$P,'by area'!$AC$3,FALSE)),"-",VLOOKUP($B$7&$D81&$AC$2&M$11,data!$F:$P,'by area'!$AC$3,FALSE)) -> 160.2924362 | O81: =IF(ISNA(VLOOKUP($B$9&$D81&$AC$2&H$11,data!$F:$P,'by area'!$AC$3,FALSE)),"-",VLOOKUP($B$9&$D81&$AC$2&H$11,data!$F:$P,'by area'!$AC$3,FALSE)) -> - | P81: =IF(ISNA(VLOOKUP($B$9&$D81&$AC$2&I$11,data!$F:$P,'by area'!$AC$3,FALSE)),"-",VLOOKUP($B$9&$D81&$AC$2&I$11,data!$F:$P,'by area'!$AC$3,FALSE)) -> - | Q81: =IF(ISNA(VLOOKUP($B$9&$D81&$AC$2&J$11,data!$F:$P,'by area'!$AC$3,FALSE)),"-",VLOOKUP($B$9&$D81&$AC$2&J$11,data!$F:$P,'by area'!$AC$3,FALSE)) -> - | R81: =IF(ISNA(VLOOKUP($B$9&$D81&$AC$2&K$11,data!$F:$P,'by area'!$AC$3,FALSE)),"-",VLOOKUP($B$9&$D81&$AC$2&K$11,data!$F:$P,'by area'!$AC$3,FALSE)) -> - | S81: =IF(ISNA(VLOOKUP($B$9&$D81&$AC$2&L$11,data!$F:$P,'by area'!$AC$3,FALSE)),"-",VLOOKUP($B$9&$D81&$AC$2&L$11,data!$F:$P,'by area'!$AC$3,FALSE)) -> - | T81: =IF(ISNA(VLOOKUP($B$9&$D81&$AC$2&M$11,data!$F:$P,'by area'!$AC$3,FALSE)),"-",VLOOKUP($B$9&$D81&$AC$2&M$11,data!$F:$P,'by area'!$AC$3,FALSE)) -> -
H82: =IF(ISNA(VLOOKUP($B$7&$D82&$AC$2&H$11,data!$F:$P,'by area'!$AC$3,FALSE)),"-",VLOOKUP($B$7&$D82&$AC$2&H$11,data!$F:$P,'by area'!$AC$3,FALSE)) -> - | I82: =IF(ISNA(VLOOKUP($B$7&$D82&$AC$2&I$11,data!$F:$P,'by area'!$AC$3,FALSE)),"-",VLOOKUP($B$7&$D82&$AC$2&I$11,data!$F:$P,'by area'!$AC$3,FALSE)) -> - | J82: =IF(ISNA(VLOOKUP($B$7&$D82&$AC$2&J$11,data!$F:$P,'by area'!$AC$3,FALSE)),"-",VLOOKUP($B$7&$D82&$AC$2&J$11,data!$F:$P,'by area'!$AC$3,FALSE)) -> - | K82: =IF(ISNA(VLOOKUP($B$7&$D82&$AC$2&K$11,data!$F:$P,'by area'!$AC$3,FALSE)),"-",VLOOKUP($B$7&$D82&$AC$2&K$11,data!$F:$P,'by area'!$AC$3,FALSE)) -> - | L82: =IF(ISNA(VLOOKUP($B$7&$D82&$AC$2&L$11,data!$F:$P,'by area'!$AC$3,FALSE)),"-",VLOOKUP($B$7&$D82&$AC$2&L$11,data!$F:$P,'by area'!$AC$3,FALSE)) -> - | M82: =IF(ISNA(VLOOKUP($B$7&$D82&$AC$2&M$11,data!$F:$P,'by area'!$AC$3,FALSE)),"-",VLOOKUP($B$7&$D82&$AC$2&M$11,data!$F:$P,'by area'!$AC$3,FALSE)) -> - | O82: =IF(ISNA(VLOOKUP($B$9&$D82&$AC$2&H$11,data!$F:$P,'by area'!$AC$3,FALSE)),"-",VLOOKUP($B$9&$D82&$AC$2&H$11,data!$F:$P,'by area'!$AC$3,FALSE)) -> - | P82: =IF(ISNA(VLOOKUP($B$9&$D82&$AC$2&I$11,data!$F:$P,'by area'!$AC$3,FALSE)),"-",VLOOKUP($B$9&$D82&$AC$2&I$11,data!$F:$P,'by area'!$AC$3,FALSE)) -> - | Q82: =IF(ISNA(VLOOKUP($B$9&$D82&$AC$2&J$11,data!$F:$P,'by area'!$AC$3,FALSE)),"-",VLOOKUP($B$9&$D82&$AC$2&J$11,data!$F:$P,'by area'!$AC$3,FALSE)) -> - | R82: =IF(ISNA(VLOOKUP($B$9&$D82&$AC$2&K$11,data!$F:$P,'by area'!$AC$3,FALSE)),"-",VLOOKUP($B$9&$D82&$AC$2&K$11,data!$F:$P,'by area'!$AC$3,FALSE)) -> - | S82: =IF(ISNA(VLOOKUP($B$9&$D82&$AC$2&L$11,data!$F:$P,'by area'!$AC$3,FALSE)),"-",VLOOKUP($B$9&$D82&$AC$2&L$11,data!$F:$P,'by area'!$AC$3,FALSE)) -> - | T82: =IF(ISNA(VLOOKUP($B$9&$D82&$AC$2&M$11,data!$F:$P,'by area'!$AC$3,FALSE)),"-",VLOOKUP($B$9&$D82&$AC$2&M$11,data!$F:$P,'by area'!$AC$3,FALSE)) -> -
D83: Diabetes, urogenital, blood, and endocrine diseases
D84: Diabetes mellitus | F84: =IF(ISNA(VLOOKUP($D84,RAG!$A$72:$K$139,'by area'!$AC$3,FALSE)),"-",VLOOKUP($D84,RAG!$A$72:$K$139,'by area'!$AC$3,FALSE)) -> 4.308405868 | H84: =IF(ISNA(VLOOKUP($B$7&$D84&$AC$2&H$11,data!$F:$P,'by area'!$AC$3,FALSE)),"-",VLOOKUP($B$7&$D84&$AC$2&H$11,data!$F:$P,'by area'!$AC$3,FALSE)) -> 584.6917603 | I84: =IF(ISNA(VLOOKUP($B$7&$D84&$AC$2&I$11,data!$F:$P,'by area'!$AC$3,FALSE)),"-",VLOOKUP($B$7&$D84&$AC$2&I$11,data!$F:$P,'by area'!$AC$3,FALSE)) -> 18.71578688 | J84: =IF(ISNA(VLOOKUP($B$7&$D84&$AC$2&J$11,data!$F:$P,'by area'!$AC$3,FALSE)),"-",VLOOKUP($B$7&$D84&$AC$2&J$11,data!$F:$P,'by area'!$AC$3,FALSE)) -> 74.0645741 | K84: =IF(ISNA(VLOOKUP($B$7&$D84&$AC$2&K$11,data!$F:$P,'by area'!$AC$3,FALSE)),"-",VLOOKUP($B$7&$D84&$AC$2&K$11,data!$F:$P,'by area'!$AC$3,FALSE)) -> 212.3198129 | L84: =IF(ISNA(VLOOKUP($B$7&$D84&$AC$2&L$11,data!$F:$P,'by area'!$AC$3,FALSE)),"-",VLOOKUP($B$7&$D84&$AC$2&L$11,data!$F:$P,'by area'!$AC$3,FALSE)) -> 745.5707464 | M84: =IF(ISNA(VLOOKUP($B$7&$D84&$AC$2&M$11,data!$F:$P,'by area'!$AC$3,FALSE)),"-",VLOOKUP($B$7&$D84&$AC$2&M$11,data!$F:$P,'by area'!$AC$3,FALSE)) -> 1637.634924 | O84: =IF(ISNA(VLOOKUP($B$9&$D84&$AC$2&H$11,data!$F:$P,'by area'!$AC$3,FALSE)),"-",VLOOKUP($B$9&$D84&$AC$2&H$11,data!$F:$P,'by area'!$AC$3,FALSE)) -> - | P84: =IF(ISNA(VLOOKUP($B$9&$D84&$AC$2&I$11,data!$F:$P,'by area'!$AC$3,FALSE)),"-",VLOOKUP($B$9&$D84&$AC$2&I$11,data!$F:$P,'by area'!$AC$3,FALSE)) -> - | Q84: =IF(ISNA(VLOOKUP($B$9&$D84&$AC$2&J$11,data!$F:$P,'by area'!$AC$3,FALSE)),"-",VLOOKUP($B$9&$D84&$AC$2&J$11,data!$F:$P,'by area'!$AC$3,FALSE)) -> - | R84: =IF(ISNA(VLOOKUP($B$9&$D84&$AC$2&K$11,data!$F:$P,'by area'!$AC$3,FALSE)),"-",VLOOKUP($B$9&$D84&$AC$2&K$11,data!$F:$P,'by area'!$AC$3,FALSE)) -> - | S84: =IF(ISNA(VLOOKUP($B$9&$D84&$AC$2&L$11,data!$F:$P,'by area'!$AC$3,FALSE)),"-",VLOOKUP($B$9&$D84&$AC$2&L$11,data!$F:$P,'by area'!$AC$3,FALSE)) -> - | T84: =IF(ISNA(VLOOKUP($B$9&$D84&$AC$2&M$11,data!$F:$P,'by area'!$AC$3,FALSE)),"-",VLOOKUP($B$9&$D84&$AC$2&M$11,data!$F:$P,'by area'!$AC$3,FALSE)) -> -
D85: Chronic kidney disease | F85: =IF(ISNA(VLOOKUP($D85,RAG!$A$72:$K$139,'by area'!$AC$3,FALSE)),"-",VLOOKUP($D85,RAG!$A$72:$K$139,'by area'!$AC$3,FALSE)) -> 3.642954723 | H85: =IF(ISNA(VLOOKUP($B$7&$D85&$AC$2&H$11,data!$F:$P,'by area'!$AC$3,FALSE)),"-",VLOOKUP($B$7&$D85&$AC$2&H$11,data!$F:$P,'by area'!$AC$3,FALSE)) -> 273.3054361 | I85: =IF(ISNA(VLOOKUP($B$7&$D85&$AC$2&I$11,data!$F:$P,'by area'!$AC$3,FALSE)),"-",VLOOKUP($B$7&$D85&$AC$2&I$11,data!$F:$P,'by area'!$AC$3,FALSE)) -> 5.84715098 | J85: =IF(ISNA(VLOOKUP($B$7&$D85&$AC$2&J$11,data!$F:$P,'by area'!$AC$3,FALSE)),"-",VLOOKUP($B$7&$D85&$AC$2&J$11,data!$F:$P,'by area'!$AC$3,FALSE)) -> 7.672654176 | K85: =IF(ISNA(VLOOKUP($B$7&$D85&$AC$2&K$11,data!$F:$P,'by area'!$AC$3,FALSE)),"-",VLOOKUP($B$7&$D85&$AC$2&K$11,data!$F:$P,'by area'!$AC$3,FALSE)) -> 36.16266229 | L85: =IF(ISNA(VLOOKUP($B$7&$D85&$AC$2&L$11,data!$F:$P,'by area'!$AC$3,FALSE)),"-",VLOOKUP($B$7&$D85&$AC$2&L$11,data!$F:$P,'by area'!$AC$3,FALSE)) -> 171.174898 | M85: =IF(ISNA(VLOOKUP($B$7&$D85&$AC$2&M$11,data!$F:$P,'by area'!$AC$3,FALSE)),"-",VLOOKUP($B$7&$D85&$AC$2&M$11,data!$F:$P,'by area'!$AC$3,FALSE)) -> 1110.47735 | O85: =IF(ISNA(VLOOKUP($B$9&$D85&$AC$2&H$11,data!$F:$P,'by area'!$AC$3,FALSE)),"-",VLOOKUP($B$9&$D85&$AC$2&H$11,data!$F:$P,'by area'!$AC$3,FALSE)) -> - | P85: =IF(ISNA(VLOOKUP($B$9&$D85&$AC$2&I$11,data!$F:$P,'by area'!$AC$3,FALSE)),"-",VLOOKUP($B$9&$D85&$AC$2&I$11,data!$F:$P,'by area'!$AC$3,FALSE)) -> - | Q85: =IF(ISNA(VLOOKUP($B$9&$D85&$AC$2&J$11,data!$F:$P,'by area'!$AC$3,FALSE)),"-",VLOOKUP($B$9&$D85&$AC$2&J$11,data!$F:$P,'by area'!$AC$3,FALSE)) -> - | R85: =IF(ISNA(VLOOKUP($B$9&$D85&$AC$2&K$11,data!$F:$P,'by area'!$AC$3,FALSE)),"-",VLOOKUP($B$9&$D85&$AC$2&K$11,data!$F:$P,'by area'!$AC$3,FALSE)) -> - | S85: =IF(ISNA(VLOOKUP($B$9&$D85&$AC$2&L$11,data!$F:$P,'by area'!$AC$3,FALSE)),"-",VLOOKUP($B$9&$D85&$AC$2&L$11,data!$F:$P,'by area'!$AC$3,FALSE)) -> - | T85: =IF(ISNA(VLOOKUP($B$9&$D85&$AC$2&M$11,data!$F:$P,'by area'!$AC$3,FALSE)),"-",VLOOKUP($B$9&$D85&$AC$2&M$11,data!$F:$P,'by area'!$AC$3,FALSE)) -> -
D86: Urinary diseases and male infertility | F86: =IF(ISNA(VLOOKUP($D86,RAG!$A$72:$K$139,'by area'!$AC$3,FALSE)),"-",VLOOKUP($D86,RAG!$A$72:$K$139,'by area'!$AC$3,FALSE)) -> 3.550123394 | H86: =IF(ISNA(VLOOKUP($B$7&$D86&$AC$2&H$11,data!$F:$P,'by area'!$AC$3,FALSE)),"-",VLOOKUP($B$7&$D86&$AC$2&H$11,data!$F:$P,'by area'!$AC$3,FALSE)) -> 169.9655212 | I86: =IF(ISNA(VLOOKUP($B$7&$D86&$AC$2&I$11,data!$F:$P,'by area'!$AC$3,FALSE)),"-",VLOOKUP($B$7&$D86&$AC$2&I$11,data!$F:$P,'by area'!$AC$3,FALSE)) -> 0.508028601 | J86: =IF(ISNA(VLOOKUP($B$7&$D86&$AC$2&J$11,data!$F:$P,'by area'!$AC$3,FALSE)),"-",VLOOKUP($B$7&$D86&$AC$2&J$11,data!$F:$P,'by area'!$AC$3,FALSE)) -> 2.219364155 | K86: =IF(ISNA(VLOOKUP($B$7&$D86&$AC$2&K$11,data!$F:$P,'by area'!$AC$3,FALSE)),"-",VLOOKUP($B$7&$D86&$AC$2&K$11,data!$F:$P,'by area'!$AC$3,FALSE)) -> 18.22578429 | L86: =IF(ISNA(VLOOKUP($B$7&$D86&$AC$2&L$11,data!$F:$P,'by area'!$AC$3,FALSE)),"-",VLOOKUP($B$7&$D86&$AC$2&L$11,data!$F:$P,'by area'!$AC$3,FALSE)) -> 163.9846466 | M86: =IF(ISNA(VLOOKUP($B$7&$D86&$AC$2&M$11,data!$F:$P,'by area'!$AC$3,FALSE)),"-",VLOOKUP($B$7&$D86&$AC$2&M$11,data!$F:$P,'by area'!$AC$3,FALSE)) -> 622.2730541 | O86: =IF(ISNA(VLOOKUP($B$9&$D86&$AC$2&H$11,data!$F:$P,'by area'!$AC$3,FALSE)),"-",VLOOKUP($B$9&$D86&$AC$2&H$11,data!$F:$P,'by area'!$AC$3,FALSE)) -> - | P86: =IF(ISNA(VLOOKUP($B$9&$D86&$AC$2&I$11,data!$F:$P,'by area'!$AC$3,FALSE)),"-",VLOOKUP($B$9&$D86&$AC$2&I$11,data!$F:$P,'by area'!$AC$3,FALSE)) -> - | Q86: =IF(ISNA(VLOOKUP($B$9&$D86&$AC$2&J$11,data!$F:$P,'by area'!$AC$3,FALSE)),"-",VLOOKUP($B$9&$D86&$AC$2&J$11,data!$F:$P,'by area'!$AC$3,FALSE)) -> - | R86: =IF(ISNA(VLOOKUP($B$9&$D86&$AC$2&K$11,data!$F:$P,'by area'!$AC$3,FALSE)),"-",VLOOKUP($B$9&$D86&$AC$2&K$11,data!$F:$P,'by area'!$AC$3,FALSE)) -> - | S86: =IF(ISNA(VLOOKUP($B$9&$D86&$AC$2&L$11,data!$F:$P,'by area'!$AC$3,FALSE)),"-",VLOOKUP($B$9&$D86&$AC$2&L$11,data!$F:$P,'by area'!$AC$3,FALSE)) -> - | T86: =IF(ISNA(VLOOKUP($B$9&$D86&$AC$2&M$11,data!$F:$P,'by area'!$AC$3,FALSE)),"-",VLOOKUP($B$9&$D86&$AC$2&M$11,data!$F:$P,'by area'!$AC$3,FALSE)) -> -
D87: Gynecological diseases | F87: =IF(ISNA(VLOOKUP($D87,RAG!$A$72:$K$139,'by area'!$AC$3,FALSE)),"-",VLOOKUP($D87,RAG!$A$72:$K$139,'by area'!$AC$3,FALSE)) -> 2.649883205 | H87: =IF(ISNA(VLOOKUP($B$7&$D87&$AC$2&H$11,data!$F:$P,'by area'!$AC$3,FALSE)),"-",VLOOKUP($B$7&$D87&$AC$2&H$11,data!$F:$P,'by area'!$AC$3,FALSE)) -> 190.8379775 | I87: =IF(ISNA(VLOOKUP($B$7&$D87&$AC$2&I$11,data!$F:$P,'by area'!$AC$3,FALSE)),"-",VLOOKUP($B$7&$D87&$AC$2&I$11,data!$F:$P,'by area'!$AC$3,FALSE)) -> 9.218319867 | J87: =IF(ISNA(VLOOKUP($B$7&$D87&$AC$2&J$11,data!$F:$P,'by area'!$AC$3,FALSE)),"-",VLOOKUP($B$7&$D87&$AC$2&J$11,data!$F:$P,'by area'!$AC$3,FALSE)) -> 218.061259 | K87: =IF(ISNA(VLOOKUP($B$7&$D87&$AC$2&K$11,data!$F:$P,'by area'!$AC$3,FALSE)),"-",VLOOKUP($B$7&$D87&$AC$2&K$11,data!$F:$P,'by area'!$AC$3,FALSE)) -> 353.0061941 | L87: =IF(ISNA(VLOOKUP($B$7&$D87&$AC$2&L$11,data!$F:$P,'by area'!$AC$3,FALSE)),"-",VLOOKUP($B$7&$D87&$AC$2&L$11,data!$F:$P,'by area'!$AC$3,FALSE)) -> 231.2073733 | M87: =IF(ISNA(VLOOKUP($B$7&$D87&$AC$2&M$11,data!$F:$P,'by area'!$AC$3,FALSE)),"-",VLOOKUP($B$7&$D87&$AC$2&M$11,data!$F:$P,'by area'!$AC$3,FALSE)) -> 48.56105723 | O87: =IF(ISNA(VLOOKUP($B$9&$D87&$AC$2&H$11,data!$F:$P,'by area'!$AC$3,FALSE)),"-",VLOOKUP($B$9&$D87&$AC$2&H$11,data!$F:$P,'by area'!$AC$3,FALSE)) -> - | P87: =IF(ISNA(VLOOKUP($B$9&$D87&$AC$2&I$11,data!$F:$P,'by area'!$AC$3,FALSE)),"-",VLOOKUP($B$9&$D87&$AC$2&I$11,data!$F:$P,'by area'!$AC$3,FALSE)) -> - | Q87: =IF(ISNA(VLOOKUP($B$9&$D87&$AC$2&J$11,data!$F:$P,'by area'!$AC$3,FALSE)),"-",VLOOKUP($B$9&$D87&$AC$2&J$11,data!$F:$P,'by area'!$AC$3,FALSE)) -> - | R87: =IF(ISNA(VLOOKUP($B$9&$D87&$AC$2&K$11,data!$F:$P,'by area'!$AC$3,FALSE)),"-",VLOOKUP($B$9&$D87&$AC$2&K$11,data!$F:$P,'by area'!$AC$3,FALSE)) -> - | S87: =IF(ISNA(VLOOKUP($B$9&$D87&$AC$2&L$11,data!$F:$P,'by area'!$AC$3,FALSE)),"-",VLOOKUP($B$9&$D87&$AC$2&L$11,data!$F:$P,'by area'!$AC$3,FALSE)) -> - | T87: =IF(ISNA(VLOOKUP($B$9&$D87&$AC$2&M$11,data!$F:$P,'by area'!$AC$3,FALSE)),"-",VLOOKUP($B$9&$D87&$AC$2&M$11,data!$F:$P,'by area'!$AC$3,FALSE)) -> -
D88: Other endocrine, metabolic, blood, and immune disorders | F88: =IF(ISNA(VLOOKUP($D88,RAG!$A$72:$K$139,'by area'!$AC$3,FALSE)),"-",VLOOKUP($D88,RAG!$A$72:$K$139,'by area'!$AC$3,FALSE)) -> 2.683218921 | H88: =IF(ISNA(VLOOKUP($B$7&$D88&$AC$2&H$11,data!$F:$P,'by area'!$AC$3,FALSE)),"-",VLOOKUP($B$7&$D88&$AC$2&H$11,data!$F:$P,'by area'!$AC$3,FALSE)) -> 254.199253 | I88: =IF(ISNA(VLOOKUP($B$7&$D88&$AC$2&I$11,data!$F:$P,'by area'!$AC$3,FALSE)),"-",VLOOKUP($B$7&$D88&$AC$2&I$11,data!$F:$P,'by area'!$AC$3,FALSE)) -> 100.5021677 | J88: =IF(ISNA(VLOOKUP($B$7&$D88&$AC$2&J$11,data!$F:$P,'by area'!$AC$3,FALSE)),"-",VLOOKUP($B$7&$D88&$AC$2&J$11,data!$F:$P,'by area'!$AC$3,FALSE)) -> 143.152806 | K88: =IF(ISNA(VLOOKUP($B$7&$D88&$AC$2&K$11,data!$F:$P,'by area'!$AC$3,FALSE)),"-",VLOOKUP($B$7&$D88&$AC$2&K$11,data!$F:$P,'by area'!$AC$3,FALSE)) -> 131.0169944 | L88: =IF(ISNA(VLOOKUP($B$7&$D88&$AC$2&L$11,data!$F:$P,'by area'!$AC$3,FALSE)),"-",VLOOKUP($B$7&$D88&$AC$2&L$11,data!$F:$P,'by area'!$AC$3,FALSE)) -> 281.0393911 | M88: =IF(ISNA(VLOOKUP($B$7&$D88&$AC$2&M$11,data!$F:$P,'by area'!$AC$3,FALSE)),"-",VLOOKUP($B$7&$D88&$AC$2&M$11,data!$F:$P,'by area'!$AC$3,FALSE)) -> 576.7250836 | O88: =IF(ISNA(VLOOKUP($B$9&$D88&$AC$2&H$11,data!$F:$P,'by area'!$AC$3,FALSE)),"-",VLOOKUP($B$9&$D88&$AC$2&H$11,data!$F:$P,'by area'!$AC$3,FALSE)) -> - | P88: =IF(ISNA(VLOOKUP($B$9&$D88&$AC$2&I$11,data!$F:$P,'by area'!$AC$3,FALSE)),"-",VLOOKUP($B$9&$D88&$AC$2&I$11,data!$F:$P,'by area'!$AC$3,FALSE)) -> - | Q88: =IF(ISNA(VLOOKUP($B$9&$D88&$AC$2&J$11,data!$F:$P,'by area'!$AC$3,FALSE)),"-",VLOOKUP($B$9&$D88&$AC$2&J$11,data!$F:$P,'by area'!$AC$3,FALSE)) -> - | R88: =IF(ISNA(VLOOKUP($B$9&$D88&$AC$2&K$11,data!$F:$P,'by area'!$AC$3,FALSE)),"-",VLOOKUP($B$9&$D88&$AC$2&K$11,data!$F:$P,'by area'!$AC$3,FALSE)) -> - | S88: =IF(ISNA(VLOOKUP($B$9&$D88&$AC$2&L$11,data!$F:$P,'by area'!$AC$3,FALSE)),"-",VLOOKUP($B$9&$D88&$AC$2&L$11,data!$F:$P,'by area'!$AC$3,FALSE)) -> - | T88: =IF(ISNA(VLOOKUP($B$9&$D88&$AC$2&M$11,data!$F:$P,'by area'!$AC$3,FALSE)),"-",VLOOKUP($B$9&$D88&$AC$2&M$11,data!$F:$P,'by area'!$AC$3,FALSE)) -> -
H89: =IF(ISNA(VLOOKUP($B$7&$D89&$AC$2&H$11,data!$F:$P,'by area'!$AC$3,FALSE)),"-",VLOOKUP($B$7&$D89&$AC$2&H$11,data!$F:$P,'by area'!$AC$3,FALSE)) -> - | I89: =IF(ISNA(VLOOKUP($B$7&$D89&$AC$2&I$11,data!$F:$P,'by area'!$AC$3,FALSE)),"-",VLOOKUP($B$7&$D89&$AC$2&I$11,data!$F:$P,'by area'!$AC$3,FALSE)) -> - | J89: =IF(ISNA(VLOOKUP($B$7&$D89&$AC$2&J$11,data!$F:$P,'by area'!$AC$3,FALSE)),"-",VLOOKUP($B$7&$D89&$AC$2&J$11,data!$F:$P,'by area'!$AC$3,FALSE)) -> - | K89: =IF(ISNA(VLOOKUP($B$7&$D89&$AC$2&K$11,data!$F:$P,'by area'!$AC$3,FALSE)),"-",VLOOKUP($B$7&$D89&$AC$2&K$11,data!$F:$P,'by area'!$AC$3,FALSE)) -> - | L89: =IF(ISNA(VLOOKUP($B$7&$D89&$AC$2&L$11,data!$F:$P,'by area'!$AC$3,FALSE)),"-",VLOOKUP($B$7&$D89&$AC$2&L$11,data!$F:$P,'by area'!$AC$3,FALSE)) -> - | M89: =IF(ISNA(VLOOKUP($B$7&$D89&$AC$2&M$11,data!$F:$P,'by area'!$AC$3,FALSE)),"-",VLOOKUP($B$7&$D89&$AC$2&M$11,data!$F:$P,'by area'!$AC$3,FALSE)) -> - | O89: =IF(ISNA(VLOOKUP($B$9&$D89&$AC$2&H$11,data!$F:$P,'by area'!$AC$3,FALSE)),"-",VLOOKUP($B$9&$D89&$AC$2&H$11,data!$F:$P,'by area'!$AC$3,FALSE)) -> - | P89: =IF(ISNA(VLOOKUP($B$9&$D89&$AC$2&I$11,data!$F:$P,'by area'!$AC$3,FALSE)),"-",VLOOKUP($B$9&$D89&$AC$2&I$11,data!$F:$P,'by area'!$AC$3,FALSE)) -> - | Q89: =IF(ISNA(VLOOKUP($B$9&$D89&$AC$2&J$11,data!$F:$P,'by area'!$AC$3,FALSE)),"-",VLOOKUP($B$9&$D89&$AC$2&J$11,data!$F:$P,'by area'!$AC$3,FALSE)) -> - | R89: =IF(ISNA(VLOOKUP($B$9&$D89&$AC$2&K$11,data!$F:$P,'by area'!$AC$3,FALSE)),"-",VLOOKUP($B$9&$D89&$AC$2&K$11,data!$F:$P,'by area'!$AC$3,FALSE)) -> - | S89: =IF(ISNA(VLOOKUP($B$9&$D89&$AC$2&L$11,data!$F:$P,'by area'!$AC$3,FALSE)),"-",VLOOKUP($B$9&$D89&$AC$2&L$11,data!$F:$P,'by area'!$AC$3,FALSE)) -> - | T89: =IF(ISNA(VLOOKUP($B$9&$D89&$AC$2&M$11,data!$F:$P,'by area'!$AC$3,FALSE)),"-",VLOOKUP($B$9&$D89&$AC$2&M$11,data!$F:$P,'by area'!$AC$3,FALSE)) -> -
D90: Musculoskeletal disorders
D91: Rheumatoid arthritis | F91: =IF(ISNA(VLOOKUP($D91,RAG!$A$72:$K$139,'by area'!$AC$3,FALSE)),"-",VLOOKUP($D91,RAG!$A$72:$K$139,'by area'!$AC$3,FALSE)) -> 3.9822969 | H91: =IF(ISNA(VLOOKUP($B$7&$D91&$AC$2&H$11,data!$F:$P,'by area'!$AC$3,FALSE)),"-",VLOOKUP($B$7&$D91&$AC$2&H$11,data!$F:$P,'by area'!$AC$3,FALSE)) -> 179.9318088 | I91: =IF(ISNA(VLOOKUP($B$7&$D91&$AC$2&I$11,data!$F:$P,'by area'!$AC$3,FALSE)),"-",VLOOKUP($B$7&$D91&$AC$2&I$11,data!$F:$P,'by area'!$AC$3,FALSE)) -> 2.545503766 | J91: =IF(ISNA(VLOOKUP($B$7&$D91&$AC$2&J$11,data!$F:$P,'by area'!$AC$3,FALSE)),"-",VLOOKUP($B$7&$D91&$AC$2&J$11,data!$F:$P,'by area'!$AC$3,FALSE)) -> 26.03524863 | K91: =IF(ISNA(VLOOKUP($B$7&$D91&$AC$2&K$11,data!$F:$P,'by area'!$AC$3,FALSE)),"-",VLOOKUP($B$7&$D91&$AC$2&K$11,data!$F:$P,'by area'!$AC$3,FALSE)) -> 94.44188586 | L91: =IF(ISNA(VLOOKUP($B$7&$D91&$AC$2&L$11,data!$F:$P,'by area'!$AC$3,FALSE)),"-",VLOOKUP($B$7&$D91&$AC$2&L$11,data!$F:$P,'by area'!$AC$3,FALSE)) -> 275.0236529 | M91: =IF(ISNA(VLOOKUP($B$7&$D91&$AC$2&M$11,data!$F:$P,'by area'!$AC$3,FALSE)),"-",VLOOKUP($B$7&$D91&$AC$2&M$11,data!$F:$P,'by area'!$AC$3,FALSE)) -> 403.1902915 | O91: =IF(ISNA(VLOOKUP($B$9&$D91&$AC$2&H$11,data!$F:$P,'by area'!$AC$3,FALSE)),"-",VLOOKUP($B$9&$D91&$AC$2&H$11,data!$F:$P,'by area'!$AC$3,FALSE)) -> - | P91: =IF(ISNA(VLOOKUP($B$9&$D91&$AC$2&I$11,data!$F:$P,'by area'!$AC$3,FALSE)),"-",VLOOKUP($B$9&$D91&$AC$2&I$11,data!$F:$P,'by area'!$AC$3,FALSE)) -> - | Q91: =IF(ISNA(VLOOKUP($B$9&$D91&$AC$2&J$11,data!$F:$P,'by area'!$AC$3,FALSE)),"-",VLOOKUP($B$9&$D91&$AC$2&J$11,data!$F:$P,'by area'!$AC$3,FALSE)) -> - | R91: =IF(ISNA(VLOOKUP($B$9&$D91&$AC$2&K$11,data!$F:$P,'by area'!$AC$3,FALSE)),"-",VLOOKUP($B$9&$D91&$AC$2&K$11,data!$F:$P,'by area'!$AC$3,FALSE)) -> - | S91: =IF(ISNA(VLOOKUP($B$9&$D91&$AC$2&L$11,data!$F:$P,'by area'!$AC$3,FALSE)),"-",VLOOKUP($B$9&$D91&$AC$2&L$11,data!$F:$P,'by area'!$AC$3,FALSE)) -> - | T91: =IF(ISNA(VLOOKUP($B$9&$D91&$AC$2&M$11,data!$F:$P,'by area'!$AC$3,FALSE)),"-",VLOOKUP($B$9&$D91&$AC$2&M$11,data!$F:$P,'by area'!$AC$3,FALSE)) -> -
D92: Osteoarthritis | F92: =IF(ISNA(VLOOKUP($D92,RAG!$A$72:$K$139,'by area'!$AC$3,FALSE)),"-",VLOOKUP($D92,RAG!$A$72:$K$139,'by area'!$AC$3,FALSE)) -> 3.666666667 | H92: =IF(ISNA(VLOOKUP($B$7&$D92&$AC$2&H$11,data!$F:$P,'by area'!$AC$3,FALSE)),"-",VLOOKUP($B$7&$D92&$AC$2&H$11,data!$F:$P,'by area'!$AC$3,FALSE)) -> 389.3747847 | I92: =IF(ISNA(VLOOKUP($B$7&$D92&$AC$2&I$11,data!$F:$P,'by area'!$AC$3,FALSE)),"-",VLOOKUP($B$7&$D92&$AC$2&I$11,data!$F:$P,'by area'!$AC$3,FALSE)) -> 0.4726127913 | J92: =IF(ISNA(VLOOKUP($B$7&$D92&$AC$2&J$11,data!$F:$P,'by area'!$AC$3,FALSE)),"-",VLOOKUP($B$7&$D92&$AC$2&J$11,data!$F:$P,'by area'!$AC$3,FALSE)) -> 2.338949821 | K92: =IF(ISNA(VLOOKUP($B$7&$D92&$AC$2&K$11,data!$F:$P,'by area'!$AC$3,FALSE)),"-",VLOOKUP($B$7&$D92&$AC$2&K$11,data!$F:$P,'by area'!$AC$3,FALSE)) -> 71.26631418 | L92: =IF(ISNA(VLOOKUP($B$7&$D92&$AC$2&L$11,data!$F:$P,'by area'!$AC$3,FALSE)),"-",VLOOKUP($B$7&$D92&$AC$2&L$11,data!$F:$P,'by area'!$AC$3,FALSE)) -> 642.077792 | M92: =IF(ISNA(VLOOKUP($B$7&$D92&$AC$2&M$11,data!$F:$P,'by area'!$AC$3,FALSE)),"-",VLOOKUP($B$7&$D92&$AC$2&M$11,data!$F:$P,'by area'!$AC$3,FALSE)) -> 1025.610253 | O92: =IF(ISNA(VLOOKUP($B$9&$D92&$AC$2&H$11,data!$F:$P,'by area'!$AC$3,FALSE)),"-",VLOOKUP($B$9&$D92&$AC$2&H$11,data!$F:$P,'by area'!$AC$3,FALSE)) -> - | P92: =IF(ISNA(VLOOKUP($B$9&$D92&$AC$2&I$11,data!$F:$P,'by area'!$AC$3,FALSE)),"-",VLOOKUP($B$9&$D92&$AC$2&I$11,data!$F:$P,'by area'!$AC$3,FALSE)) -> - | Q92: =IF(ISNA(VLOOKUP($B$9&$D92&$AC$2&J$11,data!$F:$P,'by area'!$AC$3,FALSE)),"-",VLOOKUP($B$9&$D92&$AC$2&J$11,data!$F:$P,'by area'!$AC$3,FALSE)) -> - | R92: =IF(ISNA(VLOOKUP($B$9&$D92&$AC$2&K$11,data!$F:$P,'by area'!$AC$3,FALSE)),"-",VLOOKUP($B$9&$D92&$AC$2&K$11,data!$F:$P,'by area'!$AC$3,FALSE)) -> - | S92: =IF(ISNA(VLOOKUP($B$9&$D92&$AC$2&L$11,data!$F:$P,'by area'!$AC$3,FALSE)),"-",VLOOKUP($B$9&$D92&$AC$2&L$11,data!$F:$P,'by area'!$AC$3,FALSE)) -> - | T92: =IF(ISNA(VLOOKUP($B$9&$D92&$AC$2&M$11,data!$F:$P,'by area'!$AC$3,FALSE)),"-",VLOOKUP($B$9&$D92&$AC$2&M$11,data!$F:$P,'by area'!$AC$3,FALSE)) -> -
D93: Low back and neck pain | F93: =IF(ISNA(VLOOKUP($D93,RAG!$A$72:$K$139,'by area'!$AC$3,FALSE)),"-",VLOOKUP($D93,RAG!$A$72:$K$139,'by area'!$AC$3,FALSE)) -> 3 | H93: =IF(ISNA(VLOOKUP($B$7&$D93&$AC$2&H$11,data!$F:$P,'by area'!$AC$3,FALSE)),"-",VLOOKUP($B$7&$D93&$AC$2&H$11,data!$F:$P,'by area'!$AC$3,FALSE)) -> 1270.157795 | I93: =IF(ISNA(VLOOKUP($B$7&$D93&$AC$2&I$11,data!$F:$P,'by area'!$AC$3,FALSE)),"-",VLOOKUP($B$7&$D93&$AC$2&I$11,data!$F:$P,'by area'!$AC$3,FALSE)) -> 170.0154174 | J93: =IF(ISNA(VLOOKUP($B$7&$D93&$AC$2&J$11,data!$F:$P,'by area'!$AC$3,FALSE)),"-",VLOOKUP($B$7&$D93&$AC$2&J$11,data!$F:$P,'by area'!$AC$3,FALSE)) -> 857.562116 | K93: =IF(ISNA(VLOOKUP($B$7&$D93&$AC$2&K$11,data!$F:$P,'by area'!$AC$3,FALSE)),"-",VLOOKUP($B$7&$D93&$AC$2&K$11,data!$F:$P,'by area'!$AC$3,FALSE)) -> 1482.072216 | L93: =IF(ISNA(VLOOKUP($B$7&$D93&$AC$2&L$11,data!$F:$P,'by area'!$AC$3,FALSE)),"-",VLOOKUP($B$7&$D93&$AC$2&L$11,data!$F:$P,'by area'!$AC$3,FALSE)) -> 1640.852758 | M93: =IF(ISNA(VLOOKUP($B$7&$D93&$AC$2&M$11,data!$F:$P,'by area'!$AC$3,FALSE)),"-",VLOOKUP($B$7&$D93&$AC$2&M$11,data!$F:$P,'by area'!$AC$3,FALSE)) -> 1624.41316 | O93: =IF(ISNA(VLOOKUP($B$9&$D93&$AC$2&H$11,data!$F:$P,'by area'!$AC$3,FALSE)),"-",VLOOKUP($B$9&$D93&$AC$2&H$11,data!$F:$P,'by area'!$AC$3,FALSE)) -> - | P93: =IF(ISNA(VLOOKUP($B$9&$D93&$AC$2&I$11,data!$F:$P,'by area'!$AC$3,FALSE)),"-",VLOOKUP($B$9&$D93&$AC$2&I$11,data!$F:$P,'by area'!$AC$3,FALSE)) -> - | Q93: =IF(ISNA(VLOOKUP($B$9&$D93&$AC$2&J$11,data!$F:$P,'by area'!$AC$3,FALSE)),"-",VLOOKUP($B$9&$D93&$AC$2&J$11,data!$F:$P,'by area'!$AC$3,FALSE)) -> - | R93: =IF(ISNA(VLOOKUP($B$9&$D93&$AC$2&K$11,data!$F:$P,'by area'!$AC$3,FALSE)),"-",VLOOKUP($B$9&$D93&$AC$2&K$11,data!$F:$P,'by area'!$AC$3,FALSE)) -> - | S93: =IF(ISNA(VLOOKUP($B$9&$D93&$AC$2&L$11,data!$F:$P,'by area'!$AC$3,FALSE)),"-",VLOOKUP($B$9&$D93&$AC$2&L$11,data!$F:$P,'by area'!$AC$3,FALSE)) -> - | T93: =IF(ISNA(VLOOKUP($B$9&$D93&$AC$2&M$11,data!$F:$P,'by area'!$AC$3,FALSE)),"-",VLOOKUP($B$9&$D93&$AC$2&M$11,data!$F:$P,'by area'!$AC$3,FALSE)) -> -
D94: Other musculoskeletal disorders | F94: =IF(ISNA(VLOOKUP($D94,RAG!$A$72:$K$139,'by area'!$AC$3,FALSE)),"-",VLOOKUP($D94,RAG!$A$72:$K$139,'by area'!$AC$3,FALSE)) -> 2.795329364 | H94: =IF(ISNA(VLOOKUP($B$7&$D94&$AC$2&H$11,data!$F:$P,'by area'!$AC$3,FALSE)),"-",VLOOKUP($B$7&$D94&$AC$2&H$11,data!$F:$P,'by area'!$AC$3,FALSE)) -> 391.9414301 | I94: =IF(ISNA(VLOOKUP($B$7&$D94&$AC$2&I$11,data!$F:$P,'by area'!$AC$3,FALSE)),"-",VLOOKUP($B$7&$D94&$AC$2&I$11,data!$F:$P,'by area'!$AC$3,FALSE)) -> 83.33063445 | J94: =IF(ISNA(VLOOKUP($B$7&$D94&$AC$2&J$11,data!$F:$P,'by area'!$AC$3,FALSE)),"-",VLOOKUP($B$7&$D94&$AC$2&J$11,data!$F:$P,'by area'!$AC$3,FALSE)) -> 258.3980914 | K94: =IF(ISNA(VLOOKUP($B$7&$D94&$AC$2&K$11,data!$F:$P,'by area'!$AC$3,FALSE)),"-",VLOOKUP($B$7&$D94&$AC$2&K$11,data!$F:$P,'by area'!$AC$3,FALSE)) -> 354.4486197 | L94: =IF(ISNA(VLOOKUP($B$7&$D94&$AC$2&L$11,data!$F:$P,'by area'!$AC$3,FALSE)),"-",VLOOKUP($B$7&$D94&$AC$2&L$11,data!$F:$P,'by area'!$AC$3,FALSE)) -> 513.5649026 | M94: =IF(ISNA(VLOOKUP($B$7&$D94&$AC$2&M$11,data!$F:$P,'by area'!$AC$3,FALSE)),"-",VLOOKUP($B$7&$D94&$AC$2&M$11,data!$F:$P,'by area'!$AC$3,FALSE)) -> 609.5854597 | O94: =IF(ISNA(VLOOKUP($B$9&$D94&$AC$2&H$11,data!$F:$P,'by area'!$AC$3,FALSE)),"-",VLOOKUP($B$9&$D94&$AC$2&H$11,data!$F:$P,'by area'!$AC$3,FALSE)) -> - | P94: =IF(ISNA(VLOOKUP($B$9&$D94&$AC$2&I$11,data!$F:$P,'by area'!$AC$3,FALSE)),"-",VLOOKUP($B$9&$D94&$AC$2&I$11,data!$F:$P,'by area'!$AC$3,FALSE)) -> - | Q94: =IF(ISNA(VLOOKUP($B$9&$D94&$AC$2&J$11,data!$F:$P,'by area'!$AC$3,FALSE)),"-",VLOOKUP($B$9&$D94&$AC$2&J$11,data!$F:$P,'by area'!$AC$3,FALSE)) -> - | R94: =IF(ISNA(VLOOKUP($B$9&$D94&$AC$2&K$11,data!$F:$P,'by area'!$AC$3,FALSE)),"-",VLOOKUP($B$9&$D94&$AC$2&K$11,data!$F:$P,'by area'!$AC$3,FALSE)) -> - | S94: =IF(ISNA(VLOOKUP($B$9&$D94&$AC$2&L$11,data!$F:$P,'by area'!$AC$3,FALSE)),"-",VLOOKUP($B$9&$D94&$AC$2&L$11,data!$F:$P,'by area'!$AC$3,FALSE)) -> - | T94: =IF(ISNA(VLOOKUP($B$9&$D94&$AC$2&M$11,data!$F:$P,'by area'!$AC$3,FALSE)),"-",VLOOKUP($B$9&$D94&$AC$2&M$11,data!$F:$P,'by area'!$AC$3,FALSE)) -> -
H95: =IF(ISNA(VLOOKUP($B$7&$D95&$AC$2&H$11,data!$F:$P,'by area'!$AC$3,FALSE)),"-",VLOOKUP($B$7&$D95&$AC$2&H$11,data!$F:$P,'by area'!$AC$3,FALSE)) -> - | I95: =IF(ISNA(VLOOKUP($B$7&$D95&$AC$2&I$11,data!$F:$P,'by area'!$AC$3,FALSE)),"-",VLOOKUP($B$7&$D95&$AC$2&I$11,data!$F:$P,'by area'!$AC$3,FALSE)) -> - | J95: =IF(ISNA(VLOOKUP($B$7&$D95&$AC$2&J$11,data!$F:$P,'by area'!$AC$3,FALSE)),"-",VLOOKUP($B$7&$D95&$AC$2&J$11,data!$F:$P,'by area'!$AC$3,FALSE)) -> - | K95: =IF(ISNA(VLOOKUP($B$7&$D95&$AC$2&K$11,data!$F:$P,'by area'!$AC$3,FALSE)),"-",VLOOKUP($B$7&$D95&$AC$2&K$11,data!$F:$P,'by area'!$AC$3,FALSE)) -> - | L95: =IF(ISNA(VLOOKUP($B$7&$D95&$AC$2&L$11,data!$F:$P,'by area'!$AC$3,FALSE)),"-",VLOOKUP($B$7&$D95&$AC$2&L$11,data!$F:$P,'by area'!$AC$3,FALSE)) -> - | M95: =IF(ISNA(VLOOKUP($B$7&$D95&$AC$2&M$11,data!$F:$P,'by area'!$AC$3,FALSE)),"-",VLOOKUP($B$7&$D95&$AC$2&M$11,data!$F:$P,'by area'!$AC$3,FALSE)) -> - | O95: =IF(ISNA(VLOOKUP($B$9&$D95&$AC$2&H$11,data!$F:$P,'by area'!$AC$3,FALSE)),"-",VLOOKUP($B$9&$D95&$AC$2&H$11,data!$F:$P,'by area'!$AC$3,FALSE)) -> - | P95: =IF(ISNA(VLOOKUP($B$9&$D95&$AC$2&I$11,data!$F:$P,'by area'!$AC$3,FALSE)),"-",VLOOKUP($B$9&$D95&$AC$2&I$11,data!$F:$P,'by area'!$AC$3,FALSE)) -> - | Q95: =IF(ISNA(VLOOKUP($B$9&$D95&$AC$2&J$11,data!$F:$P,'by area'!$AC$3,FALSE)),"-",VLOOKUP($B$9&$D95&$AC$2&J$11,data!$F:$P,'by area'!$AC$3,FALSE)) -> - | R95: =IF(ISNA(VLOOKUP($B$9&$D95&$AC$2&K$11,data!$F:$P,'by area'!$AC$3,FALSE)),"-",VLOOKUP($B$9&$D95&$AC$2&K$11,data!$F:$P,'by area'!$AC$3,FALSE)) -> - | S95: =IF(ISNA(VLOOKUP($B$9&$D95&$AC$2&L$11,data!$F:$P,'by area'!$AC$3,FALSE)),"-",VLOOKUP($B$9&$D95&$AC$2&L$11,data!$F:$P,'by area'!$AC$3,FALSE)) -> - | T95: =IF(ISNA(VLOOKUP($B$9&$D95&$AC$2&M$11,data!$F:$P,'by area'!$AC$3,FALSE)),"-",VLOOKUP($B$9&$D95&$AC$2&M$11,data!$F:$P,'by area'!$AC$3,FALSE)) -> -
D96: Other non-communicable diseases
D97: Congenital birth defects | F97: =IF(ISNA(VLOOKUP($D97,RAG!$A$72:$K$139,'by area'!$AC$3,FALSE)),"-",VLOOKUP($D97,RAG!$A$72:$K$139,'by area'!$AC$3,FALSE)) -> 3.586689004 | H97: =IF(ISNA(VLOOKUP($B$7&$D97&$AC$2&H$11,data!$F:$P,'by area'!$AC$3,FALSE)),"-",VLOOKUP($B$7&$D97&$AC$2&H$11,data!$F:$P,'by area'!$AC$3,FALSE)) -> 269.3882808 | I97: =IF(ISNA(VLOOKUP($B$7&$D97&$AC$2&I$11,data!$F:$P,'by area'!$AC$3,FALSE)),"-",VLOOKUP($B$7&$D97&$AC$2&I$11,data!$F:$P,'by area'!$AC$3,FALSE)) -> 810.0607615 | J97: =IF(ISNA(VLOOKUP($B$7&$D97&$AC$2&J$11,data!$F:$P,'by area'!$AC$3,FALSE)),"-",VLOOKUP($B$7&$D97&$AC$2&J$11,data!$F:$P,'by area'!$AC$3,FALSE)) -> 316.0272604 | K97: =IF(ISNA(VLOOKUP($B$7&$D97&$AC$2&K$11,data!$F:$P,'by area'!$AC$3,FALSE)),"-",VLOOKUP($B$7&$D97&$AC$2&K$11,data!$F:$P,'by area'!$AC$3,FALSE)) -> 147.7283849 | L97: =IF(ISNA(VLOOKUP($B$7&$D97&$AC$2&L$11,data!$F:$P,'by area'!$AC$3,FALSE)),"-",VLOOKUP($B$7&$D97&$AC$2&L$11,data!$F:$P,'by area'!$AC$3,FALSE)) -> 179.9562829 | M97: =IF(ISNA(VLOOKUP($B$7&$D97&$AC$2&M$11,data!$F:$P,'by area'!$AC$3,FALSE)),"-",VLOOKUP($B$7&$D97&$AC$2&M$11,data!$F:$P,'by area'!$AC$3,FALSE)) -> 85.12301025 | O97: =IF(ISNA(VLOOKUP($B$9&$D97&$AC$2&H$11,data!$F:$P,'by area'!$AC$3,FALSE)),"-",VLOOKUP($B$9&$D97&$AC$2&H$11,data!$F:$P,'by area'!$AC$3,FALSE)) -> - | P97: =IF(ISNA(VLOOKUP($B$9&$D97&$AC$2&I$11,data!$F:$P,'by area'!$AC$3,FALSE)),"-",VLOOKUP($B$9&$D97&$AC$2&I$11,data!$F:$P,'by area'!$AC$3,FALSE)) -> - | Q97: =IF(ISNA(VLOOKUP($B$9&$D97&$AC$2&J$11,data!$F:$P,'by area'!$AC$3,FALSE)),"-",VLOOKUP($B$9&$D97&$AC$2&J$11,data!$F:$P,'by area'!$AC$3,FALSE)) -> - | R97: =IF(ISNA(VLOOKUP($B$9&$D97&$AC$2&K$11,data!$F:$P,'by area'!$AC$3,FALSE)),"-",VLOOKUP($B$9&$D97&$AC$2&K$11,data!$F:$P,'by area'!$AC$3,FALSE)) -> - | S97: =IF(ISNA(VLOOKUP($B$9&$D97&$AC$2&L$11,data!$F:$P,'by area'!$AC$3,FALSE)),"-",VLOOKUP($B$9&$D97&$AC$2&L$11,data!$F:$P,'by area'!$AC$3,FALSE)) -> - | T97: =IF(ISNA(VLOOKUP($B$9&$D97&$AC$2&M$11,data!$F:$P,'by area'!$AC$3,FALSE)),"-",VLOOKUP($B$9&$D97&$AC$2&M$11,data!$F:$P,'by area'!$AC$3,FALSE)) -> -
D98: Skin and subcutaneous diseases | F98: =IF(ISNA(VLOOKUP($D98,RAG!$A$72:$K$139,'by area'!$AC$3,FALSE)),"-",VLOOKUP($D98,RAG!$A$72:$K$139,'by area'!$AC$3,FALSE)) -> 3.129025573 | H98: =IF(ISNA(VLOOKUP($B$7&$D98&$AC$2&H$11,data!$F:$P,'by area'!$AC$3,FALSE)),"-",VLOOKUP($B$7&$D98&$AC$2&H$11,data!$F:$P,'by area'!$AC$3,FALSE)) -> 329.6930233 | I98: =IF(ISNA(VLOOKUP($B$7&$D98&$AC$2&I$11,data!$F:$P,'by area'!$AC$3,FALSE)),"-",VLOOKUP($B$7&$D98&$AC$2&I$11,data!$F:$P,'by area'!$AC$3,FALSE)) -> 397.4432393 | J98: =IF(ISNA(VLOOKUP($B$7&$D98&$AC$2&J$11,data!$F:$P,'by area'!$AC$3,FALSE)),"-",VLOOKUP($B$7&$D98&$AC$2&J$11,data!$F:$P,'by area'!$AC$3,FALSE)) -> 433.0938462 | K98: =IF(ISNA(VLOOKUP($B$7&$D98&$AC$2&K$11,data!$F:$P,'by area'!$AC$3,FALSE)),"-",VLOOKUP($B$7&$D98&$AC$2&K$11,data!$F:$P,'by area'!$AC$3,FALSE)) -> 280.9329353 | L98: =IF(ISNA(VLOOKUP($B$7&$D98&$AC$2&L$11,data!$F:$P,'by area'!$AC$3,FALSE)),"-",VLOOKUP($B$7&$D98&$AC$2&L$11,data!$F:$P,'by area'!$AC$3,FALSE)) -> 264.275859 | M98: =IF(ISNA(VLOOKUP($B$7&$D98&$AC$2&M$11,data!$F:$P,'by area'!$AC$3,FALSE)),"-",VLOOKUP($B$7&$D98&$AC$2&M$11,data!$F:$P,'by area'!$AC$3,FALSE)) -> 368.2870883 | O98: =IF(ISNA(VLOOKUP($B$9&$D98&$AC$2&H$11,data!$F:$P,'by area'!$AC$3,FALSE)),"-",VLOOKUP($B$9&$D98&$AC$2&H$11,data!$F:$P,'by area'!$AC$3,FALSE)) -> - | P98: =IF(ISNA(VLOOKUP($B$9&$D98&$AC$2&I$11,data!$F:$P,'by area'!$AC$3,FALSE)),"-",VLOOKUP($B$9&$D98&$AC$2&I$11,data!$F:$P,'by area'!$AC$3,FALSE)) -> - | Q98: =IF(ISNA(VLOOKUP($B$9&$D98&$AC$2&J$11,data!$F:$P,'by area'!$AC$3,FALSE)),"-",VLOOKUP($B$9&$D98&$AC$2&J$11,data!$F:$P,'by area'!$AC$3,FALSE)) -> - | R98: =IF(ISNA(VLOOKUP($B$9&$D98&$AC$2&K$11,data!$F:$P,'by area'!$AC$3,FALSE)),"-",VLOOKUP($B$9&$D98&$AC$2&K$11,data!$F:$P,'by area'!$AC$3,FALSE)) -> - | S98: =IF(ISNA(VLOOKUP($B$9&$D98&$AC$2&L$11,data!$F:$P,'by area'!$AC$3,FALSE)),"-",VLOOKUP($B$9&$D98&$AC$2&L$11,data!$F:$P,'by area'!$AC$3,FALSE)) -> - | T98: =IF(ISNA(VLOOKUP($B$9&$D98&$AC$2&M$11,data!$F:$P,'by area'!$AC$3,FALSE)),"-",VLOOKUP($B$9&$D98&$AC$2&M$11,data!$F:$P,'by area'!$AC$3,FALSE)) -> -
D99: Sensory conditions | F99: =IF(ISNA(VLOOKUP($D99,RAG!$A$72:$K$139,'by area'!$AC$3,FALSE)),"-",VLOOKUP($D99,RAG!$A$72:$K$139,'by area'!$AC$3,FALSE)) -> 3 | H99: =IF(ISNA(VLOOKUP($B$7&$D99&$AC$2&H$11,data!$F:$P,'by area'!$AC$3,FALSE)),"-",VLOOKUP($B$7&$D99&$AC$2&H$11,data!$F:$P,'by area'!$AC$3,FALSE)) -> 814.965122 | I99: =IF(ISNA(VLOOKUP($B$7&$D99&$AC$2&I$11,data!$F:$P,'by area'!$AC$3,FALSE)),"-",VLOOKUP($B$7&$D99&$AC$2&I$11,data!$F:$P,'by area'!$AC$3,FALSE)) -> 452.2163107 | J99: =IF(ISNA(VLOOKUP($B$7&$D99&$AC$2&J$11,data!$F:$P,'by area'!$AC$3,FALSE)),"-",VLOOKUP($B$7&$D99&$AC$2&J$11,data!$F:$P,'by area'!$AC$3,FALSE)) -> 494.1560646 | K99: =IF(ISNA(VLOOKUP($B$7&$D99&$AC$2&K$11,data!$F:$P,'by area'!$AC$3,FALSE)),"-",VLOOKUP($B$7&$D99&$AC$2&K$11,data!$F:$P,'by area'!$AC$3,FALSE)) -> 593.6411408 | L99: =IF(ISNA(VLOOKUP($B$7&$D99&$AC$2&L$11,data!$F:$P,'by area'!$AC$3,FALSE)),"-",VLOOKUP($B$7&$D99&$AC$2&L$11,data!$F:$P,'by area'!$AC$3,FALSE)) -> 843.4671424 | M99: =IF(ISNA(VLOOKUP($B$7&$D99&$AC$2&M$11,data!$F:$P,'by area'!$AC$3,FALSE)),"-",VLOOKUP($B$7&$D99&$AC$2&M$11,data!$F:$P,'by area'!$AC$3,FALSE)) -> 1563.840358 | O99: =IF(ISNA(VLOOKUP($B$9&$D99&$AC$2&H$11,data!$F:$P,'by area'!$AC$3,FALSE)),"-",VLOOKUP($B$9&$D99&$AC$2&H$11,data!$F:$P,'by area'!$AC$3,FALSE)) -> - | P99: =IF(ISNA(VLOOKUP($B$9&$D99&$AC$2&I$11,data!$F:$P,'by area'!$AC$3,FALSE)),"-",VLOOKUP($B$9&$D99&$AC$2&I$11,data!$F:$P,'by area'!$AC$3,FALSE)) -> - | Q99: =IF(ISNA(VLOOKUP($B$9&$D99&$AC$2&J$11,data!$F:$P,'by area'!$AC$3,FALSE)),"-",VLOOKUP($B$9&$D99&$AC$2&J$11,data!$F:$P,'by area'!$AC$3,FALSE)) -> - | R99: =IF(ISNA(VLOOKUP($B$9&$D99&$AC$2&K$11,data!$F:$P,'by area'!$AC$3,FALSE)),"-",VLOOKUP($B$9&$D99&$AC$2&K$11,data!$F:$P,'by area'!$AC$3,FALSE)) -> - | S99: =IF(ISNA(VLOOKUP($B$9&$D99&$AC$2&L$11,data!$F:$P,'by area'!$AC$3,FALSE)),"-",VLOOKUP($B$9&$D99&$AC$2&L$11,data!$F:$P,'by area'!$AC$3,FALSE)) -> - | T99: =IF(ISNA(VLOOKUP($B$9&$D99&$AC$2&M$11,data!$F:$P,'by area'!$AC$3,FALSE)),"-",VLOOKUP($B$9&$D99&$AC$2&M$11,data!$F:$P,'by area'!$AC$3,FALSE)) -> -
D100: Dental health disorders | F100: =IF(ISNA(VLOOKUP($D100,RAG!$A$72:$K$139,'by area'!$AC$3,FALSE)),"-",VLOOKUP($D100,RAG!$A$72:$K$139,'by area'!$AC$3,FALSE)) -> 3 | H100: =IF(ISNA(VLOOKUP($B$7&$D100&$AC$2&H$11,data!$F:$P,'by area'!$AC$3,FALSE)),"-",VLOOKUP($B$7&$D100&$AC$2&H$11,data!$F:$P,'by area'!$AC$3,FALSE)) -> 203.3633257 | I100: =IF(ISNA(VLOOKUP($B$7&$D100&$AC$2&I$11,data!$F:$P,'by area'!$AC$3,FALSE)),"-",VLOOKUP($B$7&$D100&$AC$2&I$11,data!$F:$P,'by area'!$AC$3,FALSE)) -> 16.928675 | J100: =IF(ISNA(VLOOKUP($B$7&$D100&$AC$2&J$11,data!$F:$P,'by area'!$AC$3,FALSE)),"-",VLOOKUP($B$7&$D100&$AC$2&J$11,data!$F:$P,'by area'!$AC$3,FALSE)) -> 46.10886046 | K100: =IF(ISNA(VLOOKUP($B$7&$D100&$AC$2&K$11,data!$F:$P,'by area'!$AC$3,FALSE)),"-",VLOOKUP($B$7&$D100&$AC$2&K$11,data!$F:$P,'by area'!$AC$3,FALSE)) -> 67.06410907 | L100: =IF(ISNA(VLOOKUP($B$7&$D100&$AC$2&L$11,data!$F:$P,'by area'!$AC$3,FALSE)),"-",VLOOKUP($B$7&$D100&$AC$2&L$11,data!$F:$P,'by area'!$AC$3,FALSE)) -> 186.2689539 | M100: =IF(ISNA(VLOOKUP($B$7&$D100&$AC$2&M$11,data!$F:$P,'by area'!$AC$3,FALSE)),"-",VLOOKUP($B$7&$D100&$AC$2&M$11,data!$F:$P,'by area'!$AC$3,FALSE)) -> 657.5331133 | O100: =IF(ISNA(VLOOKUP($B$9&$D100&$AC$2&H$11,data!$F:$P,'by area'!$AC$3,FALSE)),"-",VLOOKUP($B$9&$D100&$AC$2&H$11,data!$F:$P,'by area'!$AC$3,FALSE)) -> - | P100: =IF(ISNA(VLOOKUP($B$9&$D100&$AC$2&I$11,data!$F:$P,'by area'!$AC$3,FALSE)),"-",VLOOKUP($B$9&$D100&$AC$2&I$11,data!$F:$P,'by area'!$AC$3,FALSE)) -> - | Q100: =IF(ISNA(VLOOKUP($B$9&$D100&$AC$2&J$11,data!$F:$P,'by area'!$AC$3,FALSE)),"-",VLOOKUP($B$9&$D100&$AC$2&J$11,data!$F:$P,'by area'!$AC$3,FALSE)) -> - | R100: =IF(ISNA(VLOOKUP($B$9&$D100&$AC$2&K$11,data!$F:$P,'by area'!$AC$3,FALSE)),"-",VLOOKUP($B$9&$D100&$AC$2&K$11,data!$F:$P,'by area'!$AC$3,FALSE)) -> - | S100: =IF(ISNA(VLOOKUP($B$9&$D100&$AC$2&L$11,data!$F:$P,'by area'!$AC$3,FALSE)),"-",VLOOKUP($B$9&$D100&$AC$2&L$11,data!$F:$P,'by area'!$AC$3,FALSE)) -> - | T100: =IF(ISNA(VLOOKUP($B$9&$D100&$AC$2&M$11,data!$F:$P,'by area'!$AC$3,FALSE)),"-",VLOOKUP($B$9&$D100&$AC$2&M$11,data!$F:$P,'by area'!$AC$3,FALSE)) -> -
D101: Sudden infant death syndrome | F101: =IF(ISNA(VLOOKUP($D101,RAG!$A$72:$K$139,'by area'!$AC$3,FALSE)),"-",VLOOKUP($D101,RAG!$A$72:$K$139,'by area'!$AC$3,FALSE)) -> 4.95 | H101: =IF(ISNA(VLOOKUP($B$7&$D101&$AC$2&H$11,data!$F:$P,'by area'!$AC$3,FALSE)),"-",VLOOKUP($B$7&$D101&$AC$2&H$11,data!$F:$P,'by area'!$AC$3,FALSE)) -> 22.72783398 | I101: =IF(ISNA(VLOOKUP($B$7&$D101&$AC$2&I$11,data!$F:$P,'by area'!$AC$3,FALSE)),"-",VLOOKUP($B$7&$D101&$AC$2&I$11,data!$F:$P,'by area'!$AC$3,FALSE)) -> 142.0489623 | J101: =IF(ISNA(VLOOKUP($B$7&$D101&$AC$2&J$11,data!$F:$P,'by area'!$AC$3,FALSE)),"-",VLOOKUP($B$7&$D101&$AC$2&J$11,data!$F:$P,'by area'!$AC$3,FALSE)) -> 0 | K101: =IF(ISNA(VLOOKUP($B$7&$D101&$AC$2&K$11,data!$F:$P,'by area'!$AC$3,FALSE)),"-",VLOOKUP($B$7&$D101&$AC$2&K$11,data!$F:$P,'by area'!$AC$3,FALSE)) -> 0 | L101: =IF(ISNA(VLOOKUP($B$7&$D101&$AC$2&L$11,data!$F:$P,'by area'!$AC$3,FALSE)),"-",VLOOKUP($B$7&$D101&$AC$2&L$11,data!$F:$P,'by area'!$AC$3,FALSE)) -> 0 | M101: =IF(ISNA(VLOOKUP($B$7&$D101&$AC$2&M$11,data!$F:$P,'by area'!$AC$3,FALSE)),"-",VLOOKUP($B$7&$D101&$AC$2&M$11,data!$F:$P,'by area'!$AC$3,FALSE)) -> 0 | O101: =IF(ISNA(VLOOKUP($B$9&$D101&$AC$2&H$11,data!$F:$P,'by area'!$AC$3,FALSE)),"-",VLOOKUP($B$9&$D101&$AC$2&H$11,data!$F:$P,'by area'!$AC$3,FALSE)) -> - | P101: =IF(ISNA(VLOOKUP($B$9&$D101&$AC$2&I$11,data!$F:$P,'by area'!$AC$3,FALSE)),"-",VLOOKUP($B$9&$D101&$AC$2&I$11,data!$F:$P,'by area'!$AC$3,FALSE)) -> - | Q101: =IF(ISNA(VLOOKUP($B$9&$D101&$AC$2&J$11,data!$F:$P,'by area'!$AC$3,FALSE)),"-",VLOOKUP($B$9&$D101&$AC$2&J$11,data!$F:$P,'by area'!$AC$3,FALSE)) -> - | R101: =IF(ISNA(VLOOKUP($B$9&$D101&$AC$2&K$11,data!$F:$P,'by area'!$AC$3,FALSE)),"-",VLOOKUP($B$9&$D101&$AC$2&K$11,data!$F:$P,'by area'!$AC$3,FALSE)) -> - | S101: =IF(ISNA(VLOOKUP($B$9&$D101&$AC$2&L$11,data!$F:$P,'by area'!$AC$3,FALSE)),"-",VLOOKUP($B$9&$D101&$AC$2&L$11,data!$F:$P,'by area'!$AC$3,FALSE)) -> - | T101: =IF(ISNA(VLOOKUP($B$9&$D101&$AC$2&M$11,data!$F:$P,'by area'!$AC$3,FALSE)),"-",VLOOKUP($B$9&$D101&$AC$2&M$11,data!$F:$P,'by area'!$AC$3,FALSE)) -> -
H102: =IF(ISNA(VLOOKUP($B$7&$D102&$AC$2&H$11,data!$F:$P,'by area'!$AC$3,FALSE)),"-",VLOOKUP($B$7&$D102&$AC$2&H$11,data!$F:$P,'by area'!$AC$3,FALSE)) -> - | I102: =IF(ISNA(VLOOKUP($B$7&$D102&$AC$2&I$11,data!$F:$P,'by area'!$AC$3,FALSE)),"-",VLOOKUP($B$7&$D102&$AC$2&I$11,data!$F:$P,'by area'!$AC$3,FALSE)) -> - | J102: =IF(ISNA(VLOOKUP($B$7&$D102&$AC$2&J$11,data!$F:$P,'by area'!$AC$3,FALSE)),"-",VLOOKUP($B$7&$D102&$AC$2&J$11,data!$F:$P,'by area'!$AC$3,FALSE)) -> - | K102: =IF(ISNA(VLOOKUP($B$7&$D102&$AC$2&K$11,data!$F:$P,'by area'!$AC$3,FALSE)),"-",VLOOKUP($B$7&$D102&$AC$2&K$11,data!$F:$P,'by area'!$AC$3,FALSE)) -> - | L102: =IF(ISNA(VLOOKUP($B$7&$D102&$AC$2&L$11,data!$F:$P,'by area'!$AC$3,FALSE)),"-",VLOOKUP($B$7&$D102&$AC$2&L$11,data!$F:$P,'by area'!$AC$3,FALSE)) -> - | M102: =IF(ISNA(VLOOKUP($B$7&$D102&$AC$2&M$11,data!$F:$P,'by area'!$AC$3,FALSE)),"-",VLOOKUP($B$7&$D102&$AC$2&M$11,data!$F:$P,'by area'!$AC$3,FALSE)) -> - | O102: =IF(ISNA(VLOOKUP($B$9&$D102&$AC$2&H$11,data!$F:$P,'by area'!$AC$3,FALSE)),"-",VLOOKUP($B$9&$D102&$AC$2&H$11,data!$F:$P,'by area'!$AC$3,FALSE)) -> - | P102: =IF(ISNA(VLOOKUP($B$9&$D102&$AC$2&I$11,data!$F:$P,'by area'!$AC$3,FALSE)),"-",VLOOKUP($B$9&$D102&$AC$2&I$11,data!$F:$P,'by area'!$AC$3,FALSE)) -> - | Q102: =IF(ISNA(VLOOKUP($B$9&$D102&$AC$2&J$11,data!$F:$P,'by area'!$AC$3,FALSE)),"-",VLOOKUP($B$9&$D102&$AC$2&J$11,data!$F:$P,'by area'!$AC$3,FALSE)) -> - | R102: =IF(ISNA(VLOOKUP($B$9&$D102&$AC$2&K$11,data!$F:$P,'by area'!$AC$3,FALSE)),"-",VLOOKUP($B$9&$D102&$AC$2&K$11,data!$F:$P,'by area'!$AC$3,FALSE)) -> - | S102: =IF(ISNA(VLOOKUP($B$9&$D102&$AC$2&L$11,data!$F:$P,'by area'!$AC$3,FALSE)),"-",VLOOKUP($B$9&$D102&$AC$2&L$11,data!$F:$P,'by area'!$AC$3,FALSE)) -> - | T102: =IF(ISNA(VLOOKUP($B$9&$D102&$AC$2&M$11,data!$F:$P,'by area'!$AC$3,FALSE)),"-",VLOOKUP($B$9&$D102&$AC$2&M$11,data!$F:$P,'by area'!$AC$3,FALSE)) -> -
D103: Injuries
D104: Transport injuries | F104: =IF(ISNA(VLOOKUP($D104,RAG!$A$72:$K$139,'by area'!$AC$3,FALSE)),"-",VLOOKUP($D104,RAG!$A$72:$K$139,'by area'!$AC$3,FALSE)) -> 4.491374772 | H104: =IF(ISNA(VLOOKUP($B$7&$D104&$AC$2&H$11,data!$F:$P,'by area'!$AC$3,FALSE)),"-",VLOOKUP($B$7&$D104&$AC$2&H$11,data!$F:$P,'by area'!$AC$3,FALSE)) -> 151.5770136 | I104: =IF(ISNA(VLOOKUP($B$7&$D104&$AC$2&I$11,data!$F:$P,'by area'!$AC$3,FALSE)),"-",VLOOKUP($B$7&$D104&$AC$2&I$11,data!$F:$P,'by area'!$AC$3,FALSE)) -> 74.72115528 | J104: =IF(ISNA(VLOOKUP($B$7&$D104&$AC$2&J$11,data!$F:$P,'by area'!$AC$3,FALSE)),"-",VLOOKUP($B$7&$D104&$AC$2&J$11,data!$F:$P,'by area'!$AC$3,FALSE)) -> 303.5159167 | K104: =IF(ISNA(VLOOKUP($B$7&$D104&$AC$2&K$11,data!$F:$P,'by area'!$AC$3,FALSE)),"-",VLOOKUP($B$7&$D104&$AC$2&K$11,data!$F:$P,'by area'!$AC$3,FALSE)) -> 203.7106508 | L104: =IF(ISNA(VLOOKUP($B$7&$D104&$AC$2&L$11,data!$F:$P,'by area'!$AC$3,FALSE)),"-",VLOOKUP($B$7&$D104&$AC$2&L$11,data!$F:$P,'by area'!$AC$3,FALSE)) -> 135.2634349 | M104: =IF(ISNA(VLOOKUP($B$7&$D104&$AC$2&M$11,data!$F:$P,'by area'!$AC$3,FALSE)),"-",VLOOKUP($B$7&$D104&$AC$2&M$11,data!$F:$P,'by area'!$AC$3,FALSE)) -> 76.35469555 | O104: =IF(ISNA(VLOOKUP($B$9&$D104&$AC$2&H$11,data!$F:$P,'by area'!$AC$3,FALSE)),"-",VLOOKUP($B$9&$D104&$AC$2&H$11,data!$F:$P,'by area'!$AC$3,FALSE)) -> - | P104: =IF(ISNA(VLOOKUP($B$9&$D104&$AC$2&I$11,data!$F:$P,'by area'!$AC$3,FALSE)),"-",VLOOKUP($B$9&$D104&$AC$2&I$11,data!$F:$P,'by area'!$AC$3,FALSE)) -> - | Q104: =IF(ISNA(VLOOKUP($B$9&$D104&$AC$2&J$11,data!$F:$P,'by area'!$AC$3,FALSE)),"-",VLOOKUP($B$9&$D104&$AC$2&J$11,data!$F:$P,'by area'!$AC$3,FALSE)) -> - | R104: =IF(ISNA(VLOOKUP($B$9&$D104&$AC$2&K$11,data!$F:$P,'by area'!$AC$3,FALSE)),"-",VLOOKUP($B$9&$D104&$AC$2&K$11,data!$F:$P,'by area'!$AC$3,FALSE)) -> - | S104: =IF(ISNA(VLOOKUP($B$9&$D104&$AC$2&L$11,data!$F:$P,'by area'!$AC$3,FALSE)),"-",VLOOKUP($B$9&$D104&$AC$2&L$11,data!$F:$P,'by area'!$AC$3,FALSE)) -> - | T104: =IF(ISNA(VLOOKUP($B$9&$D104&$AC$2&M$11,data!$F:$P,'by area'!$AC$3,FALSE)),"-",VLOOKUP($B$9&$D104&$AC$2&M$11,data!$F:$P,'by area'!$AC$3,FALSE)) -> -
D105: Falls | F105: =IF(ISNA(VLOOKUP($D105,RAG!$A$72:$K$139,'by area'!$AC$3,FALSE)),"-",VLOOKUP($D105,RAG!$A$72:$K$139,'by area'!$AC$3,FALSE)) -> 4.068516074 | H105: =IF(ISNA(VLOOKUP($B$7&$D105&$AC$2&H$11,data!$F:$P,'by area'!$AC$3,FALSE)),"-",VLOOKUP($B$7&$D105&$AC$2&H$11,data!$F:$P,'by area'!$AC$3,FALSE)) -> 283.3212771 | I105: =IF(ISNA(VLOOKUP($B$7&$D105&$AC$2&I$11,data!$F:$P,'by area'!$AC$3,FALSE)),"-",VLOOKUP($B$7&$D105&$AC$2&I$11,data!$F:$P,'by area'!$AC$3,FALSE)) -> 74.07071763 | J105: =IF(ISNA(VLOOKUP($B$7&$D105&$AC$2&J$11,data!$F:$P,'by area'!$AC$3,FALSE)),"-",VLOOKUP($B$7&$D105&$AC$2&J$11,data!$F:$P,'by area'!$AC$3,FALSE)) -> 132.4900943 | K105: =IF(ISNA(VLOOKUP($B$7&$D105&$AC$2&K$11,data!$F:$P,'by area'!$AC$3,FALSE)),"-",VLOOKUP($B$7&$D105&$AC$2&K$11,data!$F:$P,'by area'!$AC$3,FALSE)) -> 104.9821078 | L105: =IF(ISNA(VLOOKUP($B$7&$D105&$AC$2&L$11,data!$F:$P,'by area'!$AC$3,FALSE)),"-",VLOOKUP($B$7&$D105&$AC$2&L$11,data!$F:$P,'by area'!$AC$3,FALSE)) -> 192.5776671 | M105: =IF(ISNA(VLOOKUP($B$7&$D105&$AC$2&M$11,data!$F:$P,'by area'!$AC$3,FALSE)),"-",VLOOKUP($B$7&$D105&$AC$2&M$11,data!$F:$P,'by area'!$AC$3,FALSE)) -> 909.6423644 | O105: =IF(ISNA(VLOOKUP($B$9&$D105&$AC$2&H$11,data!$F:$P,'by area'!$AC$3,FALSE)),"-",VLOOKUP($B$9&$D105&$AC$2&H$11,data!$F:$P,'by area'!$AC$3,FALSE)) -> - | P105: =IF(ISNA(VLOOKUP($B$9&$D105&$AC$2&I$11,data!$F:$P,'by area'!$AC$3,FALSE)),"-",VLOOKUP($B$9&$D105&$AC$2&I$11,data!$F:$P,'by area'!$AC$3,FALSE)) -> - | Q105: =IF(ISNA(VLOOKUP($B$9&$D105&$AC$2&J$11,data!$F:$P,'by area'!$AC$3,FALSE)),"-",VLOOKUP($B$9&$D105&$AC$2&J$11,data!$F:$P,'by area'!$AC$3,FALSE)) -> - | R105: =IF(ISNA(VLOOKUP($B$9&$D105&$AC$2&K$11,data!$F:$P,'by area'!$AC$3,FALSE)),"-",VLOOKUP($B$9&$D105&$AC$2&K$11,data!$F:$P,'by area'!$AC$3,FALSE)) -> - | S105: =IF(ISNA(VLOOKUP($B$9&$D105&$AC$2&L$11,data!$F:$P,'by area'!$AC$3,FALSE)),"-",VLOOKUP($B$9&$D105&$AC$2&L$11,data!$F:$P,'by area'!$AC$3,FALSE)) -> - | T105: =IF(ISNA(VLOOKUP($B$9&$D105&$AC$2&M$11,data!$F:$P,'by area'!$AC$3,FALSE)),"-",VLOOKUP($B$9&$D105&$AC$2&M$11,data!$F:$P,'by area'!$AC$3,FALSE)) -> -
D106: Other unintentional injuries | F106: =IF(ISNA(VLOOKUP($D106,RAG!$A$72:$K$139,'by area'!$AC$3,FALSE)),"-",VLOOKUP($D106,RAG!$A$72:$K$139,'by area'!$AC$3,FALSE)) -> 3.837590859 | H106: =IF(ISNA(VLOOKUP($B$7&$D106&$AC$2&H$11,data!$F:$P,'by area'!$AC$3,FALSE)),"-",VLOOKUP($B$7&$D106&$AC$2&H$11,data!$F:$P,'by area'!$AC$3,FALSE)) -> 191.6416851 | I106: =IF(ISNA(VLOOKUP($B$7&$D106&$AC$2&I$11,data!$F:$P,'by area'!$AC$3,FALSE)),"-",VLOOKUP($B$7&$D106&$AC$2&I$11,data!$F:$P,'by area'!$AC$3,FALSE)) -> 148.525525 | J106: =IF(ISNA(VLOOKUP($B$7&$D106&$AC$2&J$11,data!$F:$P,'by area'!$AC$3,FALSE)),"-",VLOOKUP($B$7&$D106&$AC$2&J$11,data!$F:$P,'by area'!$AC$3,FALSE)) -> 140.7203409 | K106: =IF(ISNA(VLOOKUP($B$7&$D106&$AC$2&K$11,data!$F:$P,'by area'!$AC$3,FALSE)),"-",VLOOKUP($B$7&$D106&$AC$2&K$11,data!$F:$P,'by area'!$AC$3,FALSE)) -> 196.6130862 | L106: =IF(ISNA(VLOOKUP($B$7&$D106&$AC$2&L$11,data!$F:$P,'by area'!$AC$3,FALSE)),"-",VLOOKUP($B$7&$D106&$AC$2&L$11,data!$F:$P,'by area'!$AC$3,FALSE)) -> 193.9401345 | M106: =IF(ISNA(VLOOKUP($B$7&$D106&$AC$2&M$11,data!$F:$P,'by area'!$AC$3,FALSE)),"-",VLOOKUP($B$7&$D106&$AC$2&M$11,data!$F:$P,'by area'!$AC$3,FALSE)) -> 247.1700433 | O106: =IF(ISNA(VLOOKUP($B$9&$D106&$AC$2&H$11,data!$F:$P,'by area'!$AC$3,FALSE)),"-",VLOOKUP($B$9&$D106&$AC$2&H$11,data!$F:$P,'by area'!$AC$3,FALSE)) -> - | P106: =IF(ISNA(VLOOKUP($B$9&$D106&$AC$2&I$11,data!$F:$P,'by area'!$AC$3,FALSE)),"-",VLOOKUP($B$9&$D106&$AC$2&I$11,data!$F:$P,'by area'!$AC$3,FALSE)) -> - | Q106: =IF(ISNA(VLOOKUP($B$9&$D106&$AC$2&J$11,data!$F:$P,'by area'!$AC$3,FALSE)),"-",VLOOKUP($B$9&$D106&$AC$2&J$11,data!$F:$P,'by area'!$AC$3,FALSE)) -> - | R106: =IF(ISNA(VLOOKUP($B$9&$D106&$AC$2&K$11,data!$F:$P,'by area'!$AC$3,FALSE)),"-",VLOOKUP($B$9&$D106&$AC$2&K$11,data!$F:$P,'by area'!$AC$3,FALSE)) -> - | S106: =IF(ISNA(VLOOKUP($B$9&$D106&$AC$2&L$11,data!$F:$P,'by area'!$AC$3,FALSE)),"-",VLOOKUP($B$9&$D106&$AC$2&L$11,data!$F:$P,'by area'!$AC$3,FALSE)) -> - | T106: =IF(ISNA(VLOOKUP($B$9&$D106&$AC$2&M$11,data!$F:$P,'by area'!$AC$3,FALSE)),"-",VLOOKUP($B$9&$D106&$AC$2&M$11,data!$F:$P,'by area'!$AC$3,FALSE)) -> -
D107: Suicide and injuries from self-harm and interpersonal violence | F107: =IF(ISNA(VLOOKUP($D107,RAG!$A$72:$K$139,'by area'!$AC$3,FALSE)),"-",VLOOKUP($D107,RAG!$A$72:$K$139,'by area'!$AC$3,FALSE)) -> 4.331368652 | H107: =IF(ISNA(VLOOKUP($B$7&$D107&$AC$2&H$11,data!$F:$P,'by area'!$AC$3,FALSE)),"-",VLOOKUP($B$7&$D107&$AC$2&H$11,data!$F:$P,'by area'!$AC$3,FALSE)) -> 519.7857749 | I107: =IF(ISNA(VLOOKUP($B$7&$D107&$AC$2&I$11,data!$F:$P,'by area'!$AC$3,FALSE)),"-",VLOOKUP($B$7&$D107&$AC$2&I$11,data!$F:$P,'by area'!$AC$3,FALSE)) -> 40.45223846 | J107: =IF(ISNA(VLOOKUP($B$7&$D107&$AC$2&J$11,data!$F:$P,'by area'!$AC$3,FALSE)),"-",VLOOKUP($B$7&$D107&$AC$2&J$11,data!$F:$P,'by area'!$AC$3,FALSE)) -> 612.7321906 | K107: =IF(ISNA(VLOOKUP($B$7&$D107&$AC$2&K$11,data!$F:$P,'by area'!$AC$3,FALSE)),"-",VLOOKUP($B$7&$D107&$AC$2&K$11,data!$F:$P,'by area'!$AC$3,FALSE)) -> 998.2354056 | L107: =IF(ISNA(VLOOKUP($B$7&$D107&$AC$2&L$11,data!$F:$P,'by area'!$AC$3,FALSE)),"-",VLOOKUP($B$7&$D107&$AC$2&L$11,data!$F:$P,'by area'!$AC$3,FALSE)) -> 579.9977664 | M107: =IF(ISNA(VLOOKUP($B$7&$D107&$AC$2&M$11,data!$F:$P,'by area'!$AC$3,FALSE)),"-",VLOOKUP($B$7&$D107&$AC$2&M$11,data!$F:$P,'by area'!$AC$3,FALSE)) -> 126.2432012 | O107: =IF(ISNA(VLOOKUP($B$9&$D107&$AC$2&H$11,data!$F:$P,'by area'!$AC$3,FALSE)),"-",VLOOKUP($B$9&$D107&$AC$2&H$11,data!$F:$P,'by area'!$AC$3,FALSE)) -> - | P107: =IF(ISNA(VLOOKUP($B$9&$D107&$AC$2&I$11,data!$F:$P,'by area'!$AC$3,FALSE)),"-",VLOOKUP($B$9&$D107&$AC$2&I$11,data!$F:$P,'by area'!$AC$3,FALSE)) -> - | Q107: =IF(ISNA(VLOOKUP($B$9&$D107&$AC$2&J$11,data!$F:$P,'by area'!$AC$3,FALSE)),"-",VLOOKUP($B$9&$D107&$AC$2&J$11,data!$F:$P,'by area'!$AC$3,FALSE)) -> - | R107: =IF(ISNA(VLOOKUP($B$9&$D107&$AC$2&K$11,data!$F:$P,'by area'!$AC$3,FALSE)),"-",VLOOKUP($B$9&$D107&$AC$2&K$11,data!$F:$P,'by area'!$AC$3,FALSE)) -> - | S107: =IF(ISNA(VLOOKUP($B$9&$D107&$AC$2&L$11,data!$F:$P,'by area'!$AC$3,FALSE)),"-",VLOOKUP($B$9&$D107&$AC$2&L$11,data!$F:$P,'by area'!$AC$3,FALSE)) -> - | T107: =IF(ISNA(VLOOKUP($B$9&$D107&$AC$2&M$11,data!$F:$P,'by area'!$AC$3,FALSE)),"-",VLOOKUP($B$9&$D107&$AC$2&M$11,data!$F:$P,'by area'!$AC$3,FALSE)) -> -
D108: Unknown and other causes of injury | F108: =IF(ISNA(VLOOKUP($D108,RAG!$A$72:$K$139,'by area'!$AC$3,FALSE)),"-",VLOOKUP($D108,RAG!$A$72:$K$139,'by area'!$AC$3,FALSE)) -> 3.100478259 | H108: =IF(ISNA(VLOOKUP($B$7&$D108&$AC$2&H$11,data!$F:$P,'by area'!$AC$3,FALSE)),"-",VLOOKUP($B$7&$D108&$AC$2&H$11,data!$F:$P,'by area'!$AC$3,FALSE)) -> 59.12543501 | I108: =IF(ISNA(VLOOKUP($B$7&$D108&$AC$2&I$11,data!$F:$P,'by area'!$AC$3,FALSE)),"-",VLOOKUP($B$7&$D108&$AC$2&I$11,data!$F:$P,'by area'!$AC$3,FALSE)) -> 34.54181179 | J108: =IF(ISNA(VLOOKUP($B$7&$D108&$AC$2&J$11,data!$F:$P,'by area'!$AC$3,FALSE)),"-",VLOOKUP($B$7&$D108&$AC$2&J$11,data!$F:$P,'by area'!$AC$3,FALSE)) -> 43.38640596 | K108: =IF(ISNA(VLOOKUP($B$7&$D108&$AC$2&K$11,data!$F:$P,'by area'!$AC$3,FALSE)),"-",VLOOKUP($B$7&$D108&$AC$2&K$11,data!$F:$P,'by area'!$AC$3,FALSE)) -> 61.10964678 | L108: =IF(ISNA(VLOOKUP($B$7&$D108&$AC$2&L$11,data!$F:$P,'by area'!$AC$3,FALSE)),"-",VLOOKUP($B$7&$D108&$AC$2&L$11,data!$F:$P,'by area'!$AC$3,FALSE)) -> 63.86355619 | M108: =IF(ISNA(VLOOKUP($B$7&$D108&$AC$2&M$11,data!$F:$P,'by area'!$AC$3,FALSE)),"-",VLOOKUP($B$7&$D108&$AC$2&M$11,data!$F:$P,'by area'!$AC$3,FALSE)) -> 79.44312638 | O108: =IF(ISNA(VLOOKUP($B$9&$D108&$AC$2&H$11,data!$F:$P,'by area'!$AC$3,FALSE)),"-",VLOOKUP($B$9&$D108&$AC$2&H$11,data!$F:$P,'by area'!$AC$3,FALSE)) -> - | P108: =IF(ISNA(VLOOKUP($B$9&$D108&$AC$2&I$11,data!$F:$P,'by area'!$AC$3,FALSE)),"-",VLOOKUP($B$9&$D108&$AC$2&I$11,data!$F:$P,'by area'!$AC$3,FALSE)) -> - | Q108: =IF(ISNA(VLOOKUP($B$9&$D108&$AC$2&J$11,data!$F:$P,'by area'!$AC$3,FALSE)),"-",VLOOKUP($B$9&$D108&$AC$2&J$11,data!$F:$P,'by area'!$AC$3,FALSE)) -> - | R108: =IF(ISNA(VLOOKUP($B$9&$D108&$AC$2&K$11,data!$F:$P,'by area'!$AC$3,FALSE)),"-",VLOOKUP($B$9&$D108&$AC$2&K$11,data!$F:$P,'by area'!$AC$3,FALSE)) -> - | S108: =IF(ISNA(VLOOKUP($B$9&$D108&$AC$2&L$11,data!$F:$P,'by area'!$AC$3,FALSE)),"-",VLOOKUP($B$9&$D108&$AC$2&L$11,data!$F:$P,'by area'!$AC$3,FALSE)) -> - | T108: =IF(ISNA(VLOOKUP($B$9&$D108&$AC$2&M$11,data!$F:$P,'by area'!$AC$3,FALSE)),"-",VLOOKUP($B$9&$D108&$AC$2&M$11,data!$F:$P,'by area'!$AC$3,FALSE)) -> -
D110: Source reference: Scottish Burden of Disease study 2016
D111: http://www.scotpho.org.uk/comparative-health/burden-of-disease/overview/
D113: =IF(OR($AC$3=2,$AC$3=6,$AC$3=7,$AC$3=11),"Don't supress", "Supress") -> Supress | H113: =IF(ISNA(VLOOKUP($B$7&$D15&$AC$2&H$11,data!$F:$W,18,FALSE)),"-",VLOOKUP($B$7&$D15&$AC$2&H$11,data!$F:$W,18,FALSE)) -> 55867 | I113: =IF(ISNA(VLOOKUP($B$7&$D15&$AC$2&I$11,data!$F:$W,18,FALSE)),"-",VLOOKUP($B$7&$D15&$AC$2&I$11,data!$F:$W,18,FALSE)) -> 246.6666667 | J113: =IF(ISNA(VLOOKUP($B$7&$D15&$AC$2&J$11,data!$F:$W,18,FALSE)),"-",VLOOKUP($B$7&$D15&$AC$2&J$11,data!$F:$W,18,FALSE)) -> 232 | K113: =IF(ISNA(VLOOKUP($B$7&$D15&$AC$2&K$11,data!$F:$W,18,FALSE)),"-",VLOOKUP($B$7&$D15&$AC$2&K$11,data!$F:$W,18,FALSE)) -> 1748.333333 | L113: =IF(ISNA(VLOOKUP($B$7&$D15&$AC$2&L$11,data!$F:$W,18,FALSE)),"-",VLOOKUP($B$7&$D15&$AC$2&L$11,data!$F:$W,18,FALSE)) -> 7907.666667 | M113: =IF(ISNA(VLOOKUP($B$7&$D15&$AC$2&M$11,data!$F:$W,18,FALSE)),"-",VLOOKUP($B$7&$D15&$AC$2&M$11,data!$F:$W,18,FALSE)) -> 45732.33333 | O113: =IF(ISNA(VLOOKUP($B$9&$D15&$AC$2&H$11,data!$F:$W,18,FALSE)),"-",VLOOKUP($B$9&$D15&$AC$2&H$11,data!$F:$W,18,FALSE)) -> - | P113: =IF(ISNA(VLOOKUP($B$9&$D15&$AC$2&I$11,data!$F:$W,18,FALSE)),"-",VLOOKUP($B$9&$D15&$AC$2&I$11,data!$F:$W,18,FALSE)) -> - | Q113: =IF(ISNA(VLOOKUP($B$9&$D15&$AC$2&J$11,data!$F:$W,18,FALSE)),"-",VLOOKUP($B$9&$D15&$AC$2&J$11,data!$F:$W,18,FALSE)) -> - | R113: =IF(ISNA(VLOOKUP($B$9&$D15&$AC$2&K$11,data!$F:$W,18,FALSE)),"-",VLOOKUP($B$9&$D15&$AC$2&K$11,data!$F:$W,18,FALSE)) -> - | S113: =IF(ISNA(VLOOKUP($B$9&$D15&$AC$2&L$11,data!$F:$W,18,FALSE)),"-",VLOOKUP($B$9&$D15&$AC$2&L$11,data!$F:$W,18,FALSE)) -> - | T113: =IF(ISNA(VLOOKUP($B$9&$D15&$AC$2&M$11,data!$F:$W,18,FALSE)),"-",VLOOKUP($B$9&$D15&$AC$2&M$11,data!$F:$W,18,FALSE)) -> -
H114: =IF(ISNA(VLOOKUP($B$7&$D16&$AC$2&H$11,data!$F:$W,18,FALSE)),"-",VLOOKUP($B$7&$D16&$AC$2&H$11,data!$F:$W,18,FALSE)) -> - | I114: =IF(ISNA(VLOOKUP($B$7&$D16&$AC$2&I$11,data!$F:$W,18,FALSE)),"-",VLOOKUP($B$7&$D16&$AC$2&I$11,data!$F:$W,18,FALSE)) -> - | J114: =IF(ISNA(VLOOKUP($B$7&$D16&$AC$2&J$11,data!$F:$W,18,FALSE)),"-",VLOOKUP($B$7&$D16&$AC$2&J$11,data!$F:$W,18,FALSE)) -> - | K114: =IF(ISNA(VLOOKUP($B$7&$D16&$AC$2&K$11,data!$F:$W,18,FALSE)),"-",VLOOKUP($B$7&$D16&$AC$2&K$11,data!$F:$W,18,FALSE)) -> - | L114: =IF(ISNA(VLOOKUP($B$7&$D16&$AC$2&L$11,data!$F:$W,18,FALSE)),"-",VLOOKUP($B$7&$D16&$AC$2&L$11,data!$F:$W,18,FALSE)) -> - | M114: =IF(ISNA(VLOOKUP($B$7&$D16&$AC$2&M$11,data!$F:$W,18,FALSE)),"-",VLOOKUP($B$7&$D16&$AC$2&M$11,data!$F:$W,18,FALSE)) -> - | O114: =IF(ISNA(VLOOKUP($B$9&$D16&$AC$2&H$11,data!$F:$W,18,FALSE)),"-",VLOOKUP($B$9&$D16&$AC$2&H$11,data!$F:$W,18,FALSE)) -> - | P114: =IF(ISNA(VLOOKUP($B$9&$D16&$AC$2&I$11,data!$F:$W,18,FALSE)),"-",VLOOKUP($B$9&$D16&$AC$2&I$11,data!$F:$W,18,FALSE)) -> - | Q114: =IF(ISNA(VLOOKUP($B$9&$D16&$AC$2&J$11,data!$F:$W,18,FALSE)),"-",VLOOKUP($B$9&$D16&$AC$2&J$11,data!$F:$W,18,FALSE)) -> - | R114: =IF(ISNA(VLOOKUP($B$9&$D16&$AC$2&K$11,data!$F:$W,18,FALSE)),"-",VLOOKUP($B$9&$D16&$AC$2&K$11,data!$F:$W,18,FALSE)) -> - | S114: =IF(ISNA(VLOOKUP($B$9&$D16&$AC$2&L$11,data!$F:$W,18,FALSE)),"-",VLOOKUP($B$9&$D16&$AC$2&L$11,data!$F:$W,18,FALSE)) -> - | T114: =IF(ISNA(VLOOKUP($B$9&$D16&$AC$2&M$11,data!$F:$W,18,FALSE)),"-",VLOOKUP($B$9&$D16&$AC$2&M$11,data!$F:$W,18,FALSE)) -> -
H115: =IF(ISNA(VLOOKUP($B$7&$D17&$AC$2&H$11,data!$F:$W,18,FALSE)),"-",VLOOKUP($B$7&$D17&$AC$2&H$11,data!$F:$W,18,FALSE)) -> - | I115: =IF(ISNA(VLOOKUP($B$7&$D17&$AC$2&I$11,data!$F:$W,18,FALSE)),"-",VLOOKUP($B$7&$D17&$AC$2&I$11,data!$F:$W,18,FALSE)) -> - | J115: =IF(ISNA(VLOOKUP($B$7&$D17&$AC$2&J$11,data!$F:$W,18,FALSE)),"-",VLOOKUP($B$7&$D17&$AC$2&J$11,data!$F:$W,18,FALSE)) -> - | K115: =IF(ISNA(VLOOKUP($B$7&$D17&$AC$2&K$11,data!$F:$W,18,FALSE)),"-",VLOOKUP($B$7&$D17&$AC$2&K$11,data!$F:$W,18,FALSE)) -> - | L115: =IF(ISNA(VLOOKUP($B$7&$D17&$AC$2&L$11,data!$F:$W,18,FALSE)),"-",VLOOKUP($B$7&$D17&$AC$2&L$11,data!$F:$W,18,FALSE)) -> - | M115: =IF(ISNA(VLOOKUP($B$7&$D17&$AC$2&M$11,data!$F:$W,18,FALSE)),"-",VLOOKUP($B$7&$D17&$AC$2&M$11,data!$F:$W,18,FALSE)) -> - | O115: =IF(ISNA(VLOOKUP($B$9&$D17&$AC$2&H$11,data!$F:$W,18,FALSE)),"-",VLOOKUP($B$9&$D17&$AC$2&H$11,data!$F:$W,18,FALSE)) -> - | P115: =IF(ISNA(VLOOKUP($B$9&$D17&$AC$2&I$11,data!$F:$W,18,FALSE)),"-",VLOOKUP($B$9&$D17&$AC$2&I$11,data!$F:$W,18,FALSE)) -> - | Q115: =IF(ISNA(VLOOKUP($B$9&$D17&$AC$2&J$11,data!$F:$W,18,FALSE)),"-",VLOOKUP($B$9&$D17&$AC$2&J$11,data!$F:$W,18,FALSE)) -> - | R115: =IF(ISNA(VLOOKUP($B$9&$D17&$AC$2&K$11,data!$F:$W,18,FALSE)),"-",VLOOKUP($B$9&$D17&$AC$2&K$11,data!$F:$W,18,FALSE)) -> - | S115: =IF(ISNA(VLOOKUP($B$9&$D17&$AC$2&L$11,data!$F:$W,18,FALSE)),"-",VLOOKUP($B$9&$D17&$AC$2&L$11,data!$F:$W,18,FALSE)) -> - | T115: =IF(ISNA(VLOOKUP($B$9&$D17&$AC$2&M$11,data!$F:$W,18,FALSE)),"-",VLOOKUP($B$9&$D17&$AC$2&M$11,data!$F:$W,18,FALSE)) -> -
H116: =IF(ISNA(VLOOKUP($B$7&$D18&$AC$2&H$11,data!$F:$W,18,FALSE)),"-",VLOOKUP($B$7&$D18&$AC$2&H$11,data!$F:$W,18,FALSE)) -> - | I116: =IF(ISNA(VLOOKUP($B$7&$D18&$AC$2&I$11,data!$F:$W,18,FALSE)),"-",VLOOKUP($B$7&$D18&$AC$2&I$11,data!$F:$W,18,FALSE)) -> - | J116: =IF(ISNA(VLOOKUP($B$7&$D18&$AC$2&J$11,data!$F:$W,18,FALSE)),"-",VLOOKUP($B$7&$D18&$AC$2&J$11,data!$F:$W,18,FALSE)) -> - | K116: =IF(ISNA(VLOOKUP($B$7&$D18&$AC$2&K$11,data!$F:$W,18,FALSE)),"-",VLOOKUP($B$7&$D18&$AC$2&K$11,data!$F:$W,18,FALSE)) -> - | L116: =IF(ISNA(VLOOKUP($B$7&$D18&$AC$2&L$11,data!$F:$W,18,FALSE)),"-",VLOOKUP($B$7&$D18&$AC$2&L$11,data!$F:$W,18,FALSE)) -> - | M116: =IF(ISNA(VLOOKUP($B$7&$D18&$AC$2&M$11,data!$F:$W,18,FALSE)),"-",VLOOKUP($B$7&$D18&$AC$2&M$11,data!$F:$W,18,FALSE)) -> - | O116: =IF(ISNA(VLOOKUP($B$9&$D18&$AC$2&H$11,data!$F:$W,18,FALSE)),"-",VLOOKUP($B$9&$D18&$AC$2&H$11,data!$F:$W,18,FALSE)) -> - | P116: =IF(ISNA(VLOOKUP($B$9&$D18&$AC$2&I$11,data!$F:$W,18,FALSE)),"-",VLOOKUP($B$9&$D18&$AC$2&I$11,data!$F:$W,18,FALSE)) -> - | Q116: =IF(ISNA(VLOOKUP($B$9&$D18&$AC$2&J$11,data!$F:$W,18,FALSE)),"-",VLOOKUP($B$9&$D18&$AC$2&J$11,data!$F:$W,18,FALSE)) -> - | R116: =IF(ISNA(VLOOKUP($B$9&$D18&$AC$2&K$11,data!$F:$W,18,FALSE)),"-",VLOOKUP($B$9&$D18&$AC$2&K$11,data!$F:$W,18,FALSE)) -> - | S116: =IF(ISNA(VLOOKUP($B$9&$D18&$AC$2&L$11,data!$F:$W,18,FALSE)),"-",VLOOKUP($B$9&$D18&$AC$2&L$11,data!$F:$W,18,FALSE)) -> - | T116: =IF(ISNA(VLOOKUP($B$9&$D18&$AC$2&M$11,data!$F:$W,18,FALSE)),"-",VLOOKUP($B$9&$D18&$AC$2&M$11,data!$F:$W,18,FALSE)) -> -
H117: =IF(ISNA(VLOOKUP($B$7&$D19&$AC$2&H$11,data!$F:$W,18,FALSE)),"-",VLOOKUP($B$7&$D19&$AC$2&H$11,data!$F:$W,18,FALSE)) -> 45.29244721 | I117: =IF(ISNA(VLOOKUP($B$7&$D19&$AC$2&I$11,data!$F:$W,18,FALSE)),"-",VLOOKUP($B$7&$D19&$AC$2&I$11,data!$F:$W,18,FALSE)) -> 0.3685929931 | J117: =IF(ISNA(VLOOKUP($B$7&$D19&$AC$2&J$11,data!$F:$W,18,FALSE)),"-",VLOOKUP($B$7&$D19&$AC$2&J$11,data!$F:$W,18,FALSE)) -> 0.001239157373 | K117: =IF(ISNA(VLOOKUP($B$7&$D19&$AC$2&K$11,data!$F:$W,18,FALSE)),"-",VLOOKUP($B$7&$D19&$AC$2&K$11,data!$F:$W,18,FALSE)) -> 5.759065323 | L117: =IF(ISNA(VLOOKUP($B$7&$D19&$AC$2&L$11,data!$F:$W,18,FALSE)),"-",VLOOKUP($B$7&$D19&$AC$2&L$11,data!$F:$W,18,FALSE)) -> 13.22962061 | M117: =IF(ISNA(VLOOKUP($B$7&$D19&$AC$2&M$11,data!$F:$W,18,FALSE)),"-",VLOOKUP($B$7&$D19&$AC$2&M$11,data!$F:$W,18,FALSE)) -> 25.93392913 | O117: =IF(ISNA(VLOOKUP($B$9&$D19&$AC$2&H$11,data!$F:$W,18,FALSE)),"-",VLOOKUP($B$9&$D19&$AC$2&H$11,data!$F:$W,18,FALSE)) -> - | P117: =IF(ISNA(VLOOKUP($B$9&$D19&$AC$2&I$11,data!$F:$W,18,FALSE)),"-",VLOOKUP($B$9&$D19&$AC$2&I$11,data!$F:$W,18,FALSE)) -> - | Q117: =IF(ISNA(VLOOKUP($B$9&$D19&$AC$2&J$11,data!$F:$W,18,FALSE)),"-",VLOOKUP($B$9&$D19&$AC$2&J$11,data!$F:$W,18,FALSE)) -> - | R117: =IF(ISNA(VLOOKUP($B$9&$D19&$AC$2&K$11,data!$F:$W,18,FALSE)),"-",VLOOKUP($B$9&$D19&$AC$2&K$11,data!$F:$W,18,FALSE)) -> - | S117: =IF(ISNA(VLOOKUP($B$9&$D19&$AC$2&L$11,data!$F:$W,18,FALSE)),"-",VLOOKUP($B$9&$D19&$AC$2&L$11,data!$F:$W,18,FALSE)) -> - | T117: =IF(ISNA(VLOOKUP($B$9&$D19&$AC$2&M$11,data!$F:$W,18,FALSE)),"-",VLOOKUP($B$9&$D19&$AC$2&M$11,data!$F:$W,18,FALSE)) -> -
H118: =IF(ISNA(VLOOKUP($B$7&$D20&$AC$2&H$11,data!$F:$W,18,FALSE)),"-",VLOOKUP($B$7&$D20&$AC$2&H$11,data!$F:$W,18,FALSE)) -> 2489.706894 | I118: =IF(ISNA(VLOOKUP($B$7&$D20&$AC$2&I$11,data!$F:$W,18,FALSE)),"-",VLOOKUP($B$7&$D20&$AC$2&I$11,data!$F:$W,18,FALSE)) -> 5.917030999 | J118: =IF(ISNA(VLOOKUP($B$7&$D20&$AC$2&J$11,data!$F:$W,18,FALSE)),"-",VLOOKUP($B$7&$D20&$AC$2&J$11,data!$F:$W,18,FALSE)) -> 3.628797704 | K118: =IF(ISNA(VLOOKUP($B$7&$D20&$AC$2&K$11,data!$F:$W,18,FALSE)),"-",VLOOKUP($B$7&$D20&$AC$2&K$11,data!$F:$W,18,FALSE)) -> 29.83125607 | L118: =IF(ISNA(VLOOKUP($B$7&$D20&$AC$2&L$11,data!$F:$W,18,FALSE)),"-",VLOOKUP($B$7&$D20&$AC$2&L$11,data!$F:$W,18,FALSE)) -> 171.4017029 | M118: =IF(ISNA(VLOOKUP($B$7&$D20&$AC$2&M$11,data!$F:$W,18,FALSE)),"-",VLOOKUP($B$7&$D20&$AC$2&M$11,data!$F:$W,18,FALSE)) -> 2278.928106 | O118: =IF(ISNA(VLOOKUP($B$9&$D20&$AC$2&H$11,data!$F:$W,18,FALSE)),"-",VLOOKUP($B$9&$D20&$AC$2&H$11,data!$F:$W,18,FALSE)) -> - | P118: =IF(ISNA(VLOOKUP($B$9&$D20&$AC$2&I$11,data!$F:$W,18,FALSE)),"-",VLOOKUP($B$9&$D20&$AC$2&I$11,data!$F:$W,18,FALSE)) -> - | Q118: =IF(ISNA(VLOOKUP($B$9&$D20&$AC$2&J$11,data!$F:$W,18,FALSE)),"-",VLOOKUP($B$9&$D20&$AC$2&J$11,data!$F:$W,18,FALSE)) -> - | R118: =IF(ISNA(VLOOKUP($B$9&$D20&$AC$2&K$11,data!$F:$W,18,FALSE)),"-",VLOOKUP($B$9&$D20&$AC$2&K$11,data!$F:$W,18,FALSE)) -> - | S118: =IF(ISNA(VLOOKUP($B$9&$D20&$AC$2&L$11,data!$F:$W,18,FALSE)),"-",VLOOKUP($B$9&$D20&$AC$2&L$11,data!$F:$W,18,FALSE)) -> - | T118: =IF(ISNA(VLOOKUP($B$9&$D20&$AC$2&M$11,data!$F:$W,18,FALSE)),"-",VLOOKUP($B$9&$D20&$AC$2&M$11,data!$F:$W,18,FALSE)) -> -
H119: =IF(ISNA(VLOOKUP($B$7&$D21&$AC$2&H$11,data!$F:$W,18,FALSE)),"-",VLOOKUP($B$7&$D21&$AC$2&H$11,data!$F:$W,18,FALSE)) -> 206.0381566 | I119: =IF(ISNA(VLOOKUP($B$7&$D21&$AC$2&I$11,data!$F:$W,18,FALSE)),"-",VLOOKUP($B$7&$D21&$AC$2&I$11,data!$F:$W,18,FALSE)) -> 8.408789743 | J119: =IF(ISNA(VLOOKUP($B$7&$D21&$AC$2&J$11,data!$F:$W,18,FALSE)),"-",VLOOKUP($B$7&$D21&$AC$2&J$11,data!$F:$W,18,FALSE)) -> 1.888395711 | K119: =IF(ISNA(VLOOKUP($B$7&$D21&$AC$2&K$11,data!$F:$W,18,FALSE)),"-",VLOOKUP($B$7&$D21&$AC$2&K$11,data!$F:$W,18,FALSE)) -> 6.281921484 | L119: =IF(ISNA(VLOOKUP($B$7&$D21&$AC$2&L$11,data!$F:$W,18,FALSE)),"-",VLOOKUP($B$7&$D21&$AC$2&L$11,data!$F:$W,18,FALSE)) -> 17.05373466 | M119: =IF(ISNA(VLOOKUP($B$7&$D21&$AC$2&M$11,data!$F:$W,18,FALSE)),"-",VLOOKUP($B$7&$D21&$AC$2&M$11,data!$F:$W,18,FALSE)) -> 172.405315 | O119: =IF(ISNA(VLOOKUP($B$9&$D21&$AC$2&H$11,data!$F:$W,18,FALSE)),"-",VLOOKUP($B$9&$D21&$AC$2&H$11,data!$F:$W,18,FALSE)) -> - | P119: =IF(ISNA(VLOOKUP($B$9&$D21&$AC$2&I$11,data!$F:$W,18,FALSE)),"-",VLOOKUP($B$9&$D21&$AC$2&I$11,data!$F:$W,18,FALSE)) -> - | Q119: =IF(ISNA(VLOOKUP($B$9&$D21&$AC$2&J$11,data!$F:$W,18,FALSE)),"-",VLOOKUP($B$9&$D21&$AC$2&J$11,data!$F:$W,18,FALSE)) -> - | R119: =IF(ISNA(VLOOKUP($B$9&$D21&$AC$2&K$11,data!$F:$W,18,FALSE)),"-",VLOOKUP($B$9&$D21&$AC$2&K$11,data!$F:$W,18,FALSE)) -> - | S119: =IF(ISNA(VLOOKUP($B$9&$D21&$AC$2&L$11,data!$F:$W,18,FALSE)),"-",VLOOKUP($B$9&$D21&$AC$2&L$11,data!$F:$W,18,FALSE)) -> - | T119: =IF(ISNA(VLOOKUP($B$9&$D21&$AC$2&M$11,data!$F:$W,18,FALSE)),"-",VLOOKUP($B$9&$D21&$AC$2&M$11,data!$F:$W,18,FALSE)) -> -
H120: =IF(ISNA(VLOOKUP($B$7&$D22&$AC$2&H$11,data!$F:$W,18,FALSE)),"-",VLOOKUP($B$7&$D22&$AC$2&H$11,data!$F:$W,18,FALSE)) -> 5.402444062 | I120: =IF(ISNA(VLOOKUP($B$7&$D22&$AC$2&I$11,data!$F:$W,18,FALSE)),"-",VLOOKUP($B$7&$D22&$AC$2&I$11,data!$F:$W,18,FALSE)) -> 0 | J120: =IF(ISNA(VLOOKUP($B$7&$D22&$AC$2&J$11,data!$F:$W,18,FALSE)),"-",VLOOKUP($B$7&$D22&$AC$2&J$11,data!$F:$W,18,FALSE)) -> 2.019140534 | K120: =IF(ISNA(VLOOKUP($B$7&$D22&$AC$2&K$11,data!$F:$W,18,FALSE)),"-",VLOOKUP($B$7&$D22&$AC$2&K$11,data!$F:$W,18,FALSE)) -> 3.375770571 | L120: =IF(ISNA(VLOOKUP($B$7&$D22&$AC$2&L$11,data!$F:$W,18,FALSE)),"-",VLOOKUP($B$7&$D22&$AC$2&L$11,data!$F:$W,18,FALSE)) -> 0.007532956685 | M120: =IF(ISNA(VLOOKUP($B$7&$D22&$AC$2&M$11,data!$F:$W,18,FALSE)),"-",VLOOKUP($B$7&$D22&$AC$2&M$11,data!$F:$W,18,FALSE)) -> 0 | O120: =IF(ISNA(VLOOKUP($B$9&$D22&$AC$2&H$11,data!$F:$W,18,FALSE)),"-",VLOOKUP($B$9&$D22&$AC$2&H$11,data!$F:$W,18,FALSE)) -> - | P120: =IF(ISNA(VLOOKUP($B$9&$D22&$AC$2&I$11,data!$F:$W,18,FALSE)),"-",VLOOKUP($B$9&$D22&$AC$2&I$11,data!$F:$W,18,FALSE)) -> - | Q120: =IF(ISNA(VLOOKUP($B$9&$D22&$AC$2&J$11,data!$F:$W,18,FALSE)),"-",VLOOKUP($B$9&$D22&$AC$2&J$11,data!$F:$W,18,FALSE)) -> - | R120: =IF(ISNA(VLOOKUP($B$9&$D22&$AC$2&K$11,data!$F:$W,18,FALSE)),"-",VLOOKUP($B$9&$D22&$AC$2&K$11,data!$F:$W,18,FALSE)) -> - | S120: =IF(ISNA(VLOOKUP($B$9&$D22&$AC$2&L$11,data!$F:$W,18,FALSE)),"-",VLOOKUP($B$9&$D22&$AC$2&L$11,data!$F:$W,18,FALSE)) -> - | T120: =IF(ISNA(VLOOKUP($B$9&$D22&$AC$2&M$11,data!$F:$W,18,FALSE)),"-",VLOOKUP($B$9&$D22&$AC$2&M$11,data!$F:$W,18,FALSE)) -> -
H121: =IF(ISNA(VLOOKUP($B$7&$D23&$AC$2&H$11,data!$F:$W,18,FALSE)),"-",VLOOKUP($B$7&$D23&$AC$2&H$11,data!$F:$W,18,FALSE)) -> 85.08804323 | I121: =IF(ISNA(VLOOKUP($B$7&$D23&$AC$2&I$11,data!$F:$W,18,FALSE)),"-",VLOOKUP($B$7&$D23&$AC$2&I$11,data!$F:$W,18,FALSE)) -> 83.94636454 | J121: =IF(ISNA(VLOOKUP($B$7&$D23&$AC$2&J$11,data!$F:$W,18,FALSE)),"-",VLOOKUP($B$7&$D23&$AC$2&J$11,data!$F:$W,18,FALSE)) -> 0.6901280463 | K121: =IF(ISNA(VLOOKUP($B$7&$D23&$AC$2&K$11,data!$F:$W,18,FALSE)),"-",VLOOKUP($B$7&$D23&$AC$2&K$11,data!$F:$W,18,FALSE)) -> 0 | L121: =IF(ISNA(VLOOKUP($B$7&$D23&$AC$2&L$11,data!$F:$W,18,FALSE)),"-",VLOOKUP($B$7&$D23&$AC$2&L$11,data!$F:$W,18,FALSE)) -> 0.386229925 | M121: =IF(ISNA(VLOOKUP($B$7&$D23&$AC$2&M$11,data!$F:$W,18,FALSE)),"-",VLOOKUP($B$7&$D23&$AC$2&M$11,data!$F:$W,18,FALSE)) -> 0.06532072311 | O121: =IF(ISNA(VLOOKUP($B$9&$D23&$AC$2&H$11,data!$F:$W,18,FALSE)),"-",VLOOKUP($B$9&$D23&$AC$2&H$11,data!$F:$W,18,FALSE)) -> - | P121: =IF(ISNA(VLOOKUP($B$9&$D23&$AC$2&I$11,data!$F:$W,18,FALSE)),"-",VLOOKUP($B$9&$D23&$AC$2&I$11,data!$F:$W,18,FALSE)) -> - | Q121: =IF(ISNA(VLOOKUP($B$9&$D23&$AC$2&J$11,data!$F:$W,18,FALSE)),"-",VLOOKUP($B$9&$D23&$AC$2&J$11,data!$F:$W,18,FALSE)) -> - | R121: =IF(ISNA(VLOOKUP($B$9&$D23&$AC$2&K$11,data!$F:$W,18,FALSE)),"-",VLOOKUP($B$9&$D23&$AC$2&K$11,data!$F:$W,18,FALSE)) -> - | S121: =IF(ISNA(VLOOKUP($B$9&$D23&$AC$2&L$11,data!$F:$W,18,FALSE)),"-",VLOOKUP($B$9&$D23&$AC$2&L$11,data!$F:$W,18,FALSE)) -> - | T121: =IF(ISNA(VLOOKUP($B$9&$D23&$AC$2&M$11,data!$F:$W,18,FALSE)),"-",VLOOKUP($B$9&$D23&$AC$2&M$11,data!$F:$W,18,FALSE)) -> -
H122: =IF(ISNA(VLOOKUP($B$7&$D24&$AC$2&H$11,data!$F:$W,18,FALSE)),"-",VLOOKUP($B$7&$D24&$AC$2&H$11,data!$F:$W,18,FALSE)) -> 105.4735376 | I122: =IF(ISNA(VLOOKUP($B$7&$D24&$AC$2&I$11,data!$F:$W,18,FALSE)),"-",VLOOKUP($B$7&$D24&$AC$2&I$11,data!$F:$W,18,FALSE)) -> 0.7777777778 | J122: =IF(ISNA(VLOOKUP($B$7&$D24&$AC$2&J$11,data!$F:$W,18,FALSE)),"-",VLOOKUP($B$7&$D24&$AC$2&J$11,data!$F:$W,18,FALSE)) -> 0.06724738676 | K122: =IF(ISNA(VLOOKUP($B$7&$D24&$AC$2&K$11,data!$F:$W,18,FALSE)),"-",VLOOKUP($B$7&$D24&$AC$2&K$11,data!$F:$W,18,FALSE)) -> 1.668619129 | L122: =IF(ISNA(VLOOKUP($B$7&$D24&$AC$2&L$11,data!$F:$W,18,FALSE)),"-",VLOOKUP($B$7&$D24&$AC$2&L$11,data!$F:$W,18,FALSE)) -> 8.88005962 | M122: =IF(ISNA(VLOOKUP($B$7&$D24&$AC$2&M$11,data!$F:$W,18,FALSE)),"-",VLOOKUP($B$7&$D24&$AC$2&M$11,data!$F:$W,18,FALSE)) -> 94.07983372 | O122: =IF(ISNA(VLOOKUP($B$9&$D24&$AC$2&H$11,data!$F:$W,18,FALSE)),"-",VLOOKUP($B$9&$D24&$AC$2&H$11,data!$F:$W,18,FALSE)) -> - | P122: =IF(ISNA(VLOOKUP($B$9&$D24&$AC$2&I$11,data!$F:$W,18,FALSE)),"-",VLOOKUP($B$9&$D24&$AC$2&I$11,data!$F:$W,18,FALSE)) -> - | Q122: =IF(ISNA(VLOOKUP($B$9&$D24&$AC$2&J$11,data!$F:$W,18,FALSE)),"-",VLOOKUP($B$9&$D24&$AC$2&J$11,data!$F:$W,18,FALSE)) -> - | R122: =IF(ISNA(VLOOKUP($B$9&$D24&$AC$2&K$11,data!$F:$W,18,FALSE)),"-",VLOOKUP($B$9&$D24&$AC$2&K$11,data!$F:$W,18,FALSE)) -> - | S122: =IF(ISNA(VLOOKUP($B$9&$D24&$AC$2&L$11,data!$F:$W,18,FALSE)),"-",VLOOKUP($B$9&$D24&$AC$2&L$11,data!$F:$W,18,FALSE)) -> - | T122: =IF(ISNA(VLOOKUP($B$9&$D24&$AC$2&M$11,data!$F:$W,18,FALSE)),"-",VLOOKUP($B$9&$D24&$AC$2&M$11,data!$F:$W,18,FALSE)) -> -
H123: =IF(ISNA(VLOOKUP($B$7&$D25&$AC$2&H$11,data!$F:$W,18,FALSE)),"-",VLOOKUP($B$7&$D25&$AC$2&H$11,data!$F:$W,18,FALSE)) -> 65.80934828 | I123: =IF(ISNA(VLOOKUP($B$7&$D25&$AC$2&I$11,data!$F:$W,18,FALSE)),"-",VLOOKUP($B$7&$D25&$AC$2&I$11,data!$F:$W,18,FALSE)) -> 1.212807506 | J123: =IF(ISNA(VLOOKUP($B$7&$D25&$AC$2&J$11,data!$F:$W,18,FALSE)),"-",VLOOKUP($B$7&$D25&$AC$2&J$11,data!$F:$W,18,FALSE)) -> 0.167905824 | K123: =IF(ISNA(VLOOKUP($B$7&$D25&$AC$2&K$11,data!$F:$W,18,FALSE)),"-",VLOOKUP($B$7&$D25&$AC$2&K$11,data!$F:$W,18,FALSE)) -> 2.65584828 | L123: =IF(ISNA(VLOOKUP($B$7&$D25&$AC$2&L$11,data!$F:$W,18,FALSE)),"-",VLOOKUP($B$7&$D25&$AC$2&L$11,data!$F:$W,18,FALSE)) -> 14.83518073 | M123: =IF(ISNA(VLOOKUP($B$7&$D25&$AC$2&M$11,data!$F:$W,18,FALSE)),"-",VLOOKUP($B$7&$D25&$AC$2&M$11,data!$F:$W,18,FALSE)) -> 46.93760594 | O123: =IF(ISNA(VLOOKUP($B$9&$D25&$AC$2&H$11,data!$F:$W,18,FALSE)),"-",VLOOKUP($B$9&$D25&$AC$2&H$11,data!$F:$W,18,FALSE)) -> - | P123: =IF(ISNA(VLOOKUP($B$9&$D25&$AC$2&I$11,data!$F:$W,18,FALSE)),"-",VLOOKUP($B$9&$D25&$AC$2&I$11,data!$F:$W,18,FALSE)) -> - | Q123: =IF(ISNA(VLOOKUP($B$9&$D25&$AC$2&J$11,data!$F:$W,18,FALSE)),"-",VLOOKUP($B$9&$D25&$AC$2&J$11,data!$F:$W,18,FALSE)) -> - | R123: =IF(ISNA(VLOOKUP($B$9&$D25&$AC$2&K$11,data!$F:$W,18,FALSE)),"-",VLOOKUP($B$9&$D25&$AC$2&K$11,data!$F:$W,18,FALSE)) -> - | S123: =IF(ISNA(VLOOKUP($B$9&$D25&$AC$2&L$11,data!$F:$W,18,FALSE)),"-",VLOOKUP($B$9&$D25&$AC$2&L$11,data!$F:$W,18,FALSE)) -> - | T123: =IF(ISNA(VLOOKUP($B$9&$D25&$AC$2&M$11,data!$F:$W,18,FALSE)),"-",VLOOKUP($B$9&$D25&$AC$2&M$11,data!$F:$W,18,FALSE)) -> -
H124: =IF(ISNA(VLOOKUP($B$7&$D26&$AC$2&H$11,data!$F:$W,18,FALSE)),"-",VLOOKUP($B$7&$D26&$AC$2&H$11,data!$F:$W,18,FALSE)) -> - | I124: =IF(ISNA(VLOOKUP($B$7&$D26&$AC$2&I$11,data!$F:$W,18,FALSE)),"-",VLOOKUP($B$7&$D26&$AC$2&I$11,data!$F:$W,18,FALSE)) -> - | J124: =IF(ISNA(VLOOKUP($B$7&$D26&$AC$2&J$11,data!$F:$W,18,FALSE)),"-",VLOOKUP($B$7&$D26&$AC$2&J$11,data!$F:$W,18,FALSE)) -> - | K124: =IF(ISNA(VLOOKUP($B$7&$D26&$AC$2&K$11,data!$F:$W,18,FALSE)),"-",VLOOKUP($B$7&$D26&$AC$2&K$11,data!$F:$W,18,FALSE)) -> - | L124: =IF(ISNA(VLOOKUP($B$7&$D26&$AC$2&L$11,data!$F:$W,18,FALSE)),"-",VLOOKUP($B$7&$D26&$AC$2&L$11,data!$F:$W,18,FALSE)) -> - | M124: =IF(ISNA(VLOOKUP($B$7&$D26&$AC$2&M$11,data!$F:$W,18,FALSE)),"-",VLOOKUP($B$7&$D26&$AC$2&M$11,data!$F:$W,18,FALSE)) -> - | O124: =IF(ISNA(VLOOKUP($B$9&$D26&$AC$2&H$11,data!$F:$W,18,FALSE)),"-",VLOOKUP($B$9&$D26&$AC$2&H$11,data!$F:$W,18,FALSE)) -> - | P124: =IF(ISNA(VLOOKUP($B$9&$D26&$AC$2&I$11,data!$F:$W,18,FALSE)),"-",VLOOKUP($B$9&$D26&$AC$2&I$11,data!$F:$W,18,FALSE)) -> - | Q124: =IF(ISNA(VLOOKUP($B$9&$D26&$AC$2&J$11,data!$F:$W,18,FALSE)),"-",VLOOKUP($B$9&$D26&$AC$2&J$11,data!$F:$W,18,FALSE)) -> - | R124: =IF(ISNA(VLOOKUP($B$9&$D26&$AC$2&K$11,data!$F:$W,18,FALSE)),"-",VLOOKUP($B$9&$D26&$AC$2&K$11,data!$F:$W,18,FALSE)) -> - | S124: =IF(ISNA(VLOOKUP($B$9&$D26&$AC$2&L$11,data!$F:$W,18,FALSE)),"-",VLOOKUP($B$9&$D26&$AC$2&L$11,data!$F:$W,18,FALSE)) -> - | T124: =IF(ISNA(VLOOKUP($B$9&$D26&$AC$2&M$11,data!$F:$W,18,FALSE)),"-",VLOOKUP($B$9&$D26&$AC$2&M$11,data!$F:$W,18,FALSE)) -> -
H125: =IF(ISNA(VLOOKUP($B$7&$D27&$AC$2&H$11,data!$F:$W,18,FALSE)),"-",VLOOKUP($B$7&$D27&$AC$2&H$11,data!$F:$W,18,FALSE)) -> - | I125: =IF(ISNA(VLOOKUP($B$7&$D27&$AC$2&I$11,data!$F:$W,18,FALSE)),"-",VLOOKUP($B$7&$D27&$AC$2&I$11,data!$F:$W,18,FALSE)) -> - | J125: =IF(ISNA(VLOOKUP($B$7&$D27&$AC$2&J$11,data!$F:$W,18,FALSE)),"-",VLOOKUP($B$7&$D27&$AC$2&J$11,data!$F:$W,18,FALSE)) -> - | K125: =IF(ISNA(VLOOKUP($B$7&$D27&$AC$2&K$11,data!$F:$W,18,FALSE)),"-",VLOOKUP($B$7&$D27&$AC$2&K$11,data!$F:$W,18,FALSE)) -> - | L125: =IF(ISNA(VLOOKUP($B$7&$D27&$AC$2&L$11,data!$F:$W,18,FALSE)),"-",VLOOKUP($B$7&$D27&$AC$2&L$11,data!$F:$W,18,FALSE)) -> - | M125: =IF(ISNA(VLOOKUP($B$7&$D27&$AC$2&M$11,data!$F:$W,18,FALSE)),"-",VLOOKUP($B$7&$D27&$AC$2&M$11,data!$F:$W,18,FALSE)) -> - | O125: =IF(ISNA(VLOOKUP($B$9&$D27&$AC$2&H$11,data!$F:$W,18,FALSE)),"-",VLOOKUP($B$9&$D27&$AC$2&H$11,data!$F:$W,18,FALSE)) -> - | P125: =IF(ISNA(VLOOKUP($B$9&$D27&$AC$2&I$11,data!$F:$W,18,FALSE)),"-",VLOOKUP($B$9&$D27&$AC$2&I$11,data!$F:$W,18,FALSE)) -> - | Q125: =IF(ISNA(VLOOKUP($B$9&$D27&$AC$2&J$11,data!$F:$W,18,FALSE)),"-",VLOOKUP($B$9&$D27&$AC$2&J$11,data!$F:$W,18,FALSE)) -> - | R125: =IF(ISNA(VLOOKUP($B$9&$D27&$AC$2&K$11,data!$F:$W,18,FALSE)),"-",VLOOKUP($B$9&$D27&$AC$2&K$11,data!$F:$W,18,FALSE)) -> - | S125: =IF(ISNA(VLOOKUP($B$9&$D27&$AC$2&L$11,data!$F:$W,18,FALSE)),"-",VLOOKUP($B$9&$D27&$AC$2&L$11,data!$F:$W,18,FALSE)) -> - | T125: =IF(ISNA(VLOOKUP($B$9&$D27&$AC$2&M$11,data!$F:$W,18,FALSE)),"-",VLOOKUP($B$9&$D27&$AC$2&M$11,data!$F:$W,18,FALSE)) -> -
H126: =IF(ISNA(VLOOKUP($B$7&$D28&$AC$2&H$11,data!$F:$W,18,FALSE)),"-",VLOOKUP($B$7&$D28&$AC$2&H$11,data!$F:$W,18,FALSE)) -> - | I126: =IF(ISNA(VLOOKUP($B$7&$D28&$AC$2&I$11,data!$F:$W,18,FALSE)),"-",VLOOKUP($B$7&$D28&$AC$2&I$11,data!$F:$W,18,FALSE)) -> - | J126: =IF(ISNA(VLOOKUP($B$7&$D28&$AC$2&J$11,data!$F:$W,18,FALSE)),"-",VLOOKUP($B$7&$D28&$AC$2&J$11,data!$F:$W,18,FALSE)) -> - | K126: =IF(ISNA(VLOOKUP($B$7&$D28&$AC$2&K$11,data!$F:$W,18,FALSE)),"-",VLOOKUP($B$7&$D28&$AC$2&K$11,data!$F:$W,18,FALSE)) -> - | L126: =IF(ISNA(VLOOKUP($B$7&$D28&$AC$2&L$11,data!$F:$W,18,FALSE)),"-",VLOOKUP($B$7&$D28&$AC$2&L$11,data!$F:$W,18,FALSE)) -> - | M126: =IF(ISNA(VLOOKUP($B$7&$D28&$AC$2&M$11,data!$F:$W,18,FALSE)),"-",VLOOKUP($B$7&$D28&$AC$2&M$11,data!$F:$W,18,FALSE)) -> - | O126: =IF(ISNA(VLOOKUP($B$9&$D28&$AC$2&H$11,data!$F:$W,18,FALSE)),"-",VLOOKUP($B$9&$D28&$AC$2&H$11,data!$F:$W,18,FALSE)) -> - | P126: =IF(ISNA(VLOOKUP($B$9&$D28&$AC$2&I$11,data!$F:$W,18,FALSE)),"-",VLOOKUP($B$9&$D28&$AC$2&I$11,data!$F:$W,18,FALSE)) -> - | Q126: =IF(ISNA(VLOOKUP($B$9&$D28&$AC$2&J$11,data!$F:$W,18,FALSE)),"-",VLOOKUP($B$9&$D28&$AC$2&J$11,data!$F:$W,18,FALSE)) -> - | R126: =IF(ISNA(VLOOKUP($B$9&$D28&$AC$2&K$11,data!$F:$W,18,FALSE)),"-",VLOOKUP($B$9&$D28&$AC$2&K$11,data!$F:$W,18,FALSE)) -> - | S126: =IF(ISNA(VLOOKUP($B$9&$D28&$AC$2&L$11,data!$F:$W,18,FALSE)),"-",VLOOKUP($B$9&$D28&$AC$2&L$11,data!$F:$W,18,FALSE)) -> - | T126: =IF(ISNA(VLOOKUP($B$9&$D28&$AC$2&M$11,data!$F:$W,18,FALSE)),"-",VLOOKUP($B$9&$D28&$AC$2&M$11,data!$F:$W,18,FALSE)) -> -
H127: =IF(ISNA(VLOOKUP($B$7&$D29&$AC$2&H$11,data!$F:$W,18,FALSE)),"-",VLOOKUP($B$7&$D29&$AC$2&H$11,data!$F:$W,18,FALSE)) -> 867.9932307 | I127: =IF(ISNA(VLOOKUP($B$7&$D29&$AC$2&I$11,data!$F:$W,18,FALSE)),"-",VLOOKUP($B$7&$D29&$AC$2&I$11,data!$F:$W,18,FALSE)) -> 0 | J127: =IF(ISNA(VLOOKUP($B$7&$D29&$AC$2&J$11,data!$F:$W,18,FALSE)),"-",VLOOKUP($B$7&$D29&$AC$2&J$11,data!$F:$W,18,FALSE)) -> 0 | K127: =IF(ISNA(VLOOKUP($B$7&$D29&$AC$2&K$11,data!$F:$W,18,FALSE)),"-",VLOOKUP($B$7&$D29&$AC$2&K$11,data!$F:$W,18,FALSE)) -> 7.836105415 | L127: =IF(ISNA(VLOOKUP($B$7&$D29&$AC$2&L$11,data!$F:$W,18,FALSE)),"-",VLOOKUP($B$7&$D29&$AC$2&L$11,data!$F:$W,18,FALSE)) -> 200.9083671 | M127: =IF(ISNA(VLOOKUP($B$7&$D29&$AC$2&M$11,data!$F:$W,18,FALSE)),"-",VLOOKUP($B$7&$D29&$AC$2&M$11,data!$F:$W,18,FALSE)) -> 659.2487582 | O127: =IF(ISNA(VLOOKUP($B$9&$D29&$AC$2&H$11,data!$F:$W,18,FALSE)),"-",VLOOKUP($B$9&$D29&$AC$2&H$11,data!$F:$W,18,FALSE)) -> - | P127: =IF(ISNA(VLOOKUP($B$9&$D29&$AC$2&I$11,data!$F:$W,18,FALSE)),"-",VLOOKUP($B$9&$D29&$AC$2&I$11,data!$F:$W,18,FALSE)) -> - | Q127: =IF(ISNA(VLOOKUP($B$9&$D29&$AC$2&J$11,data!$F:$W,18,FALSE)),"-",VLOOKUP($B$9&$D29&$AC$2&J$11,data!$F:$W,18,FALSE)) -> - | R127: =IF(ISNA(VLOOKUP($B$9&$D29&$AC$2&K$11,data!$F:$W,18,FALSE)),"-",VLOOKUP($B$9&$D29&$AC$2&K$11,data!$F:$W,18,FALSE)) -> - | S127: =IF(ISNA(VLOOKUP($B$9&$D29&$AC$2&L$11,data!$F:$W,18,FALSE)),"-",VLOOKUP($B$9&$D29&$AC$2&L$11,data!$F:$W,18,FALSE)) -> - | T127: =IF(ISNA(VLOOKUP($B$9&$D29&$AC$2&M$11,data!$F:$W,18,FALSE)),"-",VLOOKUP($B$9&$D29&$AC$2&M$11,data!$F:$W,18,FALSE)) -> -
H128: =IF(ISNA(VLOOKUP($B$7&$D30&$AC$2&H$11,data!$F:$W,18,FALSE)),"-",VLOOKUP($B$7&$D30&$AC$2&H$11,data!$F:$W,18,FALSE)) -> 472.7278781 | I128: =IF(ISNA(VLOOKUP($B$7&$D30&$AC$2&I$11,data!$F:$W,18,FALSE)),"-",VLOOKUP($B$7&$D30&$AC$2&I$11,data!$F:$W,18,FALSE)) -> 0 | J128: =IF(ISNA(VLOOKUP($B$7&$D30&$AC$2&J$11,data!$F:$W,18,FALSE)),"-",VLOOKUP($B$7&$D30&$AC$2&J$11,data!$F:$W,18,FALSE)) -> 0.6763063979 | K128: =IF(ISNA(VLOOKUP($B$7&$D30&$AC$2&K$11,data!$F:$W,18,FALSE)),"-",VLOOKUP($B$7&$D30&$AC$2&K$11,data!$F:$W,18,FALSE)) -> 10.43328505 | L128: =IF(ISNA(VLOOKUP($B$7&$D30&$AC$2&L$11,data!$F:$W,18,FALSE)),"-",VLOOKUP($B$7&$D30&$AC$2&L$11,data!$F:$W,18,FALSE)) -> 87.37797585 | M128: =IF(ISNA(VLOOKUP($B$7&$D30&$AC$2&M$11,data!$F:$W,18,FALSE)),"-",VLOOKUP($B$7&$D30&$AC$2&M$11,data!$F:$W,18,FALSE)) -> 374.2403108 | O128: =IF(ISNA(VLOOKUP($B$9&$D30&$AC$2&H$11,data!$F:$W,18,FALSE)),"-",VLOOKUP($B$9&$D30&$AC$2&H$11,data!$F:$W,18,FALSE)) -> - | P128: =IF(ISNA(VLOOKUP($B$9&$D30&$AC$2&I$11,data!$F:$W,18,FALSE)),"-",VLOOKUP($B$9&$D30&$AC$2&I$11,data!$F:$W,18,FALSE)) -> - | Q128: =IF(ISNA(VLOOKUP($B$9&$D30&$AC$2&J$11,data!$F:$W,18,FALSE)),"-",VLOOKUP($B$9&$D30&$AC$2&J$11,data!$F:$W,18,FALSE)) -> - | R128: =IF(ISNA(VLOOKUP($B$9&$D30&$AC$2&K$11,data!$F:$W,18,FALSE)),"-",VLOOKUP($B$9&$D30&$AC$2&K$11,data!$F:$W,18,FALSE)) -> - | S128: =IF(ISNA(VLOOKUP($B$9&$D30&$AC$2&L$11,data!$F:$W,18,FALSE)),"-",VLOOKUP($B$9&$D30&$AC$2&L$11,data!$F:$W,18,FALSE)) -> - | T128: =IF(ISNA(VLOOKUP($B$9&$D30&$AC$2&M$11,data!$F:$W,18,FALSE)),"-",VLOOKUP($B$9&$D30&$AC$2&M$11,data!$F:$W,18,FALSE)) -> -
H129: =IF(ISNA(VLOOKUP($B$7&$D31&$AC$2&H$11,data!$F:$W,18,FALSE)),"-",VLOOKUP($B$7&$D31&$AC$2&H$11,data!$F:$W,18,FALSE)) -> 1724.827452 | I129: =IF(ISNA(VLOOKUP($B$7&$D31&$AC$2&I$11,data!$F:$W,18,FALSE)),"-",VLOOKUP($B$7&$D31&$AC$2&I$11,data!$F:$W,18,FALSE)) -> 0 | J129: =IF(ISNA(VLOOKUP($B$7&$D31&$AC$2&J$11,data!$F:$W,18,FALSE)),"-",VLOOKUP($B$7&$D31&$AC$2&J$11,data!$F:$W,18,FALSE)) -> 1.348286757 | K129: =IF(ISNA(VLOOKUP($B$7&$D31&$AC$2&K$11,data!$F:$W,18,FALSE)),"-",VLOOKUP($B$7&$D31&$AC$2&K$11,data!$F:$W,18,FALSE)) -> 27.98516142 | L129: =IF(ISNA(VLOOKUP($B$7&$D31&$AC$2&L$11,data!$F:$W,18,FALSE)),"-",VLOOKUP($B$7&$D31&$AC$2&L$11,data!$F:$W,18,FALSE)) -> 308.8820334 | M129: =IF(ISNA(VLOOKUP($B$7&$D31&$AC$2&M$11,data!$F:$W,18,FALSE)),"-",VLOOKUP($B$7&$D31&$AC$2&M$11,data!$F:$W,18,FALSE)) -> 1386.61197 | O129: =IF(ISNA(VLOOKUP($B$9&$D31&$AC$2&H$11,data!$F:$W,18,FALSE)),"-",VLOOKUP($B$9&$D31&$AC$2&H$11,data!$F:$W,18,FALSE)) -> - | P129: =IF(ISNA(VLOOKUP($B$9&$D31&$AC$2&I$11,data!$F:$W,18,FALSE)),"-",VLOOKUP($B$9&$D31&$AC$2&I$11,data!$F:$W,18,FALSE)) -> - | Q129: =IF(ISNA(VLOOKUP($B$9&$D31&$AC$2&J$11,data!$F:$W,18,FALSE)),"-",VLOOKUP($B$9&$D31&$AC$2&J$11,data!$F:$W,18,FALSE)) -> - | R129: =IF(ISNA(VLOOKUP($B$9&$D31&$AC$2&K$11,data!$F:$W,18,FALSE)),"-",VLOOKUP($B$9&$D31&$AC$2&K$11,data!$F:$W,18,FALSE)) -> - | S129: =IF(ISNA(VLOOKUP($B$9&$D31&$AC$2&L$11,data!$F:$W,18,FALSE)),"-",VLOOKUP($B$9&$D31&$AC$2&L$11,data!$F:$W,18,FALSE)) -> - | T129: =IF(ISNA(VLOOKUP($B$9&$D31&$AC$2&M$11,data!$F:$W,18,FALSE)),"-",VLOOKUP($B$9&$D31&$AC$2&M$11,data!$F:$W,18,FALSE)) -> -
H130: =IF(ISNA(VLOOKUP($B$7&$D32&$AC$2&H$11,data!$F:$W,18,FALSE)),"-",VLOOKUP($B$7&$D32&$AC$2&H$11,data!$F:$W,18,FALSE)) -> 584.8582656 | I130: =IF(ISNA(VLOOKUP($B$7&$D32&$AC$2&I$11,data!$F:$W,18,FALSE)),"-",VLOOKUP($B$7&$D32&$AC$2&I$11,data!$F:$W,18,FALSE)) -> 0.02162329616 | J130: =IF(ISNA(VLOOKUP($B$7&$D32&$AC$2&J$11,data!$F:$W,18,FALSE)),"-",VLOOKUP($B$7&$D32&$AC$2&J$11,data!$F:$W,18,FALSE)) -> 0.006552850139 | K130: =IF(ISNA(VLOOKUP($B$7&$D32&$AC$2&K$11,data!$F:$W,18,FALSE)),"-",VLOOKUP($B$7&$D32&$AC$2&K$11,data!$F:$W,18,FALSE)) -> 6.23073059 | L130: =IF(ISNA(VLOOKUP($B$7&$D32&$AC$2&L$11,data!$F:$W,18,FALSE)),"-",VLOOKUP($B$7&$D32&$AC$2&L$11,data!$F:$W,18,FALSE)) -> 117.7594774 | M130: =IF(ISNA(VLOOKUP($B$7&$D32&$AC$2&M$11,data!$F:$W,18,FALSE)),"-",VLOOKUP($B$7&$D32&$AC$2&M$11,data!$F:$W,18,FALSE)) -> 460.8398814 | O130: =IF(ISNA(VLOOKUP($B$9&$D32&$AC$2&H$11,data!$F:$W,18,FALSE)),"-",VLOOKUP($B$9&$D32&$AC$2&H$11,data!$F:$W,18,FALSE)) -> - | P130: =IF(ISNA(VLOOKUP($B$9&$D32&$AC$2&I$11,data!$F:$W,18,FALSE)),"-",VLOOKUP($B$9&$D32&$AC$2&I$11,data!$F:$W,18,FALSE)) -> - | Q130: =IF(ISNA(VLOOKUP($B$9&$D32&$AC$2&J$11,data!$F:$W,18,FALSE)),"-",VLOOKUP($B$9&$D32&$AC$2&J$11,data!$F:$W,18,FALSE)) -> - | R130: =IF(ISNA(VLOOKUP($B$9&$D32&$AC$2&K$11,data!$F:$W,18,FALSE)),"-",VLOOKUP($B$9&$D32&$AC$2&K$11,data!$F:$W,18,FALSE)) -> - | S130: =IF(ISNA(VLOOKUP($B$9&$D32&$AC$2&L$11,data!$F:$W,18,FALSE)),"-",VLOOKUP($B$9&$D32&$AC$2&L$11,data!$F:$W,18,FALSE)) -> - | T130: =IF(ISNA(VLOOKUP($B$9&$D32&$AC$2&M$11,data!$F:$W,18,FALSE)),"-",VLOOKUP($B$9&$D32&$AC$2&M$11,data!$F:$W,18,FALSE)) -> -
H131: =IF(ISNA(VLOOKUP($B$7&$D33&$AC$2&H$11,data!$F:$W,18,FALSE)),"-",VLOOKUP($B$7&$D33&$AC$2&H$11,data!$F:$W,18,FALSE)) -> 758.6800949 | I131: =IF(ISNA(VLOOKUP($B$7&$D33&$AC$2&I$11,data!$F:$W,18,FALSE)),"-",VLOOKUP($B$7&$D33&$AC$2&I$11,data!$F:$W,18,FALSE)) -> 0 | J131: =IF(ISNA(VLOOKUP($B$7&$D33&$AC$2&J$11,data!$F:$W,18,FALSE)),"-",VLOOKUP($B$7&$D33&$AC$2&J$11,data!$F:$W,18,FALSE)) -> 0.6758125707 | K131: =IF(ISNA(VLOOKUP($B$7&$D33&$AC$2&K$11,data!$F:$W,18,FALSE)),"-",VLOOKUP($B$7&$D33&$AC$2&K$11,data!$F:$W,18,FALSE)) -> 6.349690216 | L131: =IF(ISNA(VLOOKUP($B$7&$D33&$AC$2&L$11,data!$F:$W,18,FALSE)),"-",VLOOKUP($B$7&$D33&$AC$2&L$11,data!$F:$W,18,FALSE)) -> 153.7514355 | M131: =IF(ISNA(VLOOKUP($B$7&$D33&$AC$2&M$11,data!$F:$W,18,FALSE)),"-",VLOOKUP($B$7&$D33&$AC$2&M$11,data!$F:$W,18,FALSE)) -> 597.9031567 | O131: =IF(ISNA(VLOOKUP($B$9&$D33&$AC$2&H$11,data!$F:$W,18,FALSE)),"-",VLOOKUP($B$9&$D33&$AC$2&H$11,data!$F:$W,18,FALSE)) -> - | P131: =IF(ISNA(VLOOKUP($B$9&$D33&$AC$2&I$11,data!$F:$W,18,FALSE)),"-",VLOOKUP($B$9&$D33&$AC$2&I$11,data!$F:$W,18,FALSE)) -> - | Q131: =IF(ISNA(VLOOKUP($B$9&$D33&$AC$2&J$11,data!$F:$W,18,FALSE)),"-",VLOOKUP($B$9&$D33&$AC$2&J$11,data!$F:$W,18,FALSE)) -> - | R131: =IF(ISNA(VLOOKUP($B$9&$D33&$AC$2&K$11,data!$F:$W,18,FALSE)),"-",VLOOKUP($B$9&$D33&$AC$2&K$11,data!$F:$W,18,FALSE)) -> - | S131: =IF(ISNA(VLOOKUP($B$9&$D33&$AC$2&L$11,data!$F:$W,18,FALSE)),"-",VLOOKUP($B$9&$D33&$AC$2&L$11,data!$F:$W,18,FALSE)) -> - | T131: =IF(ISNA(VLOOKUP($B$9&$D33&$AC$2&M$11,data!$F:$W,18,FALSE)),"-",VLOOKUP($B$9&$D33&$AC$2&M$11,data!$F:$W,18,FALSE)) -> -
H132: =IF(ISNA(VLOOKUP($B$7&$D34&$AC$2&H$11,data!$F:$W,18,FALSE)),"-",VLOOKUP($B$7&$D34&$AC$2&H$11,data!$F:$W,18,FALSE)) -> 4234.530972 | I132: =IF(ISNA(VLOOKUP($B$7&$D34&$AC$2&I$11,data!$F:$W,18,FALSE)),"-",VLOOKUP($B$7&$D34&$AC$2&I$11,data!$F:$W,18,FALSE)) -> 0 | J132: =IF(ISNA(VLOOKUP($B$7&$D34&$AC$2&J$11,data!$F:$W,18,FALSE)),"-",VLOOKUP($B$7&$D34&$AC$2&J$11,data!$F:$W,18,FALSE)) -> 0.01730415378 | K132: =IF(ISNA(VLOOKUP($B$7&$D34&$AC$2&K$11,data!$F:$W,18,FALSE)),"-",VLOOKUP($B$7&$D34&$AC$2&K$11,data!$F:$W,18,FALSE)) -> 28.45055888 | L132: =IF(ISNA(VLOOKUP($B$7&$D34&$AC$2&L$11,data!$F:$W,18,FALSE)),"-",VLOOKUP($B$7&$D34&$AC$2&L$11,data!$F:$W,18,FALSE)) -> 802.5769262 | M132: =IF(ISNA(VLOOKUP($B$7&$D34&$AC$2&M$11,data!$F:$W,18,FALSE)),"-",VLOOKUP($B$7&$D34&$AC$2&M$11,data!$F:$W,18,FALSE)) -> 3403.486183 | O132: =IF(ISNA(VLOOKUP($B$9&$D34&$AC$2&H$11,data!$F:$W,18,FALSE)),"-",VLOOKUP($B$9&$D34&$AC$2&H$11,data!$F:$W,18,FALSE)) -> - | P132: =IF(ISNA(VLOOKUP($B$9&$D34&$AC$2&I$11,data!$F:$W,18,FALSE)),"-",VLOOKUP($B$9&$D34&$AC$2&I$11,data!$F:$W,18,FALSE)) -> - | Q132: =IF(ISNA(VLOOKUP($B$9&$D34&$AC$2&J$11,data!$F:$W,18,FALSE)),"-",VLOOKUP($B$9&$D34&$AC$2&J$11,data!$F:$W,18,FALSE)) -> - | R132: =IF(ISNA(VLOOKUP($B$9&$D34&$AC$2&K$11,data!$F:$W,18,FALSE)),"-",VLOOKUP($B$9&$D34&$AC$2&K$11,data!$F:$W,18,FALSE)) -> - | S132: =IF(ISNA(VLOOKUP($B$9&$D34&$AC$2&L$11,data!$F:$W,18,FALSE)),"-",VLOOKUP($B$9&$D34&$AC$2&L$11,data!$F:$W,18,FALSE)) -> - | T132: =IF(ISNA(VLOOKUP($B$9&$D34&$AC$2&M$11,data!$F:$W,18,FALSE)),"-",VLOOKUP($B$9&$D34&$AC$2&M$11,data!$F:$W,18,FALSE)) -> -
H133: =IF(ISNA(VLOOKUP($B$7&$D35&$AC$2&H$11,data!$F:$W,18,FALSE)),"-",VLOOKUP($B$7&$D35&$AC$2&H$11,data!$F:$W,18,FALSE)) -> 1069.104248 | I133: =IF(ISNA(VLOOKUP($B$7&$D35&$AC$2&I$11,data!$F:$W,18,FALSE)),"-",VLOOKUP($B$7&$D35&$AC$2&I$11,data!$F:$W,18,FALSE)) -> 0 | J133: =IF(ISNA(VLOOKUP($B$7&$D35&$AC$2&J$11,data!$F:$W,18,FALSE)),"-",VLOOKUP($B$7&$D35&$AC$2&J$11,data!$F:$W,18,FALSE)) -> 0.004326038445 | K133: =IF(ISNA(VLOOKUP($B$7&$D35&$AC$2&K$11,data!$F:$W,18,FALSE)),"-",VLOOKUP($B$7&$D35&$AC$2&K$11,data!$F:$W,18,FALSE)) -> 54.86497656 | L133: =IF(ISNA(VLOOKUP($B$7&$D35&$AC$2&L$11,data!$F:$W,18,FALSE)),"-",VLOOKUP($B$7&$D35&$AC$2&L$11,data!$F:$W,18,FALSE)) -> 289.4202899 | M133: =IF(ISNA(VLOOKUP($B$7&$D35&$AC$2&M$11,data!$F:$W,18,FALSE)),"-",VLOOKUP($B$7&$D35&$AC$2&M$11,data!$F:$W,18,FALSE)) -> 724.814656 | O133: =IF(ISNA(VLOOKUP($B$9&$D35&$AC$2&H$11,data!$F:$W,18,FALSE)),"-",VLOOKUP($B$9&$D35&$AC$2&H$11,data!$F:$W,18,FALSE)) -> - | P133: =IF(ISNA(VLOOKUP($B$9&$D35&$AC$2&I$11,data!$F:$W,18,FALSE)),"-",VLOOKUP($B$9&$D35&$AC$2&I$11,data!$F:$W,18,FALSE)) -> - | Q133: =IF(ISNA(VLOOKUP($B$9&$D35&$AC$2&J$11,data!$F:$W,18,FALSE)),"-",VLOOKUP($B$9&$D35&$AC$2&J$11,data!$F:$W,18,FALSE)) -> - | R133: =IF(ISNA(VLOOKUP($B$9&$D35&$AC$2&K$11,data!$F:$W,18,FALSE)),"-",VLOOKUP($B$9&$D35&$AC$2&K$11,data!$F:$W,18,FALSE)) -> - | S133: =IF(ISNA(VLOOKUP($B$9&$D35&$AC$2&L$11,data!$F:$W,18,FALSE)),"-",VLOOKUP($B$9&$D35&$AC$2&L$11,data!$F:$W,18,FALSE)) -> - | T133: =IF(ISNA(VLOOKUP($B$9&$D35&$AC$2&M$11,data!$F:$W,18,FALSE)),"-",VLOOKUP($B$9&$D35&$AC$2&M$11,data!$F:$W,18,FALSE)) -> -
H134: =IF(ISNA(VLOOKUP($B$7&$D36&$AC$2&H$11,data!$F:$W,18,FALSE)),"-",VLOOKUP($B$7&$D36&$AC$2&H$11,data!$F:$W,18,FALSE)) -> 385.7896641 | I134: =IF(ISNA(VLOOKUP($B$7&$D36&$AC$2&I$11,data!$F:$W,18,FALSE)),"-",VLOOKUP($B$7&$D36&$AC$2&I$11,data!$F:$W,18,FALSE)) -> 0.01666666667 | J134: =IF(ISNA(VLOOKUP($B$7&$D36&$AC$2&J$11,data!$F:$W,18,FALSE)),"-",VLOOKUP($B$7&$D36&$AC$2&J$11,data!$F:$W,18,FALSE)) -> 0.3463114487 | K134: =IF(ISNA(VLOOKUP($B$7&$D36&$AC$2&K$11,data!$F:$W,18,FALSE)),"-",VLOOKUP($B$7&$D36&$AC$2&K$11,data!$F:$W,18,FALSE)) -> 7.150113088 | L134: =IF(ISNA(VLOOKUP($B$7&$D36&$AC$2&L$11,data!$F:$W,18,FALSE)),"-",VLOOKUP($B$7&$D36&$AC$2&L$11,data!$F:$W,18,FALSE)) -> 90.14269201 | M134: =IF(ISNA(VLOOKUP($B$7&$D36&$AC$2&M$11,data!$F:$W,18,FALSE)),"-",VLOOKUP($B$7&$D36&$AC$2&M$11,data!$F:$W,18,FALSE)) -> 288.1338809 | O134: =IF(ISNA(VLOOKUP($B$9&$D36&$AC$2&H$11,data!$F:$W,18,FALSE)),"-",VLOOKUP($B$9&$D36&$AC$2&H$11,data!$F:$W,18,FALSE)) -> - | P134: =IF(ISNA(VLOOKUP($B$9&$D36&$AC$2&I$11,data!$F:$W,18,FALSE)),"-",VLOOKUP($B$9&$D36&$AC$2&I$11,data!$F:$W,18,FALSE)) -> - | Q134: =IF(ISNA(VLOOKUP($B$9&$D36&$AC$2&J$11,data!$F:$W,18,FALSE)),"-",VLOOKUP($B$9&$D36&$AC$2&J$11,data!$F:$W,18,FALSE)) -> - | R134: =IF(ISNA(VLOOKUP($B$9&$D36&$AC$2&K$11,data!$F:$W,18,FALSE)),"-",VLOOKUP($B$9&$D36&$AC$2&K$11,data!$F:$W,18,FALSE)) -> - | S134: =IF(ISNA(VLOOKUP($B$9&$D36&$AC$2&L$11,data!$F:$W,18,FALSE)),"-",VLOOKUP($B$9&$D36&$AC$2&L$11,data!$F:$W,18,FALSE)) -> - | T134: =IF(ISNA(VLOOKUP($B$9&$D36&$AC$2&M$11,data!$F:$W,18,FALSE)),"-",VLOOKUP($B$9&$D36&$AC$2&M$11,data!$F:$W,18,FALSE)) -> -
H135: =IF(ISNA(VLOOKUP($B$7&$D37&$AC$2&H$11,data!$F:$W,18,FALSE)),"-",VLOOKUP($B$7&$D37&$AC$2&H$11,data!$F:$W,18,FALSE)) -> 996.3962619 | I135: =IF(ISNA(VLOOKUP($B$7&$D37&$AC$2&I$11,data!$F:$W,18,FALSE)),"-",VLOOKUP($B$7&$D37&$AC$2&I$11,data!$F:$W,18,FALSE)) -> 0 | J135: =IF(ISNA(VLOOKUP($B$7&$D37&$AC$2&J$11,data!$F:$W,18,FALSE)),"-",VLOOKUP($B$7&$D37&$AC$2&J$11,data!$F:$W,18,FALSE)) -> 0 | K135: =IF(ISNA(VLOOKUP($B$7&$D37&$AC$2&K$11,data!$F:$W,18,FALSE)),"-",VLOOKUP($B$7&$D37&$AC$2&K$11,data!$F:$W,18,FALSE)) -> 0.3517316017 | L135: =IF(ISNA(VLOOKUP($B$7&$D37&$AC$2&L$11,data!$F:$W,18,FALSE)),"-",VLOOKUP($B$7&$D37&$AC$2&L$11,data!$F:$W,18,FALSE)) -> 75.87178942 | M135: =IF(ISNA(VLOOKUP($B$7&$D37&$AC$2&M$11,data!$F:$W,18,FALSE)),"-",VLOOKUP($B$7&$D37&$AC$2&M$11,data!$F:$W,18,FALSE)) -> 920.1727408 | O135: =IF(ISNA(VLOOKUP($B$9&$D37&$AC$2&H$11,data!$F:$W,18,FALSE)),"-",VLOOKUP($B$9&$D37&$AC$2&H$11,data!$F:$W,18,FALSE)) -> - | P135: =IF(ISNA(VLOOKUP($B$9&$D37&$AC$2&I$11,data!$F:$W,18,FALSE)),"-",VLOOKUP($B$9&$D37&$AC$2&I$11,data!$F:$W,18,FALSE)) -> - | Q135: =IF(ISNA(VLOOKUP($B$9&$D37&$AC$2&J$11,data!$F:$W,18,FALSE)),"-",VLOOKUP($B$9&$D37&$AC$2&J$11,data!$F:$W,18,FALSE)) -> - | R135: =IF(ISNA(VLOOKUP($B$9&$D37&$AC$2&K$11,data!$F:$W,18,FALSE)),"-",VLOOKUP($B$9&$D37&$AC$2&K$11,data!$F:$W,18,FALSE)) -> - | S135: =IF(ISNA(VLOOKUP($B$9&$D37&$AC$2&L$11,data!$F:$W,18,FALSE)),"-",VLOOKUP($B$9&$D37&$AC$2&L$11,data!$F:$W,18,FALSE)) -> - | T135: =IF(ISNA(VLOOKUP($B$9&$D37&$AC$2&M$11,data!$F:$W,18,FALSE)),"-",VLOOKUP($B$9&$D37&$AC$2&M$11,data!$F:$W,18,FALSE)) -> -
H136: =IF(ISNA(VLOOKUP($B$7&$D38&$AC$2&H$11,data!$F:$W,18,FALSE)),"-",VLOOKUP($B$7&$D38&$AC$2&H$11,data!$F:$W,18,FALSE)) -> 430.1343484 | I136: =IF(ISNA(VLOOKUP($B$7&$D38&$AC$2&I$11,data!$F:$W,18,FALSE)),"-",VLOOKUP($B$7&$D38&$AC$2&I$11,data!$F:$W,18,FALSE)) -> 1.03683596 | J136: =IF(ISNA(VLOOKUP($B$7&$D38&$AC$2&J$11,data!$F:$W,18,FALSE)),"-",VLOOKUP($B$7&$D38&$AC$2&J$11,data!$F:$W,18,FALSE)) -> 0.6714865323 | K136: =IF(ISNA(VLOOKUP($B$7&$D38&$AC$2&K$11,data!$F:$W,18,FALSE)),"-",VLOOKUP($B$7&$D38&$AC$2&K$11,data!$F:$W,18,FALSE)) -> 9.631166022 | L136: =IF(ISNA(VLOOKUP($B$7&$D38&$AC$2&L$11,data!$F:$W,18,FALSE)),"-",VLOOKUP($B$7&$D38&$AC$2&L$11,data!$F:$W,18,FALSE)) -> 99.4370871 | M136: =IF(ISNA(VLOOKUP($B$7&$D38&$AC$2&M$11,data!$F:$W,18,FALSE)),"-",VLOOKUP($B$7&$D38&$AC$2&M$11,data!$F:$W,18,FALSE)) -> 319.3577728 | O136: =IF(ISNA(VLOOKUP($B$9&$D38&$AC$2&H$11,data!$F:$W,18,FALSE)),"-",VLOOKUP($B$9&$D38&$AC$2&H$11,data!$F:$W,18,FALSE)) -> - | P136: =IF(ISNA(VLOOKUP($B$9&$D38&$AC$2&I$11,data!$F:$W,18,FALSE)),"-",VLOOKUP($B$9&$D38&$AC$2&I$11,data!$F:$W,18,FALSE)) -> - | Q136: =IF(ISNA(VLOOKUP($B$9&$D38&$AC$2&J$11,data!$F:$W,18,FALSE)),"-",VLOOKUP($B$9&$D38&$AC$2&J$11,data!$F:$W,18,FALSE)) -> - | R136: =IF(ISNA(VLOOKUP($B$9&$D38&$AC$2&K$11,data!$F:$W,18,FALSE)),"-",VLOOKUP($B$9&$D38&$AC$2&K$11,data!$F:$W,18,FALSE)) -> - | S136: =IF(ISNA(VLOOKUP($B$9&$D38&$AC$2&L$11,data!$F:$W,18,FALSE)),"-",VLOOKUP($B$9&$D38&$AC$2&L$11,data!$F:$W,18,FALSE)) -> - | T136: =IF(ISNA(VLOOKUP($B$9&$D38&$AC$2&M$11,data!$F:$W,18,FALSE)),"-",VLOOKUP($B$9&$D38&$AC$2&M$11,data!$F:$W,18,FALSE)) -> -
H137: =IF(ISNA(VLOOKUP($B$7&$D39&$AC$2&H$11,data!$F:$W,18,FALSE)),"-",VLOOKUP($B$7&$D39&$AC$2&H$11,data!$F:$W,18,FALSE)) -> 560.8957395 | I137: =IF(ISNA(VLOOKUP($B$7&$D39&$AC$2&I$11,data!$F:$W,18,FALSE)),"-",VLOOKUP($B$7&$D39&$AC$2&I$11,data!$F:$W,18,FALSE)) -> 0 | J137: =IF(ISNA(VLOOKUP($B$7&$D39&$AC$2&J$11,data!$F:$W,18,FALSE)),"-",VLOOKUP($B$7&$D39&$AC$2&J$11,data!$F:$W,18,FALSE)) -> 0 | K137: =IF(ISNA(VLOOKUP($B$7&$D39&$AC$2&K$11,data!$F:$W,18,FALSE)),"-",VLOOKUP($B$7&$D39&$AC$2&K$11,data!$F:$W,18,FALSE)) -> 4.792507785 | L137: =IF(ISNA(VLOOKUP($B$7&$D39&$AC$2&L$11,data!$F:$W,18,FALSE)),"-",VLOOKUP($B$7&$D39&$AC$2&L$11,data!$F:$W,18,FALSE)) -> 57.86702676 | M137: =IF(ISNA(VLOOKUP($B$7&$D39&$AC$2&M$11,data!$F:$W,18,FALSE)),"-",VLOOKUP($B$7&$D39&$AC$2&M$11,data!$F:$W,18,FALSE)) -> 498.2362049 | O137: =IF(ISNA(VLOOKUP($B$9&$D39&$AC$2&H$11,data!$F:$W,18,FALSE)),"-",VLOOKUP($B$9&$D39&$AC$2&H$11,data!$F:$W,18,FALSE)) -> - | P137: =IF(ISNA(VLOOKUP($B$9&$D39&$AC$2&I$11,data!$F:$W,18,FALSE)),"-",VLOOKUP($B$9&$D39&$AC$2&I$11,data!$F:$W,18,FALSE)) -> - | Q137: =IF(ISNA(VLOOKUP($B$9&$D39&$AC$2&J$11,data!$F:$W,18,FALSE)),"-",VLOOKUP($B$9&$D39&$AC$2&J$11,data!$F:$W,18,FALSE)) -> - | R137: =IF(ISNA(VLOOKUP($B$9&$D39&$AC$2&K$11,data!$F:$W,18,FALSE)),"-",VLOOKUP($B$9&$D39&$AC$2&K$11,data!$F:$W,18,FALSE)) -> - | S137: =IF(ISNA(VLOOKUP($B$9&$D39&$AC$2&L$11,data!$F:$W,18,FALSE)),"-",VLOOKUP($B$9&$D39&$AC$2&L$11,data!$F:$W,18,FALSE)) -> - | T137: =IF(ISNA(VLOOKUP($B$9&$D39&$AC$2&M$11,data!$F:$W,18,FALSE)),"-",VLOOKUP($B$9&$D39&$AC$2&M$11,data!$F:$W,18,FALSE)) -> -
H138: =IF(ISNA(VLOOKUP($B$7&$D40&$AC$2&H$11,data!$F:$W,18,FALSE)),"-",VLOOKUP($B$7&$D40&$AC$2&H$11,data!$F:$W,18,FALSE)) -> 549.8375889 | I138: =IF(ISNA(VLOOKUP($B$7&$D40&$AC$2&I$11,data!$F:$W,18,FALSE)),"-",VLOOKUP($B$7&$D40&$AC$2&I$11,data!$F:$W,18,FALSE)) -> 0.01486988848 | J138: =IF(ISNA(VLOOKUP($B$7&$D40&$AC$2&J$11,data!$F:$W,18,FALSE)),"-",VLOOKUP($B$7&$D40&$AC$2&J$11,data!$F:$W,18,FALSE)) -> 2.030285936 | K138: =IF(ISNA(VLOOKUP($B$7&$D40&$AC$2&K$11,data!$F:$W,18,FALSE)),"-",VLOOKUP($B$7&$D40&$AC$2&K$11,data!$F:$W,18,FALSE)) -> 12.09685542 | L138: =IF(ISNA(VLOOKUP($B$7&$D40&$AC$2&L$11,data!$F:$W,18,FALSE)),"-",VLOOKUP($B$7&$D40&$AC$2&L$11,data!$F:$W,18,FALSE)) -> 87.52951557 | M138: =IF(ISNA(VLOOKUP($B$7&$D40&$AC$2&M$11,data!$F:$W,18,FALSE)),"-",VLOOKUP($B$7&$D40&$AC$2&M$11,data!$F:$W,18,FALSE)) -> 448.1660621 | O138: =IF(ISNA(VLOOKUP($B$9&$D40&$AC$2&H$11,data!$F:$W,18,FALSE)),"-",VLOOKUP($B$9&$D40&$AC$2&H$11,data!$F:$W,18,FALSE)) -> - | P138: =IF(ISNA(VLOOKUP($B$9&$D40&$AC$2&I$11,data!$F:$W,18,FALSE)),"-",VLOOKUP($B$9&$D40&$AC$2&I$11,data!$F:$W,18,FALSE)) -> - | Q138: =IF(ISNA(VLOOKUP($B$9&$D40&$AC$2&J$11,data!$F:$W,18,FALSE)),"-",VLOOKUP($B$9&$D40&$AC$2&J$11,data!$F:$W,18,FALSE)) -> - | R138: =IF(ISNA(VLOOKUP($B$9&$D40&$AC$2&K$11,data!$F:$W,18,FALSE)),"-",VLOOKUP($B$9&$D40&$AC$2&K$11,data!$F:$W,18,FALSE)) -> - | S138: =IF(ISNA(VLOOKUP($B$9&$D40&$AC$2&L$11,data!$F:$W,18,FALSE)),"-",VLOOKUP($B$9&$D40&$AC$2&L$11,data!$F:$W,18,FALSE)) -> - | T138: =IF(ISNA(VLOOKUP($B$9&$D40&$AC$2&M$11,data!$F:$W,18,FALSE)),"-",VLOOKUP($B$9&$D40&$AC$2&M$11,data!$F:$W,18,FALSE)) -> -
H139: =IF(ISNA(VLOOKUP($B$7&$D41&$AC$2&H$11,data!$F:$W,18,FALSE)),"-",VLOOKUP($B$7&$D41&$AC$2&H$11,data!$F:$W,18,FALSE)) -> 278.0777548 | I139: =IF(ISNA(VLOOKUP($B$7&$D41&$AC$2&I$11,data!$F:$W,18,FALSE)),"-",VLOOKUP($B$7&$D41&$AC$2&I$11,data!$F:$W,18,FALSE)) -> 0 | J139: =IF(ISNA(VLOOKUP($B$7&$D41&$AC$2&J$11,data!$F:$W,18,FALSE)),"-",VLOOKUP($B$7&$D41&$AC$2&J$11,data!$F:$W,18,FALSE)) -> 0 | K139: =IF(ISNA(VLOOKUP($B$7&$D41&$AC$2&K$11,data!$F:$W,18,FALSE)),"-",VLOOKUP($B$7&$D41&$AC$2&K$11,data!$F:$W,18,FALSE)) -> 1.102374623 | L139: =IF(ISNA(VLOOKUP($B$7&$D41&$AC$2&L$11,data!$F:$W,18,FALSE)),"-",VLOOKUP($B$7&$D41&$AC$2&L$11,data!$F:$W,18,FALSE)) -> 44.29853883 | M139: =IF(ISNA(VLOOKUP($B$7&$D41&$AC$2&M$11,data!$F:$W,18,FALSE)),"-",VLOOKUP($B$7&$D41&$AC$2&M$11,data!$F:$W,18,FALSE)) -> 232.6768414 | O139: =IF(ISNA(VLOOKUP($B$9&$D41&$AC$2&H$11,data!$F:$W,18,FALSE)),"-",VLOOKUP($B$9&$D41&$AC$2&H$11,data!$F:$W,18,FALSE)) -> - | P139: =IF(ISNA(VLOOKUP($B$9&$D41&$AC$2&I$11,data!$F:$W,18,FALSE)),"-",VLOOKUP($B$9&$D41&$AC$2&I$11,data!$F:$W,18,FALSE)) -> - | Q139: =IF(ISNA(VLOOKUP($B$9&$D41&$AC$2&J$11,data!$F:$W,18,FALSE)),"-",VLOOKUP($B$9&$D41&$AC$2&J$11,data!$F:$W,18,FALSE)) -> - | R139: =IF(ISNA(VLOOKUP($B$9&$D41&$AC$2&K$11,data!$F:$W,18,FALSE)),"-",VLOOKUP($B$9&$D41&$AC$2&K$11,data!$F:$W,18,FALSE)) -> - | S139: =IF(ISNA(VLOOKUP($B$9&$D41&$AC$2&L$11,data!$F:$W,18,FALSE)),"-",VLOOKUP($B$9&$D41&$AC$2&L$11,data!$F:$W,18,FALSE)) -> - | T139: =IF(ISNA(VLOOKUP($B$9&$D41&$AC$2&M$11,data!$F:$W,18,FALSE)),"-",VLOOKUP($B$9&$D41&$AC$2&M$11,data!$F:$W,18,FALSE)) -> -
H140: =IF(ISNA(VLOOKUP($B$7&$D42&$AC$2&H$11,data!$F:$W,18,FALSE)),"-",VLOOKUP($B$7&$D42&$AC$2&H$11,data!$F:$W,18,FALSE)) -> 407.2667734 | I140: =IF(ISNA(VLOOKUP($B$7&$D42&$AC$2&I$11,data!$F:$W,18,FALSE)),"-",VLOOKUP($B$7&$D42&$AC$2&I$11,data!$F:$W,18,FALSE)) -> 2.203023457 | J140: =IF(ISNA(VLOOKUP($B$7&$D42&$AC$2&J$11,data!$F:$W,18,FALSE)),"-",VLOOKUP($B$7&$D42&$AC$2&J$11,data!$F:$W,18,FALSE)) -> 2.737769543 | K140: =IF(ISNA(VLOOKUP($B$7&$D42&$AC$2&K$11,data!$F:$W,18,FALSE)),"-",VLOOKUP($B$7&$D42&$AC$2&K$11,data!$F:$W,18,FALSE)) -> 10.07069797 | L140: =IF(ISNA(VLOOKUP($B$7&$D42&$AC$2&L$11,data!$F:$W,18,FALSE)),"-",VLOOKUP($B$7&$D42&$AC$2&L$11,data!$F:$W,18,FALSE)) -> 53.22601453 | M140: =IF(ISNA(VLOOKUP($B$7&$D42&$AC$2&M$11,data!$F:$W,18,FALSE)),"-",VLOOKUP($B$7&$D42&$AC$2&M$11,data!$F:$W,18,FALSE)) -> 339.0292679 | O140: =IF(ISNA(VLOOKUP($B$9&$D42&$AC$2&H$11,data!$F:$W,18,FALSE)),"-",VLOOKUP($B$9&$D42&$AC$2&H$11,data!$F:$W,18,FALSE)) -> - | P140: =IF(ISNA(VLOOKUP($B$9&$D42&$AC$2&I$11,data!$F:$W,18,FALSE)),"-",VLOOKUP($B$9&$D42&$AC$2&I$11,data!$F:$W,18,FALSE)) -> - | Q140: =IF(ISNA(VLOOKUP($B$9&$D42&$AC$2&J$11,data!$F:$W,18,FALSE)),"-",VLOOKUP($B$9&$D42&$AC$2&J$11,data!$F:$W,18,FALSE)) -> - | R140: =IF(ISNA(VLOOKUP($B$9&$D42&$AC$2&K$11,data!$F:$W,18,FALSE)),"-",VLOOKUP($B$9&$D42&$AC$2&K$11,data!$F:$W,18,FALSE)) -> - | S140: =IF(ISNA(VLOOKUP($B$9&$D42&$AC$2&L$11,data!$F:$W,18,FALSE)),"-",VLOOKUP($B$9&$D42&$AC$2&L$11,data!$F:$W,18,FALSE)) -> - | T140: =IF(ISNA(VLOOKUP($B$9&$D42&$AC$2&M$11,data!$F:$W,18,FALSE)),"-",VLOOKUP($B$9&$D42&$AC$2&M$11,data!$F:$W,18,FALSE)) -> -
H141: =IF(ISNA(VLOOKUP($B$7&$D43&$AC$2&H$11,data!$F:$W,18,FALSE)),"-",VLOOKUP($B$7&$D43&$AC$2&H$11,data!$F:$W,18,FALSE)) -> 2546.347924 | I141: =IF(ISNA(VLOOKUP($B$7&$D43&$AC$2&I$11,data!$F:$W,18,FALSE)),"-",VLOOKUP($B$7&$D43&$AC$2&I$11,data!$F:$W,18,FALSE)) -> 16.1714508 | J141: =IF(ISNA(VLOOKUP($B$7&$D43&$AC$2&J$11,data!$F:$W,18,FALSE)),"-",VLOOKUP($B$7&$D43&$AC$2&J$11,data!$F:$W,18,FALSE)) -> 12.3375723 | K141: =IF(ISNA(VLOOKUP($B$7&$D43&$AC$2&K$11,data!$F:$W,18,FALSE)),"-",VLOOKUP($B$7&$D43&$AC$2&K$11,data!$F:$W,18,FALSE)) -> 101.5420608 | L141: =IF(ISNA(VLOOKUP($B$7&$D43&$AC$2&L$11,data!$F:$W,18,FALSE)),"-",VLOOKUP($B$7&$D43&$AC$2&L$11,data!$F:$W,18,FALSE)) -> 579.4755971 | M141: =IF(ISNA(VLOOKUP($B$7&$D43&$AC$2&M$11,data!$F:$W,18,FALSE)),"-",VLOOKUP($B$7&$D43&$AC$2&M$11,data!$F:$W,18,FALSE)) -> 1836.821243 | O141: =IF(ISNA(VLOOKUP($B$9&$D43&$AC$2&H$11,data!$F:$W,18,FALSE)),"-",VLOOKUP($B$9&$D43&$AC$2&H$11,data!$F:$W,18,FALSE)) -> - | P141: =IF(ISNA(VLOOKUP($B$9&$D43&$AC$2&I$11,data!$F:$W,18,FALSE)),"-",VLOOKUP($B$9&$D43&$AC$2&I$11,data!$F:$W,18,FALSE)) -> - | Q141: =IF(ISNA(VLOOKUP($B$9&$D43&$AC$2&J$11,data!$F:$W,18,FALSE)),"-",VLOOKUP($B$9&$D43&$AC$2&J$11,data!$F:$W,18,FALSE)) -> - | R141: =IF(ISNA(VLOOKUP($B$9&$D43&$AC$2&K$11,data!$F:$W,18,FALSE)),"-",VLOOKUP($B$9&$D43&$AC$2&K$11,data!$F:$W,18,FALSE)) -> - | S141: =IF(ISNA(VLOOKUP($B$9&$D43&$AC$2&L$11,data!$F:$W,18,FALSE)),"-",VLOOKUP($B$9&$D43&$AC$2&L$11,data!$F:$W,18,FALSE)) -> - | T141: =IF(ISNA(VLOOKUP($B$9&$D43&$AC$2&M$11,data!$F:$W,18,FALSE)),"-",VLOOKUP($B$9&$D43&$AC$2&M$11,data!$F:$W,18,FALSE)) -> -
H142: =IF(ISNA(VLOOKUP($B$7&$D44&$AC$2&H$11,data!$F:$W,18,FALSE)),"-",VLOOKUP($B$7&$D44&$AC$2&H$11,data!$F:$W,18,FALSE)) -> - | I142: =IF(ISNA(VLOOKUP($B$7&$D44&$AC$2&I$11,data!$F:$W,18,FALSE)),"-",VLOOKUP($B$7&$D44&$AC$2&I$11,data!$F:$W,18,FALSE)) -> - | J142: =IF(ISNA(VLOOKUP($B$7&$D44&$AC$2&J$11,data!$F:$W,18,FALSE)),"-",VLOOKUP($B$7&$D44&$AC$2&J$11,data!$F:$W,18,FALSE)) -> - | K142: =IF(ISNA(VLOOKUP($B$7&$D44&$AC$2&K$11,data!$F:$W,18,FALSE)),"-",VLOOKUP($B$7&$D44&$AC$2&K$11,data!$F:$W,18,FALSE)) -> - | L142: =IF(ISNA(VLOOKUP($B$7&$D44&$AC$2&L$11,data!$F:$W,18,FALSE)),"-",VLOOKUP($B$7&$D44&$AC$2&L$11,data!$F:$W,18,FALSE)) -> - | M142: =IF(ISNA(VLOOKUP($B$7&$D44&$AC$2&M$11,data!$F:$W,18,FALSE)),"-",VLOOKUP($B$7&$D44&$AC$2&M$11,data!$F:$W,18,FALSE)) -> - | O142: =IF(ISNA(VLOOKUP($B$9&$D44&$AC$2&H$11,data!$F:$W,18,FALSE)),"-",VLOOKUP($B$9&$D44&$AC$2&H$11,data!$F:$W,18,FALSE)) -> - | P142: =IF(ISNA(VLOOKUP($B$9&$D44&$AC$2&I$11,data!$F:$W,18,FALSE)),"-",VLOOKUP($B$9&$D44&$AC$2&I$11,data!$F:$W,18,FALSE)) -> - | Q142: =IF(ISNA(VLOOKUP($B$9&$D44&$AC$2&J$11,data!$F:$W,18,FALSE)),"-",VLOOKUP($B$9&$D44&$AC$2&J$11,data!$F:$W,18,FALSE)) -> - | R142: =IF(ISNA(VLOOKUP($B$9&$D44&$AC$2&K$11,data!$F:$W,18,FALSE)),"-",VLOOKUP($B$9&$D44&$AC$2&K$11,data!$F:$W,18,FALSE)) -> - | S142: =IF(ISNA(VLOOKUP($B$9&$D44&$AC$2&L$11,data!$F:$W,18,FALSE)),"-",VLOOKUP($B$9&$D44&$AC$2&L$11,data!$F:$W,18,FALSE)) -> - | T142: =IF(ISNA(VLOOKUP($B$9&$D44&$AC$2&M$11,data!$F:$W,18,FALSE)),"-",VLOOKUP($B$9&$D44&$AC$2&M$11,data!$F:$W,18,FALSE)) -> -
H143: =IF(ISNA(VLOOKUP($B$7&$D45&$AC$2&H$11,data!$F:$W,18,FALSE)),"-",VLOOKUP($B$7&$D45&$AC$2&H$11,data!$F:$W,18,FALSE)) -> - | I143: =IF(ISNA(VLOOKUP($B$7&$D45&$AC$2&I$11,data!$F:$W,18,FALSE)),"-",VLOOKUP($B$7&$D45&$AC$2&I$11,data!$F:$W,18,FALSE)) -> - | J143: =IF(ISNA(VLOOKUP($B$7&$D45&$AC$2&J$11,data!$F:$W,18,FALSE)),"-",VLOOKUP($B$7&$D45&$AC$2&J$11,data!$F:$W,18,FALSE)) -> - | K143: =IF(ISNA(VLOOKUP($B$7&$D45&$AC$2&K$11,data!$F:$W,18,FALSE)),"-",VLOOKUP($B$7&$D45&$AC$2&K$11,data!$F:$W,18,FALSE)) -> - | L143: =IF(ISNA(VLOOKUP($B$7&$D45&$AC$2&L$11,data!$F:$W,18,FALSE)),"-",VLOOKUP($B$7&$D45&$AC$2&L$11,data!$F:$W,18,FALSE)) -> - | M143: =IF(ISNA(VLOOKUP($B$7&$D45&$AC$2&M$11,data!$F:$W,18,FALSE)),"-",VLOOKUP($B$7&$D45&$AC$2&M$11,data!$F:$W,18,FALSE)) -> - | O143: =IF(ISNA(VLOOKUP($B$9&$D45&$AC$2&H$11,data!$F:$W,18,FALSE)),"-",VLOOKUP($B$9&$D45&$AC$2&H$11,data!$F:$W,18,FALSE)) -> - | P143: =IF(ISNA(VLOOKUP($B$9&$D45&$AC$2&I$11,data!$F:$W,18,FALSE)),"-",VLOOKUP($B$9&$D45&$AC$2&I$11,data!$F:$W,18,FALSE)) -> - | Q143: =IF(ISNA(VLOOKUP($B$9&$D45&$AC$2&J$11,data!$F:$W,18,FALSE)),"-",VLOOKUP($B$9&$D45&$AC$2&J$11,data!$F:$W,18,FALSE)) -> - | R143: =IF(ISNA(VLOOKUP($B$9&$D45&$AC$2&K$11,data!$F:$W,18,FALSE)),"-",VLOOKUP($B$9&$D45&$AC$2&K$11,data!$F:$W,18,FALSE)) -> - | S143: =IF(ISNA(VLOOKUP($B$9&$D45&$AC$2&L$11,data!$F:$W,18,FALSE)),"-",VLOOKUP($B$9&$D45&$AC$2&L$11,data!$F:$W,18,FALSE)) -> - | T143: =IF(ISNA(VLOOKUP($B$9&$D45&$AC$2&M$11,data!$F:$W,18,FALSE)),"-",VLOOKUP($B$9&$D45&$AC$2&M$11,data!$F:$W,18,FALSE)) -> -
H144: =IF(ISNA(VLOOKUP($B$7&$D46&$AC$2&H$11,data!$F:$W,18,FALSE)),"-",VLOOKUP($B$7&$D46&$AC$2&H$11,data!$F:$W,18,FALSE)) -> 7381.577189 | I144: =IF(ISNA(VLOOKUP($B$7&$D46&$AC$2&I$11,data!$F:$W,18,FALSE)),"-",VLOOKUP($B$7&$D46&$AC$2&I$11,data!$F:$W,18,FALSE)) -> 0 | J144: =IF(ISNA(VLOOKUP($B$7&$D46&$AC$2&J$11,data!$F:$W,18,FALSE)),"-",VLOOKUP($B$7&$D46&$AC$2&J$11,data!$F:$W,18,FALSE)) -> 0.7022706186 | K144: =IF(ISNA(VLOOKUP($B$7&$D46&$AC$2&K$11,data!$F:$W,18,FALSE)),"-",VLOOKUP($B$7&$D46&$AC$2&K$11,data!$F:$W,18,FALSE)) -> 105.2173174 | L144: =IF(ISNA(VLOOKUP($B$7&$D46&$AC$2&L$11,data!$F:$W,18,FALSE)),"-",VLOOKUP($B$7&$D46&$AC$2&L$11,data!$F:$W,18,FALSE)) -> 1054.169575 | M144: =IF(ISNA(VLOOKUP($B$7&$D46&$AC$2&M$11,data!$F:$W,18,FALSE)),"-",VLOOKUP($B$7&$D46&$AC$2&M$11,data!$F:$W,18,FALSE)) -> 6221.488025 | O144: =IF(ISNA(VLOOKUP($B$9&$D46&$AC$2&H$11,data!$F:$W,18,FALSE)),"-",VLOOKUP($B$9&$D46&$AC$2&H$11,data!$F:$W,18,FALSE)) -> - | P144: =IF(ISNA(VLOOKUP($B$9&$D46&$AC$2&I$11,data!$F:$W,18,FALSE)),"-",VLOOKUP($B$9&$D46&$AC$2&I$11,data!$F:$W,18,FALSE)) -> - | Q144: =IF(ISNA(VLOOKUP($B$9&$D46&$AC$2&J$11,data!$F:$W,18,FALSE)),"-",VLOOKUP($B$9&$D46&$AC$2&J$11,data!$F:$W,18,FALSE)) -> - | R144: =IF(ISNA(VLOOKUP($B$9&$D46&$AC$2&K$11,data!$F:$W,18,FALSE)),"-",VLOOKUP($B$9&$D46&$AC$2&K$11,data!$F:$W,18,FALSE)) -> - | S144: =IF(ISNA(VLOOKUP($B$9&$D46&$AC$2&L$11,data!$F:$W,18,FALSE)),"-",VLOOKUP($B$9&$D46&$AC$2&L$11,data!$F:$W,18,FALSE)) -> - | T144: =IF(ISNA(VLOOKUP($B$9&$D46&$AC$2&M$11,data!$F:$W,18,FALSE)),"-",VLOOKUP($B$9&$D46&$AC$2&M$11,data!$F:$W,18,FALSE)) -> -
H145: =IF(ISNA(VLOOKUP($B$7&$D47&$AC$2&H$11,data!$F:$W,18,FALSE)),"-",VLOOKUP($B$7&$D47&$AC$2&H$11,data!$F:$W,18,FALSE)) -> 4461.258593 | I145: =IF(ISNA(VLOOKUP($B$7&$D47&$AC$2&I$11,data!$F:$W,18,FALSE)),"-",VLOOKUP($B$7&$D47&$AC$2&I$11,data!$F:$W,18,FALSE)) -> 1.164228535 | J145: =IF(ISNA(VLOOKUP($B$7&$D47&$AC$2&J$11,data!$F:$W,18,FALSE)),"-",VLOOKUP($B$7&$D47&$AC$2&J$11,data!$F:$W,18,FALSE)) -> 2.850361486 | K145: =IF(ISNA(VLOOKUP($B$7&$D47&$AC$2&K$11,data!$F:$W,18,FALSE)),"-",VLOOKUP($B$7&$D47&$AC$2&K$11,data!$F:$W,18,FALSE)) -> 39.68377455 | L145: =IF(ISNA(VLOOKUP($B$7&$D47&$AC$2&L$11,data!$F:$W,18,FALSE)),"-",VLOOKUP($B$7&$D47&$AC$2&L$11,data!$F:$W,18,FALSE)) -> 303.1245779 | M145: =IF(ISNA(VLOOKUP($B$7&$D47&$AC$2&M$11,data!$F:$W,18,FALSE)),"-",VLOOKUP($B$7&$D47&$AC$2&M$11,data!$F:$W,18,FALSE)) -> 4114.435651 | O145: =IF(ISNA(VLOOKUP($B$9&$D47&$AC$2&H$11,data!$F:$W,18,FALSE)),"-",VLOOKUP($B$9&$D47&$AC$2&H$11,data!$F:$W,18,FALSE)) -> - | P145: =IF(ISNA(VLOOKUP($B$9&$D47&$AC$2&I$11,data!$F:$W,18,FALSE)),"-",VLOOKUP($B$9&$D47&$AC$2&I$11,data!$F:$W,18,FALSE)) -> - | Q145: =IF(ISNA(VLOOKUP($B$9&$D47&$AC$2&J$11,data!$F:$W,18,FALSE)),"-",VLOOKUP($B$9&$D47&$AC$2&J$11,data!$F:$W,18,FALSE)) -> - | R145: =IF(ISNA(VLOOKUP($B$9&$D47&$AC$2&K$11,data!$F:$W,18,FALSE)),"-",VLOOKUP($B$9&$D47&$AC$2&K$11,data!$F:$W,18,FALSE)) -> - | S145: =IF(ISNA(VLOOKUP($B$9&$D47&$AC$2&L$11,data!$F:$W,18,FALSE)),"-",VLOOKUP($B$9&$D47&$AC$2&L$11,data!$F:$W,18,FALSE)) -> - | T145: =IF(ISNA(VLOOKUP($B$9&$D47&$AC$2&M$11,data!$F:$W,18,FALSE)),"-",VLOOKUP($B$9&$D47&$AC$2&M$11,data!$F:$W,18,FALSE)) -> -
H146: =IF(ISNA(VLOOKUP($B$7&$D48&$AC$2&H$11,data!$F:$W,18,FALSE)),"-",VLOOKUP($B$7&$D48&$AC$2&H$11,data!$F:$W,18,FALSE)) -> 881.3537745 | I146: =IF(ISNA(VLOOKUP($B$7&$D48&$AC$2&I$11,data!$F:$W,18,FALSE)),"-",VLOOKUP($B$7&$D48&$AC$2&I$11,data!$F:$W,18,FALSE)) -> 0 | J146: =IF(ISNA(VLOOKUP($B$7&$D48&$AC$2&J$11,data!$F:$W,18,FALSE)),"-",VLOOKUP($B$7&$D48&$AC$2&J$11,data!$F:$W,18,FALSE)) -> 0 | K146: =IF(ISNA(VLOOKUP($B$7&$D48&$AC$2&K$11,data!$F:$W,18,FALSE)),"-",VLOOKUP($B$7&$D48&$AC$2&K$11,data!$F:$W,18,FALSE)) -> 1.333333333 | L146: =IF(ISNA(VLOOKUP($B$7&$D48&$AC$2&L$11,data!$F:$W,18,FALSE)),"-",VLOOKUP($B$7&$D48&$AC$2&L$11,data!$F:$W,18,FALSE)) -> 16.96058131 | M146: =IF(ISNA(VLOOKUP($B$7&$D48&$AC$2&M$11,data!$F:$W,18,FALSE)),"-",VLOOKUP($B$7&$D48&$AC$2&M$11,data!$F:$W,18,FALSE)) -> 863.0598598 | O146: =IF(ISNA(VLOOKUP($B$9&$D48&$AC$2&H$11,data!$F:$W,18,FALSE)),"-",VLOOKUP($B$9&$D48&$AC$2&H$11,data!$F:$W,18,FALSE)) -> - | P146: =IF(ISNA(VLOOKUP($B$9&$D48&$AC$2&I$11,data!$F:$W,18,FALSE)),"-",VLOOKUP($B$9&$D48&$AC$2&I$11,data!$F:$W,18,FALSE)) -> - | Q146: =IF(ISNA(VLOOKUP($B$9&$D48&$AC$2&J$11,data!$F:$W,18,FALSE)),"-",VLOOKUP($B$9&$D48&$AC$2&J$11,data!$F:$W,18,FALSE)) -> - | R146: =IF(ISNA(VLOOKUP($B$9&$D48&$AC$2&K$11,data!$F:$W,18,FALSE)),"-",VLOOKUP($B$9&$D48&$AC$2&K$11,data!$F:$W,18,FALSE)) -> - | S146: =IF(ISNA(VLOOKUP($B$9&$D48&$AC$2&L$11,data!$F:$W,18,FALSE)),"-",VLOOKUP($B$9&$D48&$AC$2&L$11,data!$F:$W,18,FALSE)) -> - | T146: =IF(ISNA(VLOOKUP($B$9&$D48&$AC$2&M$11,data!$F:$W,18,FALSE)),"-",VLOOKUP($B$9&$D48&$AC$2&M$11,data!$F:$W,18,FALSE)) -> -
H147: =IF(ISNA(VLOOKUP($B$7&$D49&$AC$2&H$11,data!$F:$W,18,FALSE)),"-",VLOOKUP($B$7&$D49&$AC$2&H$11,data!$F:$W,18,FALSE)) -> 361.8847172 | I147: =IF(ISNA(VLOOKUP($B$7&$D49&$AC$2&I$11,data!$F:$W,18,FALSE)),"-",VLOOKUP($B$7&$D49&$AC$2&I$11,data!$F:$W,18,FALSE)) -> 0 | J147: =IF(ISNA(VLOOKUP($B$7&$D49&$AC$2&J$11,data!$F:$W,18,FALSE)),"-",VLOOKUP($B$7&$D49&$AC$2&J$11,data!$F:$W,18,FALSE)) -> 0 | K147: =IF(ISNA(VLOOKUP($B$7&$D49&$AC$2&K$11,data!$F:$W,18,FALSE)),"-",VLOOKUP($B$7&$D49&$AC$2&K$11,data!$F:$W,18,FALSE)) -> 0.3333333333 | L147: =IF(ISNA(VLOOKUP($B$7&$D49&$AC$2&L$11,data!$F:$W,18,FALSE)),"-",VLOOKUP($B$7&$D49&$AC$2&L$11,data!$F:$W,18,FALSE)) -> 19.48150593 | M147: =IF(ISNA(VLOOKUP($B$7&$D49&$AC$2&M$11,data!$F:$W,18,FALSE)),"-",VLOOKUP($B$7&$D49&$AC$2&M$11,data!$F:$W,18,FALSE)) -> 342.0698779 | O147: =IF(ISNA(VLOOKUP($B$9&$D49&$AC$2&H$11,data!$F:$W,18,FALSE)),"-",VLOOKUP($B$9&$D49&$AC$2&H$11,data!$F:$W,18,FALSE)) -> - | P147: =IF(ISNA(VLOOKUP($B$9&$D49&$AC$2&I$11,data!$F:$W,18,FALSE)),"-",VLOOKUP($B$9&$D49&$AC$2&I$11,data!$F:$W,18,FALSE)) -> - | Q147: =IF(ISNA(VLOOKUP($B$9&$D49&$AC$2&J$11,data!$F:$W,18,FALSE)),"-",VLOOKUP($B$9&$D49&$AC$2&J$11,data!$F:$W,18,FALSE)) -> - | R147: =IF(ISNA(VLOOKUP($B$9&$D49&$AC$2&K$11,data!$F:$W,18,FALSE)),"-",VLOOKUP($B$9&$D49&$AC$2&K$11,data!$F:$W,18,FALSE)) -> - | S147: =IF(ISNA(VLOOKUP($B$9&$D49&$AC$2&L$11,data!$F:$W,18,FALSE)),"-",VLOOKUP($B$9&$D49&$AC$2&L$11,data!$F:$W,18,FALSE)) -> - | T147: =IF(ISNA(VLOOKUP($B$9&$D49&$AC$2&M$11,data!$F:$W,18,FALSE)),"-",VLOOKUP($B$9&$D49&$AC$2&M$11,data!$F:$W,18,FALSE)) -> -
H148: =IF(ISNA(VLOOKUP($B$7&$D50&$AC$2&H$11,data!$F:$W,18,FALSE)),"-",VLOOKUP($B$7&$D50&$AC$2&H$11,data!$F:$W,18,FALSE)) -> 2181.250091 | I148: =IF(ISNA(VLOOKUP($B$7&$D50&$AC$2&I$11,data!$F:$W,18,FALSE)),"-",VLOOKUP($B$7&$D50&$AC$2&I$11,data!$F:$W,18,FALSE)) -> 2.106031863 | J148: =IF(ISNA(VLOOKUP($B$7&$D50&$AC$2&J$11,data!$F:$W,18,FALSE)),"-",VLOOKUP($B$7&$D50&$AC$2&J$11,data!$F:$W,18,FALSE)) -> 5.544733581 | K148: =IF(ISNA(VLOOKUP($B$7&$D50&$AC$2&K$11,data!$F:$W,18,FALSE)),"-",VLOOKUP($B$7&$D50&$AC$2&K$11,data!$F:$W,18,FALSE)) -> 53.93629573 | L148: =IF(ISNA(VLOOKUP($B$7&$D50&$AC$2&L$11,data!$F:$W,18,FALSE)),"-",VLOOKUP($B$7&$D50&$AC$2&L$11,data!$F:$W,18,FALSE)) -> 262.1212056 | M148: =IF(ISNA(VLOOKUP($B$7&$D50&$AC$2&M$11,data!$F:$W,18,FALSE)),"-",VLOOKUP($B$7&$D50&$AC$2&M$11,data!$F:$W,18,FALSE)) -> 1857.541825 | O148: =IF(ISNA(VLOOKUP($B$9&$D50&$AC$2&H$11,data!$F:$W,18,FALSE)),"-",VLOOKUP($B$9&$D50&$AC$2&H$11,data!$F:$W,18,FALSE)) -> - | P148: =IF(ISNA(VLOOKUP($B$9&$D50&$AC$2&I$11,data!$F:$W,18,FALSE)),"-",VLOOKUP($B$9&$D50&$AC$2&I$11,data!$F:$W,18,FALSE)) -> - | Q148: =IF(ISNA(VLOOKUP($B$9&$D50&$AC$2&J$11,data!$F:$W,18,FALSE)),"-",VLOOKUP($B$9&$D50&$AC$2&J$11,data!$F:$W,18,FALSE)) -> - | R148: =IF(ISNA(VLOOKUP($B$9&$D50&$AC$2&K$11,data!$F:$W,18,FALSE)),"-",VLOOKUP($B$9&$D50&$AC$2&K$11,data!$F:$W,18,FALSE)) -> - | S148: =IF(ISNA(VLOOKUP($B$9&$D50&$AC$2&L$11,data!$F:$W,18,FALSE)),"-",VLOOKUP($B$9&$D50&$AC$2&L$11,data!$F:$W,18,FALSE)) -> - | T148: =IF(ISNA(VLOOKUP($B$9&$D50&$AC$2&M$11,data!$F:$W,18,FALSE)),"-",VLOOKUP($B$9&$D50&$AC$2&M$11,data!$F:$W,18,FALSE)) -> -
H149: =IF(ISNA(VLOOKUP($B$7&$D51&$AC$2&H$11,data!$F:$W,18,FALSE)),"-",VLOOKUP($B$7&$D51&$AC$2&H$11,data!$F:$W,18,FALSE)) -> - | I149: =IF(ISNA(VLOOKUP($B$7&$D51&$AC$2&I$11,data!$F:$W,18,FALSE)),"-",VLOOKUP($B$7&$D51&$AC$2&I$11,data!$F:$W,18,FALSE)) -> - | J149: =IF(ISNA(VLOOKUP($B$7&$D51&$AC$2&J$11,data!$F:$W,18,FALSE)),"-",VLOOKUP($B$7&$D51&$AC$2&J$11,data!$F:$W,18,FALSE)) -> - | K149: =IF(ISNA(VLOOKUP($B$7&$D51&$AC$2&K$11,data!$F:$W,18,FALSE)),"-",VLOOKUP($B$7&$D51&$AC$2&K$11,data!$F:$W,18,FALSE)) -> - | L149: =IF(ISNA(VLOOKUP($B$7&$D51&$AC$2&L$11,data!$F:$W,18,FALSE)),"-",VLOOKUP($B$7&$D51&$AC$2&L$11,data!$F:$W,18,FALSE)) -> - | M149: =IF(ISNA(VLOOKUP($B$7&$D51&$AC$2&M$11,data!$F:$W,18,FALSE)),"-",VLOOKUP($B$7&$D51&$AC$2&M$11,data!$F:$W,18,FALSE)) -> - | O149: =IF(ISNA(VLOOKUP($B$9&$D51&$AC$2&H$11,data!$F:$W,18,FALSE)),"-",VLOOKUP($B$9&$D51&$AC$2&H$11,data!$F:$W,18,FALSE)) -> - | P149: =IF(ISNA(VLOOKUP($B$9&$D51&$AC$2&I$11,data!$F:$W,18,FALSE)),"-",VLOOKUP($B$9&$D51&$AC$2&I$11,data!$F:$W,18,FALSE)) -> - | Q149: =IF(ISNA(VLOOKUP($B$9&$D51&$AC$2&J$11,data!$F:$W,18,FALSE)),"-",VLOOKUP($B$9&$D51&$AC$2&J$11,data!$F:$W,18,FALSE)) -> - | R149: =IF(ISNA(VLOOKUP($B$9&$D51&$AC$2&K$11,data!$F:$W,18,FALSE)),"-",VLOOKUP($B$9&$D51&$AC$2&K$11,data!$F:$W,18,FALSE)) -> - | S149: =IF(ISNA(VLOOKUP($B$9&$D51&$AC$2&L$11,data!$F:$W,18,FALSE)),"-",VLOOKUP($B$9&$D51&$AC$2&L$11,data!$F:$W,18,FALSE)) -> - | T149: =IF(ISNA(VLOOKUP($B$9&$D51&$AC$2&M$11,data!$F:$W,18,FALSE)),"-",VLOOKUP($B$9&$D51&$AC$2&M$11,data!$F:$W,18,FALSE)) -> -
H150: =IF(ISNA(VLOOKUP($B$7&$D52&$AC$2&H$11,data!$F:$W,18,FALSE)),"-",VLOOKUP($B$7&$D52&$AC$2&H$11,data!$F:$W,18,FALSE)) -> - | I150: =IF(ISNA(VLOOKUP($B$7&$D52&$AC$2&I$11,data!$F:$W,18,FALSE)),"-",VLOOKUP($B$7&$D52&$AC$2&I$11,data!$F:$W,18,FALSE)) -> - | J150: =IF(ISNA(VLOOKUP($B$7&$D52&$AC$2&J$11,data!$F:$W,18,FALSE)),"-",VLOOKUP($B$7&$D52&$AC$2&J$11,data!$F:$W,18,FALSE)) -> - | K150: =IF(ISNA(VLOOKUP($B$7&$D52&$AC$2&K$11,data!$F:$W,18,FALSE)),"-",VLOOKUP($B$7&$D52&$AC$2&K$11,data!$F:$W,18,FALSE)) -> - | L150: =IF(ISNA(VLOOKUP($B$7&$D52&$AC$2&L$11,data!$F:$W,18,FALSE)),"-",VLOOKUP($B$7&$D52&$AC$2&L$11,data!$F:$W,18,FALSE)) -> - | M150: =IF(ISNA(VLOOKUP($B$7&$D52&$AC$2&M$11,data!$F:$W,18,FALSE)),"-",VLOOKUP($B$7&$D52&$AC$2&M$11,data!$F:$W,18,FALSE)) -> - | O150: =IF(ISNA(VLOOKUP($B$9&$D52&$AC$2&H$11,data!$F:$W,18,FALSE)),"-",VLOOKUP($B$9&$D52&$AC$2&H$11,data!$F:$W,18,FALSE)) -> - | P150: =IF(ISNA(VLOOKUP($B$9&$D52&$AC$2&I$11,data!$F:$W,18,FALSE)),"-",VLOOKUP($B$9&$D52&$AC$2&I$11,data!$F:$W,18,FALSE)) -> - | Q150: =IF(ISNA(VLOOKUP($B$9&$D52&$AC$2&J$11,data!$F:$W,18,FALSE)),"-",VLOOKUP($B$9&$D52&$AC$2&J$11,data!$F:$W,18,FALSE)) -> - | R150: =IF(ISNA(VLOOKUP($B$9&$D52&$AC$2&K$11,data!$F:$W,18,FALSE)),"-",VLOOKUP($B$9&$D52&$AC$2&K$11,data!$F:$W,18,FALSE)) -> - | S150: =IF(ISNA(VLOOKUP($B$9&$D52&$AC$2&L$11,data!$F:$W,18,FALSE)),"-",VLOOKUP($B$9&$D52&$AC$2&L$11,data!$F:$W,18,FALSE)) -> - | T150: =IF(ISNA(VLOOKUP($B$9&$D52&$AC$2&M$11,data!$F:$W,18,FALSE)),"-",VLOOKUP($B$9&$D52&$AC$2&M$11,data!$F:$W,18,FALSE)) -> -
H151: =IF(ISNA(VLOOKUP($B$7&$D53&$AC$2&H$11,data!$F:$W,18,FALSE)),"-",VLOOKUP($B$7&$D53&$AC$2&H$11,data!$F:$W,18,FALSE)) -> 136.0076458 | I151: =IF(ISNA(VLOOKUP($B$7&$D53&$AC$2&I$11,data!$F:$W,18,FALSE)),"-",VLOOKUP($B$7&$D53&$AC$2&I$11,data!$F:$W,18,FALSE)) -> 2.115845239 | J151: =IF(ISNA(VLOOKUP($B$7&$D53&$AC$2&J$11,data!$F:$W,18,FALSE)),"-",VLOOKUP($B$7&$D53&$AC$2&J$11,data!$F:$W,18,FALSE)) -> 2.850603816 | K151: =IF(ISNA(VLOOKUP($B$7&$D53&$AC$2&K$11,data!$F:$W,18,FALSE)),"-",VLOOKUP($B$7&$D53&$AC$2&K$11,data!$F:$W,18,FALSE)) -> 7.783929913 | L151: =IF(ISNA(VLOOKUP($B$7&$D53&$AC$2&L$11,data!$F:$W,18,FALSE)),"-",VLOOKUP($B$7&$D53&$AC$2&L$11,data!$F:$W,18,FALSE)) -> 21.33384062 | M151: =IF(ISNA(VLOOKUP($B$7&$D53&$AC$2&M$11,data!$F:$W,18,FALSE)),"-",VLOOKUP($B$7&$D53&$AC$2&M$11,data!$F:$W,18,FALSE)) -> 101.9234262 | O151: =IF(ISNA(VLOOKUP($B$9&$D53&$AC$2&H$11,data!$F:$W,18,FALSE)),"-",VLOOKUP($B$9&$D53&$AC$2&H$11,data!$F:$W,18,FALSE)) -> - | P151: =IF(ISNA(VLOOKUP($B$9&$D53&$AC$2&I$11,data!$F:$W,18,FALSE)),"-",VLOOKUP($B$9&$D53&$AC$2&I$11,data!$F:$W,18,FALSE)) -> - | Q151: =IF(ISNA(VLOOKUP($B$9&$D53&$AC$2&J$11,data!$F:$W,18,FALSE)),"-",VLOOKUP($B$9&$D53&$AC$2&J$11,data!$F:$W,18,FALSE)) -> - | R151: =IF(ISNA(VLOOKUP($B$9&$D53&$AC$2&K$11,data!$F:$W,18,FALSE)),"-",VLOOKUP($B$9&$D53&$AC$2&K$11,data!$F:$W,18,FALSE)) -> - | S151: =IF(ISNA(VLOOKUP($B$9&$D53&$AC$2&L$11,data!$F:$W,18,FALSE)),"-",VLOOKUP($B$9&$D53&$AC$2&L$11,data!$F:$W,18,FALSE)) -> - | T151: =IF(ISNA(VLOOKUP($B$9&$D53&$AC$2&M$11,data!$F:$W,18,FALSE)),"-",VLOOKUP($B$9&$D53&$AC$2&M$11,data!$F:$W,18,FALSE)) -> -
H152: =IF(ISNA(VLOOKUP($B$7&$D54&$AC$2&H$11,data!$F:$W,18,FALSE)),"-",VLOOKUP($B$7&$D54&$AC$2&H$11,data!$F:$W,18,FALSE)) -> 3616.573219 | I152: =IF(ISNA(VLOOKUP($B$7&$D54&$AC$2&I$11,data!$F:$W,18,FALSE)),"-",VLOOKUP($B$7&$D54&$AC$2&I$11,data!$F:$W,18,FALSE)) -> 0 | J152: =IF(ISNA(VLOOKUP($B$7&$D54&$AC$2&J$11,data!$F:$W,18,FALSE)),"-",VLOOKUP($B$7&$D54&$AC$2&J$11,data!$F:$W,18,FALSE)) -> 0 | K152: =IF(ISNA(VLOOKUP($B$7&$D54&$AC$2&K$11,data!$F:$W,18,FALSE)),"-",VLOOKUP($B$7&$D54&$AC$2&K$11,data!$F:$W,18,FALSE)) -> 13.09656017 | L152: =IF(ISNA(VLOOKUP($B$7&$D54&$AC$2&L$11,data!$F:$W,18,FALSE)),"-",VLOOKUP($B$7&$D54&$AC$2&L$11,data!$F:$W,18,FALSE)) -> 388.4634663 | M152: =IF(ISNA(VLOOKUP($B$7&$D54&$AC$2&M$11,data!$F:$W,18,FALSE)),"-",VLOOKUP($B$7&$D54&$AC$2&M$11,data!$F:$W,18,FALSE)) -> 3215.013192 | O152: =IF(ISNA(VLOOKUP($B$9&$D54&$AC$2&H$11,data!$F:$W,18,FALSE)),"-",VLOOKUP($B$9&$D54&$AC$2&H$11,data!$F:$W,18,FALSE)) -> - | P152: =IF(ISNA(VLOOKUP($B$9&$D54&$AC$2&I$11,data!$F:$W,18,FALSE)),"-",VLOOKUP($B$9&$D54&$AC$2&I$11,data!$F:$W,18,FALSE)) -> - | Q152: =IF(ISNA(VLOOKUP($B$9&$D54&$AC$2&J$11,data!$F:$W,18,FALSE)),"-",VLOOKUP($B$9&$D54&$AC$2&J$11,data!$F:$W,18,FALSE)) -> - | R152: =IF(ISNA(VLOOKUP($B$9&$D54&$AC$2&K$11,data!$F:$W,18,FALSE)),"-",VLOOKUP($B$9&$D54&$AC$2&K$11,data!$F:$W,18,FALSE)) -> - | S152: =IF(ISNA(VLOOKUP($B$9&$D54&$AC$2&L$11,data!$F:$W,18,FALSE)),"-",VLOOKUP($B$9&$D54&$AC$2&L$11,data!$F:$W,18,FALSE)) -> - | T152: =IF(ISNA(VLOOKUP($B$9&$D54&$AC$2&M$11,data!$F:$W,18,FALSE)),"-",VLOOKUP($B$9&$D54&$AC$2&M$11,data!$F:$W,18,FALSE)) -> -
H153: =IF(ISNA(VLOOKUP($B$7&$D55&$AC$2&H$11,data!$F:$W,18,FALSE)),"-",VLOOKUP($B$7&$D55&$AC$2&H$11,data!$F:$W,18,FALSE)) -> 680.9863023 | I153: =IF(ISNA(VLOOKUP($B$7&$D55&$AC$2&I$11,data!$F:$W,18,FALSE)),"-",VLOOKUP($B$7&$D55&$AC$2&I$11,data!$F:$W,18,FALSE)) -> 0 | J153: =IF(ISNA(VLOOKUP($B$7&$D55&$AC$2&J$11,data!$F:$W,18,FALSE)),"-",VLOOKUP($B$7&$D55&$AC$2&J$11,data!$F:$W,18,FALSE)) -> 0.1666666667 | K153: =IF(ISNA(VLOOKUP($B$7&$D55&$AC$2&K$11,data!$F:$W,18,FALSE)),"-",VLOOKUP($B$7&$D55&$AC$2&K$11,data!$F:$W,18,FALSE)) -> 2.785351134 | L153: =IF(ISNA(VLOOKUP($B$7&$D55&$AC$2&L$11,data!$F:$W,18,FALSE)),"-",VLOOKUP($B$7&$D55&$AC$2&L$11,data!$F:$W,18,FALSE)) -> 65.67922434 | M153: =IF(ISNA(VLOOKUP($B$7&$D55&$AC$2&M$11,data!$F:$W,18,FALSE)),"-",VLOOKUP($B$7&$D55&$AC$2&M$11,data!$F:$W,18,FALSE)) -> 612.3550602 | O153: =IF(ISNA(VLOOKUP($B$9&$D55&$AC$2&H$11,data!$F:$W,18,FALSE)),"-",VLOOKUP($B$9&$D55&$AC$2&H$11,data!$F:$W,18,FALSE)) -> - | P153: =IF(ISNA(VLOOKUP($B$9&$D55&$AC$2&I$11,data!$F:$W,18,FALSE)),"-",VLOOKUP($B$9&$D55&$AC$2&I$11,data!$F:$W,18,FALSE)) -> - | Q153: =IF(ISNA(VLOOKUP($B$9&$D55&$AC$2&J$11,data!$F:$W,18,FALSE)),"-",VLOOKUP($B$9&$D55&$AC$2&J$11,data!$F:$W,18,FALSE)) -> - | R153: =IF(ISNA(VLOOKUP($B$9&$D55&$AC$2&K$11,data!$F:$W,18,FALSE)),"-",VLOOKUP($B$9&$D55&$AC$2&K$11,data!$F:$W,18,FALSE)) -> - | S153: =IF(ISNA(VLOOKUP($B$9&$D55&$AC$2&L$11,data!$F:$W,18,FALSE)),"-",VLOOKUP($B$9&$D55&$AC$2&L$11,data!$F:$W,18,FALSE)) -> - | T153: =IF(ISNA(VLOOKUP($B$9&$D55&$AC$2&M$11,data!$F:$W,18,FALSE)),"-",VLOOKUP($B$9&$D55&$AC$2&M$11,data!$F:$W,18,FALSE)) -> -
H154: =IF(ISNA(VLOOKUP($B$7&$D56&$AC$2&H$11,data!$F:$W,18,FALSE)),"-",VLOOKUP($B$7&$D56&$AC$2&H$11,data!$F:$W,18,FALSE)) -> - | I154: =IF(ISNA(VLOOKUP($B$7&$D56&$AC$2&I$11,data!$F:$W,18,FALSE)),"-",VLOOKUP($B$7&$D56&$AC$2&I$11,data!$F:$W,18,FALSE)) -> - | J154: =IF(ISNA(VLOOKUP($B$7&$D56&$AC$2&J$11,data!$F:$W,18,FALSE)),"-",VLOOKUP($B$7&$D56&$AC$2&J$11,data!$F:$W,18,FALSE)) -> - | K154: =IF(ISNA(VLOOKUP($B$7&$D56&$AC$2&K$11,data!$F:$W,18,FALSE)),"-",VLOOKUP($B$7&$D56&$AC$2&K$11,data!$F:$W,18,FALSE)) -> - | L154: =IF(ISNA(VLOOKUP($B$7&$D56&$AC$2&L$11,data!$F:$W,18,FALSE)),"-",VLOOKUP($B$7&$D56&$AC$2&L$11,data!$F:$W,18,FALSE)) -> - | M154: =IF(ISNA(VLOOKUP($B$7&$D56&$AC$2&M$11,data!$F:$W,18,FALSE)),"-",VLOOKUP($B$7&$D56&$AC$2&M$11,data!$F:$W,18,FALSE)) -> - | O154: =IF(ISNA(VLOOKUP($B$9&$D56&$AC$2&H$11,data!$F:$W,18,FALSE)),"-",VLOOKUP($B$9&$D56&$AC$2&H$11,data!$F:$W,18,FALSE)) -> - | P154: =IF(ISNA(VLOOKUP($B$9&$D56&$AC$2&I$11,data!$F:$W,18,FALSE)),"-",VLOOKUP($B$9&$D56&$AC$2&I$11,data!$F:$W,18,FALSE)) -> - | Q154: =IF(ISNA(VLOOKUP($B$9&$D56&$AC$2&J$11,data!$F:$W,18,FALSE)),"-",VLOOKUP($B$9&$D56&$AC$2&J$11,data!$F:$W,18,FALSE)) -> - | R154: =IF(ISNA(VLOOKUP($B$9&$D56&$AC$2&K$11,data!$F:$W,18,FALSE)),"-",VLOOKUP($B$9&$D56&$AC$2&K$11,data!$F:$W,18,FALSE)) -> - | S154: =IF(ISNA(VLOOKUP($B$9&$D56&$AC$2&L$11,data!$F:$W,18,FALSE)),"-",VLOOKUP($B$9&$D56&$AC$2&L$11,data!$F:$W,18,FALSE)) -> - | T154: =IF(ISNA(VLOOKUP($B$9&$D56&$AC$2&M$11,data!$F:$W,18,FALSE)),"-",VLOOKUP($B$9&$D56&$AC$2&M$11,data!$F:$W,18,FALSE)) -> -
H155: =IF(ISNA(VLOOKUP($B$7&$D57&$AC$2&H$11,data!$F:$W,18,FALSE)),"-",VLOOKUP($B$7&$D57&$AC$2&H$11,data!$F:$W,18,FALSE)) -> 1117.120784 | I155: =IF(ISNA(VLOOKUP($B$7&$D57&$AC$2&I$11,data!$F:$W,18,FALSE)),"-",VLOOKUP($B$7&$D57&$AC$2&I$11,data!$F:$W,18,FALSE)) -> 0 | J155: =IF(ISNA(VLOOKUP($B$7&$D57&$AC$2&J$11,data!$F:$W,18,FALSE)),"-",VLOOKUP($B$7&$D57&$AC$2&J$11,data!$F:$W,18,FALSE)) -> 0.3382122424 | K155: =IF(ISNA(VLOOKUP($B$7&$D57&$AC$2&K$11,data!$F:$W,18,FALSE)),"-",VLOOKUP($B$7&$D57&$AC$2&K$11,data!$F:$W,18,FALSE)) -> 122.6327592 | L155: =IF(ISNA(VLOOKUP($B$7&$D57&$AC$2&L$11,data!$F:$W,18,FALSE)),"-",VLOOKUP($B$7&$D57&$AC$2&L$11,data!$F:$W,18,FALSE)) -> 572.7122521 | M155: =IF(ISNA(VLOOKUP($B$7&$D57&$AC$2&M$11,data!$F:$W,18,FALSE)),"-",VLOOKUP($B$7&$D57&$AC$2&M$11,data!$F:$W,18,FALSE)) -> 421.4375608 | O155: =IF(ISNA(VLOOKUP($B$9&$D57&$AC$2&H$11,data!$F:$W,18,FALSE)),"-",VLOOKUP($B$9&$D57&$AC$2&H$11,data!$F:$W,18,FALSE)) -> - | P155: =IF(ISNA(VLOOKUP($B$9&$D57&$AC$2&I$11,data!$F:$W,18,FALSE)),"-",VLOOKUP($B$9&$D57&$AC$2&I$11,data!$F:$W,18,FALSE)) -> - | Q155: =IF(ISNA(VLOOKUP($B$9&$D57&$AC$2&J$11,data!$F:$W,18,FALSE)),"-",VLOOKUP($B$9&$D57&$AC$2&J$11,data!$F:$W,18,FALSE)) -> - | R155: =IF(ISNA(VLOOKUP($B$9&$D57&$AC$2&K$11,data!$F:$W,18,FALSE)),"-",VLOOKUP($B$9&$D57&$AC$2&K$11,data!$F:$W,18,FALSE)) -> - | S155: =IF(ISNA(VLOOKUP($B$9&$D57&$AC$2&L$11,data!$F:$W,18,FALSE)),"-",VLOOKUP($B$9&$D57&$AC$2&L$11,data!$F:$W,18,FALSE)) -> - | T155: =IF(ISNA(VLOOKUP($B$9&$D57&$AC$2&M$11,data!$F:$W,18,FALSE)),"-",VLOOKUP($B$9&$D57&$AC$2&M$11,data!$F:$W,18,FALSE)) -> -
H156: =IF(ISNA(VLOOKUP($B$7&$D58&$AC$2&H$11,data!$F:$W,18,FALSE)),"-",VLOOKUP($B$7&$D58&$AC$2&H$11,data!$F:$W,18,FALSE)) -> - | I156: =IF(ISNA(VLOOKUP($B$7&$D58&$AC$2&I$11,data!$F:$W,18,FALSE)),"-",VLOOKUP($B$7&$D58&$AC$2&I$11,data!$F:$W,18,FALSE)) -> - | J156: =IF(ISNA(VLOOKUP($B$7&$D58&$AC$2&J$11,data!$F:$W,18,FALSE)),"-",VLOOKUP($B$7&$D58&$AC$2&J$11,data!$F:$W,18,FALSE)) -> - | K156: =IF(ISNA(VLOOKUP($B$7&$D58&$AC$2&K$11,data!$F:$W,18,FALSE)),"-",VLOOKUP($B$7&$D58&$AC$2&K$11,data!$F:$W,18,FALSE)) -> - | L156: =IF(ISNA(VLOOKUP($B$7&$D58&$AC$2&L$11,data!$F:$W,18,FALSE)),"-",VLOOKUP($B$7&$D58&$AC$2&L$11,data!$F:$W,18,FALSE)) -> - | M156: =IF(ISNA(VLOOKUP($B$7&$D58&$AC$2&M$11,data!$F:$W,18,FALSE)),"-",VLOOKUP($B$7&$D58&$AC$2&M$11,data!$F:$W,18,FALSE)) -> - | O156: =IF(ISNA(VLOOKUP($B$9&$D58&$AC$2&H$11,data!$F:$W,18,FALSE)),"-",VLOOKUP($B$9&$D58&$AC$2&H$11,data!$F:$W,18,FALSE)) -> - | P156: =IF(ISNA(VLOOKUP($B$9&$D58&$AC$2&I$11,data!$F:$W,18,FALSE)),"-",VLOOKUP($B$9&$D58&$AC$2&I$11,data!$F:$W,18,FALSE)) -> - | Q156: =IF(ISNA(VLOOKUP($B$9&$D58&$AC$2&J$11,data!$F:$W,18,FALSE)),"-",VLOOKUP($B$9&$D58&$AC$2&J$11,data!$F:$W,18,FALSE)) -> - | R156: =IF(ISNA(VLOOKUP($B$9&$D58&$AC$2&K$11,data!$F:$W,18,FALSE)),"-",VLOOKUP($B$9&$D58&$AC$2&K$11,data!$F:$W,18,FALSE)) -> - | S156: =IF(ISNA(VLOOKUP($B$9&$D58&$AC$2&L$11,data!$F:$W,18,FALSE)),"-",VLOOKUP($B$9&$D58&$AC$2&L$11,data!$F:$W,18,FALSE)) -> - | T156: =IF(ISNA(VLOOKUP($B$9&$D58&$AC$2&M$11,data!$F:$W,18,FALSE)),"-",VLOOKUP($B$9&$D58&$AC$2&M$11,data!$F:$W,18,FALSE)) -> -
H157: =IF(ISNA(VLOOKUP($B$7&$D59&$AC$2&H$11,data!$F:$W,18,FALSE)),"-",VLOOKUP($B$7&$D59&$AC$2&H$11,data!$F:$W,18,FALSE)) -> - | I157: =IF(ISNA(VLOOKUP($B$7&$D59&$AC$2&I$11,data!$F:$W,18,FALSE)),"-",VLOOKUP($B$7&$D59&$AC$2&I$11,data!$F:$W,18,FALSE)) -> - | J157: =IF(ISNA(VLOOKUP($B$7&$D59&$AC$2&J$11,data!$F:$W,18,FALSE)),"-",VLOOKUP($B$7&$D59&$AC$2&J$11,data!$F:$W,18,FALSE)) -> - | K157: =IF(ISNA(VLOOKUP($B$7&$D59&$AC$2&K$11,data!$F:$W,18,FALSE)),"-",VLOOKUP($B$7&$D59&$AC$2&K$11,data!$F:$W,18,FALSE)) -> - | L157: =IF(ISNA(VLOOKUP($B$7&$D59&$AC$2&L$11,data!$F:$W,18,FALSE)),"-",VLOOKUP($B$7&$D59&$AC$2&L$11,data!$F:$W,18,FALSE)) -> - | M157: =IF(ISNA(VLOOKUP($B$7&$D59&$AC$2&M$11,data!$F:$W,18,FALSE)),"-",VLOOKUP($B$7&$D59&$AC$2&M$11,data!$F:$W,18,FALSE)) -> - | O157: =IF(ISNA(VLOOKUP($B$9&$D59&$AC$2&H$11,data!$F:$W,18,FALSE)),"-",VLOOKUP($B$9&$D59&$AC$2&H$11,data!$F:$W,18,FALSE)) -> - | P157: =IF(ISNA(VLOOKUP($B$9&$D59&$AC$2&I$11,data!$F:$W,18,FALSE)),"-",VLOOKUP($B$9&$D59&$AC$2&I$11,data!$F:$W,18,FALSE)) -> - | Q157: =IF(ISNA(VLOOKUP($B$9&$D59&$AC$2&J$11,data!$F:$W,18,FALSE)),"-",VLOOKUP($B$9&$D59&$AC$2&J$11,data!$F:$W,18,FALSE)) -> - | R157: =IF(ISNA(VLOOKUP($B$9&$D59&$AC$2&K$11,data!$F:$W,18,FALSE)),"-",VLOOKUP($B$9&$D59&$AC$2&K$11,data!$F:$W,18,FALSE)) -> - | S157: =IF(ISNA(VLOOKUP($B$9&$D59&$AC$2&L$11,data!$F:$W,18,FALSE)),"-",VLOOKUP($B$9&$D59&$AC$2&L$11,data!$F:$W,18,FALSE)) -> - | T157: =IF(ISNA(VLOOKUP($B$9&$D59&$AC$2&M$11,data!$F:$W,18,FALSE)),"-",VLOOKUP($B$9&$D59&$AC$2&M$11,data!$F:$W,18,FALSE)) -> -
H158: =IF(ISNA(VLOOKUP($B$7&$D60&$AC$2&H$11,data!$F:$W,18,FALSE)),"-",VLOOKUP($B$7&$D60&$AC$2&H$11,data!$F:$W,18,FALSE)) -> 292.1244929 | I158: =IF(ISNA(VLOOKUP($B$7&$D60&$AC$2&I$11,data!$F:$W,18,FALSE)),"-",VLOOKUP($B$7&$D60&$AC$2&I$11,data!$F:$W,18,FALSE)) -> 0.3382899628 | J158: =IF(ISNA(VLOOKUP($B$7&$D60&$AC$2&J$11,data!$F:$W,18,FALSE)),"-",VLOOKUP($B$7&$D60&$AC$2&J$11,data!$F:$W,18,FALSE)) -> 0.3361408651 | K158: =IF(ISNA(VLOOKUP($B$7&$D60&$AC$2&K$11,data!$F:$W,18,FALSE)),"-",VLOOKUP($B$7&$D60&$AC$2&K$11,data!$F:$W,18,FALSE)) -> 4.398314348 | L158: =IF(ISNA(VLOOKUP($B$7&$D60&$AC$2&L$11,data!$F:$W,18,FALSE)),"-",VLOOKUP($B$7&$D60&$AC$2&L$11,data!$F:$W,18,FALSE)) -> 40.73323349 | M158: =IF(ISNA(VLOOKUP($B$7&$D60&$AC$2&M$11,data!$F:$W,18,FALSE)),"-",VLOOKUP($B$7&$D60&$AC$2&M$11,data!$F:$W,18,FALSE)) -> 246.3185142 | O158: =IF(ISNA(VLOOKUP($B$9&$D60&$AC$2&H$11,data!$F:$W,18,FALSE)),"-",VLOOKUP($B$9&$D60&$AC$2&H$11,data!$F:$W,18,FALSE)) -> - | P158: =IF(ISNA(VLOOKUP($B$9&$D60&$AC$2&I$11,data!$F:$W,18,FALSE)),"-",VLOOKUP($B$9&$D60&$AC$2&I$11,data!$F:$W,18,FALSE)) -> - | Q158: =IF(ISNA(VLOOKUP($B$9&$D60&$AC$2&J$11,data!$F:$W,18,FALSE)),"-",VLOOKUP($B$9&$D60&$AC$2&J$11,data!$F:$W,18,FALSE)) -> - | R158: =IF(ISNA(VLOOKUP($B$9&$D60&$AC$2&K$11,data!$F:$W,18,FALSE)),"-",VLOOKUP($B$9&$D60&$AC$2&K$11,data!$F:$W,18,FALSE)) -> - | S158: =IF(ISNA(VLOOKUP($B$9&$D60&$AC$2&L$11,data!$F:$W,18,FALSE)),"-",VLOOKUP($B$9&$D60&$AC$2&L$11,data!$F:$W,18,FALSE)) -> - | T158: =IF(ISNA(VLOOKUP($B$9&$D60&$AC$2&M$11,data!$F:$W,18,FALSE)),"-",VLOOKUP($B$9&$D60&$AC$2&M$11,data!$F:$W,18,FALSE)) -> -
H159: =IF(ISNA(VLOOKUP($B$7&$D61&$AC$2&H$11,data!$F:$W,18,FALSE)),"-",VLOOKUP($B$7&$D61&$AC$2&H$11,data!$F:$W,18,FALSE)) -> 63.33192384 | I159: =IF(ISNA(VLOOKUP($B$7&$D61&$AC$2&I$11,data!$F:$W,18,FALSE)),"-",VLOOKUP($B$7&$D61&$AC$2&I$11,data!$F:$W,18,FALSE)) -> 0.3525058516 | J159: =IF(ISNA(VLOOKUP($B$7&$D61&$AC$2&J$11,data!$F:$W,18,FALSE)),"-",VLOOKUP($B$7&$D61&$AC$2&J$11,data!$F:$W,18,FALSE)) -> 0.7842342402 | K159: =IF(ISNA(VLOOKUP($B$7&$D61&$AC$2&K$11,data!$F:$W,18,FALSE)),"-",VLOOKUP($B$7&$D61&$AC$2&K$11,data!$F:$W,18,FALSE)) -> 1.841318957 | L159: =IF(ISNA(VLOOKUP($B$7&$D61&$AC$2&L$11,data!$F:$W,18,FALSE)),"-",VLOOKUP($B$7&$D61&$AC$2&L$11,data!$F:$W,18,FALSE)) -> 9.655050316 | M159: =IF(ISNA(VLOOKUP($B$7&$D61&$AC$2&M$11,data!$F:$W,18,FALSE)),"-",VLOOKUP($B$7&$D61&$AC$2&M$11,data!$F:$W,18,FALSE)) -> 50.69881448 | O159: =IF(ISNA(VLOOKUP($B$9&$D61&$AC$2&H$11,data!$F:$W,18,FALSE)),"-",VLOOKUP($B$9&$D61&$AC$2&H$11,data!$F:$W,18,FALSE)) -> - | P159: =IF(ISNA(VLOOKUP($B$9&$D61&$AC$2&I$11,data!$F:$W,18,FALSE)),"-",VLOOKUP($B$9&$D61&$AC$2&I$11,data!$F:$W,18,FALSE)) -> - | Q159: =IF(ISNA(VLOOKUP($B$9&$D61&$AC$2&J$11,data!$F:$W,18,FALSE)),"-",VLOOKUP($B$9&$D61&$AC$2&J$11,data!$F:$W,18,FALSE)) -> - | R159: =IF(ISNA(VLOOKUP($B$9&$D61&$AC$2&K$11,data!$F:$W,18,FALSE)),"-",VLOOKUP($B$9&$D61&$AC$2&K$11,data!$F:$W,18,FALSE)) -> - | S159: =IF(ISNA(VLOOKUP($B$9&$D61&$AC$2&L$11,data!$F:$W,18,FALSE)),"-",VLOOKUP($B$9&$D61&$AC$2&L$11,data!$F:$W,18,FALSE)) -> - | T159: =IF(ISNA(VLOOKUP($B$9&$D61&$AC$2&M$11,data!$F:$W,18,FALSE)),"-",VLOOKUP($B$9&$D61&$AC$2&M$11,data!$F:$W,18,FALSE)) -> -
H160: =IF(ISNA(VLOOKUP($B$7&$D62&$AC$2&H$11,data!$F:$W,18,FALSE)),"-",VLOOKUP($B$7&$D62&$AC$2&H$11,data!$F:$W,18,FALSE)) -> 299.102754 | I160: =IF(ISNA(VLOOKUP($B$7&$D62&$AC$2&I$11,data!$F:$W,18,FALSE)),"-",VLOOKUP($B$7&$D62&$AC$2&I$11,data!$F:$W,18,FALSE)) -> 0 | J160: =IF(ISNA(VLOOKUP($B$7&$D62&$AC$2&J$11,data!$F:$W,18,FALSE)),"-",VLOOKUP($B$7&$D62&$AC$2&J$11,data!$F:$W,18,FALSE)) -> 0.001161440186 | K160: =IF(ISNA(VLOOKUP($B$7&$D62&$AC$2&K$11,data!$F:$W,18,FALSE)),"-",VLOOKUP($B$7&$D62&$AC$2&K$11,data!$F:$W,18,FALSE)) -> 2.822320941 | L160: =IF(ISNA(VLOOKUP($B$7&$D62&$AC$2&L$11,data!$F:$W,18,FALSE)),"-",VLOOKUP($B$7&$D62&$AC$2&L$11,data!$F:$W,18,FALSE)) -> 25.13502509 | M160: =IF(ISNA(VLOOKUP($B$7&$D62&$AC$2&M$11,data!$F:$W,18,FALSE)),"-",VLOOKUP($B$7&$D62&$AC$2&M$11,data!$F:$W,18,FALSE)) -> 271.1442465 | O160: =IF(ISNA(VLOOKUP($B$9&$D62&$AC$2&H$11,data!$F:$W,18,FALSE)),"-",VLOOKUP($B$9&$D62&$AC$2&H$11,data!$F:$W,18,FALSE)) -> - | P160: =IF(ISNA(VLOOKUP($B$9&$D62&$AC$2&I$11,data!$F:$W,18,FALSE)),"-",VLOOKUP($B$9&$D62&$AC$2&I$11,data!$F:$W,18,FALSE)) -> - | Q160: =IF(ISNA(VLOOKUP($B$9&$D62&$AC$2&J$11,data!$F:$W,18,FALSE)),"-",VLOOKUP($B$9&$D62&$AC$2&J$11,data!$F:$W,18,FALSE)) -> - | R160: =IF(ISNA(VLOOKUP($B$9&$D62&$AC$2&K$11,data!$F:$W,18,FALSE)),"-",VLOOKUP($B$9&$D62&$AC$2&K$11,data!$F:$W,18,FALSE)) -> - | S160: =IF(ISNA(VLOOKUP($B$9&$D62&$AC$2&L$11,data!$F:$W,18,FALSE)),"-",VLOOKUP($B$9&$D62&$AC$2&L$11,data!$F:$W,18,FALSE)) -> - | T160: =IF(ISNA(VLOOKUP($B$9&$D62&$AC$2&M$11,data!$F:$W,18,FALSE)),"-",VLOOKUP($B$9&$D62&$AC$2&M$11,data!$F:$W,18,FALSE)) -> -
H161: =IF(ISNA(VLOOKUP($B$7&$D63&$AC$2&H$11,data!$F:$W,18,FALSE)),"-",VLOOKUP($B$7&$D63&$AC$2&H$11,data!$F:$W,18,FALSE)) -> 147.4620423 | I161: =IF(ISNA(VLOOKUP($B$7&$D63&$AC$2&I$11,data!$F:$W,18,FALSE)),"-",VLOOKUP($B$7&$D63&$AC$2&I$11,data!$F:$W,18,FALSE)) -> 0.01421588875 | J161: =IF(ISNA(VLOOKUP($B$7&$D63&$AC$2&J$11,data!$F:$W,18,FALSE)),"-",VLOOKUP($B$7&$D63&$AC$2&J$11,data!$F:$W,18,FALSE)) -> 0.335560145 | K161: =IF(ISNA(VLOOKUP($B$7&$D63&$AC$2&K$11,data!$F:$W,18,FALSE)),"-",VLOOKUP($B$7&$D63&$AC$2&K$11,data!$F:$W,18,FALSE)) -> 13.36021547 | L161: =IF(ISNA(VLOOKUP($B$7&$D63&$AC$2&L$11,data!$F:$W,18,FALSE)),"-",VLOOKUP($B$7&$D63&$AC$2&L$11,data!$F:$W,18,FALSE)) -> 43.02907044 | M161: =IF(ISNA(VLOOKUP($B$7&$D63&$AC$2&M$11,data!$F:$W,18,FALSE)),"-",VLOOKUP($B$7&$D63&$AC$2&M$11,data!$F:$W,18,FALSE)) -> 90.72298034 | O161: =IF(ISNA(VLOOKUP($B$9&$D63&$AC$2&H$11,data!$F:$W,18,FALSE)),"-",VLOOKUP($B$9&$D63&$AC$2&H$11,data!$F:$W,18,FALSE)) -> - | P161: =IF(ISNA(VLOOKUP($B$9&$D63&$AC$2&I$11,data!$F:$W,18,FALSE)),"-",VLOOKUP($B$9&$D63&$AC$2&I$11,data!$F:$W,18,FALSE)) -> - | Q161: =IF(ISNA(VLOOKUP($B$9&$D63&$AC$2&J$11,data!$F:$W,18,FALSE)),"-",VLOOKUP($B$9&$D63&$AC$2&J$11,data!$F:$W,18,FALSE)) -> - | R161: =IF(ISNA(VLOOKUP($B$9&$D63&$AC$2&K$11,data!$F:$W,18,FALSE)),"-",VLOOKUP($B$9&$D63&$AC$2&K$11,data!$F:$W,18,FALSE)) -> - | S161: =IF(ISNA(VLOOKUP($B$9&$D63&$AC$2&L$11,data!$F:$W,18,FALSE)),"-",VLOOKUP($B$9&$D63&$AC$2&L$11,data!$F:$W,18,FALSE)) -> - | T161: =IF(ISNA(VLOOKUP($B$9&$D63&$AC$2&M$11,data!$F:$W,18,FALSE)),"-",VLOOKUP($B$9&$D63&$AC$2&M$11,data!$F:$W,18,FALSE)) -> -
H162: =IF(ISNA(VLOOKUP($B$7&$D64&$AC$2&H$11,data!$F:$W,18,FALSE)),"-",VLOOKUP($B$7&$D64&$AC$2&H$11,data!$F:$W,18,FALSE)) -> 1005.658439 | I162: =IF(ISNA(VLOOKUP($B$7&$D64&$AC$2&I$11,data!$F:$W,18,FALSE)),"-",VLOOKUP($B$7&$D64&$AC$2&I$11,data!$F:$W,18,FALSE)) -> 1.93526462 | J162: =IF(ISNA(VLOOKUP($B$7&$D64&$AC$2&J$11,data!$F:$W,18,FALSE)),"-",VLOOKUP($B$7&$D64&$AC$2&J$11,data!$F:$W,18,FALSE)) -> 0.9564199018 | K162: =IF(ISNA(VLOOKUP($B$7&$D64&$AC$2&K$11,data!$F:$W,18,FALSE)),"-",VLOOKUP($B$7&$D64&$AC$2&K$11,data!$F:$W,18,FALSE)) -> 9.713468346 | L162: =IF(ISNA(VLOOKUP($B$7&$D64&$AC$2&L$11,data!$F:$W,18,FALSE)),"-",VLOOKUP($B$7&$D64&$AC$2&L$11,data!$F:$W,18,FALSE)) -> 95.92222103 | M162: =IF(ISNA(VLOOKUP($B$7&$D64&$AC$2&M$11,data!$F:$W,18,FALSE)),"-",VLOOKUP($B$7&$D64&$AC$2&M$11,data!$F:$W,18,FALSE)) -> 897.1310654 | O162: =IF(ISNA(VLOOKUP($B$9&$D64&$AC$2&H$11,data!$F:$W,18,FALSE)),"-",VLOOKUP($B$9&$D64&$AC$2&H$11,data!$F:$W,18,FALSE)) -> - | P162: =IF(ISNA(VLOOKUP($B$9&$D64&$AC$2&I$11,data!$F:$W,18,FALSE)),"-",VLOOKUP($B$9&$D64&$AC$2&I$11,data!$F:$W,18,FALSE)) -> - | Q162: =IF(ISNA(VLOOKUP($B$9&$D64&$AC$2&J$11,data!$F:$W,18,FALSE)),"-",VLOOKUP($B$9&$D64&$AC$2&J$11,data!$F:$W,18,FALSE)) -> - | R162: =IF(ISNA(VLOOKUP($B$9&$D64&$AC$2&K$11,data!$F:$W,18,FALSE)),"-",VLOOKUP($B$9&$D64&$AC$2&K$11,data!$F:$W,18,FALSE)) -> - | S162: =IF(ISNA(VLOOKUP($B$9&$D64&$AC$2&L$11,data!$F:$W,18,FALSE)),"-",VLOOKUP($B$9&$D64&$AC$2&L$11,data!$F:$W,18,FALSE)) -> - | T162: =IF(ISNA(VLOOKUP($B$9&$D64&$AC$2&M$11,data!$F:$W,18,FALSE)),"-",VLOOKUP($B$9&$D64&$AC$2&M$11,data!$F:$W,18,FALSE)) -> -
H163: =IF(ISNA(VLOOKUP($B$7&$D65&$AC$2&H$11,data!$F:$W,18,FALSE)),"-",VLOOKUP($B$7&$D65&$AC$2&H$11,data!$F:$W,18,FALSE)) -> - | I163: =IF(ISNA(VLOOKUP($B$7&$D65&$AC$2&I$11,data!$F:$W,18,FALSE)),"-",VLOOKUP($B$7&$D65&$AC$2&I$11,data!$F:$W,18,FALSE)) -> - | J163: =IF(ISNA(VLOOKUP($B$7&$D65&$AC$2&J$11,data!$F:$W,18,FALSE)),"-",VLOOKUP($B$7&$D65&$AC$2&J$11,data!$F:$W,18,FALSE)) -> - | K163: =IF(ISNA(VLOOKUP($B$7&$D65&$AC$2&K$11,data!$F:$W,18,FALSE)),"-",VLOOKUP($B$7&$D65&$AC$2&K$11,data!$F:$W,18,FALSE)) -> - | L163: =IF(ISNA(VLOOKUP($B$7&$D65&$AC$2&L$11,data!$F:$W,18,FALSE)),"-",VLOOKUP($B$7&$D65&$AC$2&L$11,data!$F:$W,18,FALSE)) -> - | M163: =IF(ISNA(VLOOKUP($B$7&$D65&$AC$2&M$11,data!$F:$W,18,FALSE)),"-",VLOOKUP($B$7&$D65&$AC$2&M$11,data!$F:$W,18,FALSE)) -> - | O163: =IF(ISNA(VLOOKUP($B$9&$D65&$AC$2&H$11,data!$F:$W,18,FALSE)),"-",VLOOKUP($B$9&$D65&$AC$2&H$11,data!$F:$W,18,FALSE)) -> - | P163: =IF(ISNA(VLOOKUP($B$9&$D65&$AC$2&I$11,data!$F:$W,18,FALSE)),"-",VLOOKUP($B$9&$D65&$AC$2&I$11,data!$F:$W,18,FALSE)) -> - | Q163: =IF(ISNA(VLOOKUP($B$9&$D65&$AC$2&J$11,data!$F:$W,18,FALSE)),"-",VLOOKUP($B$9&$D65&$AC$2&J$11,data!$F:$W,18,FALSE)) -> - | R163: =IF(ISNA(VLOOKUP($B$9&$D65&$AC$2&K$11,data!$F:$W,18,FALSE)),"-",VLOOKUP($B$9&$D65&$AC$2&K$11,data!$F:$W,18,FALSE)) -> - | S163: =IF(ISNA(VLOOKUP($B$9&$D65&$AC$2&L$11,data!$F:$W,18,FALSE)),"-",VLOOKUP($B$9&$D65&$AC$2&L$11,data!$F:$W,18,FALSE)) -> - | T163: =IF(ISNA(VLOOKUP($B$9&$D65&$AC$2&M$11,data!$F:$W,18,FALSE)),"-",VLOOKUP($B$9&$D65&$AC$2&M$11,data!$F:$W,18,FALSE)) -> -
H164: =IF(ISNA(VLOOKUP($B$7&$D66&$AC$2&H$11,data!$F:$W,18,FALSE)),"-",VLOOKUP($B$7&$D66&$AC$2&H$11,data!$F:$W,18,FALSE)) -> - | I164: =IF(ISNA(VLOOKUP($B$7&$D66&$AC$2&I$11,data!$F:$W,18,FALSE)),"-",VLOOKUP($B$7&$D66&$AC$2&I$11,data!$F:$W,18,FALSE)) -> - | J164: =IF(ISNA(VLOOKUP($B$7&$D66&$AC$2&J$11,data!$F:$W,18,FALSE)),"-",VLOOKUP($B$7&$D66&$AC$2&J$11,data!$F:$W,18,FALSE)) -> - | K164: =IF(ISNA(VLOOKUP($B$7&$D66&$AC$2&K$11,data!$F:$W,18,FALSE)),"-",VLOOKUP($B$7&$D66&$AC$2&K$11,data!$F:$W,18,FALSE)) -> - | L164: =IF(ISNA(VLOOKUP($B$7&$D66&$AC$2&L$11,data!$F:$W,18,FALSE)),"-",VLOOKUP($B$7&$D66&$AC$2&L$11,data!$F:$W,18,FALSE)) -> - | M164: =IF(ISNA(VLOOKUP($B$7&$D66&$AC$2&M$11,data!$F:$W,18,FALSE)),"-",VLOOKUP($B$7&$D66&$AC$2&M$11,data!$F:$W,18,FALSE)) -> - | O164: =IF(ISNA(VLOOKUP($B$9&$D66&$AC$2&H$11,data!$F:$W,18,FALSE)),"-",VLOOKUP($B$9&$D66&$AC$2&H$11,data!$F:$W,18,FALSE)) -> - | P164: =IF(ISNA(VLOOKUP($B$9&$D66&$AC$2&I$11,data!$F:$W,18,FALSE)),"-",VLOOKUP($B$9&$D66&$AC$2&I$11,data!$F:$W,18,FALSE)) -> - | Q164: =IF(ISNA(VLOOKUP($B$9&$D66&$AC$2&J$11,data!$F:$W,18,FALSE)),"-",VLOOKUP($B$9&$D66&$AC$2&J$11,data!$F:$W,18,FALSE)) -> - | R164: =IF(ISNA(VLOOKUP($B$9&$D66&$AC$2&K$11,data!$F:$W,18,FALSE)),"-",VLOOKUP($B$9&$D66&$AC$2&K$11,data!$F:$W,18,FALSE)) -> - | S164: =IF(ISNA(VLOOKUP($B$9&$D66&$AC$2&L$11,data!$F:$W,18,FALSE)),"-",VLOOKUP($B$9&$D66&$AC$2&L$11,data!$F:$W,18,FALSE)) -> - | T164: =IF(ISNA(VLOOKUP($B$9&$D66&$AC$2&M$11,data!$F:$W,18,FALSE)),"-",VLOOKUP($B$9&$D66&$AC$2&M$11,data!$F:$W,18,FALSE)) -> -
H165: =IF(ISNA(VLOOKUP($B$7&$D67&$AC$2&H$11,data!$F:$W,18,FALSE)),"-",VLOOKUP($B$7&$D67&$AC$2&H$11,data!$F:$W,18,FALSE)) -> 6194.685689 | I165: =IF(ISNA(VLOOKUP($B$7&$D67&$AC$2&I$11,data!$F:$W,18,FALSE)),"-",VLOOKUP($B$7&$D67&$AC$2&I$11,data!$F:$W,18,FALSE)) -> 1.020072404 | J165: =IF(ISNA(VLOOKUP($B$7&$D67&$AC$2&J$11,data!$F:$W,18,FALSE)),"-",VLOOKUP($B$7&$D67&$AC$2&J$11,data!$F:$W,18,FALSE)) -> 0.002226811694 | K165: =IF(ISNA(VLOOKUP($B$7&$D67&$AC$2&K$11,data!$F:$W,18,FALSE)),"-",VLOOKUP($B$7&$D67&$AC$2&K$11,data!$F:$W,18,FALSE)) -> 0.4193620845 | L165: =IF(ISNA(VLOOKUP($B$7&$D67&$AC$2&L$11,data!$F:$W,18,FALSE)),"-",VLOOKUP($B$7&$D67&$AC$2&L$11,data!$F:$W,18,FALSE)) -> 59.77316881 | M165: =IF(ISNA(VLOOKUP($B$7&$D67&$AC$2&M$11,data!$F:$W,18,FALSE)),"-",VLOOKUP($B$7&$D67&$AC$2&M$11,data!$F:$W,18,FALSE)) -> 6133.470859 | O165: =IF(ISNA(VLOOKUP($B$9&$D67&$AC$2&H$11,data!$F:$W,18,FALSE)),"-",VLOOKUP($B$9&$D67&$AC$2&H$11,data!$F:$W,18,FALSE)) -> - | P165: =IF(ISNA(VLOOKUP($B$9&$D67&$AC$2&I$11,data!$F:$W,18,FALSE)),"-",VLOOKUP($B$9&$D67&$AC$2&I$11,data!$F:$W,18,FALSE)) -> - | Q165: =IF(ISNA(VLOOKUP($B$9&$D67&$AC$2&J$11,data!$F:$W,18,FALSE)),"-",VLOOKUP($B$9&$D67&$AC$2&J$11,data!$F:$W,18,FALSE)) -> - | R165: =IF(ISNA(VLOOKUP($B$9&$D67&$AC$2&K$11,data!$F:$W,18,FALSE)),"-",VLOOKUP($B$9&$D67&$AC$2&K$11,data!$F:$W,18,FALSE)) -> - | S165: =IF(ISNA(VLOOKUP($B$9&$D67&$AC$2&L$11,data!$F:$W,18,FALSE)),"-",VLOOKUP($B$9&$D67&$AC$2&L$11,data!$F:$W,18,FALSE)) -> - | T165: =IF(ISNA(VLOOKUP($B$9&$D67&$AC$2&M$11,data!$F:$W,18,FALSE)),"-",VLOOKUP($B$9&$D67&$AC$2&M$11,data!$F:$W,18,FALSE)) -> -
H166: =IF(ISNA(VLOOKUP($B$7&$D68&$AC$2&H$11,data!$F:$W,18,FALSE)),"-",VLOOKUP($B$7&$D68&$AC$2&H$11,data!$F:$W,18,FALSE)) -> 477.2886555 | I166: =IF(ISNA(VLOOKUP($B$7&$D68&$AC$2&I$11,data!$F:$W,18,FALSE)),"-",VLOOKUP($B$7&$D68&$AC$2&I$11,data!$F:$W,18,FALSE)) -> 0 | J166: =IF(ISNA(VLOOKUP($B$7&$D68&$AC$2&J$11,data!$F:$W,18,FALSE)),"-",VLOOKUP($B$7&$D68&$AC$2&J$11,data!$F:$W,18,FALSE)) -> 0 | K166: =IF(ISNA(VLOOKUP($B$7&$D68&$AC$2&K$11,data!$F:$W,18,FALSE)),"-",VLOOKUP($B$7&$D68&$AC$2&K$11,data!$F:$W,18,FALSE)) -> 0 | L166: =IF(ISNA(VLOOKUP($B$7&$D68&$AC$2&L$11,data!$F:$W,18,FALSE)),"-",VLOOKUP($B$7&$D68&$AC$2&L$11,data!$F:$W,18,FALSE)) -> 11.14336385 | M166: =IF(ISNA(VLOOKUP($B$7&$D68&$AC$2&M$11,data!$F:$W,18,FALSE)),"-",VLOOKUP($B$7&$D68&$AC$2&M$11,data!$F:$W,18,FALSE)) -> 466.1452916 | O166: =IF(ISNA(VLOOKUP($B$9&$D68&$AC$2&H$11,data!$F:$W,18,FALSE)),"-",VLOOKUP($B$9&$D68&$AC$2&H$11,data!$F:$W,18,FALSE)) -> - | P166: =IF(ISNA(VLOOKUP($B$9&$D68&$AC$2&I$11,data!$F:$W,18,FALSE)),"-",VLOOKUP($B$9&$D68&$AC$2&I$11,data!$F:$W,18,FALSE)) -> - | Q166: =IF(ISNA(VLOOKUP($B$9&$D68&$AC$2&J$11,data!$F:$W,18,FALSE)),"-",VLOOKUP($B$9&$D68&$AC$2&J$11,data!$F:$W,18,FALSE)) -> - | R166: =IF(ISNA(VLOOKUP($B$9&$D68&$AC$2&K$11,data!$F:$W,18,FALSE)),"-",VLOOKUP($B$9&$D68&$AC$2&K$11,data!$F:$W,18,FALSE)) -> - | S166: =IF(ISNA(VLOOKUP($B$9&$D68&$AC$2&L$11,data!$F:$W,18,FALSE)),"-",VLOOKUP($B$9&$D68&$AC$2&L$11,data!$F:$W,18,FALSE)) -> - | T166: =IF(ISNA(VLOOKUP($B$9&$D68&$AC$2&M$11,data!$F:$W,18,FALSE)),"-",VLOOKUP($B$9&$D68&$AC$2&M$11,data!$F:$W,18,FALSE)) -> -
H167: =IF(ISNA(VLOOKUP($B$7&$D69&$AC$2&H$11,data!$F:$W,18,FALSE)),"-",VLOOKUP($B$7&$D69&$AC$2&H$11,data!$F:$W,18,FALSE)) -> 152.095627 | I167: =IF(ISNA(VLOOKUP($B$7&$D69&$AC$2&I$11,data!$F:$W,18,FALSE)),"-",VLOOKUP($B$7&$D69&$AC$2&I$11,data!$F:$W,18,FALSE)) -> 3.665000288 | J167: =IF(ISNA(VLOOKUP($B$7&$D69&$AC$2&J$11,data!$F:$W,18,FALSE)),"-",VLOOKUP($B$7&$D69&$AC$2&J$11,data!$F:$W,18,FALSE)) -> 8.315524018 | K167: =IF(ISNA(VLOOKUP($B$7&$D69&$AC$2&K$11,data!$F:$W,18,FALSE)),"-",VLOOKUP($B$7&$D69&$AC$2&K$11,data!$F:$W,18,FALSE)) -> 26.79687081 | L167: =IF(ISNA(VLOOKUP($B$7&$D69&$AC$2&L$11,data!$F:$W,18,FALSE)),"-",VLOOKUP($B$7&$D69&$AC$2&L$11,data!$F:$W,18,FALSE)) -> 54.24708488 | M167: =IF(ISNA(VLOOKUP($B$7&$D69&$AC$2&M$11,data!$F:$W,18,FALSE)),"-",VLOOKUP($B$7&$D69&$AC$2&M$11,data!$F:$W,18,FALSE)) -> 59.07114699 | O167: =IF(ISNA(VLOOKUP($B$9&$D69&$AC$2&H$11,data!$F:$W,18,FALSE)),"-",VLOOKUP($B$9&$D69&$AC$2&H$11,data!$F:$W,18,FALSE)) -> - | P167: =IF(ISNA(VLOOKUP($B$9&$D69&$AC$2&I$11,data!$F:$W,18,FALSE)),"-",VLOOKUP($B$9&$D69&$AC$2&I$11,data!$F:$W,18,FALSE)) -> - | Q167: =IF(ISNA(VLOOKUP($B$9&$D69&$AC$2&J$11,data!$F:$W,18,FALSE)),"-",VLOOKUP($B$9&$D69&$AC$2&J$11,data!$F:$W,18,FALSE)) -> - | R167: =IF(ISNA(VLOOKUP($B$9&$D69&$AC$2&K$11,data!$F:$W,18,FALSE)),"-",VLOOKUP($B$9&$D69&$AC$2&K$11,data!$F:$W,18,FALSE)) -> - | S167: =IF(ISNA(VLOOKUP($B$9&$D69&$AC$2&L$11,data!$F:$W,18,FALSE)),"-",VLOOKUP($B$9&$D69&$AC$2&L$11,data!$F:$W,18,FALSE)) -> - | T167: =IF(ISNA(VLOOKUP($B$9&$D69&$AC$2&M$11,data!$F:$W,18,FALSE)),"-",VLOOKUP($B$9&$D69&$AC$2&M$11,data!$F:$W,18,FALSE)) -> -
H168: =IF(ISNA(VLOOKUP($B$7&$D70&$AC$2&H$11,data!$F:$W,18,FALSE)),"-",VLOOKUP($B$7&$D70&$AC$2&H$11,data!$F:$W,18,FALSE)) -> 189.8600431 | I168: =IF(ISNA(VLOOKUP($B$7&$D70&$AC$2&I$11,data!$F:$W,18,FALSE)),"-",VLOOKUP($B$7&$D70&$AC$2&I$11,data!$F:$W,18,FALSE)) -> 0 | J168: =IF(ISNA(VLOOKUP($B$7&$D70&$AC$2&J$11,data!$F:$W,18,FALSE)),"-",VLOOKUP($B$7&$D70&$AC$2&J$11,data!$F:$W,18,FALSE)) -> 0.0004938271605 | K168: =IF(ISNA(VLOOKUP($B$7&$D70&$AC$2&K$11,data!$F:$W,18,FALSE)),"-",VLOOKUP($B$7&$D70&$AC$2&K$11,data!$F:$W,18,FALSE)) -> 10.06139728 | L168: =IF(ISNA(VLOOKUP($B$7&$D70&$AC$2&L$11,data!$F:$W,18,FALSE)),"-",VLOOKUP($B$7&$D70&$AC$2&L$11,data!$F:$W,18,FALSE)) -> 85.83923515 | M168: =IF(ISNA(VLOOKUP($B$7&$D70&$AC$2&M$11,data!$F:$W,18,FALSE)),"-",VLOOKUP($B$7&$D70&$AC$2&M$11,data!$F:$W,18,FALSE)) -> 93.95891684 | O168: =IF(ISNA(VLOOKUP($B$9&$D70&$AC$2&H$11,data!$F:$W,18,FALSE)),"-",VLOOKUP($B$9&$D70&$AC$2&H$11,data!$F:$W,18,FALSE)) -> - | P168: =IF(ISNA(VLOOKUP($B$9&$D70&$AC$2&I$11,data!$F:$W,18,FALSE)),"-",VLOOKUP($B$9&$D70&$AC$2&I$11,data!$F:$W,18,FALSE)) -> - | Q168: =IF(ISNA(VLOOKUP($B$9&$D70&$AC$2&J$11,data!$F:$W,18,FALSE)),"-",VLOOKUP($B$9&$D70&$AC$2&J$11,data!$F:$W,18,FALSE)) -> - | R168: =IF(ISNA(VLOOKUP($B$9&$D70&$AC$2&K$11,data!$F:$W,18,FALSE)),"-",VLOOKUP($B$9&$D70&$AC$2&K$11,data!$F:$W,18,FALSE)) -> - | S168: =IF(ISNA(VLOOKUP($B$9&$D70&$AC$2&L$11,data!$F:$W,18,FALSE)),"-",VLOOKUP($B$9&$D70&$AC$2&L$11,data!$F:$W,18,FALSE)) -> - | T168: =IF(ISNA(VLOOKUP($B$9&$D70&$AC$2&M$11,data!$F:$W,18,FALSE)),"-",VLOOKUP($B$9&$D70&$AC$2&M$11,data!$F:$W,18,FALSE)) -> -
H169: =IF(ISNA(VLOOKUP($B$7&$D71&$AC$2&H$11,data!$F:$W,18,FALSE)),"-",VLOOKUP($B$7&$D71&$AC$2&H$11,data!$F:$W,18,FALSE)) -> 0 | I169: =IF(ISNA(VLOOKUP($B$7&$D71&$AC$2&I$11,data!$F:$W,18,FALSE)),"-",VLOOKUP($B$7&$D71&$AC$2&I$11,data!$F:$W,18,FALSE)) -> 0 | J169: =IF(ISNA(VLOOKUP($B$7&$D71&$AC$2&J$11,data!$F:$W,18,FALSE)),"-",VLOOKUP($B$7&$D71&$AC$2&J$11,data!$F:$W,18,FALSE)) -> 0 | K169: =IF(ISNA(VLOOKUP($B$7&$D71&$AC$2&K$11,data!$F:$W,18,FALSE)),"-",VLOOKUP($B$7&$D71&$AC$2&K$11,data!$F:$W,18,FALSE)) -> 0 | L169: =IF(ISNA(VLOOKUP($B$7&$D71&$AC$2&L$11,data!$F:$W,18,FALSE)),"-",VLOOKUP($B$7&$D71&$AC$2&L$11,data!$F:$W,18,FALSE)) -> 0 | M169: =IF(ISNA(VLOOKUP($B$7&$D71&$AC$2&M$11,data!$F:$W,18,FALSE)),"-",VLOOKUP($B$7&$D71&$AC$2&M$11,data!$F:$W,18,FALSE)) -> 0 | O169: =IF(ISNA(VLOOKUP($B$9&$D71&$AC$2&H$11,data!$F:$W,18,FALSE)),"-",VLOOKUP($B$9&$D71&$AC$2&H$11,data!$F:$W,18,FALSE)) -> - | P169: =IF(ISNA(VLOOKUP($B$9&$D71&$AC$2&I$11,data!$F:$W,18,FALSE)),"-",VLOOKUP($B$9&$D71&$AC$2&I$11,data!$F:$W,18,FALSE)) -> - | Q169: =IF(ISNA(VLOOKUP($B$9&$D71&$AC$2&J$11,data!$F:$W,18,FALSE)),"-",VLOOKUP($B$9&$D71&$AC$2&J$11,data!$F:$W,18,FALSE)) -> - | R169: =IF(ISNA(VLOOKUP($B$9&$D71&$AC$2&K$11,data!$F:$W,18,FALSE)),"-",VLOOKUP($B$9&$D71&$AC$2&K$11,data!$F:$W,18,FALSE)) -> - | S169: =IF(ISNA(VLOOKUP($B$9&$D71&$AC$2&L$11,data!$F:$W,18,FALSE)),"-",VLOOKUP($B$9&$D71&$AC$2&L$11,data!$F:$W,18,FALSE)) -> - | T169: =IF(ISNA(VLOOKUP($B$9&$D71&$AC$2&M$11,data!$F:$W,18,FALSE)),"-",VLOOKUP($B$9&$D71&$AC$2&M$11,data!$F:$W,18,FALSE)) -> -
H170: =IF(ISNA(VLOOKUP($B$7&$D72&$AC$2&H$11,data!$F:$W,18,FALSE)),"-",VLOOKUP($B$7&$D72&$AC$2&H$11,data!$F:$W,18,FALSE)) -> 0 | I170: =IF(ISNA(VLOOKUP($B$7&$D72&$AC$2&I$11,data!$F:$W,18,FALSE)),"-",VLOOKUP($B$7&$D72&$AC$2&I$11,data!$F:$W,18,FALSE)) -> 0 | J170: =IF(ISNA(VLOOKUP($B$7&$D72&$AC$2&J$11,data!$F:$W,18,FALSE)),"-",VLOOKUP($B$7&$D72&$AC$2&J$11,data!$F:$W,18,FALSE)) -> 0 | K170: =IF(ISNA(VLOOKUP($B$7&$D72&$AC$2&K$11,data!$F:$W,18,FALSE)),"-",VLOOKUP($B$7&$D72&$AC$2&K$11,data!$F:$W,18,FALSE)) -> 0 | L170: =IF(ISNA(VLOOKUP($B$7&$D72&$AC$2&L$11,data!$F:$W,18,FALSE)),"-",VLOOKUP($B$7&$D72&$AC$2&L$11,data!$F:$W,18,FALSE)) -> 0 | M170: =IF(ISNA(VLOOKUP($B$7&$D72&$AC$2&M$11,data!$F:$W,18,FALSE)),"-",VLOOKUP($B$7&$D72&$AC$2&M$11,data!$F:$W,18,FALSE)) -> 0 | O170: =IF(ISNA(VLOOKUP($B$9&$D72&$AC$2&H$11,data!$F:$W,18,FALSE)),"-",VLOOKUP($B$9&$D72&$AC$2&H$11,data!$F:$W,18,FALSE)) -> - | P170: =IF(ISNA(VLOOKUP($B$9&$D72&$AC$2&I$11,data!$F:$W,18,FALSE)),"-",VLOOKUP($B$9&$D72&$AC$2&I$11,data!$F:$W,18,FALSE)) -> - | Q170: =IF(ISNA(VLOOKUP($B$9&$D72&$AC$2&J$11,data!$F:$W,18,FALSE)),"-",VLOOKUP($B$9&$D72&$AC$2&J$11,data!$F:$W,18,FALSE)) -> - | R170: =IF(ISNA(VLOOKUP($B$9&$D72&$AC$2&K$11,data!$F:$W,18,FALSE)),"-",VLOOKUP($B$9&$D72&$AC$2&K$11,data!$F:$W,18,FALSE)) -> - | S170: =IF(ISNA(VLOOKUP($B$9&$D72&$AC$2&L$11,data!$F:$W,18,FALSE)),"-",VLOOKUP($B$9&$D72&$AC$2&L$11,data!$F:$W,18,FALSE)) -> - | T170: =IF(ISNA(VLOOKUP($B$9&$D72&$AC$2&M$11,data!$F:$W,18,FALSE)),"-",VLOOKUP($B$9&$D72&$AC$2&M$11,data!$F:$W,18,FALSE)) -> -
H171: =IF(ISNA(VLOOKUP($B$7&$D73&$AC$2&H$11,data!$F:$W,18,FALSE)),"-",VLOOKUP($B$7&$D73&$AC$2&H$11,data!$F:$W,18,FALSE)) -> 398.736467 | I171: =IF(ISNA(VLOOKUP($B$7&$D73&$AC$2&I$11,data!$F:$W,18,FALSE)),"-",VLOOKUP($B$7&$D73&$AC$2&I$11,data!$F:$W,18,FALSE)) -> 4.265820996 | J171: =IF(ISNA(VLOOKUP($B$7&$D73&$AC$2&J$11,data!$F:$W,18,FALSE)),"-",VLOOKUP($B$7&$D73&$AC$2&J$11,data!$F:$W,18,FALSE)) -> 4.837995411 | K171: =IF(ISNA(VLOOKUP($B$7&$D73&$AC$2&K$11,data!$F:$W,18,FALSE)),"-",VLOOKUP($B$7&$D73&$AC$2&K$11,data!$F:$W,18,FALSE)) -> 18.48974315 | L171: =IF(ISNA(VLOOKUP($B$7&$D73&$AC$2&L$11,data!$F:$W,18,FALSE)),"-",VLOOKUP($B$7&$D73&$AC$2&L$11,data!$F:$W,18,FALSE)) -> 107.0549865 | M171: =IF(ISNA(VLOOKUP($B$7&$D73&$AC$2&M$11,data!$F:$W,18,FALSE)),"-",VLOOKUP($B$7&$D73&$AC$2&M$11,data!$F:$W,18,FALSE)) -> 264.0879209 | O171: =IF(ISNA(VLOOKUP($B$9&$D73&$AC$2&H$11,data!$F:$W,18,FALSE)),"-",VLOOKUP($B$9&$D73&$AC$2&H$11,data!$F:$W,18,FALSE)) -> - | P171: =IF(ISNA(VLOOKUP($B$9&$D73&$AC$2&I$11,data!$F:$W,18,FALSE)),"-",VLOOKUP($B$9&$D73&$AC$2&I$11,data!$F:$W,18,FALSE)) -> - | Q171: =IF(ISNA(VLOOKUP($B$9&$D73&$AC$2&J$11,data!$F:$W,18,FALSE)),"-",VLOOKUP($B$9&$D73&$AC$2&J$11,data!$F:$W,18,FALSE)) -> - | R171: =IF(ISNA(VLOOKUP($B$9&$D73&$AC$2&K$11,data!$F:$W,18,FALSE)),"-",VLOOKUP($B$9&$D73&$AC$2&K$11,data!$F:$W,18,FALSE)) -> - | S171: =IF(ISNA(VLOOKUP($B$9&$D73&$AC$2&L$11,data!$F:$W,18,FALSE)),"-",VLOOKUP($B$9&$D73&$AC$2&L$11,data!$F:$W,18,FALSE)) -> - | T171: =IF(ISNA(VLOOKUP($B$9&$D73&$AC$2&M$11,data!$F:$W,18,FALSE)),"-",VLOOKUP($B$9&$D73&$AC$2&M$11,data!$F:$W,18,FALSE)) -> -
H172: =IF(ISNA(VLOOKUP($B$7&$D74&$AC$2&H$11,data!$F:$W,18,FALSE)),"-",VLOOKUP($B$7&$D74&$AC$2&H$11,data!$F:$W,18,FALSE)) -> - | I172: =IF(ISNA(VLOOKUP($B$7&$D74&$AC$2&I$11,data!$F:$W,18,FALSE)),"-",VLOOKUP($B$7&$D74&$AC$2&I$11,data!$F:$W,18,FALSE)) -> - | J172: =IF(ISNA(VLOOKUP($B$7&$D74&$AC$2&J$11,data!$F:$W,18,FALSE)),"-",VLOOKUP($B$7&$D74&$AC$2&J$11,data!$F:$W,18,FALSE)) -> - | K172: =IF(ISNA(VLOOKUP($B$7&$D74&$AC$2&K$11,data!$F:$W,18,FALSE)),"-",VLOOKUP($B$7&$D74&$AC$2&K$11,data!$F:$W,18,FALSE)) -> - | L172: =IF(ISNA(VLOOKUP($B$7&$D74&$AC$2&L$11,data!$F:$W,18,FALSE)),"-",VLOOKUP($B$7&$D74&$AC$2&L$11,data!$F:$W,18,FALSE)) -> - | M172: =IF(ISNA(VLOOKUP($B$7&$D74&$AC$2&M$11,data!$F:$W,18,FALSE)),"-",VLOOKUP($B$7&$D74&$AC$2&M$11,data!$F:$W,18,FALSE)) -> - | O172: =IF(ISNA(VLOOKUP($B$9&$D74&$AC$2&H$11,data!$F:$W,18,FALSE)),"-",VLOOKUP($B$9&$D74&$AC$2&H$11,data!$F:$W,18,FALSE)) -> - | P172: =IF(ISNA(VLOOKUP($B$9&$D74&$AC$2&I$11,data!$F:$W,18,FALSE)),"-",VLOOKUP($B$9&$D74&$AC$2&I$11,data!$F:$W,18,FALSE)) -> - | Q172: =IF(ISNA(VLOOKUP($B$9&$D74&$AC$2&J$11,data!$F:$W,18,FALSE)),"-",VLOOKUP($B$9&$D74&$AC$2&J$11,data!$F:$W,18,FALSE)) -> - | R172: =IF(ISNA(VLOOKUP($B$9&$D74&$AC$2&K$11,data!$F:$W,18,FALSE)),"-",VLOOKUP($B$9&$D74&$AC$2&K$11,data!$F:$W,18,FALSE)) -> - | S172: =IF(ISNA(VLOOKUP($B$9&$D74&$AC$2&L$11,data!$F:$W,18,FALSE)),"-",VLOOKUP($B$9&$D74&$AC$2&L$11,data!$F:$W,18,FALSE)) -> - | T172: =IF(ISNA(VLOOKUP($B$9&$D74&$AC$2&M$11,data!$F:$W,18,FALSE)),"-",VLOOKUP($B$9&$D74&$AC$2&M$11,data!$F:$W,18,FALSE)) -> -
H173: =IF(ISNA(VLOOKUP($B$7&$D75&$AC$2&H$11,data!$F:$W,18,FALSE)),"-",VLOOKUP($B$7&$D75&$AC$2&H$11,data!$F:$W,18,FALSE)) -> - | I173: =IF(ISNA(VLOOKUP($B$7&$D75&$AC$2&I$11,data!$F:$W,18,FALSE)),"-",VLOOKUP($B$7&$D75&$AC$2&I$11,data!$F:$W,18,FALSE)) -> - | J173: =IF(ISNA(VLOOKUP($B$7&$D75&$AC$2&J$11,data!$F:$W,18,FALSE)),"-",VLOOKUP($B$7&$D75&$AC$2&J$11,data!$F:$W,18,FALSE)) -> - | K173: =IF(ISNA(VLOOKUP($B$7&$D75&$AC$2&K$11,data!$F:$W,18,FALSE)),"-",VLOOKUP($B$7&$D75&$AC$2&K$11,data!$F:$W,18,FALSE)) -> - | L173: =IF(ISNA(VLOOKUP($B$7&$D75&$AC$2&L$11,data!$F:$W,18,FALSE)),"-",VLOOKUP($B$7&$D75&$AC$2&L$11,data!$F:$W,18,FALSE)) -> - | M173: =IF(ISNA(VLOOKUP($B$7&$D75&$AC$2&M$11,data!$F:$W,18,FALSE)),"-",VLOOKUP($B$7&$D75&$AC$2&M$11,data!$F:$W,18,FALSE)) -> - | O173: =IF(ISNA(VLOOKUP($B$9&$D75&$AC$2&H$11,data!$F:$W,18,FALSE)),"-",VLOOKUP($B$9&$D75&$AC$2&H$11,data!$F:$W,18,FALSE)) -> - | P173: =IF(ISNA(VLOOKUP($B$9&$D75&$AC$2&I$11,data!$F:$W,18,FALSE)),"-",VLOOKUP($B$9&$D75&$AC$2&I$11,data!$F:$W,18,FALSE)) -> - | Q173: =IF(ISNA(VLOOKUP($B$9&$D75&$AC$2&J$11,data!$F:$W,18,FALSE)),"-",VLOOKUP($B$9&$D75&$AC$2&J$11,data!$F:$W,18,FALSE)) -> - | R173: =IF(ISNA(VLOOKUP($B$9&$D75&$AC$2&K$11,data!$F:$W,18,FALSE)),"-",VLOOKUP($B$9&$D75&$AC$2&K$11,data!$F:$W,18,FALSE)) -> - | S173: =IF(ISNA(VLOOKUP($B$9&$D75&$AC$2&L$11,data!$F:$W,18,FALSE)),"-",VLOOKUP($B$9&$D75&$AC$2&L$11,data!$F:$W,18,FALSE)) -> - | T173: =IF(ISNA(VLOOKUP($B$9&$D75&$AC$2&M$11,data!$F:$W,18,FALSE)),"-",VLOOKUP($B$9&$D75&$AC$2&M$11,data!$F:$W,18,FALSE)) -> -
H174: =IF(ISNA(VLOOKUP($B$7&$D76&$AC$2&H$11,data!$F:$W,18,FALSE)),"-",VLOOKUP($B$7&$D76&$AC$2&H$11,data!$F:$W,18,FALSE)) -> 28.85253963 | I174: =IF(ISNA(VLOOKUP($B$7&$D76&$AC$2&I$11,data!$F:$W,18,FALSE)),"-",VLOOKUP($B$7&$D76&$AC$2&I$11,data!$F:$W,18,FALSE)) -> 0 | J174: =IF(ISNA(VLOOKUP($B$7&$D76&$AC$2&J$11,data!$F:$W,18,FALSE)),"-",VLOOKUP($B$7&$D76&$AC$2&J$11,data!$F:$W,18,FALSE)) -> 0.1666666667 | K174: =IF(ISNA(VLOOKUP($B$7&$D76&$AC$2&K$11,data!$F:$W,18,FALSE)),"-",VLOOKUP($B$7&$D76&$AC$2&K$11,data!$F:$W,18,FALSE)) -> 2.166666667 | L174: =IF(ISNA(VLOOKUP($B$7&$D76&$AC$2&L$11,data!$F:$W,18,FALSE)),"-",VLOOKUP($B$7&$D76&$AC$2&L$11,data!$F:$W,18,FALSE)) -> 8.050042718 | M174: =IF(ISNA(VLOOKUP($B$7&$D76&$AC$2&M$11,data!$F:$W,18,FALSE)),"-",VLOOKUP($B$7&$D76&$AC$2&M$11,data!$F:$W,18,FALSE)) -> 18.46916358 | O174: =IF(ISNA(VLOOKUP($B$9&$D76&$AC$2&H$11,data!$F:$W,18,FALSE)),"-",VLOOKUP($B$9&$D76&$AC$2&H$11,data!$F:$W,18,FALSE)) -> - | P174: =IF(ISNA(VLOOKUP($B$9&$D76&$AC$2&I$11,data!$F:$W,18,FALSE)),"-",VLOOKUP($B$9&$D76&$AC$2&I$11,data!$F:$W,18,FALSE)) -> - | Q174: =IF(ISNA(VLOOKUP($B$9&$D76&$AC$2&J$11,data!$F:$W,18,FALSE)),"-",VLOOKUP($B$9&$D76&$AC$2&J$11,data!$F:$W,18,FALSE)) -> - | R174: =IF(ISNA(VLOOKUP($B$9&$D76&$AC$2&K$11,data!$F:$W,18,FALSE)),"-",VLOOKUP($B$9&$D76&$AC$2&K$11,data!$F:$W,18,FALSE)) -> - | S174: =IF(ISNA(VLOOKUP($B$9&$D76&$AC$2&L$11,data!$F:$W,18,FALSE)),"-",VLOOKUP($B$9&$D76&$AC$2&L$11,data!$F:$W,18,FALSE)) -> - | T174: =IF(ISNA(VLOOKUP($B$9&$D76&$AC$2&M$11,data!$F:$W,18,FALSE)),"-",VLOOKUP($B$9&$D76&$AC$2&M$11,data!$F:$W,18,FALSE)) -> -
H175: =IF(ISNA(VLOOKUP($B$7&$D77&$AC$2&H$11,data!$F:$W,18,FALSE)),"-",VLOOKUP($B$7&$D77&$AC$2&H$11,data!$F:$W,18,FALSE)) -> 450.6900254 | I175: =IF(ISNA(VLOOKUP($B$7&$D77&$AC$2&I$11,data!$F:$W,18,FALSE)),"-",VLOOKUP($B$7&$D77&$AC$2&I$11,data!$F:$W,18,FALSE)) -> 0 | J175: =IF(ISNA(VLOOKUP($B$7&$D77&$AC$2&J$11,data!$F:$W,18,FALSE)),"-",VLOOKUP($B$7&$D77&$AC$2&J$11,data!$F:$W,18,FALSE)) -> 0.9734339915 | K175: =IF(ISNA(VLOOKUP($B$7&$D77&$AC$2&K$11,data!$F:$W,18,FALSE)),"-",VLOOKUP($B$7&$D77&$AC$2&K$11,data!$F:$W,18,FALSE)) -> 58.96580284 | L175: =IF(ISNA(VLOOKUP($B$7&$D77&$AC$2&L$11,data!$F:$W,18,FALSE)),"-",VLOOKUP($B$7&$D77&$AC$2&L$11,data!$F:$W,18,FALSE)) -> 238.100835 | M175: =IF(ISNA(VLOOKUP($B$7&$D77&$AC$2&M$11,data!$F:$W,18,FALSE)),"-",VLOOKUP($B$7&$D77&$AC$2&M$11,data!$F:$W,18,FALSE)) -> 152.6499536 | O175: =IF(ISNA(VLOOKUP($B$9&$D77&$AC$2&H$11,data!$F:$W,18,FALSE)),"-",VLOOKUP($B$9&$D77&$AC$2&H$11,data!$F:$W,18,FALSE)) -> - | P175: =IF(ISNA(VLOOKUP($B$9&$D77&$AC$2&I$11,data!$F:$W,18,FALSE)),"-",VLOOKUP($B$9&$D77&$AC$2&I$11,data!$F:$W,18,FALSE)) -> - | Q175: =IF(ISNA(VLOOKUP($B$9&$D77&$AC$2&J$11,data!$F:$W,18,FALSE)),"-",VLOOKUP($B$9&$D77&$AC$2&J$11,data!$F:$W,18,FALSE)) -> - | R175: =IF(ISNA(VLOOKUP($B$9&$D77&$AC$2&K$11,data!$F:$W,18,FALSE)),"-",VLOOKUP($B$9&$D77&$AC$2&K$11,data!$F:$W,18,FALSE)) -> - | S175: =IF(ISNA(VLOOKUP($B$9&$D77&$AC$2&L$11,data!$F:$W,18,FALSE)),"-",VLOOKUP($B$9&$D77&$AC$2&L$11,data!$F:$W,18,FALSE)) -> - | T175: =IF(ISNA(VLOOKUP($B$9&$D77&$AC$2&M$11,data!$F:$W,18,FALSE)),"-",VLOOKUP($B$9&$D77&$AC$2&M$11,data!$F:$W,18,FALSE)) -> -
H176: =IF(ISNA(VLOOKUP($B$7&$D78&$AC$2&H$11,data!$F:$W,18,FALSE)),"-",VLOOKUP($B$7&$D78&$AC$2&H$11,data!$F:$W,18,FALSE)) -> 738.6505535 | I176: =IF(ISNA(VLOOKUP($B$7&$D78&$AC$2&I$11,data!$F:$W,18,FALSE)),"-",VLOOKUP($B$7&$D78&$AC$2&I$11,data!$F:$W,18,FALSE)) -> 0.07884295245 | J176: =IF(ISNA(VLOOKUP($B$7&$D78&$AC$2&J$11,data!$F:$W,18,FALSE)),"-",VLOOKUP($B$7&$D78&$AC$2&J$11,data!$F:$W,18,FALSE)) -> 39.69883512 | K176: =IF(ISNA(VLOOKUP($B$7&$D78&$AC$2&K$11,data!$F:$W,18,FALSE)),"-",VLOOKUP($B$7&$D78&$AC$2&K$11,data!$F:$W,18,FALSE)) -> 439.9460759 | L176: =IF(ISNA(VLOOKUP($B$7&$D78&$AC$2&L$11,data!$F:$W,18,FALSE)),"-",VLOOKUP($B$7&$D78&$AC$2&L$11,data!$F:$W,18,FALSE)) -> 244.3390917 | M176: =IF(ISNA(VLOOKUP($B$7&$D78&$AC$2&M$11,data!$F:$W,18,FALSE)),"-",VLOOKUP($B$7&$D78&$AC$2&M$11,data!$F:$W,18,FALSE)) -> 14.58770786 | O176: =IF(ISNA(VLOOKUP($B$9&$D78&$AC$2&H$11,data!$F:$W,18,FALSE)),"-",VLOOKUP($B$9&$D78&$AC$2&H$11,data!$F:$W,18,FALSE)) -> - | P176: =IF(ISNA(VLOOKUP($B$9&$D78&$AC$2&I$11,data!$F:$W,18,FALSE)),"-",VLOOKUP($B$9&$D78&$AC$2&I$11,data!$F:$W,18,FALSE)) -> - | Q176: =IF(ISNA(VLOOKUP($B$9&$D78&$AC$2&J$11,data!$F:$W,18,FALSE)),"-",VLOOKUP($B$9&$D78&$AC$2&J$11,data!$F:$W,18,FALSE)) -> - | R176: =IF(ISNA(VLOOKUP($B$9&$D78&$AC$2&K$11,data!$F:$W,18,FALSE)),"-",VLOOKUP($B$9&$D78&$AC$2&K$11,data!$F:$W,18,FALSE)) -> - | S176: =IF(ISNA(VLOOKUP($B$9&$D78&$AC$2&L$11,data!$F:$W,18,FALSE)),"-",VLOOKUP($B$9&$D78&$AC$2&L$11,data!$F:$W,18,FALSE)) -> - | T176: =IF(ISNA(VLOOKUP($B$9&$D78&$AC$2&M$11,data!$F:$W,18,FALSE)),"-",VLOOKUP($B$9&$D78&$AC$2&M$11,data!$F:$W,18,FALSE)) -> -
H177: =IF(ISNA(VLOOKUP($B$7&$D79&$AC$2&H$11,data!$F:$W,18,FALSE)),"-",VLOOKUP($B$7&$D79&$AC$2&H$11,data!$F:$W,18,FALSE)) -> 0 | I177: =IF(ISNA(VLOOKUP($B$7&$D79&$AC$2&I$11,data!$F:$W,18,FALSE)),"-",VLOOKUP($B$7&$D79&$AC$2&I$11,data!$F:$W,18,FALSE)) -> 0 | J177: =IF(ISNA(VLOOKUP($B$7&$D79&$AC$2&J$11,data!$F:$W,18,FALSE)),"-",VLOOKUP($B$7&$D79&$AC$2&J$11,data!$F:$W,18,FALSE)) -> 0 | K177: =IF(ISNA(VLOOKUP($B$7&$D79&$AC$2&K$11,data!$F:$W,18,FALSE)),"-",VLOOKUP($B$7&$D79&$AC$2&K$11,data!$F:$W,18,FALSE)) -> 0 | L177: =IF(ISNA(VLOOKUP($B$7&$D79&$AC$2&L$11,data!$F:$W,18,FALSE)),"-",VLOOKUP($B$7&$D79&$AC$2&L$11,data!$F:$W,18,FALSE)) -> 0 | M177: =IF(ISNA(VLOOKUP($B$7&$D79&$AC$2&M$11,data!$F:$W,18,FALSE)),"-",VLOOKUP($B$7&$D79&$AC$2&M$11,data!$F:$W,18,FALSE)) -> 0 | O177: =IF(ISNA(VLOOKUP($B$9&$D79&$AC$2&H$11,data!$F:$W,18,FALSE)),"-",VLOOKUP($B$9&$D79&$AC$2&H$11,data!$F:$W,18,FALSE)) -> - | P177: =IF(ISNA(VLOOKUP($B$9&$D79&$AC$2&I$11,data!$F:$W,18,FALSE)),"-",VLOOKUP($B$9&$D79&$AC$2&I$11,data!$F:$W,18,FALSE)) -> - | Q177: =IF(ISNA(VLOOKUP($B$9&$D79&$AC$2&J$11,data!$F:$W,18,FALSE)),"-",VLOOKUP($B$9&$D79&$AC$2&J$11,data!$F:$W,18,FALSE)) -> - | R177: =IF(ISNA(VLOOKUP($B$9&$D79&$AC$2&K$11,data!$F:$W,18,FALSE)),"-",VLOOKUP($B$9&$D79&$AC$2&K$11,data!$F:$W,18,FALSE)) -> - | S177: =IF(ISNA(VLOOKUP($B$9&$D79&$AC$2&L$11,data!$F:$W,18,FALSE)),"-",VLOOKUP($B$9&$D79&$AC$2&L$11,data!$F:$W,18,FALSE)) -> - | T177: =IF(ISNA(VLOOKUP($B$9&$D79&$AC$2&M$11,data!$F:$W,18,FALSE)),"-",VLOOKUP($B$9&$D79&$AC$2&M$11,data!$F:$W,18,FALSE)) -> -
H178: =IF(ISNA(VLOOKUP($B$7&$D80&$AC$2&H$11,data!$F:$W,18,FALSE)),"-",VLOOKUP($B$7&$D80&$AC$2&H$11,data!$F:$W,18,FALSE)) -> 0 | I178: =IF(ISNA(VLOOKUP($B$7&$D80&$AC$2&I$11,data!$F:$W,18,FALSE)),"-",VLOOKUP($B$7&$D80&$AC$2&I$11,data!$F:$W,18,FALSE)) -> 0 | J178: =IF(ISNA(VLOOKUP($B$7&$D80&$AC$2&J$11,data!$F:$W,18,FALSE)),"-",VLOOKUP($B$7&$D80&$AC$2&J$11,data!$F:$W,18,FALSE)) -> 0 | K178: =IF(ISNA(VLOOKUP($B$7&$D80&$AC$2&K$11,data!$F:$W,18,FALSE)),"-",VLOOKUP($B$7&$D80&$AC$2&K$11,data!$F:$W,18,FALSE)) -> 0 | L178: =IF(ISNA(VLOOKUP($B$7&$D80&$AC$2&L$11,data!$F:$W,18,FALSE)),"-",VLOOKUP($B$7&$D80&$AC$2&L$11,data!$F:$W,18,FALSE)) -> 0 | M178: =IF(ISNA(VLOOKUP($B$7&$D80&$AC$2&M$11,data!$F:$W,18,FALSE)),"-",VLOOKUP($B$7&$D80&$AC$2&M$11,data!$F:$W,18,FALSE)) -> 0 | O178: =IF(ISNA(VLOOKUP($B$9&$D80&$AC$2&H$11,data!$F:$W,18,FALSE)),"-",VLOOKUP($B$9&$D80&$AC$2&H$11,data!$F:$W,18,FALSE)) -> - | P178: =IF(ISNA(VLOOKUP($B$9&$D80&$AC$2&I$11,data!$F:$W,18,FALSE)),"-",VLOOKUP($B$9&$D80&$AC$2&I$11,data!$F:$W,18,FALSE)) -> - | Q178: =IF(ISNA(VLOOKUP($B$9&$D80&$AC$2&J$11,data!$F:$W,18,FALSE)),"-",VLOOKUP($B$9&$D80&$AC$2&J$11,data!$F:$W,18,FALSE)) -> - | R178: =IF(ISNA(VLOOKUP($B$9&$D80&$AC$2&K$11,data!$F:$W,18,FALSE)),"-",VLOOKUP($B$9&$D80&$AC$2&K$11,data!$F:$W,18,FALSE)) -> - | S178: =IF(ISNA(VLOOKUP($B$9&$D80&$AC$2&L$11,data!$F:$W,18,FALSE)),"-",VLOOKUP($B$9&$D80&$AC$2&L$11,data!$F:$W,18,FALSE)) -> - | T178: =IF(ISNA(VLOOKUP($B$9&$D80&$AC$2&M$11,data!$F:$W,18,FALSE)),"-",VLOOKUP($B$9&$D80&$AC$2&M$11,data!$F:$W,18,FALSE)) -> -
H179: =IF(ISNA(VLOOKUP($B$7&$D81&$AC$2&H$11,data!$F:$W,18,FALSE)),"-",VLOOKUP($B$7&$D81&$AC$2&H$11,data!$F:$W,18,FALSE)) -> 17.63458411 | I179: =IF(ISNA(VLOOKUP($B$7&$D81&$AC$2&I$11,data!$F:$W,18,FALSE)),"-",VLOOKUP($B$7&$D81&$AC$2&I$11,data!$F:$W,18,FALSE)) -> 0 | J179: =IF(ISNA(VLOOKUP($B$7&$D81&$AC$2&J$11,data!$F:$W,18,FALSE)),"-",VLOOKUP($B$7&$D81&$AC$2&J$11,data!$F:$W,18,FALSE)) -> 0.001655267346 | K179: =IF(ISNA(VLOOKUP($B$7&$D81&$AC$2&K$11,data!$F:$W,18,FALSE)),"-",VLOOKUP($B$7&$D81&$AC$2&K$11,data!$F:$W,18,FALSE)) -> 2.509891599 | L179: =IF(ISNA(VLOOKUP($B$7&$D81&$AC$2&L$11,data!$F:$W,18,FALSE)),"-",VLOOKUP($B$7&$D81&$AC$2&L$11,data!$F:$W,18,FALSE)) -> 1.090500872 | M179: =IF(ISNA(VLOOKUP($B$7&$D81&$AC$2&M$11,data!$F:$W,18,FALSE)),"-",VLOOKUP($B$7&$D81&$AC$2&M$11,data!$F:$W,18,FALSE)) -> 14.03253637 | O179: =IF(ISNA(VLOOKUP($B$9&$D81&$AC$2&H$11,data!$F:$W,18,FALSE)),"-",VLOOKUP($B$9&$D81&$AC$2&H$11,data!$F:$W,18,FALSE)) -> - | P179: =IF(ISNA(VLOOKUP($B$9&$D81&$AC$2&I$11,data!$F:$W,18,FALSE)),"-",VLOOKUP($B$9&$D81&$AC$2&I$11,data!$F:$W,18,FALSE)) -> - | Q179: =IF(ISNA(VLOOKUP($B$9&$D81&$AC$2&J$11,data!$F:$W,18,FALSE)),"-",VLOOKUP($B$9&$D81&$AC$2&J$11,data!$F:$W,18,FALSE)) -> - | R179: =IF(ISNA(VLOOKUP($B$9&$D81&$AC$2&K$11,data!$F:$W,18,FALSE)),"-",VLOOKUP($B$9&$D81&$AC$2&K$11,data!$F:$W,18,FALSE)) -> - | S179: =IF(ISNA(VLOOKUP($B$9&$D81&$AC$2&L$11,data!$F:$W,18,FALSE)),"-",VLOOKUP($B$9&$D81&$AC$2&L$11,data!$F:$W,18,FALSE)) -> - | T179: =IF(ISNA(VLOOKUP($B$9&$D81&$AC$2&M$11,data!$F:$W,18,FALSE)),"-",VLOOKUP($B$9&$D81&$AC$2&M$11,data!$F:$W,18,FALSE)) -> -
H180: =IF(ISNA(VLOOKUP($B$7&$D82&$AC$2&H$11,data!$F:$W,18,FALSE)),"-",VLOOKUP($B$7&$D82&$AC$2&H$11,data!$F:$W,18,FALSE)) -> - | I180: =IF(ISNA(VLOOKUP($B$7&$D82&$AC$2&I$11,data!$F:$W,18,FALSE)),"-",VLOOKUP($B$7&$D82&$AC$2&I$11,data!$F:$W,18,FALSE)) -> - | J180: =IF(ISNA(VLOOKUP($B$7&$D82&$AC$2&J$11,data!$F:$W,18,FALSE)),"-",VLOOKUP($B$7&$D82&$AC$2&J$11,data!$F:$W,18,FALSE)) -> - | K180: =IF(ISNA(VLOOKUP($B$7&$D82&$AC$2&K$11,data!$F:$W,18,FALSE)),"-",VLOOKUP($B$7&$D82&$AC$2&K$11,data!$F:$W,18,FALSE)) -> - | L180: =IF(ISNA(VLOOKUP($B$7&$D82&$AC$2&L$11,data!$F:$W,18,FALSE)),"-",VLOOKUP($B$7&$D82&$AC$2&L$11,data!$F:$W,18,FALSE)) -> - | M180: =IF(ISNA(VLOOKUP($B$7&$D82&$AC$2&M$11,data!$F:$W,18,FALSE)),"-",VLOOKUP($B$7&$D82&$AC$2&M$11,data!$F:$W,18,FALSE)) -> - | O180: =IF(ISNA(VLOOKUP($B$9&$D82&$AC$2&H$11,data!$F:$W,18,FALSE)),"-",VLOOKUP($B$9&$D82&$AC$2&H$11,data!$F:$W,18,FALSE)) -> - | P180: =IF(ISNA(VLOOKUP($B$9&$D82&$AC$2&I$11,data!$F:$W,18,FALSE)),"-",VLOOKUP($B$9&$D82&$AC$2&I$11,data!$F:$W,18,FALSE)) -> - | Q180: =IF(ISNA(VLOOKUP($B$9&$D82&$AC$2&J$11,data!$F:$W,18,FALSE)),"-",VLOOKUP($B$9&$D82&$AC$2&J$11,data!$F:$W,18,FALSE)) -> - | R180: =IF(ISNA(VLOOKUP($B$9&$D82&$AC$2&K$11,data!$F:$W,18,FALSE)),"-",VLOOKUP($B$9&$D82&$AC$2&K$11,data!$F:$W,18,FALSE)) -> - | S180: =IF(ISNA(VLOOKUP($B$9&$D82&$AC$2&L$11,data!$F:$W,18,FALSE)),"-",VLOOKUP($B$9&$D82&$AC$2&L$11,data!$F:$W,18,FALSE)) -> - | T180: =IF(ISNA(VLOOKUP($B$9&$D82&$AC$2&M$11,data!$F:$W,18,FALSE)),"-",VLOOKUP($B$9&$D82&$AC$2&M$11,data!$F:$W,18,FALSE)) -> -
H181: =IF(ISNA(VLOOKUP($B$7&$D83&$AC$2&H$11,data!$F:$W,18,FALSE)),"-",VLOOKUP($B$7&$D83&$AC$2&H$11,data!$F:$W,18,FALSE)) -> - | I181: =IF(ISNA(VLOOKUP($B$7&$D83&$AC$2&I$11,data!$F:$W,18,FALSE)),"-",VLOOKUP($B$7&$D83&$AC$2&I$11,data!$F:$W,18,FALSE)) -> - | J181: =IF(ISNA(VLOOKUP($B$7&$D83&$AC$2&J$11,data!$F:$W,18,FALSE)),"-",VLOOKUP($B$7&$D83&$AC$2&J$11,data!$F:$W,18,FALSE)) -> - | K181: =IF(ISNA(VLOOKUP($B$7&$D83&$AC$2&K$11,data!$F:$W,18,FALSE)),"-",VLOOKUP($B$7&$D83&$AC$2&K$11,data!$F:$W,18,FALSE)) -> - | L181: =IF(ISNA(VLOOKUP($B$7&$D83&$AC$2&L$11,data!$F:$W,18,FALSE)),"-",VLOOKUP($B$7&$D83&$AC$2&L$11,data!$F:$W,18,FALSE)) -> - | M181: =IF(ISNA(VLOOKUP($B$7&$D83&$AC$2&M$11,data!$F:$W,18,FALSE)),"-",VLOOKUP($B$7&$D83&$AC$2&M$11,data!$F:$W,18,FALSE)) -> - | O181: =IF(ISNA(VLOOKUP($B$9&$D83&$AC$2&H$11,data!$F:$W,18,FALSE)),"-",VLOOKUP($B$9&$D83&$AC$2&H$11,data!$F:$W,18,FALSE)) -> - | P181: =IF(ISNA(VLOOKUP($B$9&$D83&$AC$2&I$11,data!$F:$W,18,FALSE)),"-",VLOOKUP($B$9&$D83&$AC$2&I$11,data!$F:$W,18,FALSE)) -> - | Q181: =IF(ISNA(VLOOKUP($B$9&$D83&$AC$2&J$11,data!$F:$W,18,FALSE)),"-",VLOOKUP($B$9&$D83&$AC$2&J$11,data!$F:$W,18,FALSE)) -> - | R181: =IF(ISNA(VLOOKUP($B$9&$D83&$AC$2&K$11,data!$F:$W,18,FALSE)),"-",VLOOKUP($B$9&$D83&$AC$2&K$11,data!$F:$W,18,FALSE)) -> - | S181: =IF(ISNA(VLOOKUP($B$9&$D83&$AC$2&L$11,data!$F:$W,18,FALSE)),"-",VLOOKUP($B$9&$D83&$AC$2&L$11,data!$F:$W,18,FALSE)) -> - | T181: =IF(ISNA(VLOOKUP($B$9&$D83&$AC$2&M$11,data!$F:$W,18,FALSE)),"-",VLOOKUP($B$9&$D83&$AC$2&M$11,data!$F:$W,18,FALSE)) -> -
H182: =IF(ISNA(VLOOKUP($B$7&$D84&$AC$2&H$11,data!$F:$W,18,FALSE)),"-",VLOOKUP($B$7&$D84&$AC$2&H$11,data!$F:$W,18,FALSE)) -> 831.9089431 | I182: =IF(ISNA(VLOOKUP($B$7&$D84&$AC$2&I$11,data!$F:$W,18,FALSE)),"-",VLOOKUP($B$7&$D84&$AC$2&I$11,data!$F:$W,18,FALSE)) -> 0.04947554855 | J182: =IF(ISNA(VLOOKUP($B$7&$D84&$AC$2&J$11,data!$F:$W,18,FALSE)),"-",VLOOKUP($B$7&$D84&$AC$2&J$11,data!$F:$W,18,FALSE)) -> 2.017115042 | K182: =IF(ISNA(VLOOKUP($B$7&$D84&$AC$2&K$11,data!$F:$W,18,FALSE)),"-",VLOOKUP($B$7&$D84&$AC$2&K$11,data!$F:$W,18,FALSE)) -> 23.38117462 | L182: =IF(ISNA(VLOOKUP($B$7&$D84&$AC$2&L$11,data!$F:$W,18,FALSE)),"-",VLOOKUP($B$7&$D84&$AC$2&L$11,data!$F:$W,18,FALSE)) -> 130.1196341 | M182: =IF(ISNA(VLOOKUP($B$7&$D84&$AC$2&M$11,data!$F:$W,18,FALSE)),"-",VLOOKUP($B$7&$D84&$AC$2&M$11,data!$F:$W,18,FALSE)) -> 676.3415438 | O182: =IF(ISNA(VLOOKUP($B$9&$D84&$AC$2&H$11,data!$F:$W,18,FALSE)),"-",VLOOKUP($B$9&$D84&$AC$2&H$11,data!$F:$W,18,FALSE)) -> - | P182: =IF(ISNA(VLOOKUP($B$9&$D84&$AC$2&I$11,data!$F:$W,18,FALSE)),"-",VLOOKUP($B$9&$D84&$AC$2&I$11,data!$F:$W,18,FALSE)) -> - | Q182: =IF(ISNA(VLOOKUP($B$9&$D84&$AC$2&J$11,data!$F:$W,18,FALSE)),"-",VLOOKUP($B$9&$D84&$AC$2&J$11,data!$F:$W,18,FALSE)) -> - | R182: =IF(ISNA(VLOOKUP($B$9&$D84&$AC$2&K$11,data!$F:$W,18,FALSE)),"-",VLOOKUP($B$9&$D84&$AC$2&K$11,data!$F:$W,18,FALSE)) -> - | S182: =IF(ISNA(VLOOKUP($B$9&$D84&$AC$2&L$11,data!$F:$W,18,FALSE)),"-",VLOOKUP($B$9&$D84&$AC$2&L$11,data!$F:$W,18,FALSE)) -> - | T182: =IF(ISNA(VLOOKUP($B$9&$D84&$AC$2&M$11,data!$F:$W,18,FALSE)),"-",VLOOKUP($B$9&$D84&$AC$2&M$11,data!$F:$W,18,FALSE)) -> -
H183: =IF(ISNA(VLOOKUP($B$7&$D85&$AC$2&H$11,data!$F:$W,18,FALSE)),"-",VLOOKUP($B$7&$D85&$AC$2&H$11,data!$F:$W,18,FALSE)) -> 987.7016587 | I183: =IF(ISNA(VLOOKUP($B$7&$D85&$AC$2&I$11,data!$F:$W,18,FALSE)),"-",VLOOKUP($B$7&$D85&$AC$2&I$11,data!$F:$W,18,FALSE)) -> 0.6823466843 | J183: =IF(ISNA(VLOOKUP($B$7&$D85&$AC$2&J$11,data!$F:$W,18,FALSE)),"-",VLOOKUP($B$7&$D85&$AC$2&J$11,data!$F:$W,18,FALSE)) -> 0.6695610914 | K183: =IF(ISNA(VLOOKUP($B$7&$D85&$AC$2&K$11,data!$F:$W,18,FALSE)),"-",VLOOKUP($B$7&$D85&$AC$2&K$11,data!$F:$W,18,FALSE)) -> 8.928435058 | L183: =IF(ISNA(VLOOKUP($B$7&$D85&$AC$2&L$11,data!$F:$W,18,FALSE)),"-",VLOOKUP($B$7&$D85&$AC$2&L$11,data!$F:$W,18,FALSE)) -> 58.06236297 | M183: =IF(ISNA(VLOOKUP($B$7&$D85&$AC$2&M$11,data!$F:$W,18,FALSE)),"-",VLOOKUP($B$7&$D85&$AC$2&M$11,data!$F:$W,18,FALSE)) -> 919.3589529 | O183: =IF(ISNA(VLOOKUP($B$9&$D85&$AC$2&H$11,data!$F:$W,18,FALSE)),"-",VLOOKUP($B$9&$D85&$AC$2&H$11,data!$F:$W,18,FALSE)) -> - | P183: =IF(ISNA(VLOOKUP($B$9&$D85&$AC$2&I$11,data!$F:$W,18,FALSE)),"-",VLOOKUP($B$9&$D85&$AC$2&I$11,data!$F:$W,18,FALSE)) -> - | Q183: =IF(ISNA(VLOOKUP($B$9&$D85&$AC$2&J$11,data!$F:$W,18,FALSE)),"-",VLOOKUP($B$9&$D85&$AC$2&J$11,data!$F:$W,18,FALSE)) -> - | R183: =IF(ISNA(VLOOKUP($B$9&$D85&$AC$2&K$11,data!$F:$W,18,FALSE)),"-",VLOOKUP($B$9&$D85&$AC$2&K$11,data!$F:$W,18,FALSE)) -> - | S183: =IF(ISNA(VLOOKUP($B$9&$D85&$AC$2&L$11,data!$F:$W,18,FALSE)),"-",VLOOKUP($B$9&$D85&$AC$2&L$11,data!$F:$W,18,FALSE)) -> - | T183: =IF(ISNA(VLOOKUP($B$9&$D85&$AC$2&M$11,data!$F:$W,18,FALSE)),"-",VLOOKUP($B$9&$D85&$AC$2&M$11,data!$F:$W,18,FALSE)) -> -
H184: =IF(ISNA(VLOOKUP($B$7&$D86&$AC$2&H$11,data!$F:$W,18,FALSE)),"-",VLOOKUP($B$7&$D86&$AC$2&H$11,data!$F:$W,18,FALSE)) -> 615.5684904 | I184: =IF(ISNA(VLOOKUP($B$7&$D86&$AC$2&I$11,data!$F:$W,18,FALSE)),"-",VLOOKUP($B$7&$D86&$AC$2&I$11,data!$F:$W,18,FALSE)) -> 0 | J184: =IF(ISNA(VLOOKUP($B$7&$D86&$AC$2&J$11,data!$F:$W,18,FALSE)),"-",VLOOKUP($B$7&$D86&$AC$2&J$11,data!$F:$W,18,FALSE)) -> 0 | K184: =IF(ISNA(VLOOKUP($B$7&$D86&$AC$2&K$11,data!$F:$W,18,FALSE)),"-",VLOOKUP($B$7&$D86&$AC$2&K$11,data!$F:$W,18,FALSE)) -> 2.928569002 | L184: =IF(ISNA(VLOOKUP($B$7&$D86&$AC$2&L$11,data!$F:$W,18,FALSE)),"-",VLOOKUP($B$7&$D86&$AC$2&L$11,data!$F:$W,18,FALSE)) -> 40.36892943 | M184: =IF(ISNA(VLOOKUP($B$7&$D86&$AC$2&M$11,data!$F:$W,18,FALSE)),"-",VLOOKUP($B$7&$D86&$AC$2&M$11,data!$F:$W,18,FALSE)) -> 572.2709919 | O184: =IF(ISNA(VLOOKUP($B$9&$D86&$AC$2&H$11,data!$F:$W,18,FALSE)),"-",VLOOKUP($B$9&$D86&$AC$2&H$11,data!$F:$W,18,FALSE)) -> - | P184: =IF(ISNA(VLOOKUP($B$9&$D86&$AC$2&I$11,data!$F:$W,18,FALSE)),"-",VLOOKUP($B$9&$D86&$AC$2&I$11,data!$F:$W,18,FALSE)) -> - | Q184: =IF(ISNA(VLOOKUP($B$9&$D86&$AC$2&J$11,data!$F:$W,18,FALSE)),"-",VLOOKUP($B$9&$D86&$AC$2&J$11,data!$F:$W,18,FALSE)) -> - | R184: =IF(ISNA(VLOOKUP($B$9&$D86&$AC$2&K$11,data!$F:$W,18,FALSE)),"-",VLOOKUP($B$9&$D86&$AC$2&K$11,data!$F:$W,18,FALSE)) -> - | S184: =IF(ISNA(VLOOKUP($B$9&$D86&$AC$2&L$11,data!$F:$W,18,FALSE)),"-",VLOOKUP($B$9&$D86&$AC$2&L$11,data!$F:$W,18,FALSE)) -> - | T184: =IF(ISNA(VLOOKUP($B$9&$D86&$AC$2&M$11,data!$F:$W,18,FALSE)),"-",VLOOKUP($B$9&$D86&$AC$2&M$11,data!$F:$W,18,FALSE)) -> -
H185: =IF(ISNA(VLOOKUP($B$7&$D87&$AC$2&H$11,data!$F:$W,18,FALSE)),"-",VLOOKUP($B$7&$D87&$AC$2&H$11,data!$F:$W,18,FALSE)) -> 9.764102867 | I185: =IF(ISNA(VLOOKUP($B$7&$D87&$AC$2&I$11,data!$F:$W,18,FALSE)),"-",VLOOKUP($B$7&$D87&$AC$2&I$11,data!$F:$W,18,FALSE)) -> 0 | J185: =IF(ISNA(VLOOKUP($B$7&$D87&$AC$2&J$11,data!$F:$W,18,FALSE)),"-",VLOOKUP($B$7&$D87&$AC$2&J$11,data!$F:$W,18,FALSE)) -> 0.0005807200929 | K185: =IF(ISNA(VLOOKUP($B$7&$D87&$AC$2&K$11,data!$F:$W,18,FALSE)),"-",VLOOKUP($B$7&$D87&$AC$2&K$11,data!$F:$W,18,FALSE)) -> 1.214866434 | L185: =IF(ISNA(VLOOKUP($B$7&$D87&$AC$2&L$11,data!$F:$W,18,FALSE)),"-",VLOOKUP($B$7&$D87&$AC$2&L$11,data!$F:$W,18,FALSE)) -> 1.512636534 | M185: =IF(ISNA(VLOOKUP($B$7&$D87&$AC$2&M$11,data!$F:$W,18,FALSE)),"-",VLOOKUP($B$7&$D87&$AC$2&M$11,data!$F:$W,18,FALSE)) -> 7.036019178 | O185: =IF(ISNA(VLOOKUP($B$9&$D87&$AC$2&H$11,data!$F:$W,18,FALSE)),"-",VLOOKUP($B$9&$D87&$AC$2&H$11,data!$F:$W,18,FALSE)) -> - | P185: =IF(ISNA(VLOOKUP($B$9&$D87&$AC$2&I$11,data!$F:$W,18,FALSE)),"-",VLOOKUP($B$9&$D87&$AC$2&I$11,data!$F:$W,18,FALSE)) -> - | Q185: =IF(ISNA(VLOOKUP($B$9&$D87&$AC$2&J$11,data!$F:$W,18,FALSE)),"-",VLOOKUP($B$9&$D87&$AC$2&J$11,data!$F:$W,18,FALSE)) -> - | R185: =IF(ISNA(VLOOKUP($B$9&$D87&$AC$2&K$11,data!$F:$W,18,FALSE)),"-",VLOOKUP($B$9&$D87&$AC$2&K$11,data!$F:$W,18,FALSE)) -> - | S185: =IF(ISNA(VLOOKUP($B$9&$D87&$AC$2&L$11,data!$F:$W,18,FALSE)),"-",VLOOKUP($B$9&$D87&$AC$2&L$11,data!$F:$W,18,FALSE)) -> - | T185: =IF(ISNA(VLOOKUP($B$9&$D87&$AC$2&M$11,data!$F:$W,18,FALSE)),"-",VLOOKUP($B$9&$D87&$AC$2&M$11,data!$F:$W,18,FALSE)) -> -
H186: =IF(ISNA(VLOOKUP($B$7&$D88&$AC$2&H$11,data!$F:$W,18,FALSE)),"-",VLOOKUP($B$7&$D88&$AC$2&H$11,data!$F:$W,18,FALSE)) -> 358.5178581 | I186: =IF(ISNA(VLOOKUP($B$7&$D88&$AC$2&I$11,data!$F:$W,18,FALSE)),"-",VLOOKUP($B$7&$D88&$AC$2&I$11,data!$F:$W,18,FALSE)) -> 7.831210491 | J186: =IF(ISNA(VLOOKUP($B$7&$D88&$AC$2&J$11,data!$F:$W,18,FALSE)),"-",VLOOKUP($B$7&$D88&$AC$2&J$11,data!$F:$W,18,FALSE)) -> 9.414946148 | K186: =IF(ISNA(VLOOKUP($B$7&$D88&$AC$2&K$11,data!$F:$W,18,FALSE)),"-",VLOOKUP($B$7&$D88&$AC$2&K$11,data!$F:$W,18,FALSE)) -> 25.034545 | L186: =IF(ISNA(VLOOKUP($B$7&$D88&$AC$2&L$11,data!$F:$W,18,FALSE)),"-",VLOOKUP($B$7&$D88&$AC$2&L$11,data!$F:$W,18,FALSE)) -> 87.06891427 | M186: =IF(ISNA(VLOOKUP($B$7&$D88&$AC$2&M$11,data!$F:$W,18,FALSE)),"-",VLOOKUP($B$7&$D88&$AC$2&M$11,data!$F:$W,18,FALSE)) -> 229.1682422 | O186: =IF(ISNA(VLOOKUP($B$9&$D88&$AC$2&H$11,data!$F:$W,18,FALSE)),"-",VLOOKUP($B$9&$D88&$AC$2&H$11,data!$F:$W,18,FALSE)) -> - | P186: =IF(ISNA(VLOOKUP($B$9&$D88&$AC$2&I$11,data!$F:$W,18,FALSE)),"-",VLOOKUP($B$9&$D88&$AC$2&I$11,data!$F:$W,18,FALSE)) -> - | Q186: =IF(ISNA(VLOOKUP($B$9&$D88&$AC$2&J$11,data!$F:$W,18,FALSE)),"-",VLOOKUP($B$9&$D88&$AC$2&J$11,data!$F:$W,18,FALSE)) -> - | R186: =IF(ISNA(VLOOKUP($B$9&$D88&$AC$2&K$11,data!$F:$W,18,FALSE)),"-",VLOOKUP($B$9&$D88&$AC$2&K$11,data!$F:$W,18,FALSE)) -> - | S186: =IF(ISNA(VLOOKUP($B$9&$D88&$AC$2&L$11,data!$F:$W,18,FALSE)),"-",VLOOKUP($B$9&$D88&$AC$2&L$11,data!$F:$W,18,FALSE)) -> - | T186: =IF(ISNA(VLOOKUP($B$9&$D88&$AC$2&M$11,data!$F:$W,18,FALSE)),"-",VLOOKUP($B$9&$D88&$AC$2&M$11,data!$F:$W,18,FALSE)) -> -
H187: =IF(ISNA(VLOOKUP($B$7&$D89&$AC$2&H$11,data!$F:$W,18,FALSE)),"-",VLOOKUP($B$7&$D89&$AC$2&H$11,data!$F:$W,18,FALSE)) -> - | I187: =IF(ISNA(VLOOKUP($B$7&$D89&$AC$2&I$11,data!$F:$W,18,FALSE)),"-",VLOOKUP($B$7&$D89&$AC$2&I$11,data!$F:$W,18,FALSE)) -> - | J187: =IF(ISNA(VLOOKUP($B$7&$D89&$AC$2&J$11,data!$F:$W,18,FALSE)),"-",VLOOKUP($B$7&$D89&$AC$2&J$11,data!$F:$W,18,FALSE)) -> - | K187: =IF(ISNA(VLOOKUP($B$7&$D89&$AC$2&K$11,data!$F:$W,18,FALSE)),"-",VLOOKUP($B$7&$D89&$AC$2&K$11,data!$F:$W,18,FALSE)) -> - | L187: =IF(ISNA(VLOOKUP($B$7&$D89&$AC$2&L$11,data!$F:$W,18,FALSE)),"-",VLOOKUP($B$7&$D89&$AC$2&L$11,data!$F:$W,18,FALSE)) -> - | M187: =IF(ISNA(VLOOKUP($B$7&$D89&$AC$2&M$11,data!$F:$W,18,FALSE)),"-",VLOOKUP($B$7&$D89&$AC$2&M$11,data!$F:$W,18,FALSE)) -> - | O187: =IF(ISNA(VLOOKUP($B$9&$D89&$AC$2&H$11,data!$F:$W,18,FALSE)),"-",VLOOKUP($B$9&$D89&$AC$2&H$11,data!$F:$W,18,FALSE)) -> - | P187: =IF(ISNA(VLOOKUP($B$9&$D89&$AC$2&I$11,data!$F:$W,18,FALSE)),"-",VLOOKUP($B$9&$D89&$AC$2&I$11,data!$F:$W,18,FALSE)) -> - | Q187: =IF(ISNA(VLOOKUP($B$9&$D89&$AC$2&J$11,data!$F:$W,18,FALSE)),"-",VLOOKUP($B$9&$D89&$AC$2&J$11,data!$F:$W,18,FALSE)) -> - | R187: =IF(ISNA(VLOOKUP($B$9&$D89&$AC$2&K$11,data!$F:$W,18,FALSE)),"-",VLOOKUP($B$9&$D89&$AC$2&K$11,data!$F:$W,18,FALSE)) -> - | S187: =IF(ISNA(VLOOKUP($B$9&$D89&$AC$2&L$11,data!$F:$W,18,FALSE)),"-",VLOOKUP($B$9&$D89&$AC$2&L$11,data!$F:$W,18,FALSE)) -> - | T187: =IF(ISNA(VLOOKUP($B$9&$D89&$AC$2&M$11,data!$F:$W,18,FALSE)),"-",VLOOKUP($B$9&$D89&$AC$2&M$11,data!$F:$W,18,FALSE)) -> -
H188: =IF(ISNA(VLOOKUP($B$7&$D90&$AC$2&H$11,data!$F:$W,18,FALSE)),"-",VLOOKUP($B$7&$D90&$AC$2&H$11,data!$F:$W,18,FALSE)) -> - | I188: =IF(ISNA(VLOOKUP($B$7&$D90&$AC$2&I$11,data!$F:$W,18,FALSE)),"-",VLOOKUP($B$7&$D90&$AC$2&I$11,data!$F:$W,18,FALSE)) -> - | J188: =IF(ISNA(VLOOKUP($B$7&$D90&$AC$2&J$11,data!$F:$W,18,FALSE)),"-",VLOOKUP($B$7&$D90&$AC$2&J$11,data!$F:$W,18,FALSE)) -> - | K188: =IF(ISNA(VLOOKUP($B$7&$D90&$AC$2&K$11,data!$F:$W,18,FALSE)),"-",VLOOKUP($B$7&$D90&$AC$2&K$11,data!$F:$W,18,FALSE)) -> - | L188: =IF(ISNA(VLOOKUP($B$7&$D90&$AC$2&L$11,data!$F:$W,18,FALSE)),"-",VLOOKUP($B$7&$D90&$AC$2&L$11,data!$F:$W,18,FALSE)) -> - | M188: =IF(ISNA(VLOOKUP($B$7&$D90&$AC$2&M$11,data!$F:$W,18,FALSE)),"-",VLOOKUP($B$7&$D90&$AC$2&M$11,data!$F:$W,18,FALSE)) -> - | O188: =IF(ISNA(VLOOKUP($B$9&$D90&$AC$2&H$11,data!$F:$W,18,FALSE)),"-",VLOOKUP($B$9&$D90&$AC$2&H$11,data!$F:$W,18,FALSE)) -> - | P188: =IF(ISNA(VLOOKUP($B$9&$D90&$AC$2&I$11,data!$F:$W,18,FALSE)),"-",VLOOKUP($B$9&$D90&$AC$2&I$11,data!$F:$W,18,FALSE)) -> - | Q188: =IF(ISNA(VLOOKUP($B$9&$D90&$AC$2&J$11,data!$F:$W,18,FALSE)),"-",VLOOKUP($B$9&$D90&$AC$2&J$11,data!$F:$W,18,FALSE)) -> - | R188: =IF(ISNA(VLOOKUP($B$9&$D90&$AC$2&K$11,data!$F:$W,18,FALSE)),"-",VLOOKUP($B$9&$D90&$AC$2&K$11,data!$F:$W,18,FALSE)) -> - | S188: =IF(ISNA(VLOOKUP($B$9&$D90&$AC$2&L$11,data!$F:$W,18,FALSE)),"-",VLOOKUP($B$9&$D90&$AC$2&L$11,data!$F:$W,18,FALSE)) -> - | T188: =IF(ISNA(VLOOKUP($B$9&$D90&$AC$2&M$11,data!$F:$W,18,FALSE)),"-",VLOOKUP($B$9&$D90&$AC$2&M$11,data!$F:$W,18,FALSE)) -> -
H189: =IF(ISNA(VLOOKUP($B$7&$D91&$AC$2&H$11,data!$F:$W,18,FALSE)),"-",VLOOKUP($B$7&$D91&$AC$2&H$11,data!$F:$W,18,FALSE)) -> 150.0503445 | I189: =IF(ISNA(VLOOKUP($B$7&$D91&$AC$2&I$11,data!$F:$W,18,FALSE)),"-",VLOOKUP($B$7&$D91&$AC$2&I$11,data!$F:$W,18,FALSE)) -> 0.009259259259 | J189: =IF(ISNA(VLOOKUP($B$7&$D91&$AC$2&J$11,data!$F:$W,18,FALSE)),"-",VLOOKUP($B$7&$D91&$AC$2&J$11,data!$F:$W,18,FALSE)) -> 0 | K189: =IF(ISNA(VLOOKUP($B$7&$D91&$AC$2&K$11,data!$F:$W,18,FALSE)),"-",VLOOKUP($B$7&$D91&$AC$2&K$11,data!$F:$W,18,FALSE)) -> 0.4444444444 | L189: =IF(ISNA(VLOOKUP($B$7&$D91&$AC$2&L$11,data!$F:$W,18,FALSE)),"-",VLOOKUP($B$7&$D91&$AC$2&L$11,data!$F:$W,18,FALSE)) -> 18.78359792 | M189: =IF(ISNA(VLOOKUP($B$7&$D91&$AC$2&M$11,data!$F:$W,18,FALSE)),"-",VLOOKUP($B$7&$D91&$AC$2&M$11,data!$F:$W,18,FALSE)) -> 130.8130429 | O189: =IF(ISNA(VLOOKUP($B$9&$D91&$AC$2&H$11,data!$F:$W,18,FALSE)),"-",VLOOKUP($B$9&$D91&$AC$2&H$11,data!$F:$W,18,FALSE)) -> - | P189: =IF(ISNA(VLOOKUP($B$9&$D91&$AC$2&I$11,data!$F:$W,18,FALSE)),"-",VLOOKUP($B$9&$D91&$AC$2&I$11,data!$F:$W,18,FALSE)) -> - | Q189: =IF(ISNA(VLOOKUP($B$9&$D91&$AC$2&J$11,data!$F:$W,18,FALSE)),"-",VLOOKUP($B$9&$D91&$AC$2&J$11,data!$F:$W,18,FALSE)) -> - | R189: =IF(ISNA(VLOOKUP($B$9&$D91&$AC$2&K$11,data!$F:$W,18,FALSE)),"-",VLOOKUP($B$9&$D91&$AC$2&K$11,data!$F:$W,18,FALSE)) -> - | S189: =IF(ISNA(VLOOKUP($B$9&$D91&$AC$2&L$11,data!$F:$W,18,FALSE)),"-",VLOOKUP($B$9&$D91&$AC$2&L$11,data!$F:$W,18,FALSE)) -> - | T189: =IF(ISNA(VLOOKUP($B$9&$D91&$AC$2&M$11,data!$F:$W,18,FALSE)),"-",VLOOKUP($B$9&$D91&$AC$2&M$11,data!$F:$W,18,FALSE)) -> -
H190: =IF(ISNA(VLOOKUP($B$7&$D92&$AC$2&H$11,data!$F:$W,18,FALSE)),"-",VLOOKUP($B$7&$D92&$AC$2&H$11,data!$F:$W,18,FALSE)) -> 0 | I190: =IF(ISNA(VLOOKUP($B$7&$D92&$AC$2&I$11,data!$F:$W,18,FALSE)),"-",VLOOKUP($B$7&$D92&$AC$2&I$11,data!$F:$W,18,FALSE)) -> 0 | J190: =IF(ISNA(VLOOKUP($B$7&$D92&$AC$2&J$11,data!$F:$W,18,FALSE)),"-",VLOOKUP($B$7&$D92&$AC$2&J$11,data!$F:$W,18,FALSE)) -> 0 | K190: =IF(ISNA(VLOOKUP($B$7&$D92&$AC$2&K$11,data!$F:$W,18,FALSE)),"-",VLOOKUP($B$7&$D92&$AC$2&K$11,data!$F:$W,18,FALSE)) -> 0 | L190: =IF(ISNA(VLOOKUP($B$7&$D92&$AC$2&L$11,data!$F:$W,18,FALSE)),"-",VLOOKUP($B$7&$D92&$AC$2&L$11,data!$F:$W,18,FALSE)) -> 0 | M190: =IF(ISNA(VLOOKUP($B$7&$D92&$AC$2&M$11,data!$F:$W,18,FALSE)),"-",VLOOKUP($B$7&$D92&$AC$2&M$11,data!$F:$W,18,FALSE)) -> 0 | O190: =IF(ISNA(VLOOKUP($B$9&$D92&$AC$2&H$11,data!$F:$W,18,FALSE)),"-",VLOOKUP($B$9&$D92&$AC$2&H$11,data!$F:$W,18,FALSE)) -> - | P190: =IF(ISNA(VLOOKUP($B$9&$D92&$AC$2&I$11,data!$F:$W,18,FALSE)),"-",VLOOKUP($B$9&$D92&$AC$2&I$11,data!$F:$W,18,FALSE)) -> - | Q190: =IF(ISNA(VLOOKUP($B$9&$D92&$AC$2&J$11,data!$F:$W,18,FALSE)),"-",VLOOKUP($B$9&$D92&$AC$2&J$11,data!$F:$W,18,FALSE)) -> - | R190: =IF(ISNA(VLOOKUP($B$9&$D92&$AC$2&K$11,data!$F:$W,18,FALSE)),"-",VLOOKUP($B$9&$D92&$AC$2&K$11,data!$F:$W,18,FALSE)) -> - | S190: =IF(ISNA(VLOOKUP($B$9&$D92&$AC$2&L$11,data!$F:$W,18,FALSE)),"-",VLOOKUP($B$9&$D92&$AC$2&L$11,data!$F:$W,18,FALSE)) -> - | T190: =IF(ISNA(VLOOKUP($B$9&$D92&$AC$2&M$11,data!$F:$W,18,FALSE)),"-",VLOOKUP($B$9&$D92&$AC$2&M$11,data!$F:$W,18,FALSE)) -> -
H191: =IF(ISNA(VLOOKUP($B$7&$D93&$AC$2&H$11,data!$F:$W,18,FALSE)),"-",VLOOKUP($B$7&$D93&$AC$2&H$11,data!$F:$W,18,FALSE)) -> 0 | I191: =IF(ISNA(VLOOKUP($B$7&$D93&$AC$2&I$11,data!$F:$W,18,FALSE)),"-",VLOOKUP($B$7&$D93&$AC$2&I$11,data!$F:$W,18,FALSE)) -> 0 | J191: =IF(ISNA(VLOOKUP($B$7&$D93&$AC$2&J$11,data!$F:$W,18,FALSE)),"-",VLOOKUP($B$7&$D93&$AC$2&J$11,data!$F:$W,18,FALSE)) -> 0 | K191: =IF(ISNA(VLOOKUP($B$7&$D93&$AC$2&K$11,data!$F:$W,18,FALSE)),"-",VLOOKUP($B$7&$D93&$AC$2&K$11,data!$F:$W,18,FALSE)) -> 0 | L191: =IF(ISNA(VLOOKUP($B$7&$D93&$AC$2&L$11,data!$F:$W,18,FALSE)),"-",VLOOKUP($B$7&$D93&$AC$2&L$11,data!$F:$W,18,FALSE)) -> 0 | M191: =IF(ISNA(VLOOKUP($B$7&$D93&$AC$2&M$11,data!$F:$W,18,FALSE)),"-",VLOOKUP($B$7&$D93&$AC$2&M$11,data!$F:$W,18,FALSE)) -> 0 | O191: =IF(ISNA(VLOOKUP($B$9&$D93&$AC$2&H$11,data!$F:$W,18,FALSE)),"-",VLOOKUP($B$9&$D93&$AC$2&H$11,data!$F:$W,18,FALSE)) -> - | P191: =IF(ISNA(VLOOKUP($B$9&$D93&$AC$2&I$11,data!$F:$W,18,FALSE)),"-",VLOOKUP($B$9&$D93&$AC$2&I$11,data!$F:$W,18,FALSE)) -> - | Q191: =IF(ISNA(VLOOKUP($B$9&$D93&$AC$2&J$11,data!$F:$W,18,FALSE)),"-",VLOOKUP($B$9&$D93&$AC$2&J$11,data!$F:$W,18,FALSE)) -> - | R191: =IF(ISNA(VLOOKUP($B$9&$D93&$AC$2&K$11,data!$F:$W,18,FALSE)),"-",VLOOKUP($B$9&$D93&$AC$2&K$11,data!$F:$W,18,FALSE)) -> - | S191: =IF(ISNA(VLOOKUP($B$9&$D93&$AC$2&L$11,data!$F:$W,18,FALSE)),"-",VLOOKUP($B$9&$D93&$AC$2&L$11,data!$F:$W,18,FALSE)) -> - | T191: =IF(ISNA(VLOOKUP($B$9&$D93&$AC$2&M$11,data!$F:$W,18,FALSE)),"-",VLOOKUP($B$9&$D93&$AC$2&M$11,data!$F:$W,18,FALSE)) -> -
H192: =IF(ISNA(VLOOKUP($B$7&$D94&$AC$2&H$11,data!$F:$W,18,FALSE)),"-",VLOOKUP($B$7&$D94&$AC$2&H$11,data!$F:$W,18,FALSE)) -> 222.0816617 | I192: =IF(ISNA(VLOOKUP($B$7&$D94&$AC$2&I$11,data!$F:$W,18,FALSE)),"-",VLOOKUP($B$7&$D94&$AC$2&I$11,data!$F:$W,18,FALSE)) -> 0.01917251824 | J192: =IF(ISNA(VLOOKUP($B$7&$D94&$AC$2&J$11,data!$F:$W,18,FALSE)),"-",VLOOKUP($B$7&$D94&$AC$2&J$11,data!$F:$W,18,FALSE)) -> 1.184060454 | K192: =IF(ISNA(VLOOKUP($B$7&$D94&$AC$2&K$11,data!$F:$W,18,FALSE)),"-",VLOOKUP($B$7&$D94&$AC$2&K$11,data!$F:$W,18,FALSE)) -> 3.179165379 | L192: =IF(ISNA(VLOOKUP($B$7&$D94&$AC$2&L$11,data!$F:$W,18,FALSE)),"-",VLOOKUP($B$7&$D94&$AC$2&L$11,data!$F:$W,18,FALSE)) -> 22.66820872 | M192: =IF(ISNA(VLOOKUP($B$7&$D94&$AC$2&M$11,data!$F:$W,18,FALSE)),"-",VLOOKUP($B$7&$D94&$AC$2&M$11,data!$F:$W,18,FALSE)) -> 195.0310546 | O192: =IF(ISNA(VLOOKUP($B$9&$D94&$AC$2&H$11,data!$F:$W,18,FALSE)),"-",VLOOKUP($B$9&$D94&$AC$2&H$11,data!$F:$W,18,FALSE)) -> - | P192: =IF(ISNA(VLOOKUP($B$9&$D94&$AC$2&I$11,data!$F:$W,18,FALSE)),"-",VLOOKUP($B$9&$D94&$AC$2&I$11,data!$F:$W,18,FALSE)) -> - | Q192: =IF(ISNA(VLOOKUP($B$9&$D94&$AC$2&J$11,data!$F:$W,18,FALSE)),"-",VLOOKUP($B$9&$D94&$AC$2&J$11,data!$F:$W,18,FALSE)) -> - | R192: =IF(ISNA(VLOOKUP($B$9&$D94&$AC$2&K$11,data!$F:$W,18,FALSE)),"-",VLOOKUP($B$9&$D94&$AC$2&K$11,data!$F:$W,18,FALSE)) -> - | S192: =IF(ISNA(VLOOKUP($B$9&$D94&$AC$2&L$11,data!$F:$W,18,FALSE)),"-",VLOOKUP($B$9&$D94&$AC$2&L$11,data!$F:$W,18,FALSE)) -> - | T192: =IF(ISNA(VLOOKUP($B$9&$D94&$AC$2&M$11,data!$F:$W,18,FALSE)),"-",VLOOKUP($B$9&$D94&$AC$2&M$11,data!$F:$W,18,FALSE)) -> -
H193: =IF(ISNA(VLOOKUP($B$7&$D95&$AC$2&H$11,data!$F:$W,18,FALSE)),"-",VLOOKUP($B$7&$D95&$AC$2&H$11,data!$F:$W,18,FALSE)) -> - | I193: =IF(ISNA(VLOOKUP($B$7&$D95&$AC$2&I$11,data!$F:$W,18,FALSE)),"-",VLOOKUP($B$7&$D95&$AC$2&I$11,data!$F:$W,18,FALSE)) -> - | J193: =IF(ISNA(VLOOKUP($B$7&$D95&$AC$2&J$11,data!$F:$W,18,FALSE)),"-",VLOOKUP($B$7&$D95&$AC$2&J$11,data!$F:$W,18,FALSE)) -> - | K193: =IF(ISNA(VLOOKUP($B$7&$D95&$AC$2&K$11,data!$F:$W,18,FALSE)),"-",VLOOKUP($B$7&$D95&$AC$2&K$11,data!$F:$W,18,FALSE)) -> - | L193: =IF(ISNA(VLOOKUP($B$7&$D95&$AC$2&L$11,data!$F:$W,18,FALSE)),"-",VLOOKUP($B$7&$D95&$AC$2&L$11,data!$F:$W,18,FALSE)) -> - | M193: =IF(ISNA(VLOOKUP($B$7&$D95&$AC$2&M$11,data!$F:$W,18,FALSE)),"-",VLOOKUP($B$7&$D95&$AC$2&M$11,data!$F:$W,18,FALSE)) -> - | O193: =IF(ISNA(VLOOKUP($B$9&$D95&$AC$2&H$11,data!$F:$W,18,FALSE)),"-",VLOOKUP($B$9&$D95&$AC$2&H$11,data!$F:$W,18,FALSE)) -> - | P193: =IF(ISNA(VLOOKUP($B$9&$D95&$AC$2&I$11,data!$F:$W,18,FALSE)),"-",VLOOKUP($B$9&$D95&$AC$2&I$11,data!$F:$W,18,FALSE)) -> - | Q193: =IF(ISNA(VLOOKUP($B$9&$D95&$AC$2&J$11,data!$F:$W,18,FALSE)),"-",VLOOKUP($B$9&$D95&$AC$2&J$11,data!$F:$W,18,FALSE)) -> - | R193: =IF(ISNA(VLOOKUP($B$9&$D95&$AC$2&K$11,data!$F:$W,18,FALSE)),"-",VLOOKUP($B$9&$D95&$AC$2&K$11,data!$F:$W,18,FALSE)) -> - | S193: =IF(ISNA(VLOOKUP($B$9&$D95&$AC$2&L$11,data!$F:$W,18,FALSE)),"-",VLOOKUP($B$9&$D95&$AC$2&L$11,data!$F:$W,18,FALSE)) -> - | T193: =IF(ISNA(VLOOKUP($B$9&$D95&$AC$2&M$11,data!$F:$W,18,FALSE)),"-",VLOOKUP($B$9&$D95&$AC$2&M$11,data!$F:$W,18,FALSE)) -> -
H194: =IF(ISNA(VLOOKUP($B$7&$D96&$AC$2&H$11,data!$F:$W,18,FALSE)),"-",VLOOKUP($B$7&$D96&$AC$2&H$11,data!$F:$W,18,FALSE)) -> - | I194: =IF(ISNA(VLOOKUP($B$7&$D96&$AC$2&I$11,data!$F:$W,18,FALSE)),"-",VLOOKUP($B$7&$D96&$AC$2&I$11,data!$F:$W,18,FALSE)) -> - | J194: =IF(ISNA(VLOOKUP($B$7&$D96&$AC$2&J$11,data!$F:$W,18,FALSE)),"-",VLOOKUP($B$7&$D96&$AC$2&J$11,data!$F:$W,18,FALSE)) -> - | K194: =IF(ISNA(VLOOKUP($B$7&$D96&$AC$2&K$11,data!$F:$W,18,FALSE)),"-",VLOOKUP($B$7&$D96&$AC$2&K$11,data!$F:$W,18,FALSE)) -> - | L194: =IF(ISNA(VLOOKUP($B$7&$D96&$AC$2&L$11,data!$F:$W,18,FALSE)),"-",VLOOKUP($B$7&$D96&$AC$2&L$11,data!$F:$W,18,FALSE)) -> - | M194: =IF(ISNA(VLOOKUP($B$7&$D96&$AC$2&M$11,data!$F:$W,18,FALSE)),"-",VLOOKUP($B$7&$D96&$AC$2&M$11,data!$F:$W,18,FALSE)) -> - | O194: =IF(ISNA(VLOOKUP($B$9&$D96&$AC$2&H$11,data!$F:$W,18,FALSE)),"-",VLOOKUP($B$9&$D96&$AC$2&H$11,data!$F:$W,18,FALSE)) -> - | P194: =IF(ISNA(VLOOKUP($B$9&$D96&$AC$2&I$11,data!$F:$W,18,FALSE)),"-",VLOOKUP($B$9&$D96&$AC$2&I$11,data!$F:$W,18,FALSE)) -> - | Q194: =IF(ISNA(VLOOKUP($B$9&$D96&$AC$2&J$11,data!$F:$W,18,FALSE)),"-",VLOOKUP($B$9&$D96&$AC$2&J$11,data!$F:$W,18,FALSE)) -> - | R194: =IF(ISNA(VLOOKUP($B$9&$D96&$AC$2&K$11,data!$F:$W,18,FALSE)),"-",VLOOKUP($B$9&$D96&$AC$2&K$11,data!$F:$W,18,FALSE)) -> - | S194: =IF(ISNA(VLOOKUP($B$9&$D96&$AC$2&L$11,data!$F:$W,18,FALSE)),"-",VLOOKUP($B$9&$D96&$AC$2&L$11,data!$F:$W,18,FALSE)) -> - | T194: =IF(ISNA(VLOOKUP($B$9&$D96&$AC$2&M$11,data!$F:$W,18,FALSE)),"-",VLOOKUP($B$9&$D96&$AC$2&M$11,data!$F:$W,18,FALSE)) -> -
H195: =IF(ISNA(VLOOKUP($B$7&$D97&$AC$2&H$11,data!$F:$W,18,FALSE)),"-",VLOOKUP($B$7&$D97&$AC$2&H$11,data!$F:$W,18,FALSE)) -> 188.7801954 | I195: =IF(ISNA(VLOOKUP($B$7&$D97&$AC$2&I$11,data!$F:$W,18,FALSE)),"-",VLOOKUP($B$7&$D97&$AC$2&I$11,data!$F:$W,18,FALSE)) -> 58.45751988 | J195: =IF(ISNA(VLOOKUP($B$7&$D97&$AC$2&J$11,data!$F:$W,18,FALSE)),"-",VLOOKUP($B$7&$D97&$AC$2&J$11,data!$F:$W,18,FALSE)) -> 12.30645688 | K195: =IF(ISNA(VLOOKUP($B$7&$D97&$AC$2&K$11,data!$F:$W,18,FALSE)),"-",VLOOKUP($B$7&$D97&$AC$2&K$11,data!$F:$W,18,FALSE)) -> 20.70485528 | L195: =IF(ISNA(VLOOKUP($B$7&$D97&$AC$2&L$11,data!$F:$W,18,FALSE)),"-",VLOOKUP($B$7&$D97&$AC$2&L$11,data!$F:$W,18,FALSE)) -> 64.70530595 | M195: =IF(ISNA(VLOOKUP($B$7&$D97&$AC$2&M$11,data!$F:$W,18,FALSE)),"-",VLOOKUP($B$7&$D97&$AC$2&M$11,data!$F:$W,18,FALSE)) -> 32.60605742 | O195: =IF(ISNA(VLOOKUP($B$9&$D97&$AC$2&H$11,data!$F:$W,18,FALSE)),"-",VLOOKUP($B$9&$D97&$AC$2&H$11,data!$F:$W,18,FALSE)) -> - | P195: =IF(ISNA(VLOOKUP($B$9&$D97&$AC$2&I$11,data!$F:$W,18,FALSE)),"-",VLOOKUP($B$9&$D97&$AC$2&I$11,data!$F:$W,18,FALSE)) -> - | Q195: =IF(ISNA(VLOOKUP($B$9&$D97&$AC$2&J$11,data!$F:$W,18,FALSE)),"-",VLOOKUP($B$9&$D97&$AC$2&J$11,data!$F:$W,18,FALSE)) -> - | R195: =IF(ISNA(VLOOKUP($B$9&$D97&$AC$2&K$11,data!$F:$W,18,FALSE)),"-",VLOOKUP($B$9&$D97&$AC$2&K$11,data!$F:$W,18,FALSE)) -> - | S195: =IF(ISNA(VLOOKUP($B$9&$D97&$AC$2&L$11,data!$F:$W,18,FALSE)),"-",VLOOKUP($B$9&$D97&$AC$2&L$11,data!$F:$W,18,FALSE)) -> - | T195: =IF(ISNA(VLOOKUP($B$9&$D97&$AC$2&M$11,data!$F:$W,18,FALSE)),"-",VLOOKUP($B$9&$D97&$AC$2&M$11,data!$F:$W,18,FALSE)) -> -
